Workbook

Sheet Stavba
C2: Položkový rozpočet stavby | H2: Datum:
C5: Stavba : | D5: 3542 | E5: Semily - Obnova VH infrastruktury a komunikací
E6: ul. Smetanova, Dvořákova, větrná a Nad Špejcharem
C7: Objednatel : | D7: Vodohospodářské sdružení Turnov | H7: IČO : | I7: 49295934
D8: Antonína Dvořáka 287 | H8: DIČ : | I8: CZ49295934
C9: 51101 | D9: Turnov
C11: Zhotovitel : | D11: . | H11: IČO :
H12: DIČ :
C14: Za zhotovitele : | H14: Za objednatele :
C16: _______________ | H16: _______________
J18: Rozpočtové náklady
B19: Základ pro DPH | D19: 15 | E19: % | I19: =ROUND(G47,0) -> 0
B20: DPH | D20: =SazbaDPH1 -> 15 | E20: % | I20: =ROUND(I19*D20/100,0) -> 0
B21: Základ pro DPH | D21: 21 | E21: % | I21: =ROUND(H47,0) -> 1000000
B22: DPH | D22: =SazbaDPH2 -> 21 | E22: % | I22: =ROUND(I21*D21/100,0) -> 210000
B23: Cena celkem za stavbu | I23: =SUM(I19:I22) -> 1210000
B26: Rekapitulace stavebních objektů a provozních souborů
B28: Číslo a název objektu / provozního souboru | F28: Cena celkem | G28: =CONCATENATE("Základ DPH ",SazbaDPH1," %") -> Základ DPH 15 % | H28: =CONCATENATE("Základ DPH ",SazbaDPH2," %") -> Základ DPH 21 % | I28: DPH celkem | J28: %
B29: 101 | C29: Rekonstrukce komunikace ul. Větrná | F29: =G29+H29+I29 -> 0 | G29: 0 | H29: =SUM(H52) -> 0 | I29: =(G29*SazbaDPH1)/100+(H29*SazbaDPH2)/100 -> 0 | J29: =IF(CelkemObjekty=0,"",F29/CelkemObjekty*100) -> 0
B30: 102 | C30: Novostavba parkovacího puhu ul. Větrná | F30: =G30+H30+I30 -> 0 | G30: 0 | H30: 0 | I30: 0 | J30: 0
B31: 103 | C31: Rekonstrukce komunikace ul. Smetanova | F31: 0 | G31: 0 | H31: 0 | I31: 0 | J31: 0
B32: 104 | C32: Novostavba parkovacího pruhu ul.Smetanova | F32: 0 | G32: 0 | H32: 0 | I32: 0 | J32: 0
B33: 105 | C33: Rekonstrukce komunikace ul. Dvořákova | F33: 0 | G33: 0 | H33: 0 | I33: 0 | J33: 0
B34: 106 | C34: Novostavba parkovacího pruhu ul. Dvořákova | F34: 0 | G34: 0 | H34: 0 | I34: 0 | J34: 0
B35: 131 | C35: Rekonstrukce chodníku ul. Větrná | F35: 0 | G35: 0 | H35: 0 | I35: 0 | J35: 0
B36: 132 | C36: Rekonstrukce chodníku ul. Smetanova | F36: 0 | G36: 0 | H36: 0 | I36: 0 | J36: 0
B37: 301 | C37: Oprava vodovodní řadů S1 a S2 ul. Smetanova | F37: 0 | G37: 0 | H37: =SUM(H60:H61) -> 0 | I37: 0 | J37: 0
B38: 302 | C38: Oprava gravitační stoky S ul. Smetanova | F38: 0 | G38: 0 | H38: =SUM(H62:H64) -> 0 | I38: 0 | J38: 0
B39: 303 | C39: Oprava vodovodního řadu D ul. Dvořákova | F39: 0 | G39: 0 | H39: =SUM(H65:H66) -> 0 | I39: 0 | J39: 0
B40: 304 | C40: Oprava gravitační stoky D ul. Dvořákova | F40: 0 | G40: 0 | H40: =SUM(H67:H69) -> 0 | I40: 0 | J40: 0
B41: 305 | C41: Oprava vodovodního řadu V ul. Větrná | F41: 0 | G41: 0 | H41: =SUM(H70:H71) -> 0 | I41: 0 | J41: 0
B42: 306 | C42: Oprava gravitační stoky V1 a V2 ul. Větrná | F42: 0 | G42: 0 | H42: =SUM(H72:H74) -> 0 | I42: 0 | J42: 0
B43: 307 | C43: Oprava vodovodního řadu SP ul. Nad Špejcharem | F43: 0 | G43: 0 | H43: =SUM(H75:H78) -> 0 | I43: 0 | J43: 0
B44: 308 | C44: Obnova kanalizace Gymnázium Semily | F44: 0 | G44: 0 | H44: =SUM(H79:H80) -> 0 | I44: 0 | J44: 0
B45: OaVNS | C45: Ostatní a vedlejší náklady stavby | F45: 0 | G45: 0 | H45: =SUM(OaVNS!G30) -> 0 | I45: 0 | J45: 0
B46: PR | C46: Povinná rezerva | F46: 1210000 | G46: 0 | H46: 1000000 | I46: 210000 | J46: 100
B47: Celkem za stavbu | F47: =SUM(F29:F46) -> 1210000 | G47: =SUM(G29:G46) -> 0 | H47: =SUM(H29:H46) -> 1000000 | I47: =SUM(I29:I46) -> 210000 | J47: =IF(CelkemObjekty=0,"",F47/CelkemObjekty*100) -> 100
B49: Rekapitulace stavebních rozpočtů
B51: Číslo objektu | C51: Číslo a název rozpočtu | F51: Cena celkem | G51: =CONCATENATE("Základ DPH ",SazbaDPH1," %") -> Základ DPH 15 % | H51: =CONCATENATE("Základ DPH ",SazbaDPH2," %") -> Základ DPH 21 % | I51: DPH celkem | J51: %
B52: 101 | C52: 3542/101 Rekonstrukce komunikace ul. Větrná | F52: =G52+H52+I52 -> 0 | G52: 0 | H52: =SUM('101 3542101 KL'!C23) -> 0 | I52: =(G52*SazbaDPH1)/100+(H52*SazbaDPH2)/100 -> 0 | J52: =IF(CelkemObjekty=0,"",F52/CelkemObjekty*100) -> 0
B53: 102 | C53: 3542/102 Novostavba parkovacího puhu ul. Větrná | F53: =G53+H53+I53 -> 0 | G53: 0 | H53: =SUM('102 3542102 KL'!C23) -> 0 | I53: 0 | J53: 0
B54: 103 | C54: 3542/103 Rekonstrukce komunikace ul. Smetanova | F54: 0 | G54: 0 | H54: =SUM('103 3542103 KL'!C23) -> 0 | I54: 0 | J54: 0
B55: 104 | C55: 3542/104 Novostavba parkovacího pruhu ul.Smetanova | F55: 0 | G55: 0 | H55: =SUM('104 3542104 KL'!C23) -> 0 | I55: 0 | J55: 0
B56: 105 | C56: 3542/105 Rekonstrukce komunikace ul. Dvořákova | F56: 0 | G56: 0 | H56: =SUM('105 3542105 KL'!C23) -> 0 | I56: 0 | J56: 0
B57: 106 | C57: 3542/106 Novostavba parkovacího pruhu ul. Dvořákova | F57: 0 | G57: 0 | H57: =SUM('106 3542106 KL'!C23) -> 0 | I57: 0 | J57: 0
B58: 131 | C58: 3542/131 Rekonstrukce chodníku ul. Větrná | F58: 0 | G58: 0 | H58: =SUM('131 3542131 KL'!C23) -> 0 | I58: 0 | J58: 0
B59: 132 | C59: 3542/132 Rekonstrukce chodníku ul. Smetanova | F59: 0 | G59: 0 | H59: =SUM('132 3542132 KL'!C23) -> 0 | I59: 0 | J59: 0
B60: 301 | C60: 3542/301.1 Oprava vodovodní řadů S1 a S2 | F60: 0 | G60: 0 | H60: =SUM('301 3542301.1 KL'!C23) -> 0 | I60: 0 | J60: 0
B61: 301 | C61: 3542/301.2 Vodovodní napojovací body | F61: 0 | G61: 0 | H61: =SUM('301 3542301.2 KL'!C23) -> 0 | I61: 0 | J61: 0
B62: 302 | C62: 3542/302.1 Oprava gravitační stoky S | F62: 0 | G62: 0 | H62: =SUM('302 3542302.1 KL'!C23) -> 0 | I62: 0 | J62: 0
B63: 302 | C63: 3542/302.2 Odstavení stávající kanalizační stoky | F63: 0 | G63: 0 | H63: =SUM('302 3542302.2 KL'!C23) -> 0 | I63: 0 | J63: 0
B64: 302 | C64: 3542/302.3 Kanalizační napojovací body | F64: 0 | G64: 0 | H64: =SUM('302 3542302.3 KL'!C23) -> 0 | I64: 0 | J64: 0
B65: 303 | C65: 3542/303.1 Oprava vodovodního řadu D | F65: 0 | G65: 0 | H65: =SUM('303 3542303.1 KL'!C23) -> 0 | I65: 0 | J65: 0
B66: 303 | C66: 3542/303.2 Vodovodní napojovací body | F66: 0 | G66: 0 | H66: =SUM('303 3542303.2 KL'!C23) -> 0 | I66: 0 | J66: 0
B67: 304 | C67: 3542/304.1 Oprava gravitační stoky D | F67: 0 | G67: 0 | H67: =SUM('304 3542304.1 KL'!C23) -> 0 | I67: 0 | J67: 0
B68: 304 | C68: 3542/304.2 Odstavení stávající kanalizační stoky | F68: 0 | G68: 0 | H68: =SUM('304 3542304.2 KL'!C23) -> 0 | I68: 0 | J68: 0
B69: 304 | C69: 3542/304.3 Kanalizační napojovací body | F69: 0 | G69: 0 | H69: =SUM('304 3542304.3 KL'!C23) -> 0 | I69: 0 | J69: 0
B70: 305 | C70: 3542/305.1 Oprava vodovodního řadu V | F70: 0 | G70: 0 | H70: =SUM('305 3542305.1 KL'!C23) -> 0 | I70: 0 | J70: 0
B71: 305 | C71: 3542/305.2 Vodovodní napojovací body | F71: 0 | G71: 0 | H71: =SUM('305 3542305.2 KL'!C23) -> 0 | I71: 0 | J71: 0
B72: 306 | C72: 3542/306.1 Oprava gravitační stoky V1 a V2 | F72: 0 | G72: 0 | H72: =SUM('306 3542306.1 KL'!C23) -> 0 | I72: 0 | J72: 0
B73: 306 | C73: 3542/306.2 Odstavení stávající kanalizační stoky | F73: 0 | G73: 0 | H73: =SUM('306 3542306.2 KL'!C23) -> 0 | I73: 0 | J73: 0
B74: 306 | C74: 3542/306.3 Kanalizační napojovací body | F74: 0 | G74: 0 | H74: =SUM('306 3542306.3 KL'!C23) -> 0 | I74: 0 | J74: 0
B75: 307 | C75: 3542/307.1 Oprava vodovodního řadu SP | F75: 0 | G75: 0 | H75: =SUM('307 3542307.1 KL'!C23) -> 0 | I75: 0 | J75: 0
B76: 307 | C76: 3542/307.2 Odpad z PK | F76: 0 | G76: 0 | H76: =SUM('307 3542307.2 KL'!C23) -> 0 | I76: 0 | J76: 0
B77: 307 | C77: 3542/307.3 Vodovodní napojovací body | F77: 0 | G77: 0 | H77: =SUM('307 3542307.3 KL'!C23) -> 0 | I77: 0 | J77: 0
B78: 307 | C78: 3542/307.4 Opravy povrchů komunikace ul. Nad Špejcharem | F78: 0 | G78: 0 | H78: =SUM('307 3542307.4 KL'!C23) -> 0 | I78: 0 | J78: 0
B79: 308 | C79: 3542/308.1 Obnova kanalizace - Gravitační stoka G | F79: 0 | G79: 0 | H79: =SUM('308 3542308.1 KL'!C23) -> 0 | I79: 0 | J79: 0
B80: 308 | C80: 3542/308.2 Zrušení stávající kanalizace | F80: 0 | G80: 0 | H80: =SUM('308 3542308.2 KL'!C23) -> 0 | I80: 0 | J80: 0
B81: Celkem za stavbu | F81: =SUM(F52:F80) -> 0 | G81: =SUM(G52:G80) -> 0 | H81: =SUM(H52:H80) -> 0 | I81: =SUM(I52:I80) -> 0 | J81: =IF(CelkemObjekty=0,"",F81/CelkemObjekty*100) -> 0

Sheet 101 3542101 KL
A1: POLOŽKOVÝ ROZPOČET
A2: Rozpočet | C2: 3542/101 | D2: Rekonstrukce komunikace ul. Větrná | F2: JKSO | G2: 822.27
A4: Objekt | F4: SKP
A5: 101 | C5: Rekonstrukce komunikace ul. Větrná | F5: Měrná jednotka | G5: m2
A6: Stavba | F6: Počet jednotek | G6: 0
A7: 3542 | C7: Semily - Obnova VH infrastruktury a komunikací | F7: Náklady na m.j. | G7: =IF(G6=0,,ROUND((F30+F32)/G6,1)) -> 0
A8: Projektant | F8: Typ rozpočtu
A9: Zpracovatel projektu
A10: Objednatel | C10: Vodohospodářské sdružení Turnov
A11: Dodavatel | C11: . | F11: Zakázkové číslo
A12: Rozpočtoval | F12: Počet listů
A13: ROZPOČTOVÉ NÁKLADY
A14: Základní rozpočtové náklady
B15: HSV celkem | C15: =SUM('101 3542101 Pol'!I3) -> 0
A16: Z | B16: PSV celkem | C16: 0
A17: R | B17: M práce celkem | C17: 0
A18: N | B18: M dodávky celkem | C18: 0
A19: ZRN celkem | C19: =SUM(C15:C18) -> 0
A21: HZS | C21: 0
A22: ZRN+HZS | C22: =C19+C21 -> 0
A23: ZRN+ost.náklady+HZS | C23: =C22+G23 -> 0
A24: Vypracoval | D24: Za zhotovitele | F24: Za objednatele
A25: Jméno : | D25: Jméno : | F25: Jméno :
A26: Datum : | D26: Datum : | F26: Datum :
A28: Podpis : | D28: Podpis: | F28: Podpis:
A30: Základ pro DPH | C30: 21 | D30: % | F30: =C23-F32 -> 0
A31: DPH | C31: =C30 -> 21 | D31: % | F31: =ROUND(PRODUCT(F30,C31/100),0) -> 0
A32: Základ pro DPH | C32: 0 | D32: % | F32: 0
A33: DPH | C33: =C32 -> 0 | D33: % | F33: =ROUND(PRODUCT(F32,C33/100),0) -> 0
A34: CENA ZA OBJEKT CELKEM | F34: =ROUND(SUM(F30:F33),0) -> 0
A36: Poznámka :

Sheet 101 3542101 Pol
A1: EstiCon | E1: Firma: | P1: 3
E2: Soupis prací objektu
A3: S | B3: Stavba: | C3: 22-069 | E3: Oprava ulic Větrná, Smetanova a Dvořákova | H3: SO 101 | I3: =SUMIFS(I8:I121,A8:A121,"SD") -> 0 | O3: 0 | P3: 2
A4: O | B4: Rozpočet: | C4: SO 101 | E4: Rekonstrukce komunikace - ul. Větrná | O4: 0.12 | P4: 2
A5: Typ | B5: Poř. číslo | C5: Kód položky | D5: Varianta | E5: Název Položky | F5: MJ | G5: Množství | H5: Cena | J5: Cenová soustava | O5: 0.21
H6: Jednotková | I6: Celkem
A7: 0 | B7: 1 | C7: 2 | D7: 3 | E7: 4 | F7: 5 | G7: 6 | H7: 7 | I7: 8 | J7: 9
A8: SD | C8: 0 | E8: Všeobecné konstrukce a práce | I8: =SUMIFS(I9:I20,A9:A20,"P") -> 0
A9: P | B9: 1 | C9: 015111 | E9: POPLATKY ZA LIKVIDACI ODPADŮ NEKONTAMINOVANÝCH - 17 05 04 VYTĚŽENÉ ZEMINY A HORNINY - I. TŘÍDA TĚŽITELNOSTI | F9: T | G9: 234.15 | I9: =ROUND(G9*H9,P4) -> 0 | O9: =I9*0.21 -> 0 | P9: 3
A10: PP
A11: VV | E11: pol. 123738 19,725*2,0 = 39,450 [A] pol. 132738 97,35*2,0 = 194,700 [B] Celkové množství = 234,150
A12: P | B12: 2 | C12: 015130 | E12: POPLATKY ZA LIKVIDACI ODPADŮ NEKONTAMINOVANÝCH - 17 03 02 VYBOURANÝ ASFALTOVÝ BETON BEZ DEHTU | F12: T | G12: 177.768 | I12: =ROUND(G12*H12,P4) -> 0 | O12: =I12*0.21 -> 0 | P12: 3
A13: PP
A14: VV | E14: pol. 11372 74,07*2,4 = 177,768 [A]
A15: P | B15: 3 | C15: 015140 | E15: POPLATKY ZA LIKVIDACI ODPADŮ NEKONTAMINOVANÝCH - 17 01 01 BETON Z DEMOLIC OBJEKTŮ, ZÁKLADŮ TV | F15: T | G15: 17.685 | I15: =ROUND(G15*H15,P4) -> 0 | O15: =I15*0.21 -> 0 | P15: 3
A16: PP
A17: VV | E17: pol. 11352 393*0,15*0,3 = 17,685 [B]
A18: P | B18: 4 | C18: 015330 | E18: POPLATKY ZA LIKVIDACI ODPADŮ NEKONTAMINOVANÝCH - 17 05 04 KAMENNÁ SUŤ | F18: T | G18: 4.56 | I18: =ROUND(G18*H18,P4) -> 0 | O18: =I18*0.21 -> 0 | P18: 3
A19: PP
A20: VV | E20: dle pol. 11332 2,4*1,9 = 4,560 [A]
A21: SD | C21: 1 | E21: Zemní práce | I21: =SUMIFS(I22:I63,A22:A63,"P") -> 0
A22: P | B22: 5 | C22: 11318 | E22: ODSTRANĚNÍ KRYTU ZPEVNĚNÝCH PLOCH Z DLAŽDIC | F22: M3 | G22: 26.9 | I22: =ROUND(G22*H22,P4) -> 0 | O22: =I22*0.21 -> 0 | P22: 3
A23: PP
A24: VV | E24: stávající dlážděná křižovatka (pl. * tl.) 269*0.1 = 26,900 [A]
A25: P | B25: 6 | C25: 11332 | E25: ODSTRANĚNÍ PODKLADŮ ZPEVNĚNÝCH PLOCH Z KAMENIVA NESTMELENÉHO | F25: M3 | G25: 2.4 | I25: =ROUND(G25*H25,P4) -> 0 | O25: =I25*0.21 -> 0 | P25: 3
A26: PP
A27: VV | E27: odstranění podkladních vrstev komunikace (pl. * tl.) 784*0,3 = 235,200 [A] odstranění podkladních vrstev dlážděná křižovatka (pl. * tl.) 269*0,3 = 80,700 [B] stávající nezpevněné plochy (pl. * tl.) 16*0,15 = 2,400 [C]
A28: P | B28: 7 | C28: 11352 | E28: ODSTRANĚNÍ CHODNÍKOVÝCH A SILNIČNÍCH OBRUBNÍKŮ BETONOVÝCH | F28: M | G28: 393 | I28: =ROUND(G28*H28,P4) -> 0 | O28: =I28*0.21 -> 0 | P28: 3
A29: PP
A30: VV | E30: stávající stav 393 = 393,000 [A]
A31: P | B31: 8 | C31: 11356 | E31: ODSTRANĚNÍ OBRUB Z DLAŽEBNÍCH KOSTEK DVOJITÝCH | F31: M | G31: 17 | I31: =ROUND(G31*H31,P4) -> 0 | O31: =I31*0.21 -> 0 | P31: 3
A32: PP
A33: VV | E33: stávající stav 17 = 17,000 [A]
A34: P | B34: 9 | C34: 11372 | E34: FRÉZOVÁNÍ ZPEVNĚNÝCH PLOCH ASFALTOVÝCH | F34: M3 | G34: 74.07 | I34: =ROUND(G34*H34,P4) -> 0 | O34: =I34*0.21 -> 0 | P34: 3
A35: PP | E35: Zhotovitel v ceně zohlední možnost použití materiálu zpět na stavbě. Včetně odvozu a uložení na skládku zhotovitele.
A36: VV | E36: celoplošné frézování vozovky (pl. * hl.) 784*0,09 = 70,560 [A] stupňovité napojení (pl. * hl.) 39*0,09 = 3,510 [B] Celkové množství = 74,070
A37: P | B37: 10 | C37: 113764 | E37: FRÉZOVÁNÍ DRÁŽKY PRŮŘEZU DO 400MM2 V ASFALTOVÉ VOZOVCE | F37: M | G37: 340 | I37: =ROUND(G37*H37,P4) -> 0 | O37: =I37*0.21 -> 0 | P37: 3
A38: PP | E38: komůrka dle VL 211.07 pro zálivku za horka
A39: VV | E39: dvoulinka 340 = 340,000 [A]
A40: P | B40: 11 | C40: 12110 | E40: SEJMUTÍ ORNICE NEBO LESNÍ PŮDY | F40: M3 | G40: 7.05 | I40: =ROUND(G40*H40,P4) -> 0 | O40: =I40*0.21 -> 0 | P40: 3
A41: PP
A42: VV | E42: terénní úpravy (pl. * tl.) 47*0,15 = 7,050 [A]
A43: P | B43: 12 | C43: 123738 | E43: ODKOP PRO SPOD STAVBU SILNIC A ŽELEZNIC TŘ. I, ODVOZ DO 20KM | F43: M3 | G43: 190.725 | I43: =ROUND(G43*H43,P4) -> 0 | O43: =I43*0.21 -> 0 | P43: 3
A44: PP | E44: ZHOTOVITEL V CENĚ ZOHLEDNÍ SKUTEČNÉ NÁKLADY NA DOPRAVU NA MÍSTO ULOŽENÍ
A45: VV | E45: předpokládaný rozsah sanace (pl. * 50% rozsahu) - pol. 18110 1271,5*0,5 = 635,750 [A] předpokládaná tloušťka sanace 0.3 = 0,300 [B] celkem sanace A*B = 190,725 [C]
A46: P | B46: 13 | C46: 132738 | E46: HLOUBENÍ RÝH ŠÍŘ DO 2M PAŽ I NEPAŽ TŘ. I, ODVOZ DO 20KM | F46: M3 | G46: 97.35 | I46: =ROUND(G46*H46,P4) -> 0 | O46: =I46*0.21 -> 0 | P46: 3
A47: PP | E47: ZHOTOVITEL V CENĚ ZOHLEDNÍ SKUTEČNÉ NÁKLADY NA DOPRAVU NA MÍSTO ULOŽENÍ
A48: VV | E48: dvoulinka (dl. * š. * hl.) 340*0,3*0,3 = 30,600 [B] obruby (dl. * š. * hl.) 445*0.3*0,5 = 66,750 [A] Celkové množství = 97,350
A49: P | B49: 14 | C49: 17120 | E49: ULOŽENÍ SYPANINY DO NÁSYPŮ A NA SKLÁDKY BEZ ZHUTNĚNÍ | F49: M3 | G49: 322.425 | I49: =ROUND(G49*H49,P4) -> 0 | O49: =I49*0.21 -> 0 | P49: 3
A50: PP
A51: VV | E51: pol. 123738 225,075 = 225,075 [A] pol. 132738 97,35 = 97,350 [B] Celkové množství = 322,425
A52: P | B52: 15 | C52: 18110 | E52: ÚPRAVA PLÁNĚ SE ZHUTNĚNÍM V HORNINĚ TŘ. I | F52: M2 | G52: 1271.5 | I52: =ROUND(G52*H52,P4) -> 0 | O52: =I52*0.21 -> 0 | P52: 3
A53: PP
A54: VV | E54: Konstrukce A 784 = 784,000 [A] Konstrukce B 269 = 269,000 [B] Pod sil. obrubami (dl. * š.) 445*0,3 = 133,500 [C] Pod dvoulinkou (dl. * š.) 340*0,25 = 85,000 [D] Celkové množství = 1271,500
A55: P | B55: 16 | C55: 18230 | E55: ROZPROSTŘENÍ ORNICE V ROVINĚ | F55: M3 | G55: 7.05 | I55: =ROUND(G55*H55,P4) -> 0 | O55: =I55*0.21 -> 0 | P55: 3
A56: PP | E56: včetně získání materiálu k ohumusování
A57: VV | E57: terénní úpravy 7,05 = 7,050 [A]
A58: P | B58: 17 | C58: 18241 | E58: ZALOŽENÍ TRÁVNÍKU RUČNÍM VÝSEVEM | F58: M2 | G58: 55 | I58: =ROUND(G58*H58,P4) -> 0 | O58: =I58*0.21 -> 0 | P58: 3
A59: PP
A60: VV | E60: terénní úpravy 55 = 55,000 [A]
A61: P | B61: 18 | C61: 183511 | E61: CHEMICKÉ ODPLEVELENÍ CELOPLOŠNÉ | F61: M2 | G61: 55 | I61: =ROUND(G61*H61,P4) -> 0 | O61: =I61*0.21 -> 0 | P61: 3
A62: PP
A63: VV | E63: terénní úpravy 55 = 55,000 [A]
A64: SD | C64: 2 | E64: Základy | I64: =SUMIFS(I65:I73,A65:A73,"P") -> 0
A65: P | B65: 19 | C65: 212636 | E65: TRATIVODY KOMPL Z TRUB Z PLAST HM DN DO 150MM, RÝHA TŘ II | F65: M | G65: 145 | I65: =ROUND(G65*H65,P4) -> 0 | O65: =I65*0.21 -> 0 | P65: 3
A66: PP | E66: Trativod DN 150
A67: VV | E67: trativod 145 = 145,000 [A]
A68: P | B68: 20 | C68: 21361 | E68: DRENÁŽNÍ VRSTVY Z GEOTEXTILIE | F68: M2 | G68: 1271.5 | I68: =ROUND(G68*H68,P4) -> 0 | O68: =I68*0.21 -> 0 | P68: 3
A69: PP | E69: netkaná geotextílie 500 g/m2, CBR>3 kN, odolnost proti proražení < 10 mm, tažnost > 50% dle TP 97 separační a filtrační funkce
A70: VV | E70: pol. 18110 1271,5 = 1271,500 [A]
A71: P | B71: 21 | C71: 21452 | E71: SANAČNÍ VRSTVY Z KAMENIVA DRCENÉHO | F71: M3 | G71: 190.725 | I71: =ROUND(G71*H71,P4) -> 0 | O71: =I71*0.21 -> 0 | P71: 3
A72: PP | E72: sanace aktivní zóny - nakupený materiál dle ČSN 73 6133
A73: VV | E73: předpokládaný rozsah sanace (pl. * 50% rozsahu) - pol. 18110 1271,5*0,5 = 635,750 [A] předpokládaná tloušťka sanace 0.3 = 0,300 [B] celkem sanace A*B = 190,725 [C]
A74: SD | C74: 5 | E74: Komunikace | I74: =SUMIFS(I75:I95,A75:A95,"P") -> 0
A75: P | B75: 22 | C75: 56313 | E75: VOZOVKOVÉ VRSTVY Z MECHANICKY ZPEVNĚNÉHO KAMENIVA TL. DO 150MM | F75: M2 | G75: 269 | I75: =ROUND(G75*H75,P4) -> 0 | O75: =I75*0.21 -> 0 | P75: 3
A76: PP | E76: MZK - 150 mm
A77: VV | E77: Konstrukce B 269 = 269,000 [A]
A78: P | B78: 23 | C78: 56333 | E78: VOZOVKOVÉ VRSTVY ZE ŠTĚRKODRTI TL. DO 150MM | F78: M2 | G78: 1837 | I78: =ROUND(G78*H78,P4) -> 0 | O78: =I78*0.21 -> 0 | P78: 3
A79: PP | E79: ŠDA 0/32 - 150 mm
A80: VV | E80: Konstrukce A 784*2 = 1568,000 [A] Konstrukce B 269 = 269,000 [B] Celkové množství = 1837,000
A81: P | B81: 24 | C81: 572123 | E81: INFILTRAČNÍ POSTŘIK Z EMULZE DO 1,0KG/M2 | F81: M2 | G81: 784 | I81: =ROUND(G81*H81,P4) -> 0 | O81: =I81*0.21 -> 0 | P81: 3
A82: PP | E82: PI-C 1,00 kg/m2
A83: VV | E83: Konstrukce A 784 = 784,000 [A]
A84: P | B84: 25 | C84: 572213 | E84: SPOJOVACÍ POSTŘIK Z EMULZE DO 0,5KG/M2 | F84: M2 | G84: 803.5 | I84: =ROUND(G84*H84,P4) -> 0 | O84: =I84*0.21 -> 0 | P84: 3
A85: PP | E85: PS-C 0,30 kg/m2
A86: VV | E86: Konstrukce A 784 = 784,000 [A] Stupňovité napojení 39/2 = 19,500 [B] Celkové množství = 803,500
A87: P | B87: 26 | C87: 574A33 | E87: ASFALTOVÝ BETON PRO OBRUSNÉ VRSTVY ACO 11 TL. 40MM | F87: M2 | G87: 823 | I87: =ROUND(G87*H87,P4) -> 0 | O87: =I87*0.21 -> 0 | P87: 3
A88: PP | E88: ACO 11, 50/70 - 40 mm
A89: VV | E89: Konstrukce A 784 = 784,000 [A] Stupňovité napojení 39 = 39,000 [B] Celkové množství = 823,000
A90: P | B90: 27 | C90: 574E46 | E90: ASFALTOVÝ BETON PRO PODKLADNÍ VRSTVY ACP 16+, 16S TL. 50MM | F90: M2 | G90: 803.5 | I90: =ROUND(G90*H90,P4) -> 0 | O90: =I90*0.21 -> 0 | P90: 3
A91: PP | E91: ACP 16+, 50/70 - 50 mm
A92: VV | E92: Konstrukce A 784 = 784,000 [A] Stupňovité napojení 39/2 = 19,500 [B] Celkové množství = 803,500
A93: P | B93: 28 | C93: 582612 | E93: KRYTY Z BETON DLAŽDIC SE ZÁMKEM ŠEDÝCH TL 80MM DO LOŽE Z KAM | F93: M2 | G93: 269 | I93: =ROUND(G93*H93,P4) -> 0 | O93: =I93*0.21 -> 0 | P93: 3
A94: PP | E94: Betonová dlažba (2x vyspárováno), šedá - 80 mm
A95: VV | E95: Konstrukce B 269 = 269,000 [A]
A96: SD | C96: 8 | E96: Potrubí | I96: =SUMIFS(I97:I102,A97:A102,"P") -> 0
A97: P | B97: 29 | C97: 89712 | E97: VPUSŤ KANALIZAČNÍ ULIČNÍ KOMPLETNÍ Z BETONOVÝCH DÍLCŮ | F97: KUS | G97: 7 | I97: =ROUND(G97*H97,P4) -> 0 | O97: =I97*0.21 -> 0 | P97: 3
A98: PP
A99: VV | E99: uliční vpusť 7 = 7,000 [A]
A100: P | B100: 30 | C100: 89921 | E100: VÝŠKOVÁ ÚPRAVA POKLOPŮ | F100: KUS | G100: 6 | I100: =ROUND(G100*H100,P4) -> 0 | O100: =I100*0.21 -> 0 | P100: 3
A101: PP | E101: výšková úprava poklopů v komunikaci na novou úroveň nivelety včetně nutného materiálu a prací pro snížení nebo zvýšení do 100mm
A102: VV | E102: dle situace 6 = 6,000 [A]
A103: SD | C103: 9 | E103: Ostatní konstrukce a práce | I103: =SUMIFS(I104:I121,A104:A121,"P") -> 0
A104: P | B104: 31 | C104: 917224 | E104: SILNIČNÍ A CHODNÍKOVÉ OBRUBY Z BETONOVÝCH OBRUBNÍKŮ ŠÍŘ 150MM | F104: M | G104: 445 | I104: =ROUND(G104*H104,P4) -> 0 | O104: =I104*0.21 -> 0 | P104: 3
A105: PP
A106: VV | E106: silniční obruby 445 = 445,000 [A]
A107: P | B107: 32 | C107: 91772 | E107: OBRUBA Z DLAŽEBNÍCH KOSTEK DROBNÝCH | F107: M | G107: 680 | I107: =ROUND(G107*H107,P4) -> 0 | O107: =I107*0.21 -> 0 | P107: 3
A108: PP
A109: VV | E109: Dvoulinka ze žulových kostek 340*2 = 680,000 [A]
A110: P | B110: 33 | C110: 91781 | E110: VÝŠKOVÁ ÚPRAVA OBRUBNÍKŮ BETONOVÝCH | F110: M | G110: 16 | I110: =ROUND(G110*H110,P4) -> 0 | O110: =I110*0.21 -> 0 | P110: 3
A111: PP
A112: VV | E112: napojení na stávající stavy 8*2 = 16,000 [A]
A113: P | B113: 34 | C113: 919112 | E113: ŘEZÁNÍ ASFALTOVÉHO KRYTU VOZOVEK TL DO 100MM | F113: M | G113: 36 | I113: =ROUND(G113*H113,P4) -> 0 | O113: =I113*0.21 -> 0 | P113: 3
A114: PP
A115: VV | E115: v napojení na stáv. stav 36 = 36,000 [A]
A116: P | B116: 35 | C116: 931324 | E116: TĚSNĚNÍ DILATAČ SPAR ASF ZÁLIVKOU MODIFIK PRŮŘ DO 400MM2 | F116: M | G116: 376 | I116: =ROUND(G116*H116,P4) -> 0 | O116: =I116*0.21 -> 0 | P116: 3
A117: PP | E117: zálivka spar ve vozovce zálivka za horka dle ČSN 14188 - typ N2
A118: VV | E118: v napojení 36 = 36,000 [A] dvoulinka 340 = 340,000 [B] Celkové množství = 376,000
A119: P | B119: 36 | C119: 96615 | E119: BOURÁNÍ KONSTRUKCÍ Z PROSTÉHO BETONU | F119: M3 | G119: 2 | I119: =ROUND(G119*H119,P4) -> 0 | O119: =I119*0.21 -> 0 | P119: 3
A120: PP | E120: bourání v trase na trvalou skládku
A121: VV | E121: bourání v trase 2 = 2,000 [A]

Sheet 102 3542102 KL
A1: POLOŽKOVÝ ROZPOČET
A2: Rozpočet | C2: 3542/102 | D2: Novostavba parkovacího puhu ul. Větrná | F2: JKSO | G2: 822.27
A4: Objekt | F4: SKP
A5: 102 | C5: Novostavba parkovacího puhu ul. Větrná | F5: Měrná jednotka | G5: m2
A6: Stavba | F6: Počet jednotek | G6: 0
A7: 3542 | C7: Semily - Obnova VH infrastruktury a komunikací | F7: Náklady na m.j. | G7: =IF(G6=0,,ROUND((F30+F32)/G6,1)) -> 0
A8: Projektant | F8: Typ rozpočtu
A9: Zpracovatel projektu
A10: Objednatel | C10: Vodohospodářské sdružení Turnov
A11: Dodavatel | C11: . | F11: Zakázkové číslo
A12: Rozpočtoval | F12: Počet listů
A13: ROZPOČTOVÉ NÁKLADY
A14: Základní rozpočtové náklady
B15: HSV celkem | C15: =SUM('102 3542102 Pol'!I3) -> 0
A16: Z | B16: PSV celkem | C16: 0
A17: R | B17: M práce celkem | C17: 0
A18: N | B18: M dodávky celkem | C18: 0
A19: ZRN celkem | C19: =SUM(C15:C18) -> 0
A21: HZS | C21: 0
A22: ZRN+HZS | C22: =C19+C21 -> 0
A23: ZRN+ost.náklady+HZS | C23: =C22+G23 -> 0
A24: Vypracoval | D24: Za zhotovitele | F24: Za objednatele
A25: Jméno : | D25: Jméno : | F25: Jméno :
A26: Datum : | D26: Datum : | F26: Datum :
A28: Podpis : | D28: Podpis: | F28: Podpis:
A30: Základ pro DPH | C30: 21 | D30: % | F30: =C23-F32 -> 0
A31: DPH | C31: =C30 -> 21 | D31: % | F31: =ROUND(PRODUCT(F30,C31/100),0) -> 0
A32: Základ pro DPH | C32: 0 | D32: % | F32: 0
A33: DPH | C33: =C32 -> 0 | D33: % | F33: =ROUND(PRODUCT(F32,C33/100),0) -> 0
A34: CENA ZA OBJEKT CELKEM | F34: =ROUND(SUM(F30:F33),0) -> 0
A36: Poznámka :

Sheet 102 3542102 Pol
A1: EstiCon | E1: Firma: | P1: 3
E2: Soupis prací objektu
A3: S | B3: Stavba: | C3: 22-069 | E3: Oprava ulic Větrná, Smetanova a Dvořákova | H3: SO 102 | I3: =SUMIFS(I8:I68,A8:A68,"SD") -> 0 | O3: 0 | P3: 2
A4: O | B4: Rozpočet: | C4: SO 102 | E4: Novostavba parkovacího pruhu - ul. Větrná | O4: 0.12 | P4: 2
A5: Typ | B5: Poř. číslo | C5: Kód položky | D5: Varianta | E5: Název Položky | F5: MJ | G5: Množství | H5: Cena | J5: Cenová soustava | O5: 0.21
H6: Jednotková | I6: Celkem
A7: 0 | B7: 1 | C7: 2 | D7: 3 | E7: 4 | F7: 5 | G7: 6 | H7: 7 | I7: 8 | J7: 9
A8: SD | C8: 0 | E8: Všeobecné konstrukce a práce | I8: =SUMIFS(I9:I17,A9:A17,"P") -> 0
A9: P | B9: 1 | C9: 015111 | E9: POPLATKY ZA LIKVIDACI ODPADŮ NEKONTAMINOVANÝCH - 17 05 04 VYTĚŽENÉ ZEMINY A HORNINY - I. TŘÍDA TĚŽITELNOSTI | F9: T | G9: 78.6 | I9: =ROUND(G9*H9,P4) -> 0 | O9: =I9*0.21 -> 0 | P9: 3
A10: PP
A11: VV | E11: pol. 123738 37,5*2,0 = 75,000 [A] pol. 132738 1,8*2,0 = 3,600 [B] Celkové množství = 78,600
A12: P | B12: 2 | C12: 015130 | E12: POPLATKY ZA LIKVIDACI ODPADŮ NEKONTAMINOVANÝCH - 17 03 02 VYBOURANÝ ASFALTOVÝ BETON BEZ DEHTU | F12: T | G12: 60 | I12: =ROUND(G12*H12,P4) -> 0 | O12: =I12*0.21 -> 0 | P12: 3
A13: PP
A14: VV | E14: pol. 11313 25*2,4 = 60,000 [A]
A15: P | B15: 3 | C15: 015330 | E15: POPLATKY ZA LIKVIDACI ODPADŮ NEKONTAMINOVANÝCH - 17 05 04 KAMENNÁ SUŤ | F15: T | G15: 128.25 | I15: =ROUND(G15*H15,P4) -> 0 | O15: =I15*0.21 -> 0 | P15: 3
A16: PP
A17: VV | E17: dle pol. 11332 67,5*1,9 = 128,250 [A]
A18: SD | C18: 1 | E18: Zemní práce | I18: =SUMIFS(I19:I36,A19:A36,"P") -> 0
A19: P | B19: 4 | C19: 11313 | E19: ODSTRANĚNÍ KRYTU ZPEVNĚNÝCH PLOCH S ASFALTOVÝM POJIVEM | F19: M3 | G19: 25 | I19: =ROUND(G19*H19,P4) -> 0 | O19: =I19*0.21 -> 0 | P19: 3
A20: PP
A21: VV | E21: stávající chodník 250*0,1 = 25,000 [A]
A22: P | B22: 5 | C22: 11332 | E22: ODSTRANĚNÍ PODKLADŮ ZPEVNĚNÝCH PLOCH Z KAMENIVA NESTMELENÉHO | F22: M3 | G22: 67.5 | I22: =ROUND(G22*H22,P4) -> 0 | O22: =I22*0.21 -> 0 | P22: 3
A23: PP
A24: VV | E24: odstranění podkladních vrstev stávajícího chodníku (pl. * tl.) 250*0,27 = 67,500 [A]
A25: P | B25: 6 | C25: 123738 | E25: ODKOP PRO SPOD STAVBU SILNIC A ŽELEZNIC TŘ. I, ODVOZ DO 20KM | F25: M3 | G25: 37.5 | I25: =ROUND(G25*H25,P4) -> 0 | O25: =I25*0.21 -> 0 | P25: 3
A26: PP | E26: ZHOTOVITEL V CENĚ ZOHLEDNÍ SKUTEČNÉ NÁKLADY NA DOPRAVU NA MÍSTO ULOŽENÍ
A27: VV | E27: předpokládaný rozsah sanace (pl. * 50% rozsahu) - pol. 18110 250*0,5 = 125,000 [A] předpokládaná tloušťka sanace 0.3 = 0,300 [B] celkem sanace A*B = 37,500 [C]
A28: P | B28: 7 | C28: 132738 | E28: HLOUBENÍ RÝH ŠÍŘ DO 2M PAŽ I NEPAŽ TŘ. I, ODVOZ DO 20KM | F28: M3 | G28: 1.8 | I28: =ROUND(G28*H28,P4) -> 0 | O28: =I28*0.21 -> 0 | P28: 3
A29: PP | E29: ZHOTOVITEL V CENĚ ZOHLEDNÍ SKUTEČNÉ NÁKLADY NA DOPRAVU NA MÍSTO ULOŽENÍ
A30: VV | E30: obruby (dl. * š. * hl.) 12*0.3*0,5 = 1,800 [A]
A31: P | B31: 8 | C31: 17120 | E31: ULOŽENÍ SYPANINY DO NÁSYPŮ A NA SKLÁDKY BEZ ZHUTNĚNÍ | F31: M3 | G31: 39.3 | I31: =ROUND(G31*H31,P4) -> 0 | O31: =I31*0.21 -> 0 | P31: 3
A32: PP
A33: VV | E33: pol. 123738 37,5 = 37,500 [A] pol. 132738 1,8 = 1,800 [B] Celkové množství = 39,300
A34: P | B34: 9 | C34: 18110 | E34: ÚPRAVA PLÁNĚ SE ZHUTNĚNÍM V HORNINĚ TŘ. I | F34: M2 | G34: 253.45 | I34: =ROUND(G34*H34,P4) -> 0 | O34: =I34*0.21 -> 0 | P34: 3
A35: PP
A36: VV | E36: Konstrukce C 250 = 250,000 [A] Pod sil. obrubami 9*0,3 = 2,700 [C] Pod chod. obrubou 3*0,25 = 0,750 [D] Celkové množství = 253,450
A37: SD | C37: 2 | E37: Základy | I37: =SUMIFS(I38:I43,A38:A43,"P") -> 0
A38: P | B38: 10 | C38: 21361 | E38: DRENÁŽNÍ VRSTVY Z GEOTEXTILIE | F38: M2 | G38: 253.45 | I38: =ROUND(G38*H38,P4) -> 0 | O38: =I38*0.21 -> 0 | P38: 3
A39: PP | E39: netkaná geotextílie 500 g/m2, CBR>3 kN, odolnost proti proražení < 10 mm, tažnost > 50% dle TP 97 separační a filtrační funkce
A40: VV | E40: pol. 18110 253,45 = 253,450 [A]
A41: P | B41: 11 | C41: 21452 | E41: SANAČNÍ VRSTVY Z KAMENIVA DRCENÉHO | F41: M3 | G41: 37.5 | I41: =ROUND(G41*H41,P4) -> 0 | O41: =I41*0.21 -> 0 | P41: 3
A42: PP | E42: sanace aktivní zóny - nakupený materiál dle ČSN 73 6133
A43: VV | E43: předpokládaný rozsah sanace (pl. * 50% rozsahu) - pol. 18110 250*0,5 = 125,000 [A] předpokládaná tloušťka sanace 0.3 = 0,300 [B] celkem sanace A*B = 37,500 [C]
A44: SD | C44: 5 | E44: Komunikace | I44: =SUMIFS(I45:I53,A45:A53,"P") -> 0
A45: P | B45: 12 | C45: 56333 | E45: VOZOVKOVÉ VRSTVY ZE ŠTĚRKODRTI TL. DO 150MM | F45: M2 | G45: 250 | I45: =ROUND(G45*H45,P4) -> 0 | O45: =I45*0.21 -> 0 | P45: 3
A46: PP | E46: ŠDA 0/32 - 150 mm
A47: VV | E47: Konstrukce C 164+86 = 250,000 [B]
A48: P | B48: 13 | C48: 582612 | D48: 1 | E48: KRYTY Z BETON DLAŽDIC SE ZÁMKEM ŠEDÝCH TL 80MM DO LOŽE Z KAM | F48: M2 | G48: 164 | I48: =ROUND(G48*H48,P4) -> 0 | O48: =I48*0.21 -> 0 | P48: 3
A49: PP | E49: Betonová dlažba (2x vyspárováno), šedá - 80 mm
A50: VV | E50: Konstrukce C 164 = 164,000 [A]
A51: P | B51: 14 | C51: 582612 | D51: 2 | E51: KRYTY Z BETON DLAŽDIC SE ZÁMKEM ŠEDÝCH TL 80MM DO LOŽE Z KAM | F51: M2 | G51: 86 | I51: =ROUND(G51*H51,P4) -> 0 | O51: =I51*0.21 -> 0 | P51: 3
A52: PP | E52: Betonová dlažba (2x vyspárováno), antracit - 80 mm
A53: VV | E53: Konstrukce C 86 = 86,000 [A]
A54: SD | C54: 7 | E54: Přidružená stavební výroba | I54: =SUMIFS(I55:I57,A55:A57,"P") -> 0
A55: P | B55: 15 | C55: 711117 | E55: IZOLACE BĚŽNÝCH KONSTRUKCÍ PROTI ZEMNÍ VLHKOSTI Z PE FÓLIÍ | F55: M2 | G55: 118.5 | I55: =ROUND(G55*H55,P4) -> 0 | O55: =I55*0.21 -> 0 | P55: 3
A56: PP | E56: nopová fólie v místě souběhu s nemovitostí nebo podezdívkou
A57: VV | E57: délka souběhu podél konstrukcí 133+25 = 158,000 [A] délka izolace v řezu 0,75 = 0,750 [B] celkem a*b = 118,500 [C]
A58: SD | C58: 8 | E58: Potrubí | I58: =SUMIFS(I59:I61,A59:A61,"P") -> 0
A59: P | B59: 16 | C59: 89921 | E59: VÝŠKOVÁ ÚPRAVA POKLOPŮ | F59: KUS | G59: 2 | I59: =ROUND(G59*H59,P4) -> 0 | O59: =I59*0.21 -> 0 | P59: 3
A60: PP | E60: výšková úprava poklopů v komunikaci na novou úroveň nivelety včetně nutného materiálu a prací pro snížení nebo zvýšení do 100mm
A61: VV | E61: dle situace 2 = 2,000 [A]
A62: SD | C62: 9 | E62: Ostatní konstrukce a práce | I62: =SUMIFS(I63:I68,A63:A68,"P") -> 0
A63: P | B63: 17 | C63: 917223 | E63: SILNIČNÍ A CHODNÍKOVÉ OBRUBY Z BETONOVÝCH OBRUBNÍKŮ ŠÍŘ 100MM | F63: M | G63: 9 | I63: =ROUND(G63*H63,P4) -> 0 | O63: =I63*0.21 -> 0 | P63: 3
A64: PP
A65: VV | E65: chodníkové obruby 9 = 9,000 [A]
A66: P | B66: 18 | C66: 917224 | E66: SILNIČNÍ A CHODNÍKOVÉ OBRUBY Z BETONOVÝCH OBRUBNÍKŮ ŠÍŘ 150MM | F66: M | G66: 3 | I66: =ROUND(G66*H66,P4) -> 0 | O66: =I66*0.21 -> 0 | P66: 3
A67: PP
A68: VV | E68: silniční obruby 3 = 3,000 [A]

Sheet 103 3542103 KL
A1: POLOŽKOVÝ ROZPOČET
A2: Rozpočet | C2: 3542/103 | D2: Rekonstrukce komunikace ul. Smetanova | F2: JKSO | G2: 822.27
A4: Objekt | F4: SKP
A5: 103 | C5: Rekonstrukce komunikace ul. Smetanova | F5: Měrná jednotka | G5: m2
A6: Stavba | F6: Počet jednotek | G6: 0
A7: 3542 | C7: Semily - Obnova VH infrastruktury a komunikací | F7: Náklady na m.j. | G7: =IF(G6=0,,ROUND((F30+F32)/G6,1)) -> 0
A8: Projektant | F8: Typ rozpočtu
A9: Zpracovatel projektu
A10: Objednatel | C10: Vodohospodářské sdružení Turnov
A11: Dodavatel | C11: . | F11: Zakázkové číslo
A12: Rozpočtoval | F12: Počet listů
A13: ROZPOČTOVÉ NÁKLADY
A14: Základní rozpočtové náklady
B15: HSV celkem | C15: =SUM('103 3542103 Pol'!I3) -> 0
A16: Z | B16: PSV celkem | C16: 0
A17: R | B17: M práce celkem | C17: 0
A18: N | B18: M dodávky celkem | C18: 0
A19: ZRN celkem | C19: =SUM(C15:C18) -> 0
A21: HZS | C21: 0
A22: ZRN+HZS | C22: =C19+C21 -> 0
A23: ZRN+ost.náklady+HZS | C23: =C22+G23 -> 0
A24: Vypracoval | D24: Za zhotovitele | F24: Za objednatele
A25: Jméno : | D25: Jméno : | F25: Jméno :
A26: Datum : | D26: Datum : | F26: Datum :
A28: Podpis : | D28: Podpis: | F28: Podpis:
A30: Základ pro DPH | C30: 21 | D30: % | F30: =C23-F32 -> 0
A31: DPH | C31: =C30 -> 21 | D31: % | F31: =ROUND(PRODUCT(F30,C31/100),0) -> 0
A32: Základ pro DPH | C32: 0 | D32: % | F32: 0
A33: DPH | C33: =C32 -> 0 | D33: % | F33: =ROUND(PRODUCT(F32,C33/100),0) -> 0
A34: CENA ZA OBJEKT CELKEM | F34: =ROUND(SUM(F30:F33),0) -> 0
A36: Poznámka :

Sheet 103 3542103 Pol
A1: EstiCon | E1: Firma: | P1: 3
E2: Soupis prací objektu
A3: S | B3: Stavba: | C3: 22-069 | E3: Oprava ulic Větrná, Smetanova a Dvořákova | H3: SO 103 | I3: =SUMIFS(I8:I130,A8:A130,"SD") -> 0 | O3: 0 | P3: 2
A4: O | B4: Rozpočet: | C4: SO 103 | E4: Rekonstrukce komunikace - ul. Smetanova | O4: 0.12 | P4: 2
A5: Typ | B5: Poř. číslo | C5: Kód položky | D5: Varianta | E5: Název Položky | F5: MJ | G5: Množství | H5: Cena | J5: Cenová soustava | O5: 0.21
H6: Jednotková | I6: Celkem
A7: 0 | B7: 1 | C7: 2 | D7: 3 | E7: 4 | F7: 5 | G7: 6 | H7: 7 | I7: 8 | J7: 9
A8: SD | C8: 0 | E8: Všeobecné konstrukce a práce | I8: =SUMIFS(I9:I20,A9:A20,"P") -> 0
A9: P | B9: 1 | C9: 015111 | E9: POPLATKY ZA LIKVIDACI ODPADŮ NEKONTAMINOVANÝCH - 17 05 04 VYTĚŽENÉ ZEMINY A HORNINY - I. TŘÍDA TĚŽITELNOSTI | F9: T | G9: 592.89 | I9: =ROUND(G9*H9,P4) -> 0 | O9: =I9*0.21 -> 0 | P9: 3
A10: PP
A11: VV | E11: pol. 123738 190,725*2,0 = 381,450 [A] pol. 132738 105,72*2,0 = 211,440 [B] Celkové množství = 592,890
A12: P | B12: 2 | C12: 015130 | E12: POPLATKY ZA LIKVIDACI ODPADŮ NEKONTAMINOVANÝCH - 17 03 02 VYBOURANÝ ASFALTOVÝ BETON BEZ DEHTU | F12: T | G12: 160.272 | I12: =ROUND(G12*H12,P4) -> 0 | O12: =I12*0.21 -> 0 | P12: 3
A13: PP
A14: VV | E14: pol. 11372 66,78*2,4 = 160,272 [A]
A15: P | B15: 3 | C15: 015140 | E15: POPLATKY ZA LIKVIDACI ODPADŮ NEKONTAMINOVANÝCH - 17 01 01 BETON Z DEMOLIC OBJEKTŮ, ZÁKLADŮ TV | F15: T | G15: 10.395 | I15: =ROUND(G15*H15,P4) -> 0 | O15: =I15*0.21 -> 0 | P15: 3
A16: PP
A17: VV | E17: pol. 11352 231*0,15*0,3 = 10,395 [B]
A18: P | B18: 4 | C18: 015330 | E18: POPLATKY ZA LIKVIDACI ODPADŮ NEKONTAMINOVANÝCH - 17 05 04 KAMENNÁ SUŤ | F18: T | G18: 429.495 | I18: =ROUND(G18*H18,P4) -> 0 | O18: =I18*0.21 -> 0 | P18: 3
A19: PP
A20: VV | E20: dle pol. 11332 226,05*1,9 = 429,495 [A]
A21: SD | C21: 1 | E21: Zemní práce | I21: =SUMIFS(I22:I57,A22:A57,"P") -> 0
A22: P | B22: 5 | C22: 11332 | E22: ODSTRANĚNÍ PODKLADŮ ZPEVNĚNÝCH PLOCH Z KAMENIVA NESTMELENÉHO | F22: M3 | G22: 226.05 | I22: =ROUND(G22*H22,P4) -> 0 | O22: =I22*0.21 -> 0 | P22: 3
A23: PP
A24: VV | E24: odstranění podkladních vrstev komunikace (pl. * tl.) 742*0,3 = 222,600 [A] stávající nezpevněné plochy (pl. * tl.) 23*0,15 = 3,450 [C] Celkové množství = 226,050
A25: P | B25: 6 | C25: 11352 | E25: ODSTRANĚNÍ CHODNÍKOVÝCH A SILNIČNÍCH OBRUBNÍKŮ BETONOVÝCH | F25: M | G25: 231 | I25: =ROUND(G25*H25,P4) -> 0 | O25: =I25*0.21 -> 0 | P25: 3
A26: PP | E26: ZHOTOVITEL V CENĚ ZOHLEDNÍ SKUTEČNÉ NÁKLADY NA DOPRAVU NA MÍSTO ULOŽENÍ
A27: VV | E27: stávající stav 231 = 231,000 [A]
A28: P | B28: 7 | C28: 11372 | E28: FRÉZOVÁNÍ ZPEVNĚNÝCH PLOCH ASFALTOVÝCH | F28: M3 | G28: 66.78 | I28: =ROUND(G28*H28,P4) -> 0 | O28: =I28*0.21 -> 0 | P28: 3
A29: PP | E29: Zhotovitel v ceně zohlední možnost použití materiálu zpět na stavbě. Včetně odvozu a uložení na skládku zhotovitele.
A30: VV | E30: celoplošné frézování vozovky (pl. * hl.) 742*0,09 = 66,780 [A]
A31: P | B31: 8 | C31: 113764 | E31: FRÉZOVÁNÍ DRÁŽKY PRŮŘEZU DO 400MM2 V ASFALTOVÉ VOZOVCE | F31: M | G31: 343 | I31: =ROUND(G31*H31,P4) -> 0 | O31: =I31*0.21 -> 0 | P31: 3
A32: PP | E32: komůrka dle VL 211.07 pro zálivku za horka
A33: VV | E33: dvoulinka 343 = 343,000 [A]
A34: P | B34: 9 | C34: 12110 | E34: SEJMUTÍ ORNICE NEBO LESNÍ PŮDY | F34: M3 | G34: 35.25 | I34: =ROUND(G34*H34,P4) -> 0 | O34: =I34*0.21 -> 0 | P34: 3
A35: PP
A36: VV | E36: terénní úpravy (pl. * hl.) 235*0,15 = 35,250 [A]
A37: P | B37: 10 | C37: 123738 | E37: ODKOP PRO SPOD STAVBU SILNIC A ŽELEZNIC TŘ. I, ODVOZ DO 20KM | F37: M3 | G37: 190.725 | I37: =ROUND(G37*H37,P4) -> 0 | O37: =I37*0.21 -> 0 | P37: 3
A38: PP | E38: ZHOTOVITEL V CENĚ ZOHLEDNÍ SKUTEČNÉ NÁKLADY NA DOPRAVU NA MÍSTO ULOŽENÍ
A39: VV | E39: předpokládaný rozsah sanace (pl. * 50% rozsahu) - pol. 18110 1271,5*0,5 = 635,750 [A] předpokládaná tloušťka sanace 0.3 = 0,300 [B] celkem sanace A*B = 190,725 [C]
A40: P | B40: 11 | C40: 132738 | E40: HLOUBENÍ RÝH ŠÍŘ DO 2M PAŽ I NEPAŽ TŘ. I, ODVOZ DO 20KM | F40: M3 | G40: 105.72 | I40: =ROUND(G40*H40,P4) -> 0 | O40: =I40*0.21 -> 0 | P40: 3
A41: PP | E41: ZHOTOVITEL V CENĚ ZOHLEDNÍ SKUTEČNÉ NÁKLADY NA DOPRAVU NA MÍSTO ULOŽENÍ
A42: VV | E42: dvoulinka (dl. * š. * hl.) 343*0,3*0,3 = 30,870 [B] obruby (dl. * š. * hl.) (407+4)*0.3*0,5 = 61,650 [A] kanalizační přípojka (dl. * š. * hl.) 23*0,5*1 = 11,500 [C] odvodňovací žlab (dl. * š. * hl.) 17*0,25*0,4 = 1,700 [D] Celkové množství = 105,720
A43: P | B43: 12 | C43: 17120 | E43: ULOŽENÍ SYPANINY DO NÁSYPŮ A NA SKLÁDKY BEZ ZHUTNĚNÍ | F43: M3 | G43: 296.445 | I43: =ROUND(G43*H43,P4) -> 0 | O43: =I43*0.21 -> 0 | P43: 3
A44: PP
A45: VV | E45: pol. 123738 190,725 = 190,725 [A] pol. 132738 105,72 = 105,720 [B] Celkové množství = 296,445
A46: P | B46: 13 | C46: 18110 | E46: ÚPRAVA PLÁNĚ SE ZHUTNĚNÍM V HORNINĚ TŘ. I | F46: M2 | G46: 1021.4 | I46: =ROUND(G46*H46,P4) -> 0 | O46: =I46*0.21 -> 0 | P46: 3
A47: PP
A48: VV | E48: Konstrukce A 811 = 811,000 [A] Pod sil. obrubami 407*0,3 = 122,100 [C] Pod dvoulinkou 343*0,25 = 85,750 [D] Pod odvod. žlabem 17*0.15 = 2,550 [B] Celkové množství = 1021,400
A49: P | B49: 14 | C49: 18230 | E49: ROZPROSTŘENÍ ORNICE V ROVINĚ | F49: M3 | G49: 35.25 | I49: =ROUND(G49*H49,P4) -> 0 | O49: =I49*0.21 -> 0 | P49: 3
A50: PP | E50: včetně získání materiálu k ohumusování
A51: VV | E51: terénní úpravy 235*0,15 = 35,250 [A]
A52: P | B52: 15 | C52: 18241 | E52: ZALOŽENÍ TRÁVNÍKU RUČNÍM VÝSEVEM | F52: M2 | G52: 235 | I52: =ROUND(G52*H52,P4) -> 0 | O52: =I52*0.21 -> 0 | P52: 3
A53: PP
A54: VV | E54: terénní úpravy 235 = 235,000 [A]
A55: P | B55: 16 | C55: 183511 | E55: CHEMICKÉ ODPLEVELENÍ CELOPLOŠNÉ | F55: M2 | G55: 235 | I55: =ROUND(G55*H55,P4) -> 0 | O55: =I55*0.21 -> 0 | P55: 3
A56: PP
A57: VV | E57: terénní úpravy 235 = 235,000 [A]
A58: SD | C58: 2 | E58: Základy | I58: =SUMIFS(I59:I67,A59:A67,"P") -> 0
A59: P | B59: 17 | C59: 212636 | E59: TRATIVODY KOMPL Z TRUB Z PLAST HM DN DO 150MM, RÝHA TŘ II | F59: M | G59: 145 | I59: =ROUND(G59*H59,P4) -> 0 | O59: =I59*0.21 -> 0 | P59: 3
A60: PP | E60: Trativod DN 150
A61: VV | E61: trativod 145 = 145,000 [A]
A62: P | B62: 18 | C62: 21361 | E62: DRENÁŽNÍ VRSTVY Z GEOTEXTILIE | F62: M2 | G62: 1021.4 | I62: =ROUND(G62*H62,P4) -> 0 | O62: =I62*0.21 -> 0 | P62: 3
A63: PP | E63: netkaná geotextílie 500 g/m2, CBR>3 kN, odolnost proti proražení < 10 mm, tažnost > 50% dle TP 97 separační a filtrační funkce
A64: VV | E64: pol. 18110 1021,4 = 1021,400 [A]
A65: P | B65: 19 | C65: 21452 | E65: SANAČNÍ VRSTVY Z KAMENIVA DRCENÉHO | F65: M3 | G65: 225.075 | I65: =ROUND(G65*H65,P4) -> 0 | O65: =I65*0.21 -> 0 | P65: 3
A66: PP | E66: sanace aktivní zóny - nakupený materiál dle ČSN 73 6133
A67: VV | E67: předpokládaný rozsah sanace (pl. * 50% rozsahu) - pol. 18110 1500,5*0,5 = 750,250 [A] předpokládaná tloušťka sanace 0.3 = 0,300 [B] celkem sanace A*B = 225,075 [C]
A68: SD | C68: 5 | E68: Komunikace | I68: =SUMIFS(I69:I92,A69:A92,"P") -> 0
A69: P | B69: 20 | C69: 56333 | E69: VOZOVKOVÉ VRSTVY ZE ŠTĚRKODRTI TL. DO 150MM | F69: M2 | G69: 1622 | I69: =ROUND(G69*H69,P4) -> 0 | O69: =I69*0.21 -> 0 | P69: 3
A70: PP | E70: ŠDA 0/32 - 150 mm
A71: VV | E71: Konstrukce A 811*2 = 1622,000 [A]
A72: P | B72: 21 | C72: 56334 | E72: VOZOVKOVÉ VRSTVY ZE ŠTĚRKODRTI TL. DO 200MM | F72: M2 | G72: 17 | I72: =ROUND(G72*H72,P4) -> 0 | O72: =I72*0.21 -> 0 | P72: 3
A73: PP
A74: VV | E74: sjezdy 17 = 17,000 [A]
A75: P | B75: 22 | C75: 56363 | E75: VOZOVKOVÉ VRSTVY Z RECYKLOVANÉHO MATERIÁLU TL DO 150MM | F75: M2 | G75: 23 | I75: =ROUND(G75*H75,P4) -> 0 | O75: =I75*0.21 -> 0 | P75: 3
A76: PP
A77: VV | E77: nezpevněné sjezdy 23 = 23,000 [A]
A78: P | B78: 23 | C78: 572123 | E78: INFILTRAČNÍ POSTŘIK Z EMULZE DO 1,0KG/M2 | F78: M2 | G78: 811 | I78: =ROUND(G78*H78,P4) -> 0 | O78: =I78*0.21 -> 0 | P78: 3
A79: PP | E79: PI-C 1,00 kg/m2
A80: VV | E80: Konstrukce A 811 = 811,000 [A]
A81: P | B81: 24 | C81: 572213 | E81: SPOJOVACÍ POSTŘIK Z EMULZE DO 0,5KG/M2 | F81: M2 | G81: 811 | I81: =ROUND(G81*H81,P4) -> 0 | O81: =I81*0.21 -> 0 | P81: 3
A82: PP | E82: PS-C 0,30 kg/m2
A83: VV | E83: Konstrukce A 811 = 811,000 [A]
A84: P | B84: 25 | C84: 574A33 | E84: ASFALTOVÝ BETON PRO OBRUSNÉ VRSTVY ACO 11 TL. 40MM | F84: M2 | G84: 811 | I84: =ROUND(G84*H84,P4) -> 0 | O84: =I84*0.21 -> 0 | P84: 3
A85: PP | E85: ACO 11, 50/70 - 40 mm
A86: VV | E86: Konstrukce A 811 = 811,000 [A]
A87: P | B87: 26 | C87: 574E46 | E87: ASFALTOVÝ BETON PRO PODKLADNÍ VRSTVY ACP 16+, 16S TL. 50MM | F87: M2 | G87: 811 | I87: =ROUND(G87*H87,P4) -> 0 | O87: =I87*0.21 -> 0 | P87: 3
A88: PP | E88: ACP 16+, 50/70 - 50 mm
A89: VV | E89: Konstrukce A 811 = 811,000 [A]
A90: P | B90: 27 | C90: 582615 | E90: KRYTY Z BETON DLAŽDIC SE ZÁMKEM BAREV TL 80MM DO LOŽE Z KAM | F90: M2 | G90: 17 | I90: =ROUND(G90*H90,P4) -> 0 | O90: =I90*0.21 -> 0 | P90: 3
A91: PP
A92: VV | E92: sjezdy 17 = 17,000 [A]
A93: SD | C93: 8 | E93: Potrubí | I93: =SUMIFS(I94:I111,A94:A111,"P") -> 0
A94: P | B94: 28 | C94: 87433 | E94: POTRUBÍ Z TRUB PLASTOVÝCH ODPADNÍCH DN DO 150MM | F94: M | G94: 23 | I94: =ROUND(G94*H94,P4) -> 0 | O94: =I94*0.21 -> 0 | P94: 3
A95: PP | E95: PP DN150 SN10
A96: VV | E96: kanalizační přípojky 23 = 23,000 [A]
A97: P | B97: 29 | C97: 89712 | E97: VPUSŤ KANALIZAČNÍ ULIČNÍ KOMPLETNÍ Z BETONOVÝCH DÍLCŮ | F97: KUS | G97: 5 | I97: =ROUND(G97*H97,P4) -> 0 | O97: =I97*0.21 -> 0 | P97: 3
A98: PP
A99: VV | E99: uliční vpusť 5 = 5,000 [A]
A100: P | B100: 30 | C100: 897522 | E100: VPUSŤ ODVOD ŽLABŮ Z BETON DÍLCŮ SV. ŠÍŘKY DO 150MM | F100: KUS | G100: 2 | I100: =ROUND(G100*H100,P4) -> 0 | O100: =I100*0.21 -> 0 | P100: 3
A101: PP
A102: VV | E102: 2 = 2,000 [A]
A103: P | B103: 31 | C103: 89921 | E103: VÝŠKOVÁ ÚPRAVA POKLOPŮ | F103: KUS | G103: 4 | I103: =ROUND(G103*H103,P4) -> 0 | O103: =I103*0.21 -> 0 | P103: 3
A104: PP | E104: výšková úprava poklopů v komunikaci na novou úroveň nivelety včetně nutného materiálu a prací pro snížení nebo zvýšení do 100mm
A105: VV | E105: dle situace 4 = 4,000 [A]
A106: P | B106: 32 | C106: 899525 | E106: OBETONOVÁNÍ POTRUBÍ Z PROSTÉHO BETONU DO C30/37 | F106: M3 | G106: 1.7 | I106: =ROUND(G106*H106,P4) -> 0 | O106: =I106*0.21 -> 0 | P106: 3
A107: PP | E107: obetonování odvodňovacího žlabu
A108: VV | E108: dle podkladů výrobce 0,1*17 = 1,700 [A]
A109: P | B109: 33 | C109: 899901 | E109: PŘEPOJENÍ PŘÍPOJEK | F109: KUS | G109: 4 | I109: =ROUND(G109*H109,P4) -> 0 | O109: =I109*0.21 -> 0 | P109: 3
A110: PP
A111: VV | E111: napojení do stávající šachty 4 = 4,000 [A]
A112: SD | C112: 9 | E112: Ostatní konstrukce a práce | I112: =SUMIFS(I113:I130,A113:A130,"P") -> 0
A113: P | B113: 34 | C113: 917223 | E113: SILNIČNÍ A CHODNÍKOVÉ OBRUBY Z BETONOVÝCH OBRUBNÍKŮ ŠÍŘ 100MM | F113: M | G113: 4 | I113: =ROUND(G113*H113,P4) -> 0 | O113: =I113*0.21 -> 0 | P113: 3
A114: PP
A115: VV | E115: chodníkové obruby 4 = 4,000 [A]
A116: P | B116: 35 | C116: 917224 | E116: SILNIČNÍ A CHODNÍKOVÉ OBRUBY Z BETONOVÝCH OBRUBNÍKŮ ŠÍŘ 150MM | F116: M | G116: 407 | I116: =ROUND(G116*H116,P4) -> 0 | O116: =I116*0.21 -> 0 | P116: 3
A117: PP
A118: VV | E118: silniční obruby 407 = 407,000 [A]
A119: P | B119: 36 | C119: 91772 | E119: OBRUBA Z DLAŽEBNÍCH KOSTEK DROBNÝCH | F119: M | G119: 686 | I119: =ROUND(G119*H119,P4) -> 0 | O119: =I119*0.21 -> 0 | P119: 3
A120: PP
A121: VV | E121: Dvoulinka ze žulových kostek 343*2 = 686,000 [A]
A122: P | B122: 37 | C122: 931324 | E122: TĚSNĚNÍ DILATAČ SPAR ASF ZÁLIVKOU MODIFIK PRŮŘ DO 400MM2 | F122: M | G122: 343 | I122: =ROUND(G122*H122,P4) -> 0 | O122: =I122*0.21 -> 0 | P122: 3
A123: PP | E123: zálivka spar ve vozovce zálivka za horka dle ČSN 14188 - typ N2
A124: VV | E124: dvoulinka 343 = 343,000 [B]
A125: P | B125: 38 | C125: 93542 | E125: ŽLABY Z DÍLCŮ Z POLYMERBETONU SVĚTLÉ ŠÍŘKY DO 150MM VČETNĚ MŘÍŽÍ | F125: M | G125: 17 | I125: =ROUND(G125*H125,P4) -> 0 | O125: =I125*0.21 -> 0 | P125: 3
A126: PP | E126: monolitický žlab z polymerbetonu včetně integrované mříže šířka 150 mm
A127: VV | E127: odvodňovací žlaby š. 0,15 m 17 = 17,000 [A]
A128: P | B128: 39 | C128: 96615 | E128: BOURÁNÍ KONSTRUKCÍ Z PROSTÉHO BETONU | F128: M3 | G128: 2 | I128: =ROUND(G128*H128,P4) -> 0 | O128: =I128*0.21 -> 0 | P128: 3
A129: PP | E129: bourání v trase na trvalou skládku
A130: VV | E130: bourání v trase 2 = 2,000 [A]

Sheet 104 3542104 KL
A1: POLOŽKOVÝ ROZPOČET
A2: Rozpočet | C2: 3542/104 | D2: Novostavba parkovacího pruhu ul.Smetanova | F2: JKSO | G2: 822.27
A4: Objekt | F4: SKP
A5: 104 | C5: Novostavba parkovacího pruhu ul.Smetanova | F5: Měrná jednotka | G5: m2
A6: Stavba | F6: Počet jednotek | G6: 0
A7: 3542 | C7: Semily - Obnova VH infrastruktury a komunikací | F7: Náklady na m.j. | G7: =IF(G6=0,,ROUND((F30+F32)/G6,1)) -> 0
A8: Projektant | F8: Typ rozpočtu
A9: Zpracovatel projektu
A10: Objednatel | C10: Vodohospodářské sdružení Turnov
A11: Dodavatel | C11: . | F11: Zakázkové číslo
A12: Rozpočtoval | F12: Počet listů
A13: ROZPOČTOVÉ NÁKLADY
A14: Základní rozpočtové náklady
B15: HSV celkem | C15: =SUM('104 3542104 Pol'!I3) -> 0
A16: Z | B16: PSV celkem | C16: 0
A17: R | B17: M práce celkem | C17: 0
A18: N | B18: M dodávky celkem | C18: 0
A19: ZRN celkem | C19: =SUM(C15:C18) -> 0
A21: HZS | C21: 0
A22: ZRN+HZS | C22: =C19+C21 -> 0
A23: ZRN+ost.náklady+HZS | C23: =C22+G23 -> 0
A24: Vypracoval | D24: Za zhotovitele | F24: Za objednatele
A25: Jméno : | D25: Jméno : | F25: Jméno :
A26: Datum : | D26: Datum : | F26: Datum :
A28: Podpis : | D28: Podpis: | F28: Podpis:
A30: Základ pro DPH | C30: 21 | D30: % | F30: =C23-F32 -> 0
A31: DPH | C31: =C30 -> 21 | D31: % | F31: =ROUND(PRODUCT(F30,C31/100),0) -> 0
A32: Základ pro DPH | C32: 0 | D32: % | F32: 0
A33: DPH | C33: =C32 -> 0 | D33: % | F33: =ROUND(PRODUCT(F32,C33/100),0) -> 0
A34: CENA ZA OBJEKT CELKEM | F34: =ROUND(SUM(F30:F33),0) -> 0
A36: Poznámka :

Sheet 104 3542104 Pol
A1: EstiCon | E1: Firma: | P1: 3
E2: Soupis prací objektu
A3: S | B3: Stavba: | C3: 22-069 | E3: Oprava ulic Větrná, Smetanova a Dvořákova | H3: SO 104 | I3: =SUMIFS(I8:I64,A8:A64,"SD") -> 0 | O3: 0 | P3: 2
A4: O | B4: Rozpočet: | C4: SO 104 | E4: Novostavba parkovacího pruhu - ul. Smetanova | O4: 0.12 | P4: 2
A5: Typ | B5: Poř. číslo | C5: Kód položky | D5: Varianta | E5: Název Položky | F5: MJ | G5: Množství | H5: Cena | J5: Cenová soustava | O5: 0.21
H6: Jednotková | I6: Celkem
A7: 0 | B7: 1 | C7: 2 | D7: 3 | E7: 4 | F7: 5 | G7: 6 | H7: 7 | I7: 8 | J7: 9
A8: SD | C8: 0 | E8: Všeobecné konstrukce a práce | I8: =SUMIFS(I9:I17,A9:A17,"P") -> 0
A9: P | B9: 1 | C9: 015111 | E9: POPLATKY ZA LIKVIDACI ODPADŮ NEKONTAMINOVANÝCH - 17 05 04 VYTĚŽENÉ ZEMINY A HORNINY - I. TŘÍDA TĚŽITELNOSTI | F9: T | G9: 132.96 | I9: =ROUND(G9*H9,P4) -> 0 | O9: =I9*0.21 -> 0 | P9: 3
A10: PP
A11: VV | E11: pol. 123738 64,68*2,0 = 129,360 [A] pol. 132738 1,8*2,0 = 3,600 [B] Celkové množství = 132,960
A12: P | B12: 2 | C12: 015140 | E12: POPLATKY ZA LIKVIDACI ODPADŮ NEKONTAMINOVANÝCH - 17 01 01 BETON Z DEMOLIC OBJEKTŮ, ZÁKLADŮ TV | F12: T | G12: 0.72 | I12: =ROUND(G12*H12,P4) -> 0 | O12: =I12*0.21 -> 0 | P12: 3
A13: PP
A14: VV | E14: pol. 11315 0,3*2,4 = 0,720 [A]
A15: P | B15: 3 | C15: 015330 | E15: POPLATKY ZA LIKVIDACI ODPADŮ NEKONTAMINOVANÝCH - 17 05 04 KAMENNÁ SUŤ | F15: T | G15: 129.276 | I15: =ROUND(G15*H15,P4) -> 0 | O15: =I15*0.21 -> 0 | P15: 3
A16: PP
A17: VV | E17: pol. 11332 68,04*1,9 = 129,276 [A]
A18: SD | C18: 1 | E18: Zemní práce | I18: =SUMIFS(I19:I39,A19:A39,"P") -> 0
A19: P | B19: 4 | C19: 11315 | E19: ODSTRANĚNÍ KRYTU ZPEVNĚNÝCH PLOCH Z BETONU | F19: M3 | G19: 0.3 | I19: =ROUND(G19*H19,P4) -> 0 | O19: =I19*0.21 -> 0 | P19: 3
A20: PP
A21: VV | E21: stávající sjezd 2*0,15 = 0,300 [A]
A22: P | B22: 5 | C22: 11332 | E22: ODSTRANĚNÍ PODKLADŮ ZPEVNĚNÝCH PLOCH Z KAMENIVA NESTMELENÉHO | F22: M3 | G22: 68.04 | I22: =ROUND(G22*H22,P4) -> 0 | O22: =I22*0.21 -> 0 | P22: 3
A23: PP
A24: VV | E24: odstranění podkladních vrstev - Konstrukce C (pl. * tl.) 250*0,27 = 67,500 [A] odstranění podkladních vrstev stávajícího sjezdu 2*0,27 = 0,540 [B] Celkové množství = 68,040
A25: P | B25: 6 | C25: 12110 | E25: SEJMUTÍ ORNICE NEBO LESNÍ PŮDY | F25: M3 | G25: 26.1 | I25: =ROUND(G25*H25,P4) -> 0 | O25: =I25*0.21 -> 0 | P25: 3
A26: PP
A27: VV | E27: terénní úpravy 174*0,15 = 26,100 [A]
A28: P | B28: 7 | C28: 123738 | E28: ODKOP PRO SPOD STAVBU SILNIC A ŽELEZNIC TŘ. I, ODVOZ DO 20KM | F28: M3 | G28: 64.68 | I28: =ROUND(G28*H28,P4) -> 0 | O28: =I28*0.21 -> 0 | P28: 3
A29: PP | E29: ZHOTOVITEL V CENĚ ZOHLEDNÍ SKUTEČNÉ NÁKLADY NA DOPRAVU NA MÍSTO ULOŽENÍ
A30: VV | E30: předpokládaný rozsah sanace (pl. * 50% rozsahu) - pol. 18110 176*0,5 = 88,000 [A] předpokládaná tloušťka sanace 0.3 = 0,300 [B] celkem sanace A*B = 26,400 [C] výkop zeminy 174*0,22 = 38,280 [D] Celkem C+D = 64,680 [E]
A31: P | B31: 8 | C31: 132738 | E31: HLOUBENÍ RÝH ŠÍŘ DO 2M PAŽ I NEPAŽ TŘ. I, ODVOZ DO 20KM | F31: M3 | G31: 1.8 | I31: =ROUND(G31*H31,P4) -> 0 | O31: =I31*0.21 -> 0 | P31: 3
A32: PP | E32: ZHOTOVITEL V CENĚ ZOHLEDNÍ SKUTEČNÉ NÁKLADY NA DOPRAVU NA MÍSTO ULOŽENÍ
A33: VV | E33: obruby (dl. * š. * hl.) 12*0.3*0,5 = 1,800 [A]
A34: P | B34: 9 | C34: 17120 | E34: ULOŽENÍ SYPANINY DO NÁSYPŮ A NA SKLÁDKY BEZ ZHUTNĚNÍ | F34: M3 | G34: 66.48 | I34: =ROUND(G34*H34,P4) -> 0 | O34: =I34*0.21 -> 0 | P34: 3
A35: PP
A36: VV | E36: pol. 123738 64,68 = 64,680 [A] pol. 132738 1,8 = 1,800 [B] Celkové množství = 66,480
A37: P | B37: 10 | C37: 18110 | E37: ÚPRAVA PLÁNĚ SE ZHUTNĚNÍM V HORNINĚ TŘ. I | F37: M2 | G37: 179.6 | I37: =ROUND(G37*H37,P4) -> 0 | O37: =I37*0.21 -> 0 | P37: 3
A38: PP
A39: VV | E39: Konstrukce C 176 = 176,000 [A] Pod sil. obrubami 12*0,3 = 3,600 [C] Celkové množství = 179,600
A40: SD | C40: 2 | E40: Základy | I40: =SUMIFS(I41:I46,A41:A46,"P") -> 0
A41: P | B41: 11 | C41: 21361 | E41: DRENÁŽNÍ VRSTVY Z GEOTEXTILIE | F41: M2 | G41: 179.6 | I41: =ROUND(G41*H41,P4) -> 0 | O41: =I41*0.21 -> 0 | P41: 3
A42: PP | E42: netkaná geotextílie 500 g/m2, CBR>3 kN, odolnost proti proražení < 10 mm, tažnost > 50% dle TP 97 separační a filtrační funkce
A43: VV | E43: pol. 18110 179,6 = 179,600 [A]
A44: P | B44: 12 | C44: 21452 | E44: SANAČNÍ VRSTVY Z KAMENIVA DRCENÉHO | F44: M3 | G44: 26.4 | I44: =ROUND(G44*H44,P4) -> 0 | O44: =I44*0.21 -> 0 | P44: 3
A45: PP | E45: sanace aktivní zóny - nakupený materiál dle ČSN 73 6133
A46: VV | E46: předpokládaný rozsah sanace (pl. * 50% rozsahu) - pol. 18110 176*0,5 = 88,000 [A] předpokládaná tloušťka sanace 0.3 = 0,300 [B] celkem sanace A*B = 26,400 [C]
A47: SD | C47: 5 | E47: Komunikace | I47: =SUMIFS(I48:I56,A48:A56,"P") -> 0
A48: P | B48: 13 | C48: 56333 | E48: VOZOVKOVÉ VRSTVY ZE ŠTĚRKODRTI TL. DO 150MM | F48: M2 | G48: 176 | I48: =ROUND(G48*H48,P4) -> 0 | O48: =I48*0.21 -> 0 | P48: 3
A49: PP | E49: ŠDA 0/32 - 150 mm
A50: VV | E50: Konstrukce C 166+10 = 176,000 [B]
A51: P | B51: 14 | C51: 582612 | D51: 1 | E51: KRYTY Z BETON DLAŽDIC SE ZÁMKEM ŠEDÝCH TL 80MM DO LOŽE Z KAM | F51: M2 | G51: 166 | I51: =ROUND(G51*H51,P4) -> 0 | O51: =I51*0.21 -> 0 | P51: 3
A52: PP | E52: Betonová dlažba (2x vyspárováno), šedá - 80 mm
A53: VV | E53: Konstrukce C 166 = 166,000 [A]
A54: P | B54: 15 | C54: 582612 | D54: 2 | E54: KRYTY Z BETON DLAŽDIC SE ZÁMKEM ŠEDÝCH TL 80MM DO LOŽE Z KAM | F54: M2 | G54: 10 | I54: =ROUND(G54*H54,P4) -> 0 | O54: =I54*0.21 -> 0 | P54: 3
A55: PP | E55: Betonová dlažba (2x vyspárováno), antracit - 80 mm
A56: VV | E56: Konstrukce C 10 = 10,000 [A]
A57: SD | C57: 7 | E57: Přidružená stavební výroba | I57: =SUMIFS(I58:I60,A58:A60,"P") -> 0
A58: P | B58: 16 | C58: 711117 | E58: IZOLACE BĚŽNÝCH KONSTRUKCÍ PROTI ZEMNÍ VLHKOSTI Z PE FÓLIÍ | F58: M2 | G58: 69.75 | I58: =ROUND(G58*H58,P4) -> 0 | O58: =I58*0.21 -> 0 | P58: 3
A59: PP | E59: nopová fólie v místě souběhu s nemovitostí nebo podezdívkou
A60: VV | E60: délka souběhu podél konstrukcí 39+54 = 93,000 [A] délka izolace v řezu 0,75 = 0,750 [B] celkem a*b = 69,750 [C]
A61: SD | C61: 9 | E61: Ostatní konstrukce a práce | I61: =SUMIFS(I62:I64,A62:A64,"P") -> 0
A62: P | B62: 17 | C62: 917224 | E62: SILNIČNÍ A CHODNÍKOVÉ OBRUBY Z BETONOVÝCH OBRUBNÍKŮ ŠÍŘ 150MM | F62: M | G62: 12 | I62: =ROUND(G62*H62,P4) -> 0 | O62: =I62*0.21 -> 0 | P62: 3
A63: PP
A64: VV | E64: chodníkové obruby 12 = 12,000 [A]

Sheet 105 3542105 KL
A1: POLOŽKOVÝ ROZPOČET
A2: Rozpočet | C2: 3542/105 | D2: Rekonstrukce komunikace ul. Dvořákova | F2: JKSO | G2: 822.27
A4: Objekt | F4: SKP
A5: 105 | C5: Rekonstrukce komunikace ul. Dvořákova | F5: Měrná jednotka | G5: m2
A6: Stavba | F6: Počet jednotek | G6: 0
A7: 3542 | C7: Semily - Obnova VH infrastruktury a komunikací | F7: Náklady na m.j. | G7: =IF(G6=0,,ROUND((F30+F32)/G6,1)) -> 0
A8: Projektant | F8: Typ rozpočtu
A9: Zpracovatel projektu
A10: Objednatel | C10: Vodohospodářské sdružení Turnov
A11: Dodavatel | C11: . | F11: Zakázkové číslo
A12: Rozpočtoval | F12: Počet listů
A13: ROZPOČTOVÉ NÁKLADY
A14: Základní rozpočtové náklady
B15: HSV celkem | C15: =SUM('105 3542105 Pol'!I3) -> 0
A16: Z | B16: PSV celkem | C16: 0
A17: R | B17: M práce celkem | C17: 0
A18: N | B18: M dodávky celkem | C18: 0
A19: ZRN celkem | C19: =SUM(C15:C18) -> 0
A21: HZS | C21: 0
A22: ZRN+HZS | C22: =C19+C21 -> 0
A23: ZRN+ost.náklady+HZS | C23: =C22+G23 -> 0
A24: Vypracoval | D24: Za zhotovitele | F24: Za objednatele
A25: Jméno : | D25: Jméno : | F25: Jméno :
A26: Datum : | D26: Datum : | F26: Datum :
A28: Podpis : | D28: Podpis: | F28: Podpis:
A30: Základ pro DPH | C30: 21 | D30: % | F30: =C23-F32 -> 0
A31: DPH | C31: =C30 -> 21 | D31: % | F31: =ROUND(PRODUCT(F30,C31/100),0) -> 0
A32: Základ pro DPH | C32: 0 | D32: % | F32: 0
A33: DPH | C33: =C32 -> 0 | D33: % | F33: =ROUND(PRODUCT(F32,C33/100),0) -> 0
A34: CENA ZA OBJEKT CELKEM | F34: =ROUND(SUM(F30:F33),0) -> 0
A36: Poznámka :

Sheet 105 3542105 Pol
A1: EstiCon | E1: Firma: | P1: 3
E2: Soupis prací objektu
A3: S | B3: Stavba: | C3: 22-069 | E3: Oprava ulic Větrná, Smetanova a Dvořákova | H3: SO 105 | I3: =SUMIFS(I8:I139,A8:A139,"SD") -> 0 | O3: 0 | P3: 2
A4: O | B4: Rozpočet: | C4: SO 105 | E4: Rekonstrukce komunikace - ul. Dvořákova | O4: 0.12 | P4: 2
A5: Typ | B5: Poř. číslo | C5: Kód položky | D5: Varianta | E5: Název Položky | F5: MJ | G5: Množství | H5: Cena | J5: Cenová soustava | O5: 0.21
H6: Jednotková | I6: Celkem
A7: 0 | B7: 1 | C7: 2 | D7: 3 | E7: 4 | F7: 5 | G7: 6 | H7: 7 | I7: 8 | J7: 9
A8: SD | C8: 0 | E8: Všeobecné konstrukce a práce | I8: =SUMIFS(I9:I20,A9:A20,"P") -> 0
A9: P | B9: 1 | C9: 015111 | E9: POPLATKY ZA LIKVIDACI ODPADŮ NEKONTAMINOVANÝCH - 17 05 04 VYTĚŽENÉ ZEMINY A HORNINY - I. TŘÍDA TĚŽITELNOSTI | F9: T | G9: 335.92 | I9: =ROUND(G9*H9,P4) -> 0 | O9: =I9*0.21 -> 0 | P9: 3
A10: PP
A11: VV | E11: pol. 123738 105,9*2,0 = 211,800 [A] pol. 132738 62,06*2,0 = 124,120 [B] Celkové množství = 335,920
A12: P | B12: 2 | C12: 015130 | E12: POPLATKY ZA LIKVIDACI ODPADŮ NEKONTAMINOVANÝCH - 17 03 02 VYBOURANÝ ASFALTOVÝ BETON BEZ DEHTU | F12: T | G12: 131.112 | I12: =ROUND(G12*H12,P4) -> 0 | O12: =I12*0.21 -> 0 | P12: 3
A13: PP
A14: VV | E14: pol. 11372 54,63*2,4 = 131,112 [A]
A15: P | B15: 3 | C15: 015140 | E15: POPLATKY ZA LIKVIDACI ODPADŮ NEKONTAMINOVANÝCH - 17 01 01 BETON Z DEMOLIC OBJEKTŮ, ZÁKLADŮ TV | F15: T | G15: 15.885 | I15: =ROUND(G15*H15,P4) -> 0 | O15: =I15*0.21 -> 0 | P15: 3
A16: PP
A17: VV | E17: pol. 11315 2,25*2,4 = 5,400 [A] pol. 11352 233*0,15*0,3 = 10,485 [B] Celkové množství = 15,885
A18: P | B18: 4 | C18: 015330 | E18: POPLATKY ZA LIKVIDACI ODPADŮ NEKONTAMINOVANÝCH - 17 05 04 KAMENNÁ SUŤ | F18: T | G18: 339.435 | I18: =ROUND(G18*H18,P4) -> 0 | O18: =I18*0.21 -> 0 | P18: 3
A19: PP
A20: VV | E20: dle pol. 11332 178,65*1,9 = 339,435 [A]
A21: SD | C21: 1 | E21: Zemní práce | I21: =SUMIFS(I22:I63,A22:A63,"P") -> 0
A22: P | B22: 5 | C22: 11315 | E22: ODSTRANĚNÍ KRYTU ZPEVNĚNÝCH PLOCH Z BETONU | F22: M3 | G22: 2.25 | I22: =ROUND(G22*H22,P4) -> 0 | O22: =I22*0.21 -> 0 | P22: 3
A23: PP
A24: VV | E24: stávající sjezd 15*0,15 = 2,250 [A]
A25: P | B25: 6 | C25: 11318 | E25: ODSTRANĚNÍ KRYTU ZPEVNĚNÝCH PLOCH Z DLAŽDIC | F25: M3 | G25: 0.3 | I25: =ROUND(G25*H25,P4) -> 0 | O25: =I25*0.21 -> 0 | P25: 3
A26: PP
A27: VV | E27: stávající sjezd 3*0.1 = 0,300 [A]
A28: P | B28: 7 | C28: 11332 | E28: ODSTRANĚNÍ PODKLADŮ ZPEVNĚNÝCH PLOCH Z KAMENIVA NESTMELENÉHO | F28: M3 | G28: 178.65 | I28: =ROUND(G28*H28,P4) -> 0 | O28: =I28*0.21 -> 0 | P28: 3
A29: PP
A30: VV | E30: odstranění podkladních vrstev - Konstrukce A (pl. * tl.) 580*0,3 = 174,000 [A] stávající nezpevněné plochy (pl. * tl.) 7*0,15 = 1,050 [C] odstranění podkladních vrstev - sjezdy 18*0,2 = 3,600 [B] Celkové množství = 178,650
A31: P | B31: 8 | C31: 11352 | E31: ODSTRANĚNÍ CHODNÍKOVÝCH A SILNIČNÍCH OBRUBNÍKŮ BETONOVÝCH | F31: M | G31: 233 | I31: =ROUND(G31*H31,P4) -> 0 | O31: =I31*0.21 -> 0 | P31: 3
A32: PP | E32: ZHOTOVITEL V CENĚ ZOHLEDNÍ SKUTEČNÉ NÁKLADY NA DOPRAVU NA MÍSTO ULOŽENÍ
A33: VV | E33: stávající stav 233 = 233,000 [A]
A34: P | B34: 9 | C34: 11372 | E34: FRÉZOVÁNÍ ZPEVNĚNÝCH PLOCH ASFALTOVÝCH | F34: M3 | G34: 54.63 | I34: =ROUND(G34*H34,P4) -> 0 | O34: =I34*0.21 -> 0 | P34: 3
A35: PP | E35: Zhotovitel v ceně zohlední možnost použití materiálu zpět na stavbě. Včetně odvozu a uložení na skládku zhotovitele.
A36: VV | E36: celoplošné frézování vozovky (pl. * hl.) 580*0,09 = 52,200 [A] Stupňovité napojení 27*0,09 = 2,430 [B] Celkové množství = 54,630
A37: P | B37: 10 | C37: 113764 | E37: FRÉZOVÁNÍ DRÁŽKY PRŮŘEZU DO 400MM2 V ASFALTOVÉ VOZOVCE | F37: M | G37: 204 | I37: =ROUND(G37*H37,P4) -> 0 | O37: =I37*0.21 -> 0 | P37: 3
A38: PP | E38: komůrka dle VL 211.07 pro zálivku za horka
A39: VV | E39: dvoulinka 204 = 204,000 [A]
A40: P | B40: 11 | C40: 12110 | E40: SEJMUTÍ ORNICE NEBO LESNÍ PŮDY | F40: M3 | G40: 31.95 | I40: =ROUND(G40*H40,P4) -> 0 | O40: =I40*0.21 -> 0 | P40: 3
A41: PP
A42: VV | E42: terénní úpravy 213*0,15 = 31,950 [A]
A43: P | B43: 12 | C43: 123738 | E43: ODKOP PRO SPOD STAVBU SILNIC A ŽELEZNIC TŘ. I, ODVOZ DO 20KM | F43: M3 | G43: 105.9 | I43: =ROUND(G43*H43,P4) -> 0 | O43: =I43*0.21 -> 0 | P43: 3
A44: PP | E44: ZHOTOVITEL V CENĚ ZOHLEDNÍ SKUTEČNÉ NÁKLADY NA DOPRAVU NA MÍSTO ULOŽENÍ
A45: VV | E45: předpokládaný rozsah sanace (pl. * 50% rozsahu) - pol. 18110 706*0,5 = 353,000 [A] předpokládaná tloušťka sanace 0.3 = 0,300 [B] celkem sanace A*B = 105,900 [C]
A46: P | B46: 13 | C46: 132738 | E46: HLOUBENÍ RÝH ŠÍŘ DO 2M PAŽ I NEPAŽ TŘ. I, ODVOZ DO 20KM | F46: M3 | G46: 62.06 | I46: =ROUND(G46*H46,P4) -> 0 | O46: =I46*0.21 -> 0 | P46: 3
A47: PP | E47: ZHOTOVITEL V CENĚ ZOHLEDNÍ SKUTEČNÉ NÁKLADY NA DOPRAVU NA MÍSTO ULOŽENÍ
A48: VV | E48: dvoulinka (dl. * š. * hl.) 204*0,3*0,3 = 18,360 [B] obruby (dl. * š. * hl.) (235+23)*0.3*0,5 = 38,700 [A] kanalizační přípojka (dl. * š. * hl.) 4*0,5*1 = 2,000 [C] odvodňovací žlab 30*0,25*0,4 = 3,000 [D] Celkové množství = 62,060
A49: P | B49: 14 | C49: 17120 | E49: ULOŽENÍ SYPANINY DO NÁSYPŮ A NA SKLÁDKY BEZ ZHUTNĚNÍ | F49: M3 | G49: 167.96 | I49: =ROUND(G49*H49,P4) -> 0 | O49: =I49*0.21 -> 0 | P49: 3
A50: PP
A51: VV | E51: pol. 123738 105,9 = 105,900 [A] pol. 132738 62,06 = 62,060 [B] Celkové množství = 167,960
A52: P | B52: 15 | C52: 18110 | E52: ÚPRAVA PLÁNĚ SE ZHUTNĚNÍM V HORNINĚ TŘ. I | F52: M2 | G52: 706 | I52: =ROUND(G52*H52,P4) -> 0 | O52: =I52*0.21 -> 0 | P52: 3
A53: PP
A54: VV | E54: Konstrukce A 580 = 580,000 [A] Pod sil. obrubami 235*0,3 = 70,500 [C] Pod dvoulinkou 204*0,25 = 51,000 [D] Pod odvod. žlabem 30*0.15 = 4,500 [B] Celkové množství = 706,000
A55: P | B55: 16 | C55: 18230 | E55: ROZPROSTŘENÍ ORNICE V ROVINĚ | F55: M3 | G55: 31.95 | I55: =ROUND(G55*H55,P4) -> 0 | O55: =I55*0.21 -> 0 | P55: 3
A56: PP | E56: včetně získání materiálu k ohumusování
A57: VV | E57: terénní úpravy 213*0,15 = 31,950 [A]
A58: P | B58: 17 | C58: 18241 | E58: ZALOŽENÍ TRÁVNÍKU RUČNÍM VÝSEVEM | F58: M2 | G58: 213 | I58: =ROUND(G58*H58,P4) -> 0 | O58: =I58*0.21 -> 0 | P58: 3
A59: PP
A60: VV | E60: terénní úpravy 213 = 213,000 [A]
A61: P | B61: 18 | C61: 183511 | E61: CHEMICKÉ ODPLEVELENÍ CELOPLOŠNÉ | F61: M2 | G61: 213 | I61: =ROUND(G61*H61,P4) -> 0 | O61: =I61*0.21 -> 0 | P61: 3
A62: PP
A63: VV | E63: terénní úpravy 213 = 213,000 [A]
A64: SD | C64: 2 | E64: Základy | I64: =SUMIFS(I65:I73,A65:A73,"P") -> 0
A65: P | B65: 19 | C65: 212636 | E65: TRATIVODY KOMPL Z TRUB Z PLAST HM DN DO 150MM, RÝHA TŘ II | F65: M | G65: 106 | I65: =ROUND(G65*H65,P4) -> 0 | O65: =I65*0.21 -> 0 | P65: 3
A66: PP | E66: Trativod DN 150
A67: VV | E67: trativod 106 = 106,000 [A]
A68: P | B68: 20 | C68: 21361 | E68: DRENÁŽNÍ VRSTVY Z GEOTEXTILIE | F68: M2 | G68: 706 | I68: =ROUND(G68*H68,P4) -> 0 | O68: =I68*0.21 -> 0 | P68: 3
A69: PP | E69: netkaná geotextílie 500 g/m2, CBR>3 kN, odolnost proti proražení < 10 mm, tažnost > 50% dle TP 97 separační a filtrační funkce
A70: VV | E70: pol. 18110 706 = 706,000 [A]
A71: P | B71: 21 | C71: 21452 | E71: SANAČNÍ VRSTVY Z KAMENIVA DRCENÉHO | F71: M3 | G71: 225.075 | I71: =ROUND(G71*H71,P4) -> 0 | O71: =I71*0.21 -> 0 | P71: 3
A72: PP | E72: sanace aktivní zóny - nakupený materiál dle ČSN 73 6133
A73: VV | E73: předpokládaný rozsah sanace (pl. * 50% rozsahu) - pol. 18110 1500,5*0,5 = 750,250 [A] předpokládaná tloušťka sanace 0.3 = 0,300 [B] celkem sanace A*B = 225,075 [C]
A74: SD | C74: 5 | E74: Komunikace | I74: =SUMIFS(I75:I95,A75:A95,"P") -> 0
A75: P | B75: 22 | C75: 56333 | E75: VOZOVKOVÉ VRSTVY ZE ŠTĚRKODRTI TL. DO 150MM | F75: M2 | G75: 1160 | I75: =ROUND(G75*H75,P4) -> 0 | O75: =I75*0.21 -> 0 | P75: 3
A76: PP | E76: ŠDA 0/32 - 150 mm
A77: VV | E77: Konstrukce A 580*2 = 1160,000 [A]
A78: P | B78: 23 | C78: 56334 | E78: VOZOVKOVÉ VRSTVY ZE ŠTĚRKODRTI TL. DO 200MM | F78: M2 | G78: 20 | I78: =ROUND(G78*H78,P4) -> 0 | O78: =I78*0.21 -> 0 | P78: 3
A79: PP
A80: VV | E80: sjezdy 20 = 20,000 [A]
A81: P | B81: 24 | C81: 572123 | E81: INFILTRAČNÍ POSTŘIK Z EMULZE DO 1,0KG/M2 | F81: M2 | G81: 580 | I81: =ROUND(G81*H81,P4) -> 0 | O81: =I81*0.21 -> 0 | P81: 3
A82: PP | E82: PI-C 1,00 kg/m2
A83: VV | E83: Konstrukce A 580 = 580,000 [A]
A84: P | B84: 25 | C84: 572213 | E84: SPOJOVACÍ POSTŘIK Z EMULZE DO 0,5KG/M2 | F84: M2 | G84: 593.5 | I84: =ROUND(G84*H84,P4) -> 0 | O84: =I84*0.21 -> 0 | P84: 3
A85: PP | E85: PS-C 0,30 kg/m2
A86: VV | E86: Konstrukce A 580 = 580,000 [A] Stupňovité napojení 27/2 = 13,500 [B] Celkové množství = 593,500
A87: P | B87: 26 | C87: 574A33 | E87: ASFALTOVÝ BETON PRO OBRUSNÉ VRSTVY ACO 11 TL. 40MM | F87: M2 | G87: 607 | I87: =ROUND(G87*H87,P4) -> 0 | O87: =I87*0.21 -> 0 | P87: 3
A88: PP | E88: ACO 11, 50/70 - 40 mm
A89: VV | E89: Konstrukce A 580 = 580,000 [A] Stupňovité napojení 27 = 27,000 [B] Celkové množství = 607,000
A90: P | B90: 27 | C90: 574E46 | E90: ASFALTOVÝ BETON PRO PODKLADNÍ VRSTVY ACP 16+, 16S TL. 50MM | F90: M2 | G90: 593.5 | I90: =ROUND(G90*H90,P4) -> 0 | O90: =I90*0.21 -> 0 | P90: 3
A91: PP | E91: ACP 16+, 50/70 - 50 mm
A92: VV | E92: Konstrukce A 580 = 580,000 [A] Stupňovité napojení 27/2 = 13,500 [B] Celkové množství = 593,500
A93: P | B93: 28 | C93: 582615 | E93: KRYTY Z BETON DLAŽDIC SE ZÁMKEM BAREV TL 80MM DO LOŽE Z KAM | F93: M2 | G93: 20 | I93: =ROUND(G93*H93,P4) -> 0 | O93: =I93*0.21 -> 0 | P93: 3
A94: PP
A95: VV | E95: sjezdy 20 = 20,000 [A]
A96: SD | C96: 8 | E96: Potrubí | I96: =SUMIFS(I97:I114,A97:A114,"P") -> 0
A97: P | B97: 29 | C97: 87433 | E97: POTRUBÍ Z TRUB PLASTOVÝCH ODPADNÍCH DN DO 150MM | F97: M | G97: 4 | I97: =ROUND(G97*H97,P4) -> 0 | O97: =I97*0.21 -> 0 | P97: 3
A98: PP | E98: PP DN150 SN10
A99: VV | E99: kanalizační přípojky 4 = 4,000 [A]
A100: P | B100: 30 | C100: 89712 | E100: VPUSŤ KANALIZAČNÍ ULIČNÍ KOMPLETNÍ Z BETONOVÝCH DÍLCŮ | F100: KUS | G100: 2 | I100: =ROUND(G100*H100,P4) -> 0 | O100: =I100*0.21 -> 0 | P100: 3
A101: PP
A102: VV | E102: uliční vpusť 2 = 2,000 [A]
A103: P | B103: 31 | C103: 897522 | E103: VPUSŤ ODVOD ŽLABŮ Z BETON DÍLCŮ SV. ŠÍŘKY DO 150MM | F103: KUS | G103: 1 | I103: =ROUND(G103*H103,P4) -> 0 | O103: =I103*0.21 -> 0 | P103: 3
A104: PP
A105: VV | E105: 1 = 1,000 [A]
A106: P | B106: 32 | C106: 89921 | E106: VÝŠKOVÁ ÚPRAVA POKLOPŮ | F106: KUS | G106: 3 | I106: =ROUND(G106*H106,P4) -> 0 | O106: =I106*0.21 -> 0 | P106: 3
A107: PP | E107: výšková úprava poklopů v komunikaci na novou úroveň nivelety včetně nutného materiálu a prací pro snížení nebo zvýšení do 100mm
A108: VV | E108: dle situace 3 = 3,000 [A]
A109: P | B109: 33 | C109: 899525 | E109: OBETONOVÁNÍ POTRUBÍ Z PROSTÉHO BETONU DO C30/37 | F109: M3 | G109: 3 | I109: =ROUND(G109*H109,P4) -> 0 | O109: =I109*0.21 -> 0 | P109: 3
A110: PP | E110: obetonování odvodňovacího žlabu
A111: VV | E111: dle podkladů výrobce 0,1*30 = 3,000 [A]
A112: P | B112: 34 | C112: 899901 | E112: PŘEPOJENÍ PŘÍPOJEK | F112: KUS | G112: 1 | I112: =ROUND(G112*H112,P4) -> 0 | O112: =I112*0.21 -> 0 | P112: 3
A113: PP
A114: VV | E114: napojení do stávající šachty 1 = 1,000 [A]
A115: SD | C115: 9 | E115: Ostatní konstrukce a práce | I115: =SUMIFS(I116:I139,A116:A139,"P") -> 0
A116: P | B116: 35 | C116: 917223 | E116: SILNIČNÍ A CHODNÍKOVÉ OBRUBY Z BETONOVÝCH OBRUBNÍKŮ ŠÍŘ 100MM | F116: M | G116: 23 | I116: =ROUND(G116*H116,P4) -> 0 | O116: =I116*0.21 -> 0 | P116: 3
A117: PP
A118: VV | E118: chodníkové obruby 23 = 23,000 [A]
A119: P | B119: 36 | C119: 917224 | E119: SILNIČNÍ A CHODNÍKOVÉ OBRUBY Z BETONOVÝCH OBRUBNÍKŮ ŠÍŘ 150MM | F119: M | G119: 235 | I119: =ROUND(G119*H119,P4) -> 0 | O119: =I119*0.21 -> 0 | P119: 3
A120: PP
A121: VV | E121: silniční obruby 235 = 235,000 [A]
A122: P | B122: 37 | C122: 91772 | E122: OBRUBA Z DLAŽEBNÍCH KOSTEK DROBNÝCH | F122: M | G122: 408 | I122: =ROUND(G122*H122,P4) -> 0 | O122: =I122*0.21 -> 0 | P122: 3
A123: PP
A124: VV | E124: Dvoulinka ze žulových kostek 204*2 = 408,000 [A]
A125: P | B125: 38 | C125: 91781 | E125: VÝŠKOVÁ ÚPRAVA OBRUBNÍKŮ BETONOVÝCH | F125: M | G125: 4 | I125: =ROUND(G125*H125,P4) -> 0 | O125: =I125*0.21 -> 0 | P125: 3
A126: PP
A127: VV | E127: napojení na stávající stavy 2*2 = 4,000 [A]
A128: P | B128: 39 | C128: 919112 | E128: ŘEZÁNÍ ASFALTOVÉHO KRYTU VOZOVEK TL DO 100MM | F128: M | G128: 26 | I128: =ROUND(G128*H128,P4) -> 0 | O128: =I128*0.21 -> 0 | P128: 3
A129: PP
A130: VV | E130: v napojení na stáv. stav 26 = 26,000 [A]
A131: P | B131: 40 | C131: 931324 | E131: TĚSNĚNÍ DILATAČ SPAR ASF ZÁLIVKOU MODIFIK PRŮŘ DO 400MM2 | F131: M | G131: 230 | I131: =ROUND(G131*H131,P4) -> 0 | O131: =I131*0.21 -> 0 | P131: 3
A132: PP | E132: zálivka spar ve vozovce zálivka za horka dle ČSN 14188 - typ N2
A133: VV | E133: v napojení 26 = 26,000 [A] dvoulinka 204 = 204,000 [B] Celkové množství = 230,000
A134: P | B134: 41 | C134: 93552 | E134: ŽLABY Z DÍLCŮ Z BETONU SVĚTLÉ ŠÍŘKY DO 150MM VČETNĚ MŘÍŽÍ | F134: M | G134: 30 | I134: =ROUND(G134*H134,P4) -> 0 | O134: =I134*0.21 -> 0 | P134: 3
A135: PP | E135: monolitický žlab z polymerbetonu včetně integrované mříže šířka 150 mm
A136: VV | E136: odvodňovací žlaby š. 0,15 m 30 = 30,000 [A]
A137: P | B137: 42 | C137: 96615 | E137: BOURÁNÍ KONSTRUKCÍ Z PROSTÉHO BETONU | F137: M3 | G137: 2 | I137: =ROUND(G137*H137,P4) -> 0 | O137: =I137*0.21 -> 0 | P137: 3
A138: PP | E138: bourání v trase na trvalou skládku
A139: VV | E139: bourání v trase 2 = 2,000 [A]

Sheet 106 3542106 KL
A1: POLOŽKOVÝ ROZPOČET
A2: Rozpočet | C2: 3542/106 | D2: Novostavba parkovacího pruhu ul. Dvořákova | F2: JKSO | G2: 822.27
A4: Objekt | F4: SKP
A5: 106 | C5: Novostavba parkovacího pruhu ul. Dvořákova | F5: Měrná jednotka | G5: m2
A6: Stavba | F6: Počet jednotek | G6: 0
A7: 3542 | C7: Semily - Obnova VH infrastruktury a komunikací | F7: Náklady na m.j. | G7: =IF(G6=0,,ROUND((F30+F32)/G6,1)) -> 0
A8: Projektant | F8: Typ rozpočtu
A9: Zpracovatel projektu
A10: Objednatel | C10: Vodohospodářské sdružení Turnov
A11: Dodavatel | C11: . | F11: Zakázkové číslo
A12: Rozpočtoval | F12: Počet listů
A13: ROZPOČTOVÉ NÁKLADY
A14: Základní rozpočtové náklady
B15: HSV celkem | C15: =SUM('106 3542106 Pol'!I3) -> 0
A16: Z | B16: PSV celkem | C16: 0
A17: R | B17: M práce celkem | C17: 0
A18: N | B18: M dodávky celkem | C18: 0
A19: ZRN celkem | C19: =SUM(C15:C18) -> 0
A21: HZS | C21: 0
A22: ZRN+HZS | C22: =C19+C21 -> 0
A23: ZRN+ost.náklady+HZS | C23: =C22+G23 -> 0
A24: Vypracoval | D24: Za zhotovitele | F24: Za objednatele
A25: Jméno : | D25: Jméno : | F25: Jméno :
A26: Datum : | D26: Datum : | F26: Datum :
A28: Podpis : | D28: Podpis: | F28: Podpis:
A30: Základ pro DPH | C30: 21 | D30: % | F30: =C23-F32 -> 0
A31: DPH | C31: =C30 -> 21 | D31: % | F31: =ROUND(PRODUCT(F30,C31/100),0) -> 0
A32: Základ pro DPH | C32: 0 | D32: % | F32: 0
A33: DPH | C33: =C32 -> 0 | D33: % | F33: =ROUND(PRODUCT(F32,C33/100),0) -> 0
A34: CENA ZA OBJEKT CELKEM | F34: =ROUND(SUM(F30:F33),0) -> 0
A36: Poznámka :

Sheet 106 3542106 Pol
A1: EstiCon | E1: Firma: | P1: 3
E2: Soupis prací objektu
A3: S | B3: Stavba: | C3: 22-069 | E3: Oprava ulic Větrná, Smetanova a Dvořákova | H3: SO 106 | I3: =SUMIFS(I8:I64,A8:A64,"SD") -> 0 | O3: 0 | P3: 2
A4: O | B4: Rozpočet: | C4: SO 106 | E4: Novostavba parkovacího pruhu - ul. Dvořákova | O4: 0.12 | P4: 2
A5: Typ | B5: Poř. číslo | C5: Kód položky | D5: Varianta | E5: Název Položky | F5: MJ | G5: Množství | H5: Cena | J5: Cenová soustava | O5: 0.21
H6: Jednotková | I6: Celkem
A7: 0 | B7: 1 | C7: 2 | D7: 3 | E7: 4 | F7: 5 | G7: 6 | H7: 7 | I7: 8 | J7: 9
A8: SD | C8: 0 | E8: Všeobecné konstrukce a práce | I8: =SUMIFS(I9:I14,A9:A14,"P") -> 0
A9: P | B9: 1 | C9: 015111 | E9: POPLATKY ZA LIKVIDACI ODPADŮ NEKONTAMINOVANÝCH - 17 05 04 VYTĚŽENÉ ZEMINY A HORNINY - I. TŘÍDA TĚŽITELNOSTI | F9: T | G9: 105.12 | I9: =ROUND(G9*H9,P4) -> 0 | O9: =I9*0.21 -> 0 | P9: 3
A10: PP
A11: VV | E11: pol. 123738 52,11*2,0 = 104,220 [A] pol. 132738 0,45*2,0 = 0,900 [B] Celkové množství = 105,120
A12: P | B12: 2 | C12: 015330 | E12: POPLATKY ZA LIKVIDACI ODPADŮ NEKONTAMINOVANÝCH - 17 05 04 KAMENNÁ SUŤ | F12: T | G12: 22.572 | I12: =ROUND(G12*H12,P4) -> 0 | O12: =I12*0.21 -> 0 | P12: 3
A13: PP
A14: VV | E14: dle pol. 11332 11,88*1,9 = 22,572 [A]
A15: SD | C15: 1 | E15: Zemní práce | I15: =SUMIFS(I16:I36,A16:A36,"P") -> 0
A16: P | B16: 3 | C16: 11318 | E16: ODSTRANĚNÍ KRYTU ZPEVNĚNÝCH PLOCH Z DLAŽDIC | F16: M3 | G16: 4.4 | I16: =ROUND(G16*H16,P4) -> 0 | O16: =I16*0.21 -> 0 | P16: 3
A17: PP
A18: VV | E18: stávající sjezd 44*0,1 = 4,400 [A]
A19: P | B19: 4 | C19: 11332 | E19: ODSTRANĚNÍ PODKLADŮ ZPEVNĚNÝCH PLOCH Z KAMENIVA NESTMELENÉHO | F19: M3 | G19: 11.88 | I19: =ROUND(G19*H19,P4) -> 0 | O19: =I19*0.21 -> 0 | P19: 3
A20: PP
A21: VV | E21: odstranění podkladních vrstev - Konstrukce C (pl. * tl.) 44*0,27 = 11,880 [A]
A22: P | B22: 5 | C22: 12110 | E22: SEJMUTÍ ORNICE NEBO LESNÍ PŮDY | F22: M3 | G22: 18.45 | I22: =ROUND(G22*H22,P4) -> 0 | O22: =I22*0.21 -> 0 | P22: 3
A23: PP
A24: VV | E24: terénní úpravy 123*0,15 = 18,450 [A]
A25: P | B25: 6 | C25: 123738 | E25: ODKOP PRO SPOD STAVBU SILNIC A ŽELEZNIC TŘ. I, ODVOZ DO 20KM | F25: M3 | G25: 52.11 | I25: =ROUND(G25*H25,P4) -> 0 | O25: =I25*0.21 -> 0 | P25: 3
A26: PP | E26: ZHOTOVITEL V CENĚ ZOHLEDNÍ SKUTEČNÉ NÁKLADY NA DOPRAVU NA MÍSTO ULOŽENÍ
A27: VV | E27: předpokládaný rozsah sanace (pl. * 50% rozsahu) - pol. 18110 167*0,5 = 83,500 [A] předpokládaná tloušťka sanace 0.3 = 0,300 [B] celkem sanace A*B = 25,050 [C] Výkop zeminy 123*0,22 = 27,060 [D] Celkem C+D = 52,110 [E]
A28: P | B28: 7 | C28: 132738 | E28: HLOUBENÍ RÝH ŠÍŘ DO 2M PAŽ I NEPAŽ TŘ. I, ODVOZ DO 20KM | F28: M3 | G28: 0.45 | I28: =ROUND(G28*H28,P4) -> 0 | O28: =I28*0.21 -> 0 | P28: 3
A29: PP | E29: ZHOTOVITEL V CENĚ ZOHLEDNÍ SKUTEČNÉ NÁKLADY NA DOPRAVU NA MÍSTO ULOŽENÍ
A30: VV | E30: obruby (dl. * š. * hl.) 3*0.3*0,5 = 0,450 [A]
A31: P | B31: 8 | C31: 17120 | E31: ULOŽENÍ SYPANINY DO NÁSYPŮ A NA SKLÁDKY BEZ ZHUTNĚNÍ | F31: M3 | G31: 52.56 | I31: =ROUND(G31*H31,P4) -> 0 | O31: =I31*0.21 -> 0 | P31: 3
A32: PP
A33: VV | E33: pol. 123738 52,11 = 52,110 [A] pol. 132738 0,45 = 0,450 [B] Celkové množství = 52,560
A34: P | B34: 9 | C34: 18110 | E34: ÚPRAVA PLÁNĚ SE ZHUTNĚNÍM V HORNINĚ TŘ. I | F34: M2 | G34: 167.9 | I34: =ROUND(G34*H34,P4) -> 0 | O34: =I34*0.21 -> 0 | P34: 3
A35: PP
A36: VV | E36: Konstrukce C 167 = 167,000 [A] Pod chod. obrubami 3*0,3 = 0,900 [C] Celkové množství = 167,900
A37: SD | C37: 2 | E37: Základy | I37: =SUMIFS(I38:I43,A38:A43,"P") -> 0
A38: P | B38: 10 | C38: 21361 | E38: DRENÁŽNÍ VRSTVY Z GEOTEXTILIE | F38: M2 | G38: 167.9 | I38: =ROUND(G38*H38,P4) -> 0 | O38: =I38*0.21 -> 0 | P38: 3
A39: PP | E39: netkaná geotextílie 500 g/m2, CBR>3 kN, odolnost proti proražení < 10 mm, tažnost > 50% dle TP 97 separační a filtrační funkce
A40: VV | E40: pol. 18110 167,9 = 167,900 [A]
A41: P | B41: 11 | C41: 21452 | E41: SANAČNÍ VRSTVY Z KAMENIVA DRCENÉHO | F41: M3 | G41: 25.05 | I41: =ROUND(G41*H41,P4) -> 0 | O41: =I41*0.21 -> 0 | P41: 3
A42: PP | E42: sanace aktivní zóny - nakupený materiál dle ČSN 73 6133
A43: VV | E43: předpokládaný rozsah sanace (pl. * 50% rozsahu) - pol. 18110 167*0,5 = 83,500 [A] předpokládaná tloušťka sanace 0.3 = 0,300 [B] celkem sanace A*B = 25,050 [C]
A44: SD | C44: 5 | E44: Komunikace | I44: =SUMIFS(I45:I56,A45:A56,"P") -> 0
A45: P | B45: 12 | C45: 56333 | E45: VOZOVKOVÉ VRSTVY ZE ŠTĚRKODRTI TL. DO 150MM | F45: M2 | G45: 167 | I45: =ROUND(G45*H45,P4) -> 0 | O45: =I45*0.21 -> 0 | P45: 3
A46: PP | E46: ŠDA 0/32 - 150 mm
A47: VV | E47: Konstrukce C 123+44 = 167,000 [B]
A48: P | B48: 13 | C48: 582612 | D48: 1 | E48: KRYTY Z BETON DLAŽDIC SE ZÁMKEM ŠEDÝCH TL 80MM DO LOŽE Z KAM | F48: M2 | G48: 123 | I48: =ROUND(G48*H48,P4) -> 0 | O48: =I48*0.21 -> 0 | P48: 3
A49: PP | E49: Betonová dlažba (2x vyspárováno), šedá - 80 mm
A50: VV | E50: Konstrukce C 123 = 123,000 [A]
A51: P | B51: 14 | C51: 582612 | D51: 2 | E51: KRYTY Z BETON DLAŽDIC SE ZÁMKEM ŠEDÝCH TL 80MM DO LOŽE Z KAM | F51: M2 | G51: 44 | I51: =ROUND(G51*H51,P4) -> 0 | O51: =I51*0.21 -> 0 | P51: 3
A52: PP | E52: Betonová dlažba (2x vyspárováno), antracit - 80 mm
A53: VV | E53: Konstrukce C 44 = 44,000 [A]
A54: P | B54: 15 | C54: 587206 | E54: PŘEDLÁŽDĚNÍ KRYTU Z BETONOVÝCH DLAŽDIC SE ZÁMKEM | F54: M2 | G54: 30 | I54: =ROUND(G54*H54,P4) -> 0 | O54: =I54*0.21 -> 0 | P54: 3
A55: PP
A56: VV | E56: předláždění dlažby v místech napojení na stávající stav 15*2 = 30,000 [A]
A57: SD | C57: 7 | E57: Přidružená stavební výroba | I57: =SUMIFS(I58:I60,A58:A60,"P") -> 0
A58: P | B58: 16 | C58: 711117 | E58: IZOLACE BĚŽNÝCH KONSTRUKCÍ PROTI ZEMNÍ VLHKOSTI Z PE FÓLIÍ | F58: M2 | G58: 69.75 | I58: =ROUND(G58*H58,P4) -> 0 | O58: =I58*0.21 -> 0 | P58: 3
A59: PP | E59: nopová fólie v místě souběhu s nemovitostí nebo podezdívkou
A60: VV | E60: délka souběhu podél konstrukcí 93 = 93,000 [A] délka izolace v řezu 0,75 = 0,750 [B] celkem a*b = 69,750 [C]
A61: SD | C61: 9 | E61: Ostatní konstrukce a práce | I61: =SUMIFS(I62:I64,A62:A64,"P") -> 0
A62: P | B62: 17 | C62: 917223 | E62: SILNIČNÍ A CHODNÍKOVÉ OBRUBY Z BETONOVÝCH OBRUBNÍKŮ ŠÍŘ 100MM | F62: M | G62: 3 | I62: =ROUND(G62*H62,P4) -> 0 | O62: =I62*0.21 -> 0 | P62: 3
A63: PP
A64: VV | E64: chodníkové obruby 3 = 3,000 [A]

Sheet 131 3542131 KL
A1: POLOŽKOVÝ ROZPOČET
A2: Rozpočet | C2: 3542/131 | D2: Rekonstrukce chodníku ul. Větrná | F2: JKSO | G2: 822.27
A4: Objekt | F4: SKP
A5: 131 | C5: Rekonstrukce chodníku ul. Větrná | F5: Měrná jednotka | G5: m2
A6: Stavba | F6: Počet jednotek | G6: 0
A7: 3542 | C7: Semily - Obnova VH infrastruktury a komunikací | F7: Náklady na m.j. | G7: =IF(G6=0,,ROUND((F30+F32)/G6,1)) -> 0
A8: Projektant | F8: Typ rozpočtu
A9: Zpracovatel projektu
A10: Objednatel | C10: Vodohospodářské sdružení Turnov
A11: Dodavatel | C11: . | F11: Zakázkové číslo
A12: Rozpočtoval | F12: Počet listů
A13: ROZPOČTOVÉ NÁKLADY
A14: Základní rozpočtové náklady
B15: HSV celkem | C15: =SUM('131 3542131 Pol'!I3) -> 0
A16: Z | B16: PSV celkem | C16: 0
A17: R | B17: M práce celkem | C17: 0
A18: N | B18: M dodávky celkem | C18: 0
A19: ZRN celkem | C19: =SUM(C15:C18) -> 0
A21: HZS | C21: 0
A22: ZRN+HZS | C22: =C19+C21 -> 0
A23: ZRN+ost.náklady+HZS | C23: =C22+G23 -> 0
A24: Vypracoval | D24: Za zhotovitele | F24: Za objednatele
A25: Jméno : | D25: Jméno : | F25: Jméno :
A26: Datum : | D26: Datum : | F26: Datum :
A28: Podpis : | D28: Podpis: | F28: Podpis:
A30: Základ pro DPH | C30: 21 | D30: % | F30: =C23-F32 -> 0
A31: DPH | C31: =C30 -> 21 | D31: % | F31: =ROUND(PRODUCT(F30,C31/100),0) -> 0
A32: Základ pro DPH | C32: 0 | D32: % | F32: 0
A33: DPH | C33: =C32 -> 0 | D33: % | F33: =ROUND(PRODUCT(F32,C33/100),0) -> 0
A34: CENA ZA OBJEKT CELKEM | F34: =ROUND(SUM(F30:F33),0) -> 0
A36: Poznámka :

Sheet 131 3542131 Pol
A1: EstiCon | E1: Firma: | P1: 3
E2: Soupis prací objektu
A3: S | B3: Stavba: | C3: 22-069 | E3: Oprava ulic Větrná, Smetanova a Dvořákova | H3: SO 131 | I3: =SUMIFS(I8:I82,A8:A82,"SD") -> 0 | O3: 0 | P3: 2
A4: O | B4: Rozpočet: | C4: SO 131 | E4: Rekonstrukce chodníků - ul. Větrná | O4: 0.12 | P4: 2
A5: Typ | B5: Poř. číslo | C5: Kód položky | D5: Varianta | E5: Název Položky | F5: MJ | G5: Množství | H5: Cena | J5: Cenová soustava | O5: 0.21
H6: Jednotková | I6: Celkem
A7: 0 | B7: 1 | C7: 2 | D7: 3 | E7: 4 | F7: 5 | G7: 6 | H7: 7 | I7: 8 | J7: 9
A8: SD | C8: 0 | E8: Všeobecné konstrukce a práce | I8: =SUMIFS(I9:I17,A9:A17,"P") -> 0
A9: P | B9: 1 | C9: 015111 | E9: POPLATKY ZA LIKVIDACI ODPADŮ NEKONTAMINOVANÝCH - 17 05 04 VYTĚŽENÉ ZEMINY A HORNINY - I. TŘÍDA TĚŽITELNOSTI | F9: T | G9: 1.62 | I9: =ROUND(G9*H9,P4) -> 0 | O9: =I9*0.21 -> 0 | P9: 3
A10: PP
A11: VV | E11: pol. 123738 0,81*2,0 = 1,620 [A]
A12: P | B12: 2 | C12: 015130 | E12: POPLATKY ZA LIKVIDACI ODPADŮ NEKONTAMINOVANÝCH - 17 03 02 VYBOURANÝ ASFALTOVÝ BETON BEZ DEHTU | F12: T | G12: 96.24 | I12: =ROUND(G12*H12,P4) -> 0 | O12: =I12*0.21 -> 0 | P12: 3
A13: PP
A14: VV | E14: pol. 11313 40,1*2,4 = 96,240 [A]
A15: P | B15: 3 | C15: 015330 | E15: POPLATKY ZA LIKVIDACI ODPADŮ NEKONTAMINOVANÝCH - 17 05 04 KAMENNÁ SUŤ | F15: T | G15: 121.98 | I15: =ROUND(G15*H15,P4) -> 0 | O15: =I15*0.21 -> 0 | P15: 3
A16: PP
A17: VV | E17: dle pol. 11332 64,2*1,9 = 121,980 [A]
A18: SD | C18: 1 | E18: Zemní práce | I18: =SUMIFS(I19:I48,A19:A48,"P") -> 0
A19: P | B19: 4 | C19: 11313 | E19: ODSTRANĚNÍ KRYTU ZPEVNĚNÝCH PLOCH S ASFALTOVÝM POJIVEM | F19: M3 | G19: 40.1 | I19: =ROUND(G19*H19,P4) -> 0 | O19: =I19*0.21 -> 0 | P19: 3
A20: PP
A21: VV | E21: stávající chodník 401*0,1 = 40,100 [A]
A22: P | B22: 5 | C22: 11318 | E22: ODSTRANĚNÍ KRYTU ZPEVNĚNÝCH PLOCH Z DLAŽDIC | F22: M3 | G22: 0.2 | I22: =ROUND(G22*H22,P4) -> 0 | O22: =I22*0.21 -> 0 | P22: 3
A23: PP
A24: VV | E24: stávající dlážděná křižovatka 2*0.1 = 0,200 [A]
A25: P | B25: 6 | C25: 11332 | E25: ODSTRANĚNÍ PODKLADŮ ZPEVNĚNÝCH PLOCH Z KAMENIVA NESTMELENÉHO | F25: M3 | G25: 64.2 | I25: =ROUND(G25*H25,P4) -> 0 | O25: =I25*0.21 -> 0 | P25: 3
A26: PP
A27: VV | E27: stávající asfaltový chodník 334*0,14 = 46,760 [A] stávající dlážděný chodník 2*0,14 = 0,280 [B] stávající asfaltové vjezdy 78*0,22 = 17,160 [C] Celkové množství = 64,200
A28: P | B28: 7 | C28: 12110 | E28: SEJMUTÍ ORNICE NEBO LESNÍ PŮDY | F28: M3 | G28: 1.35 | I28: =ROUND(G28*H28,P4) -> 0 | O28: =I28*0.21 -> 0 | P28: 3
A29: PP
A30: VV | E30: sejmutí ornice pod novou dlážděnou plochou 9*0,15 = 1,350 [A]
A31: P | B31: 8 | C31: 123738 | E31: ODKOP PRO SPOD STAVBU SILNIC A ŽELEZNIC TŘ. I, ODVOZ DO 20KM | F31: M3 | G31: 0.81 | I31: =ROUND(G31*H31,P4) -> 0 | O31: =I31*0.21 -> 0 | P31: 3
A32: PP | E32: ZHOTOVITEL V CENĚ ZOHLEDNÍ SKUTEČNÉ NÁKLADY NA DOPRAVU NA MÍSTO ULOŽENÍ
A33: VV | E33: sejmutí ornice pod novou dlážděnou plochou 9*0,09 = 0,810 [A]
A34: P | B34: 9 | C34: 17120 | E34: ULOŽENÍ SYPANINY DO NÁSYPŮ A NA SKLÁDKY BEZ ZHUTNĚNÍ | F34: M3 | G34: 0.81 | I34: =ROUND(G34*H34,P4) -> 0 | O34: =I34*0.21 -> 0 | P34: 3
A35: PP
A36: VV | E36: pol. 123738 0,81 = 0,810 [A]
A37: P | B37: 10 | C37: 18110 | E37: ÚPRAVA PLÁNĚ SE ZHUTNĚNÍM V HORNINĚ TŘ. I | F37: M2 | G37: 412 | I37: =ROUND(G37*H37,P4) -> 0 | O37: =I37*0.21 -> 0 | P37: 3
A38: PP
A39: VV | E39: Konstrukce D 334 = 334,000 [A] Konstrukce D.1 78 = 78,000 [B] Celkové množství = 412,000
A40: P | B40: 11 | C40: 18230 | E40: ROZPROSTŘENÍ ORNICE V ROVINĚ | F40: M3 | G40: 3.3 | I40: =ROUND(G40*H40,P4) -> 0 | O40: =I40*0.21 -> 0 | P40: 3
A41: PP | E41: včetně získání materiálu k ohumusování
A42: VV | E42: terénní úpravy 22*0,15 = 3,300 [A]
A43: P | B43: 12 | C43: 18241 | E43: ZALOŽENÍ TRÁVNÍKU RUČNÍM VÝSEVEM | F43: M2 | G43: 22 | I43: =ROUND(G43*H43,P4) -> 0 | O43: =I43*0.21 -> 0 | P43: 3
A44: PP
A45: VV | E45: terénní úpravy 22 = 22,000 [A]
A46: P | B46: 13 | C46: 183511 | E46: CHEMICKÉ ODPLEVELENÍ CELOPLOŠNÉ | F46: M2 | G46: 22 | I46: =ROUND(G46*H46,P4) -> 0 | O46: =I46*0.21 -> 0 | P46: 3
A47: PP
A48: VV | E48: terénní úpravy 22 = 22,000 [A]
A49: SD | C49: 2 | E49: Základy | I49: =SUMIFS(I50:I52,A50:A52,"P") -> 0
A50: P | B50: 14 | C50: 21361 | E50: DRENÁŽNÍ VRSTVY Z GEOTEXTILIE | F50: M2 | G50: 412 | I50: =ROUND(G50*H50,P4) -> 0 | O50: =I50*0.21 -> 0 | P50: 3
A51: PP | E51: netkaná geotextílie 500 g/m2, CBR>3 kN, odolnost proti proražení < 10 mm, tažnost > 50% dle TP 97 separační a filtrační funkce
A52: VV | E52: pol. 18110 412 = 412,000 [A]
A53: SD | C53: 5 | E53: Komunikace | I53: =SUMIFS(I54:I74,A54:A74,"P") -> 0
A54: P | B54: 15 | C54: 56333 | E54: VOZOVKOVÉ VRSTVY ZE ŠTĚRKODRTI TL. DO 150MM | F54: M2 | G54: 334 | I54: =ROUND(G54*H54,P4) -> 0 | O54: =I54*0.21 -> 0 | P54: 3
A55: PP | E55: ŠDA 0/32 - 150 mm
A56: VV | E56: Konstrukce D 309+25 = 334,000 [A]
A57: P | B57: 16 | C57: 56334 | E57: VOZOVKOVÉ VRSTVY ZE ŠTĚRKODRTI TL. DO 200MM | F57: M2 | G57: 78 | I57: =ROUND(G57*H57,P4) -> 0 | O57: =I57*0.21 -> 0 | P57: 3
A58: PP | E58: ŠDA 0/32 - 200 mm
A59: VV | E59: Konstrukce D.1 59+19 = 78,000 [A]
A60: P | B60: 17 | C60: 582614 | E60: KRYTY Z BETON DLAŽDIC SE ZÁMKEM BAREV TL 60MM DO LOŽE Z KAM | F60: M2 | G60: 309 | I60: =ROUND(G60*H60,P4) -> 0 | O60: =I60*0.21 -> 0 | P60: 3
A61: PP | E61: Betonová dlažba (2x vyspárováno), žlutá - 60 mm
A62: VV | E62: Konstrukce D 309 = 309,000 [A]
A63: P | B63: 18 | C63: 582615 | E63: KRYTY Z BETON DLAŽDIC SE ZÁMKEM BAREV TL 80MM DO LOŽE Z KAM | F63: M2 | G63: 59 | I63: =ROUND(G63*H63,P4) -> 0 | O63: =I63*0.21 -> 0 | P63: 3
A64: PP | E64: Betonová dlažba (2x vyspárováno), žlutá - 80 mm
A65: VV | E65: Konstrukce D.1 59 = 59,000 [A]
A66: P | B66: 19 | C66: 58261A | E66: KRYTY Z BETON DLAŽDIC SE ZÁMKEM BAREV RELIÉF TL 60MM DO LOŽE Z KAM | F66: M2 | G66: 25 | I66: =ROUND(G66*H66,P4) -> 0 | O66: =I66*0.21 -> 0 | P66: 3
A67: PP | E67: Betonová dlažba (2x vyspárováno), antracit - 60 mm - s hmatovou úpravou
A68: VV | E68: Konstrukce D 25 = 25,000 [A]
A69: P | B69: 20 | C69: 58261B | E69: KRYTY Z BETON DLAŽDIC SE ZÁMKEM BAREV RELIÉF TL 80MM DO LOŽE Z KAM | F69: M2 | G69: 19 | I69: =ROUND(G69*H69,P4) -> 0 | O69: =I69*0.21 -> 0 | P69: 3
A70: PP | E70: Betonová dlažba (2x vyspárováno), antracit - 80 mm - s hmatovou úpravou
A71: VV | E71: Konstrukce D.1 19 = 19,000 [A]
A72: P | B72: 21 | C72: 587206 | E72: PŘEDLÁŽDĚNÍ KRYTU Z BETONOVÝCH DLAŽDIC SE ZÁMKEM | F72: M2 | G72: 16 | I72: =ROUND(G72*H72,P4) -> 0 | O72: =I72*0.21 -> 0 | P72: 3
A73: PP
A74: VV | E74: předláždění dlažby v místech napojení na stávající stav 8*2 = 16,000 [A]
A75: SD | C75: 7 | E75: Přidružená stavební výroba | I75: =SUMIFS(I76:I78,A76:A78,"P") -> 0
A76: P | B76: 22 | C76: 711117 | E76: IZOLACE BĚŽNÝCH KONSTRUKCÍ PROTI ZEMNÍ VLHKOSTI Z PE FÓLIÍ | F76: M2 | G76: 111.75 | I76: =ROUND(G76*H76,P4) -> 0 | O76: =I76*0.21 -> 0 | P76: 3
A77: PP | E77: nopová fólie v místě souběhu s nemovitostí nebo podezdívkou
A78: VV | E78: délka souběhu podél konstrukcí 149 = 149,000 [A] délka izolace v řezu 0,75 = 0,750 [B] celkem a*b = 111,750 [C]
A79: SD | C79: 9 | E79: Ostatní konstrukce a práce | I79: =SUMIFS(I80:I82,A80:A82,"P") -> 0
A80: P | B80: 23 | C80: 917223 | E80: SILNIČNÍ A CHODNÍKOVÉ OBRUBY Z BETONOVÝCH OBRUBNÍKŮ ŠÍŘ 100MM | F80: M | G80: 19 | I80: =ROUND(G80*H80,P4) -> 0 | O80: =I80*0.21 -> 0 | P80: 3
A81: PP
A82: VV | E82: chodníkové obruby 19 = 19,000 [A]

Sheet 132 3542132 KL
A1: POLOŽKOVÝ ROZPOČET
A2: Rozpočet | C2: 3542/132 | D2: Rekonstrukce chodníku ul. Smetanova | F2: JKSO | G2: 822.27
A4: Objekt | F4: SKP
A5: 132 | C5: Rekonstrukce chodníku ul. Smetanova | F5: Měrná jednotka | G5: m2
A6: Stavba | F6: Počet jednotek | G6: 0
A7: 3542 | C7: Semily - Obnova VH infrastruktury a komunikací | F7: Náklady na m.j. | G7: =IF(G6=0,,ROUND((F30+F32)/G6,1)) -> 0
A8: Projektant | F8: Typ rozpočtu
A9: Zpracovatel projektu
A10: Objednatel | C10: Vodohospodářské sdružení Turnov
A11: Dodavatel | C11: . | F11: Zakázkové číslo
A12: Rozpočtoval | F12: Počet listů
A13: ROZPOČTOVÉ NÁKLADY
A14: Základní rozpočtové náklady
B15: HSV celkem | C15: =SUM('132 3542132 Pol'!I3) -> 0
A16: Z | B16: PSV celkem | C16: 0
A17: R | B17: M práce celkem | C17: 0
A18: N | B18: M dodávky celkem | C18: 0
A19: ZRN celkem | C19: =SUM(C15:C18) -> 0
A21: HZS | C21: 0
A22: ZRN+HZS | C22: =C19+C21 -> 0
A23: ZRN+ost.náklady+HZS | C23: =C22+G23 -> 0
A24: Vypracoval | D24: Za zhotovitele | F24: Za objednatele
A25: Jméno : | D25: Jméno : | F25: Jméno :
A26: Datum : | D26: Datum : | F26: Datum :
A28: Podpis : | D28: Podpis: | F28: Podpis:
A30: Základ pro DPH | C30: 21 | D30: % | F30: =C23-F32 -> 0
A31: DPH | C31: =C30 -> 21 | D31: % | F31: =ROUND(PRODUCT(F30,C31/100),0) -> 0
A32: Základ pro DPH | C32: 0 | D32: % | F32: 0
A33: DPH | C33: =C32 -> 0 | D33: % | F33: =ROUND(PRODUCT(F32,C33/100),0) -> 0
A34: CENA ZA OBJEKT CELKEM | F34: =ROUND(SUM(F30:F33),0) -> 0
A36: Poznámka :

Sheet 132 3542132 Pol
A1: EstiCon | E1: Firma: | P1: 3
E2: Soupis prací objektu
A3: S | B3: Stavba: | C3: 22-069 | E3: Oprava ulic Větrná, Smetanova a Dvořákova | H3: SO 132 | I3: =SUMIFS(I8:I58,A8:A58,"SD") -> 0 | O3: 0 | P3: 2
A4: O | B4: Rozpočet: | C4: SO 132 | E4: Rekonstrukce chodníků - ul. Smetanova | O4: 0.12 | P4: 2
A5: Typ | B5: Poř. číslo | C5: Kód položky | D5: Varianta | E5: Název Položky | F5: MJ | G5: Množství | H5: Cena | J5: Cenová soustava | O5: 0.21
H6: Jednotková | I6: Celkem
A7: 0 | B7: 1 | C7: 2 | D7: 3 | E7: 4 | F7: 5 | G7: 6 | H7: 7 | I7: 8 | J7: 9
A8: SD | C8: 0 | E8: Všeobecné konstrukce a práce | I8: =SUMIFS(I9:I14,A9:A14,"P") -> 0
A9: P | B9: 1 | C9: 015130 | E9: POPLATKY ZA LIKVIDACI ODPADŮ NEKONTAMINOVANÝCH - 17 03 02 VYBOURANÝ ASFALTOVÝ BETON BEZ DEHTU | F9: T | G9: 36.48 | I9: =ROUND(G9*H9,P4) -> 0 | O9: =I9*0.21 -> 0 | P9: 3
A10: PP
A11: VV | E11: pol. 11313 15,2*2,4 = 36,480 [A]
A12: P | B12: 2 | C12: 015330 | E12: POPLATKY ZA LIKVIDACI ODPADŮ NEKONTAMINOVANÝCH - 17 05 04 KAMENNÁ SUŤ | F12: T | G12: 48.526 | I12: =ROUND(G12*H12,P4) -> 0 | O12: =I12*0.21 -> 0 | P12: 3
A13: PP
A14: VV | E14: dle pol. 11332 25,54*1,9 = 48,526 [A]
A15: SD | C15: 1 | E15: Zemní práce | I15: =SUMIFS(I16:I27,A16:A27,"P") -> 0
A16: P | B16: 3 | C16: 11313 | E16: ODSTRANĚNÍ KRYTU ZPEVNĚNÝCH PLOCH S ASFALTOVÝM POJIVEM | F16: M3 | G16: 15.2 | I16: =ROUND(G16*H16,P4) -> 0 | O16: =I16*0.21 -> 0 | P16: 3
A17: PP
A18: VV | E18: stávající chodník 152*0,1 = 15,200 [A]
A19: P | B19: 4 | C19: 11318 | E19: ODSTRANĚNÍ KRYTU ZPEVNĚNÝCH PLOCH Z DLAŽDIC | F19: M3 | G19: 0.3 | I19: =ROUND(G19*H19,P4) -> 0 | O19: =I19*0.21 -> 0 | P19: 3
A20: PP
A21: VV | E21: stávající dlážděná křižovatka 3*0.1 = 0,300 [A]
A22: P | B22: 5 | C22: 11332 | E22: ODSTRANĚNÍ PODKLADŮ ZPEVNĚNÝCH PLOCH Z KAMENIVA NESTMELENÉHO | F22: M3 | G22: 25.54 | I22: =ROUND(G22*H22,P4) -> 0 | O22: =I22*0.21 -> 0 | P22: 3
A23: PP
A24: VV | E24: stávající asfaltový chodník 104*0,14 = 14,560 [A] stávající dlážděný chodník 3*0,14 = 0,420 [B] stávající asfaltové vjezdy 48*0,22 = 10,560 [C] Celkové množství = 25,540
A25: P | B25: 6 | C25: 18110 | E25: ÚPRAVA PLÁNĚ SE ZHUTNĚNÍM V HORNINĚ TŘ. I | F25: M2 | G25: 155 | I25: =ROUND(G25*H25,P4) -> 0 | O25: =I25*0.21 -> 0 | P25: 3
A26: PP
A27: VV | E27: Konstrukce D 107 = 107,000 [A] Konstrukce D.1 48 = 48,000 [B] Celkové množství = 155,000
A28: SD | C28: 2 | E28: Základy | I28: =SUMIFS(I29:I31,A29:A31,"P") -> 0
A29: P | B29: 7 | C29: 21361 | E29: DRENÁŽNÍ VRSTVY Z GEOTEXTILIE | F29: M2 | G29: 155 | I29: =ROUND(G29*H29,P4) -> 0 | O29: =I29*0.21 -> 0 | P29: 3
A30: PP | E30: netkaná geotextílie 500 g/m2, CBR>3 kN, odolnost proti proražení < 10 mm, tažnost > 50% dle TP 97 separační a filtrační funkce
A31: VV | E31: pol. 18110 155 = 155,000 [A]
A32: SD | C32: 5 | E32: Komunikace | I32: =SUMIFS(I33:I50,A33:A50,"P") -> 0
A33: P | B33: 8 | C33: 56333 | E33: VOZOVKOVÉ VRSTVY ZE ŠTĚRKODRTI TL. DO 150MM | F33: M2 | G33: 107 | I33: =ROUND(G33*H33,P4) -> 0 | O33: =I33*0.21 -> 0 | P33: 3
A34: PP | E34: ŠDA 0/32 - 150 mm
A35: VV | E35: Konstrukce D 107 = 107,000 [A]
A36: P | B36: 9 | C36: 56334 | E36: VOZOVKOVÉ VRSTVY ZE ŠTĚRKODRTI TL. DO 200MM | F36: M2 | G36: 48 | I36: =ROUND(G36*H36,P4) -> 0 | O36: =I36*0.21 -> 0 | P36: 3
A37: PP | E37: ŠDA 0/32 - 200 mm
A38: VV | E38: Konstrukce D.1 37+11 = 48,000 [A]
A39: P | B39: 10 | C39: 582614 | E39: KRYTY Z BETON DLAŽDIC SE ZÁMKEM BAREV TL 60MM DO LOŽE Z KAM | F39: M2 | G39: 107 | I39: =ROUND(G39*H39,P4) -> 0 | O39: =I39*0.21 -> 0 | P39: 3
A40: PP | E40: Betonová dlažba (2x vyspárováno), žlutá - 60 mm
A41: VV | E41: Konstrukce D 107 = 107,000 [A]
A42: P | B42: 11 | C42: 582615 | E42: KRYTY Z BETON DLAŽDIC SE ZÁMKEM BAREV TL 80MM DO LOŽE Z KAM | F42: M2 | G42: 37 | I42: =ROUND(G42*H42,P4) -> 0 | O42: =I42*0.21 -> 0 | P42: 3
A43: PP | E43: Betonová dlažba (2x vyspárováno), žlutá - 80 mm
A44: VV | E44: Konstrukce D.1 37 = 37,000 [A]
A45: P | B45: 12 | C45: 58261B | E45: KRYTY Z BETON DLAŽDIC SE ZÁMKEM BAREV RELIÉF TL 80MM DO LOŽE Z KAM | F45: M2 | G45: 11 | I45: =ROUND(G45*H45,P4) -> 0 | O45: =I45*0.21 -> 0 | P45: 3
A46: PP | E46: Betonová dlažba (2x vyspárováno), antracit - 80 mm - s hmatovou úpravou
A47: VV | E47: Konstrukce D.1 11 = 11,000 [A]
A48: P | B48: 13 | C48: 587206 | E48: PŘEDLÁŽDĚNÍ KRYTU Z BETONOVÝCH DLAŽDIC SE ZÁMKEM | F48: M2 | G48: 4 | I48: =ROUND(G48*H48,P4) -> 0 | O48: =I48*0.21 -> 0 | P48: 3
A49: PP
A50: VV | E50: předláždění dlažby v místech napojení na stávající stav 2*2 = 4,000 [A]
A51: SD | C51: 7 | E51: Přidružená stavební výroba | I51: =SUMIFS(I52:I54,A52:A54,"P") -> 0
A52: P | B52: 14 | C52: 711117 | E52: IZOLACE BĚŽNÝCH KONSTRUKCÍ PROTI ZEMNÍ VLHKOSTI Z PE FÓLIÍ | F52: M2 | G52: 85.5 | I52: =ROUND(G52*H52,P4) -> 0 | O52: =I52*0.21 -> 0 | P52: 3
A53: PP | E53: nopová fólie v místě souběhu s nemovitostí nebo podezdívkou
A54: VV | E54: délka souběhu podél konstrukcí 114 = 114,000 [A] délka izolace v řezu 0,75 = 0,750 [B] celkem a*b = 85,500 [C]
A55: SD | C55: 9 | E55: Ostatní konstrukce a práce | I55: =SUMIFS(I56:I58,A56:A58,"P") -> 0
A56: P | B56: 15 | C56: 917223 | E56: SILNIČNÍ A CHODNÍKOVÉ OBRUBY Z BETONOVÝCH OBRUBNÍKŮ ŠÍŘ 100MM | F56: M | G56: 2 | I56: =ROUND(G56*H56,P4) -> 0 | O56: =I56*0.21 -> 0 | P56: 3
A57: PP
A58: VV | E58: chodníkové obruby 2 = 2,000 [A]

Sheet 301 3542301.1 KL
A1: POLOŽKOVÝ ROZPOČET
A2: Rozpočet | C2: 3542/301.1 | D2: Oprava vodovodní řadů S1 a S2 | F2: JKSO | G2: 827.13
A4: Objekt | F4: SKP
A5: 301 | C5: Oprava vodovodní řadů S1 a S2 ul. Smetanova | F5: Měrná jednotka | G5: m
A6: Stavba | F6: Počet jednotek | G6: 0
A7: 3542 | C7: Semily - Obnova VH infrastruktury a komunikací | F7: Náklady na m.j. | G7: =IF(G6=0,,ROUND((F30+F32)/G6,1)) -> 0
A8: Projektant | F8: Typ rozpočtu
A9: Zpracovatel projektu
A10: Objednatel | C10: Vodohospodářské sdružení Turnov
A11: Dodavatel | C11: . | F11: Zakázkové číslo
A12: Rozpočtoval | F12: Počet listů
A13: ROZPOČTOVÉ NÁKLADY
A14: Základní rozpočtové náklady
B15: HSV celkem | C15: ='301 3542301.1 Rek'!E15 -> 0
A16: Z | B16: PSV celkem | C16: ='301 3542301.1 Rek'!F15 -> 0
A17: R | B17: M práce celkem | C17: ='301 3542301.1 Rek'!H15 -> 0
A18: N | B18: M dodávky celkem | C18: ='301 3542301.1 Rek'!G15 -> 0
A19: ZRN celkem | C19: =SUM(C15:C18) -> 0
A21: HZS | C21: ='301 3542301.1 Rek'!I15 -> 0
A22: ZRN+HZS | C22: =C19+C21 -> 0
A23: ZRN+ost.náklady+HZS | C23: =C22+G23 -> 0
A24: Vypracoval | D24: Za zhotovitele | F24: Za objednatele
A25: Jméno : | D25: Jméno : | F25: Jméno :
A26: Datum : | D26: Datum : | F26: Datum :
A28: Podpis : | D28: Podpis: | F28: Podpis:
A30: Základ pro DPH | C30: 21 | D30: % | F30: =C23-F32 -> 0
A31: DPH | C31: =C30 -> 21 | D31: % | F31: =ROUND(PRODUCT(F30,C31/100),0) -> 0
A32: Základ pro DPH | C32: 0 | D32: % | F32: 0
A33: DPH | C33: =C32 -> 0 | D33: % | F33: =ROUND(PRODUCT(F32,C33/100),0) -> 0
A34: CENA ZA OBJEKT CELKEM | F34: =ROUND(SUM(F30:F33),0) -> 0
A36: Poznámka :

Sheet 301 3542301.1 Rek
A1: Stavba : | C1: 3542 Semily - Obnova VH infrastruktury a komunikací | G1: Rozpočet : | H1: 3542/301.1
A2: Objekt : | C2: 301 Oprava vodovodní řadů S1 a S2 ul. Smetanova | G2: Oprava vodovodní řadů S1 a S2
A4: REKAPITULACE STAVEBNÍCH DÍLŮ
B6: Stavební díl | E6: HSV | F6: PSV | G6: Dodávka | H6: Montáž | I6: HZS
A7: ='301 3542301.1 Pol'!B7 -> 1 | B7: ='301 3542301.1 Pol'!C7 -> Zemní práce | E7: ='301 3542301.1 Pol'!BA86 -> 0 | F7: ='301 3542301.1 Pol'!BB86 -> 0 | G7: ='301 3542301.1 Pol'!BC86 -> 0 | H7: ='301 3542301.1 Pol'!BD86 -> 0 | I7: ='301 3542301.1 Pol'!BE86 -> 0
A8: ='301 3542301.1 Pol'!B87 -> 21 | B8: ='301 3542301.1 Pol'!C87 -> Úprava podloží a základ.spáry | E8: ='301 3542301.1 Pol'!BA93 -> 0 | F8: ='301 3542301.1 Pol'!BB93 -> 0 | G8: ='301 3542301.1 Pol'!BC93 -> 0 | H8: ='301 3542301.1 Pol'!BD93 -> 0 | I8: ='301 3542301.1 Pol'!BE93 -> 0
A9: ='301 3542301.1 Pol'!B94 -> 45 | B9: ='301 3542301.1 Pol'!C94 -> Podkladní a vedlejší konstrukce | E9: ='301 3542301.1 Pol'!BA100 -> 0 | F9: ='301 3542301.1 Pol'!BB100 -> 0 | G9: ='301 3542301.1 Pol'!BC100 -> 0 | H9: ='301 3542301.1 Pol'!BD100 -> 0 | I9: ='301 3542301.1 Pol'!BE100 -> 0
A10: ='301 3542301.1 Pol'!B101 -> 5 | B10: ='301 3542301.1 Pol'!C101 -> Komunikace | E10: ='301 3542301.1 Pol'!BA107 -> 0 | F10: ='301 3542301.1 Pol'!BB107 -> 0 | G10: ='301 3542301.1 Pol'!BC107 -> 0 | H10: ='301 3542301.1 Pol'!BD107 -> 0 | I10: ='301 3542301.1 Pol'!BE107 -> 0
A11: ='301 3542301.1 Pol'!B108 -> 8 | B11: ='301 3542301.1 Pol'!C108 -> Trubní vedení | E11: ='301 3542301.1 Pol'!BA253 -> 0 | F11: ='301 3542301.1 Pol'!BB253 -> 0 | G11: ='301 3542301.1 Pol'!BC253 -> 0 | H11: ='301 3542301.1 Pol'!BD253 -> 0 | I11: ='301 3542301.1 Pol'!BE253 -> 0
A12: ='301 3542301.1 Pol'!B254 -> 89 | B12: ='301 3542301.1 Pol'!C254 -> Ostatní konstrukce na trubním vedení | E12: ='301 3542301.1 Pol'!BA282 -> 0 | F12: ='301 3542301.1 Pol'!BB282 -> 0 | G12: ='301 3542301.1 Pol'!BC282 -> 0 | H12: ='301 3542301.1 Pol'!BD282 -> 0 | I12: ='301 3542301.1 Pol'!BE282 -> 0
A13: ='301 3542301.1 Pol'!B283 -> 93 | B13: ='301 3542301.1 Pol'!C283 -> Dokončovací práce inženýrských staveb | E13: ='301 3542301.1 Pol'!BA338 -> 0 | F13: ='301 3542301.1 Pol'!BB338 -> 0 | G13: ='301 3542301.1 Pol'!BC338 -> 0 | H13: ='301 3542301.1 Pol'!BD338 -> 0 | I13: ='301 3542301.1 Pol'!BE338 -> 0
A14: ='301 3542301.1 Pol'!B339 -> 99 | B14: ='301 3542301.1 Pol'!C339 -> Staveništní přesun hmot | E14: ='301 3542301.1 Pol'!BA342 -> 0 | F14: ='301 3542301.1 Pol'!BB342 -> 0 | G14: ='301 3542301.1 Pol'!BC342 -> 0 | H14: ='301 3542301.1 Pol'!BD342 -> 0 | I14: ='301 3542301.1 Pol'!BE342 -> 0
B15: CELKEM OBJEKT | E15: =SUM(E7:E14) -> 0 | F15: =SUM(F7:F14) -> 0 | G15: =SUM(G7:G14) -> 0 | H15: =SUM(H7:H14) -> 0 | I15: =SUM(I7:I14) -> 0

Sheet 301 3542301.1 Pol
A1: Položkový rozpočet
A3: Stavba : | C3: 3542 Semily - Obnova VH infrastruktury a komunikací | E3: Rozpočet: | F3: ='301 3542301.1 Rek'!H1 -> 3542/301.1
A4: Objekt : | C4: 301 Oprava vodovodní řadů S1 a S2 ul. Smetanova | E4: ='301 3542301.1 Rek'!G2 -> Oprava vodovodní řadů S1 a S2
A6: P.č. | B6: Číslo položky | C6: Název položky | D6: MJ | E6: množství | F6: cena / MJ | G6: celkem (Kč) | H6: Jednotková hmotnost | I6: Celková hmotnost | J6: Jednotková dem.hmot. | K6: Celková dem.hmot.
A7: Díl: | B7: 1 | C7: Zemní práce | O7: 1
A8: 1 | B8: 130001101RRX | C8: Příplatek za ztížené hloubení v blízkosti vedení | D8: m3 | E8: 45.568 | G8: =E8*F8 -> 0 | H8: 0 | I8: =E8*H8 -> 0 | J8: 0 | K8: =E8*J8 -> 0 | O8: 2 | AA8: 1 | AB8: 1 | AC8: 1 | AZ8: 1 | BA8: =IF(AZ8=1,G8,0) -> 0 | BB8: =IF(AZ8=2,G8,0) -> 0 | BC8: =IF(AZ8=3,G8,0) -> 0 | BD8: =IF(AZ8=4,G8,0) -> 0 | BE8: =IF(AZ8=5,G8,0) -> 0 | CA8: 1 | CB8: 1
C9: Včetně případných nutných dokopávek a ručního výkopu podél sousedících inženýrských sítí. | L9: Včetně případných nutných dokopávek a ručního výkopu podél sousedících inženýrských sítí. | O9: 3
C10: Součástí položky je i dočasné zajištění stávajících inženýrských sítí v prostoru výkopů (potrubí, kabely a pod.) | L10: Součástí položky je i dočasné zajištění stávajících inženýrských sítí v prostoru výkopů (potrubí, kabely a pod.) | O10: 3
C11: Vodovodní řady "S1 a S2" PE D 90x8,2 mm: | E11: 0 | M11: Vodovodní řady "S1 a S2" PE D 90x8,2 mm:
C12: Výkopy : | E12: 0 | M12: Výkopy :
C13: V hornině tř. 3 - 4 - 32%:142,4000*0,32 | E13: 45.568 | M13: V hornině tř. 3 - 4 - 32%:142,4000*0,32
A14: 2 | B14: 132201212R00 | C14: Hloubení rýh š.do 200 cm hor.3 do 1000m3,STROJNĚ | D14: m3 | E14: 71.2 | G14: =E14*F14 -> 0 | H14: 0 | I14: =E14*H14 -> 0 | J14: 0 | K14: =E14*J14 -> 0 | O14: 2 | AA14: 1 | AB14: 1 | AC14: 1 | AZ14: 1 | BA14: =IF(AZ14=1,G14,0) -> 0 | BB14: =IF(AZ14=2,G14,0) -> 0 | BC14: =IF(AZ14=3,G14,0) -> 0 | BD14: =IF(AZ14=4,G14,0) -> 0 | BE14: =IF(AZ14=5,G14,0) -> 0 | CA14: 1 | CB14: 1
C15: Položka obsahuje hloubení rýh traktorbagrem, naložení výkopku na dopravní prostředek pro svislé, nebo vodorovné přemístění, popř. přemístění výkopku do 3 m (po povrchu území), případné zajištění rypadel polštáři, udržování pracoviště a ochranu výkopiště proti stékání srážkové vody z okolního terénu i s jejím odvodněním, nebo odvedením, přesekání a odstranění kořenů ve výkopišti, odstranění napadávek, urovnání dna výkopu. | L15: Položka obsahuje hloubení rýh traktorbagrem, naložení výkopku na dopravní prostředek pro svislé, nebo vodorovné přemístění, popř. přemístění výkopku do 3 m (po povrchu území), případné zajištění rypadel polštáři, udržování pracoviště a ochranu výkopiště proti stékání srážkové vody z okolního terénu i s jejím odvodněním, nebo odvedením, přesekání a odstranění kořenů ve výkopišti, odstranění napadávek, urovnání dna výkopu. | O15: 3
C16: Vodovodní řady "S1 a S2" PE D 90x8,2 mm: | E16: 0 | M16: Vodovodní řady "S1 a S2" PE D 90x8,2 mm:
C17: Výkopy : | E17: 0 | M17: Výkopy :
C18: Začátek provozního součtu | E18: 0 | M18: Začátek provozního součtu
C19: Průměrná hloubka výkopů od nivelety stávající komunikace 1,60 m: | E19: 0 | M19: Průměrná hloubka výkopů od nivelety stávající komunikace 1,60 m:
C20: Řad "S1":111,00*0,80*1,60 | E20: 142.08 | M20: Řad "S1":111,00*0,80*1,60
C21: Průměrná hloubka výkopů od nivelety stávající komunikace 1,68 m: | E21: 0 | M21: Průměrná hloubka výkopů od nivelety stávající komunikace 1,68 m:
C22: Řad "S2":35,00*0,80*1,68 | E22: 47.04 | M22: Řad "S2":35,00*0,80*1,68
C23: Odpočet objemu konstrukce komunikace a chodníků: | E23: 0 | M23: Odpočet objemu konstrukce komunikace a chodníků:
C24: Řad "S1":-111,00*0,80*0,40 | E24: -35.52 | M24: Řad "S1":-111,00*0,80*0,40
C25: Řad "S2":-35,00*0,80*0,40 | E25: -11.2 | M25: Řad "S2":-35,00*0,80*0,40
C26: Konec provozního součtu | E26: 142.4 | M26: Konec provozního součtu
C27: V hornině tř. 3 - 50%:142,4000*0,5 | E27: 71.2 | M27: V hornině tř. 3 - 50%:142,4000*0,5
A28: 3 | B28: 132201219R00 | C28: Přípl.za lepivost,hloubení rýh 200cm,hor.3,STROJNĚ | D28: m3 | E28: 35.6 | G28: =E28*F28 -> 0 | H28: 0 | I28: =E28*H28 -> 0 | J28: 0 | K28: =E28*J28 -> 0 | O28: 2 | AA28: 1 | AB28: 1 | AC28: 1 | AZ28: 1 | BA28: =IF(AZ28=1,G28,0) -> 0 | BB28: =IF(AZ28=2,G28,0) -> 0 | BC28: =IF(AZ28=3,G28,0) -> 0 | BD28: =IF(AZ28=4,G28,0) -> 0 | BE28: =IF(AZ28=5,G28,0) -> 0 | CA28: 1 | CB28: 1
C29: Vodovodní řady "S1 a S2" PE D 90x8,2 mm: | E29: 0 | M29: Vodovodní řady "S1 a S2" PE D 90x8,2 mm:
C30: Výkopy : | E30: 0 | M30: Výkopy :
C31: V hornině tř. 3 - 50%:142,4000*0,5*0,5 | E31: 35.6 | M31: V hornině tř. 3 - 50%:142,4000*0,5*0,5
A32: 4 | B32: 132301212R00 | C32: Hloubení rýh š.do 200 cm hor.4 do 1000 m3, STROJNĚ | D32: m3 | E32: 71.2 | G32: =E32*F32 -> 0 | H32: 0 | I32: =E32*H32 -> 0 | J32: 0 | K32: =E32*J32 -> 0 | O32: 2 | AA32: 1 | AB32: 1 | AC32: 1 | AZ32: 1 | BA32: =IF(AZ32=1,G32,0) -> 0 | BB32: =IF(AZ32=2,G32,0) -> 0 | BC32: =IF(AZ32=3,G32,0) -> 0 | BD32: =IF(AZ32=4,G32,0) -> 0 | BE32: =IF(AZ32=5,G32,0) -> 0 | CA32: 1 | CB32: 1
C33: Položka obsahuje hloubení rýh traktorbagrem, naložení výkopku na dopravní prostředek pro svislé, nebo vodorovné přemístění, popř. přemístění výkopku do 3 m (po povrchu území), případné zajištění rypadel polštáři, udržování pracoviště a ochranu výkopiště proti stékání srážkové vody z okolního terénu i s jejím odvodněním, nebo odvedením, přesekání a odstranění kořenů ve výkopišti, odstranění napadávek, urovnání dna výkopu. | L33: Položka obsahuje hloubení rýh traktorbagrem, naložení výkopku na dopravní prostředek pro svislé, nebo vodorovné přemístění, popř. přemístění výkopku do 3 m (po povrchu území), případné zajištění rypadel polštáři, udržování pracoviště a ochranu výkopiště proti stékání srážkové vody z okolního terénu i s jejím odvodněním, nebo odvedením, přesekání a odstranění kořenů ve výkopišti, odstranění napadávek, urovnání dna výkopu. | O33: 3
C34: Vodovodní řady "S1 a S2" PE D 90x8,2 mm: | E34: 0 | M34: Vodovodní řady "S1 a S2" PE D 90x8,2 mm:
C35: Výkopy : | E35: 0 | M35: Výkopy :
C36: V hornině tř. 4 - 50%:142,4000*0,5 | E36: 71.2 | M36: V hornině tř. 4 - 50%:142,4000*0,5
A37: 5 | B37: 132301219R00 | C37: Přípl.za lepivost,hloubení rýh 200cm,hor.4,STROJNĚ | D37: m3 | E37: 35.6 | G37: =E37*F37 -> 0 | H37: 0 | I37: =E37*H37 -> 0 | J37: 0 | K37: =E37*J37 -> 0 | O37: 2 | AA37: 1 | AB37: 1 | AC37: 1 | AZ37: 1 | BA37: =IF(AZ37=1,G37,0) -> 0 | BB37: =IF(AZ37=2,G37,0) -> 0 | BC37: =IF(AZ37=3,G37,0) -> 0 | BD37: =IF(AZ37=4,G37,0) -> 0 | BE37: =IF(AZ37=5,G37,0) -> 0 | CA37: 1 | CB37: 1
C38: Vodovodní řady "S1 a S2" PE D 90x8,2 mm: | E38: 0 | M38: Vodovodní řady "S1 a S2" PE D 90x8,2 mm:
C39: Výkopy : | E39: 0 | M39: Výkopy :
C40: V hornině tř. 4 - 50%:142,4000*0,5*0,5 | E40: 35.6 | M40: V hornině tř. 4 - 50%:142,4000*0,5*0,5
A41: 6 | B41: 151101101R00 | C41: Pažení a rozepření stěn rýh - příložné - hl.do 2 m | D41: m2 | E41: 472.8 | G41: =E41*F41 -> 0 | H41: 0.00099 | I41: =E41*H41 -> 0.468072 | J41: 0 | K41: =E41*J41 -> 0 | O41: 2 | AA41: 1 | AB41: 1 | AC41: 1 | AZ41: 1 | BA41: =IF(AZ41=1,G41,0) -> 0 | BB41: =IF(AZ41=2,G41,0) -> 0 | BC41: =IF(AZ41=3,G41,0) -> 0 | BD41: =IF(AZ41=4,G41,0) -> 0 | BE41: =IF(AZ41=5,G41,0) -> 0 | CA41: 1 | CB41: 1
C42: Vodovodní řady "S1 a S2" PE D 90x8,2 mm: | E42: 0 | M42: Vodovodní řady "S1 a S2" PE D 90x8,2 mm:
C43: Výkopy : | E43: 0 | M43: Výkopy :
C44: Průměrná hloubka výkopů od nivelety stávající komunikace 1,60 m: | E44: 0 | M44: Průměrná hloubka výkopů od nivelety stávající komunikace 1,60 m:
C45: Řad "S1":111,00*1,60*2 | E45: 355.2 | M45: Řad "S1":111,00*1,60*2
C46: Průměrná hloubka výkopů od nivelety stávající komunikace 1,68 m: | E46: 0 | M46: Průměrná hloubka výkopů od nivelety stávající komunikace 1,68 m:
C47: Řad "S2":35,00*1,68*2 | E47: 117.6 | M47: Řad "S2":35,00*1,68*2
A48: 7 | B48: 151101111R00 | C48: Odstranění pažení stěn rýh - příložné - hl. do 2 m | D48: m2 | E48: 472.8 | G48: =E48*F48 -> 0 | H48: 0 | I48: =E48*H48 -> 0 | J48: 0 | K48: =E48*J48 -> 0 | O48: 2 | AA48: 1 | AB48: 1 | AC48: 1 | AZ48: 1 | BA48: =IF(AZ48=1,G48,0) -> 0 | BB48: =IF(AZ48=2,G48,0) -> 0 | BC48: =IF(AZ48=3,G48,0) -> 0 | BD48: =IF(AZ48=4,G48,0) -> 0 | BE48: =IF(AZ48=5,G48,0) -> 0 | CA48: 1 | CB48: 1
C49: Vodovodní řady "S1 a S2" PE D 90x8,2 mm: | E49: 0 | M49: Vodovodní řady "S1 a S2" PE D 90x8,2 mm:
C50: Výkopy : | E50: 0 | M50: Výkopy :
C51: Průměrná hloubka výkopů od nivelety stávající komunikace 1,60 m: | E51: 0 | M51: Průměrná hloubka výkopů od nivelety stávající komunikace 1,60 m:
C52: Řad "S1":111,00*1,60*2 | E52: 355.2 | M52: Řad "S1":111,00*1,60*2
C53: Průměrná hloubka výkopů od nivelety stávající komunikace 1,68 m: | E53: 0 | M53: Průměrná hloubka výkopů od nivelety stávající komunikace 1,68 m:
C54: Řad "S2":35,00*1,68*2 | E54: 117.6 | M54: Řad "S2":35,00*1,68*2
A55: 8 | B55: 162701105RSZ | C55: Vodorovné přemístění výkopku z hor.1-7 na skládku zhotovitele | D55: m3 | E55: 142.4 | G55: =E55*F55 -> 0 | H55: 0 | I55: =E55*H55 -> 0 | J55: 0 | K55: =E55*J55 -> 0 | O55: 2 | AA55: 1 | AB55: 1 | AC55: 1 | AZ55: 1 | BA55: =IF(AZ55=1,G55,0) -> 0 | BB55: =IF(AZ55=2,G55,0) -> 0 | BC55: =IF(AZ55=3,G55,0) -> 0 | BD55: =IF(AZ55=4,G55,0) -> 0 | BE55: =IF(AZ55=5,G55,0) -> 0 | CA55: 1 | CB55: 1
C56: Vodovodní řady "S1 a S2" PE D 90x8,2 mm: | E56: 0 | M56: Vodovodní řady "S1 a S2" PE D 90x8,2 mm:
C57: Výkopy : | E57: 0 | M57: Výkopy :
C58: V hornině tř. 3 - 4:142,4000 | E58: 142.4 | M58: V hornině tř. 3 - 4:142,4000
A59: 9 | B59: 174101101R00 | C59: Zásyp jam, rýh, šachet se zhutněním | D59: m3 | E59: 79.328 | G59: =E59*F59 -> 0 | H59: 0 | I59: =E59*H59 -> 0 | J59: 0 | K59: =E59*J59 -> 0 | O59: 2 | AA59: 1 | AB59: 1 | AC59: 1 | AZ59: 1 | BA59: =IF(AZ59=1,G59,0) -> 0 | BB59: =IF(AZ59=2,G59,0) -> 0 | BC59: =IF(AZ59=3,G59,0) -> 0 | BD59: =IF(AZ59=4,G59,0) -> 0 | BE59: =IF(AZ59=5,G59,0) -> 0 | CA59: 1 | CB59: 1
C60: Položka obsahuje strojní přemístění materiálu pro zásyp ze vzdálenosti do 10 m od okraje zásypu. | L60: Položka obsahuje strojní přemístění materiálu pro zásyp ze vzdálenosti do 10 m od okraje zásypu. | O60: 3
O61: 3
C62: Vodovodní řady "S1 a S2" PE D 90x8,2 mm: | E62: 0 | M62: Vodovodní řady "S1 a S2" PE D 90x8,2 mm:
C63: Zásyp ŠD fr. 0-63 mm:79,3280 | E63: 79.328 | M63: Zásyp ŠD fr. 0-63 mm:79,3280
C64: Začátek provozního součtu | E64: 0 | M64: Začátek provozního součtu
C65: Výkopy:142,4000 | E65: 142.4 | M65: Výkopy:142,4000
C66: Odpočet lože, potrubí a obsypů: | E66: 0 | M66: Odpočet lože, potrubí a obsypů:
C67: Řad "S1":-111,00*0,80*(0,15+0,09+0,30) | E67: -47.952 | M67: Řad "S1":-111,00*0,80*(0,15+0,09+0,30)
C68: Řad "S2":-35,00*0,80*(0,15+0,09+0,30) | E68: -15.12 | M68: Řad "S2":-35,00*0,80*(0,15+0,09+0,30)
C69: 0 | E69: 0 | M69: 0
C70: Konec provozního součtu | E70: 79.328 | M70: Konec provozního součtu
A71: 10 | B71: 175101101R00 | C71: Obsyp potrubí bez prohození sypaniny | D71: m3 | E71: 44.6232 | G71: =E71*F71 -> 0 | H71: 0 | I71: =E71*H71 -> 0 | J71: 0 | K71: =E71*J71 -> 0 | O71: 2 | AA71: 1 | AB71: 1 | AC71: 1 | AZ71: 1 | BA71: =IF(AZ71=1,G71,0) -> 0 | BB71: =IF(AZ71=2,G71,0) -> 0 | BC71: =IF(AZ71=3,G71,0) -> 0 | BD71: =IF(AZ71=4,G71,0) -> 0 | BE71: =IF(AZ71=5,G71,0) -> 0 | CA71: 1 | CB71: 1
C72: Vodovodní řady "S1 a S2" PE D 90x8,2 mm: | E72: 0 | M72: Vodovodní řady "S1 a S2" PE D 90x8,2 mm:
C73: Řad "S1":111,00*(0,80*(0,09+0,30)-0,045^2*Pi) | E73: 33.9258 | M73: Řad "S1":111,00*(0,80*(0,09+0,30)-0,045^2*Pi)
C74: Řad "S2":35,00*(0,80*(0,09+0,30)-0,045^2*Pi) | E74: 10.6973 | M74: Řad "S2":35,00*(0,80*(0,09+0,30)-0,045^2*Pi)
A75: 11 | B75: 199000002R00 | C75: Poplatek za skládku horniny 1- 7 č. dle katal. odpadů 17 05 04 | D75: m3 | E75: 142.4 | G75: =E75*F75 -> 0 | H75: 0 | I75: =E75*H75 -> 0 | J75: 0 | K75: =E75*J75 -> 0 | O75: 2 | AA75: 1 | AB75: 1 | AC75: 1 | AZ75: 1 | BA75: =IF(AZ75=1,G75,0) -> 0 | BB75: =IF(AZ75=2,G75,0) -> 0 | BC75: =IF(AZ75=3,G75,0) -> 0 | BD75: =IF(AZ75=4,G75,0) -> 0 | BE75: =IF(AZ75=5,G75,0) -> 0 | CA75: 1 | CB75: 1
C76: Vodovodní řady "S1 a S2" PE D 90x8,2 mm: | E76: 0 | M76: Vodovodní řady "S1 a S2" PE D 90x8,2 mm:
C77: Výkopy : | E77: 0 | M77: Výkopy :
C78: V hornině tř. 3 - 4:142,4000 | E78: 142.4 | M78: V hornině tř. 3 - 4:142,4000
A79: 12 | B79: 58337308.R | C79: Štěrkopísek frakce 0-2 tř.B | D79: t | E79: 88.922 | G79: =E79*F79 -> 0 | H79: 1 | I79: =E79*H79 -> 88.922 | K79: =E79*J79 -> 0 | O79: 2 | AA79: 3 | AB79: 1 | AC79: 58337308.R | AZ79: 1 | BA79: =IF(AZ79=1,G79,0) -> 0 | BB79: =IF(AZ79=2,G79,0) -> 0 | BC79: =IF(AZ79=3,G79,0) -> 0 | BD79: =IF(AZ79=4,G79,0) -> 0 | BE79: =IF(AZ79=5,G79,0) -> 0 | CA79: 3 | CB79: 1
C80: Vodovodní řady "S1 a S2" PE D 90x8,2 mm: | E80: 0 | M80: Vodovodní řady "S1 a S2" PE D 90x8,2 mm:
C81: Řad "S1":111,00*(0,80*(0,09+0,30)-0,045^2*Pi)*1,973*1,01 | E81: 67.6051 | M81: Řad "S1":111,00*(0,80*(0,09+0,30)-0,045^2*Pi)*1,973*1,01
C82: Řad "S2":35,00*(0,80*(0,09+0,30)-0,045^2*Pi)*1,973*1,01 | E82: 21.3169 | M82: Řad "S2":35,00*(0,80*(0,09+0,30)-0,045^2*Pi)*1,973*1,01
A83: 13 | B83: 58344197R | C83: Štěrkodrtě frakce 0-63 A | D83: t | E83: 150.0672 | G83: =E83*F83 -> 0 | H83: 1 | I83: =E83*H83 -> 150.0672 | K83: =E83*J83 -> 0 | O83: 2 | AA83: 3 | AB83: 1 | AC83: 58344197R | AZ83: 1 | BA83: =IF(AZ83=1,G83,0) -> 0 | BB83: =IF(AZ83=2,G83,0) -> 0 | BC83: =IF(AZ83=3,G83,0) -> 0 | BD83: =IF(AZ83=4,G83,0) -> 0 | BE83: =IF(AZ83=5,G83,0) -> 0 | CA83: 3 | CB83: 1
C84: Vodovodní řady "S1 a S2" PE D 90x8,2 mm: | E84: 0 | M84: Vodovodní řady "S1 a S2" PE D 90x8,2 mm:
C85: Zásyp ŠD fr. 0-63 mm:79,3280*1,873*1,01 | E85: 150.0672 | M85: Zásyp ŠD fr. 0-63 mm:79,3280*1,873*1,01
B86: Celkem za | C86: 1 Zemní práce | G86: =SUM(G7:G85) -> 0 | I86: =SUM(I7:I85) -> 239.457272 | K86: =SUM(K7:K85) -> 0 | O86: 4 | BA86: =SUM(BA7:BA85) -> 0 | BB86: =SUM(BB7:BB85) -> 0 | BC86: =SUM(BC7:BC85) -> 0 | BD86: =SUM(BD7:BD85) -> 0 | BE86: =SUM(BE7:BE85) -> 0
A87: Díl: | B87: 21 | C87: Úprava podloží a základ.spáry | O87: 1
A88: 14 | B88: 215901101RT5 | C88: Zhutnění podloží do 92% PS vibrační deskou | D88: m2 | E88: 116.8 | G88: =E88*F88 -> 0 | H88: 0 | I88: =E88*H88 -> 0 | J88: 0 | K88: =E88*J88 -> 0 | O88: 2 | AA88: 1 | AB88: 1 | AC88: 1 | AZ88: 1 | BA88: =IF(AZ88=1,G88,0) -> 0 | BB88: =IF(AZ88=2,G88,0) -> 0 | BC88: =IF(AZ88=3,G88,0) -> 0 | BD88: =IF(AZ88=4,G88,0) -> 0 | BE88: =IF(AZ88=5,G88,0) -> 0 | CA88: 1 | CB88: 1
C89: Vodovodní řady "S1 a S2" PE D 90x8,2 mm: | E89: 0 | M89: Vodovodní řady "S1 a S2" PE D 90x8,2 mm:
C90: Výkopy : | E90: 0 | M90: Výkopy :
C91: Řad "S1":111,00*0,80 | E91: 88.8 | M91: Řad "S1":111,00*0,80
C92: Řad "S2":35,00*0,80 | E92: 28 | M92: Řad "S2":35,00*0,80
B93: Celkem za | C93: 21 Úprava podloží a základ.spáry | G93: =SUM(G87:G92) -> 0 | I93: =SUM(I87:I92) -> 0 | K93: =SUM(K87:K92) -> 0 | O93: 4 | BA93: =SUM(BA87:BA92) -> 0 | BB93: =SUM(BB87:BB92) -> 0 | BC93: =SUM(BC87:BC92) -> 0 | BD93: =SUM(BD87:BD92) -> 0 | BE93: =SUM(BE87:BE92) -> 0
A94: Díl: | B94: 45 | C94: Podkladní a vedlejší konstrukce | O94: 1
A95: 15 | B95: 451572111R00 | C95: Lože pod potrubí z kameniva těženého 0 - 4 mm | D95: m3 | E95: 17.52 | G95: =E95*F95 -> 0 | H95: 0.43051 | I95: =E95*H95 -> 7.5425352 | J95: 0 | K95: =E95*J95 -> 0 | O95: 2 | AA95: 1 | AB95: 1 | AC95: 1 | AZ95: 1 | BA95: =IF(AZ95=1,G95,0) -> 0 | BB95: =IF(AZ95=2,G95,0) -> 0 | BC95: =IF(AZ95=3,G95,0) -> 0 | BD95: =IF(AZ95=4,G95,0) -> 0 | BE95: =IF(AZ95=5,G95,0) -> 0 | CA95: 1 | CB95: 1
C96: Vodovodní řady "S1 a S2" PE D 90x8,2 mm: | E96: 0 | M96: Vodovodní řady "S1 a S2" PE D 90x8,2 mm:
C97: Řad "S1":111,00*0,80*0,15 | E97: 13.32 | M97: Řad "S1":111,00*0,80*0,15
C98: Řad "S2":35,00*0,80*0,15 | E98: 4.2 | M98: Řad "S2":35,00*0,80*0,15
A99: 16 | B99: 452313141R00 | C99: Bloky pro potrubí z betonu C 16/20 vč. bednění | D99: m3 | E99: 0.292 | G99: =E99*F99 -> 0 | H99: 2.5 | I99: =E99*H99 -> 0.73 | J99: 0 | K99: =E99*J99 -> 0 | O99: 2 | AA99: 1 | AB99: 1 | AC99: 1 | AZ99: 1 | BA99: =IF(AZ99=1,G99,0) -> 0 | BB99: =IF(AZ99=2,G99,0) -> 0 | BC99: =IF(AZ99=3,G99,0) -> 0 | BD99: =IF(AZ99=4,G99,0) -> 0 | BE99: =IF(AZ99=5,G99,0) -> 0 | CA99: 1 | CB99: 1
B100: Celkem za | C100: 45 Podkladní a vedlejší konstrukce | G100: =SUM(G94:G99) -> 0 | I100: =SUM(I94:I99) -> 8.2725352 | K100: =SUM(K94:K99) -> 0 | O100: 4 | BA100: =SUM(BA94:BA99) -> 0 | BB100: =SUM(BB94:BB99) -> 0 | BC100: =SUM(BC94:BC99) -> 0 | BD100: =SUM(BD94:BD99) -> 0 | BE100: =SUM(BE94:BE99) -> 0
A101: Díl: | B101: 5 | C101: Komunikace | O101: 1
A102: 17 | B102: 572701119RRX | C102: Provizorní zásyp rýh kam. hrubě drceným nebo recyk s následným odstraněním a odvozem | D102: m3 | E102: 46.72 | G102: =E102*F102 -> 0 | H102: 1.4805 | I102: =E102*H102 -> 69.16896 | J102: 0 | K102: =E102*J102 -> 0 | O102: 2 | AA102: 1 | AB102: 1 | AC102: 1 | AZ102: 1 | BA102: =IF(AZ102=1,G102,0) -> 0 | BB102: =IF(AZ102=2,G102,0) -> 0 | BC102: =IF(AZ102=3,G102,0) -> 0 | BD102: =IF(AZ102=4,G102,0) -> 0 | BE102: =IF(AZ102=5,G102,0) -> 0 | CA102: 1 | CB102: 1
C103: Vodovodní řady "S1 a S2" PE D 90x8,2 mm: | E103: 0 | M103: Vodovodní řady "S1 a S2" PE D 90x8,2 mm:
C104: Provizorní zásypy stávající konstrukce komunikace a chodníků: | E104: 0 | M104: Provizorní zásypy stávající konstrukce komunikace a chodníků:
C105: Řad "S1":111,00*0,80*0,40 | E105: 35.52 | M105: Řad "S1":111,00*0,80*0,40
C106: Řad "S2":35,00*0,80*0,40 | E106: 11.2 | M106: Řad "S2":35,00*0,80*0,40
B107: Celkem za | C107: 5 Komunikace | G107: =SUM(G101:G106) -> 0 | I107: =SUM(I101:I106) -> 69.16896 | K107: =SUM(K101:K106) -> 0 | O107: 4 | BA107: =SUM(BA101:BA106) -> 0 | BB107: =SUM(BB101:BB106) -> 0 | BC107: =SUM(BC101:BC106) -> 0 | BD107: =SUM(BD101:BD106) -> 0 | BE107: =SUM(BE101:BE106) -> 0
A108: Díl: | B108: 8 | C108: Trubní vedení | O108: 1
A109: 18 | B109: 850245121R00 | C109: Výřez nebo výsek na potrubí DN 80 | D109: kus | E109: 1 | G109: =E109*F109 -> 0 | H109: 0 | I109: =E109*H109 -> 0 | J109: 0 | K109: =E109*J109 -> 0 | O109: 2 | AA109: 1 | AB109: 1 | AC109: 1 | AZ109: 1 | BA109: =IF(AZ109=1,G109,0) -> 0 | BB109: =IF(AZ109=2,G109,0) -> 0 | BC109: =IF(AZ109=3,G109,0) -> 0 | BD109: =IF(AZ109=4,G109,0) -> 0 | BE109: =IF(AZ109=5,G109,0) -> 0 | CA109: 1 | CB109: 1
C110: Položky výřezu nebo výseku na potrubí z trub litinových tlakových jsou určeny pro dva řezy nebo seky prováděné na potrubí dodatečně. V položkách jsou zakalkulovány náklady na | L110: Položky výřezu nebo výseku na potrubí z trub litinových tlakových jsou určeny pro dva řezy nebo seky prováděné na potrubí dodatečně. V položkách jsou zakalkulovány náklady na | O110: 3
C111: - ohlášení uzavírání vody | L111: - ohlášení uzavírání vody | O111: 3
C112: - uzavření a otevření šoupat | L112: - uzavření a otevření šoupat | O112: 3
C113: - vypuštění a napuštění vody | L113: - vypuštění a napuštění vody | O113: 3
C114: - odvzdušnění potrubí | L114: - odvzdušnění potrubí | O114: 3
C115: - strojní nebo ruční výřez potrubí | L115: - strojní nebo ruční výřez potrubí | O115: 3
C116: - nutné úpravy výkopu v prostoru provádění | L116: - nutné úpravy výkopu v prostoru provádění | O116: 3
C117: - demonzáž stávajícich tvarovek a armatur | L117: - demonzáž stávajícich tvarovek a armatur | O117: 3
C118: - montáž tvarovky | L118: - montáž tvarovky | O118: 3
C119: Vodovodní řady "S1 a S2" PE D 90x8,2 mm: | E119: 0 | M119: Vodovodní řady "S1 a S2" PE D 90x8,2 mm:
C120: Přerušení stáv. potrubí DN80:1 | E120: 1 | M120: Přerušení stáv. potrubí DN80:1
A121: 19 | B121: 857242121R00 | C121: Montáž tvarovek litin. jednoos.přír. výkop DN 80 včetně nerezových spoj. prvků a obandážování spoje | D121: kus | E121: 8 | G121: =E121*F121 -> 0 | H121: 0.00022 | I121: =E121*H121 -> 0.00176 | J121: 0 | K121: =E121*J121 -> 0 | O121: 2 | AA121: 1 | AB121: 1 | AC121: 1 | AZ121: 1 | BA121: =IF(AZ121=1,G121,0) -> 0 | BB121: =IF(AZ121=2,G121,0) -> 0 | BC121: =IF(AZ121=3,G121,0) -> 0 | BD121: =IF(AZ121=4,G121,0) -> 0 | BE121: =IF(AZ121=5,G121,0) -> 0 | CA121: 1 | CB121: 1
C122: Položka je určena pro montáž litinových tvarovek na potrubí litinovém tlakovém přírubovém jednoosých v otevřeném výkopu, v otevřeném kanálu nebo v šachtě. | L122: Položka je určena pro montáž litinových tvarovek na potrubí litinovém tlakovém přírubovém jednoosých v otevřeném výkopu, v otevřeném kanálu nebo v šachtě. | O122: 3
C123: Součástí položky je i dodávka nerezových spojovacích prvků (šrouby, podložky, matky) a kompletního obandážování spojů. | L123: Součástí položky je i dodávka nerezových spojovacích prvků (šrouby, podložky, matky) a kompletního obandážování spojů. | O123: 3
C124: Vodovodní řady "S1 a S2" PE D 90x8,2 mm: | E124: 0 | M124: Vodovodní řady "S1 a S2" PE D 90x8,2 mm:
C125: LN + TP D90/DN80:6 | E125: 6 | M125: LN + TP D90/DN80:6
C126: PPL DN80:2 | E126: 2 | M126: PPL DN80:2
A127: 20 | B127: 857244121R00 | C127: Montáž tvarovek litin. odboč. přír. výkop DN 80 včetně nerezových spoj. prvků a obandážování spoje | D127: kus | E127: 1 | G127: =E127*F127 -> 0 | H127: 0.00032 | I127: =E127*H127 -> 0.00032 | J127: 0 | K127: =E127*J127 -> 0 | O127: 2 | AA127: 1 | AB127: 1 | AC127: 1 | AZ127: 1 | BA127: =IF(AZ127=1,G127,0) -> 0 | BB127: =IF(AZ127=2,G127,0) -> 0 | BC127: =IF(AZ127=3,G127,0) -> 0 | BD127: =IF(AZ127=4,G127,0) -> 0 | BE127: =IF(AZ127=5,G127,0) -> 0 | CA127: 1 | CB127: 1
C128: Položka je určena pro montáž litinových tvarovek na potrubí litinovém tlakovém přírubovém, odbočných, v otevřeném výkopu, v otevřeném kanálu nebo v šachtě. | L128: Položka je určena pro montáž litinových tvarovek na potrubí litinovém tlakovém přírubovém, odbočných, v otevřeném výkopu, v otevřeném kanálu nebo v šachtě. | O128: 3
C129: Součástí položky je i dodávka nerezových spojovacích prvků (šrouby, podložky, matky) a kompletního obandážování spojů. | L129: Součástí položky je i dodávka nerezových spojovacích prvků (šrouby, podložky, matky) a kompletního obandážování spojů. | O129: 3
C130: Vodovodní řady "S1 a S2" PE D 90x8,2 mm: | E130: 0 | M130: Vodovodní řady "S1 a S2" PE D 90x8,2 mm:
C131: T DN80/80:1 | E131: 1 | M131: T DN80/80:1
A132: 21 | B132: 871241121R00 | C132: Montáž potrubí polyetylenového ve výkopu d 90 mm | D132: m | E132: 146 | G132: =E132*F132 -> 0 | H132: 0 | I132: =E132*H132 -> 0 | J132: 0 | K132: =E132*J132 -> 0 | O132: 2 | AA132: 1 | AB132: 1 | AC132: 1 | AZ132: 1 | BA132: =IF(AZ132=1,G132,0) -> 0 | BB132: =IF(AZ132=2,G132,0) -> 0 | BC132: =IF(AZ132=3,G132,0) -> 0 | BD132: =IF(AZ132=4,G132,0) -> 0 | BE132: =IF(AZ132=5,G132,0) -> 0 | CA132: 1 | CB132: 1
C133: V položce je uvažováno s jedním spojem na 6 m potrubí. | L133: V položce je uvažováno s jedním spojem na 6 m potrubí. | O133: 3
C134: Vodovodní řady "S1 a S2" PE D 90x8,2 mm: | E134: 0 | M134: Vodovodní řady "S1 a S2" PE D 90x8,2 mm:
C135: Řad "S1":111,00 | E135: 111 | M135: Řad "S1":111,00
C136: Řad "S2":35,00 | E136: 35 | M136: Řad "S2":35,00
A137: 22 | B137: 877242121R00 | C137: Přirážka za 1 spoj elektrotvarovky d 90 mm | D137: kus | E137: 29 | G137: =E137*F137 -> 0 | H137: 0 | I137: =E137*H137 -> 0 | J137: 0 | K137: =E137*J137 -> 0 | O137: 2 | AA137: 1 | AB137: 1 | AC137: 1 | AZ137: 1 | BA137: =IF(AZ137=1,G137,0) -> 0 | BB137: =IF(AZ137=2,G137,0) -> 0 | BC137: =IF(AZ137=3,G137,0) -> 0 | BD137: =IF(AZ137=4,G137,0) -> 0 | BE137: =IF(AZ137=5,G137,0) -> 0 | CA137: 1 | CB137: 1
C138: Vodovodní řady "S1 a S2" PE D 90x8,2 mm: | E138: 0 | M138: Vodovodní řady "S1 a S2" PE D 90x8,2 mm:
C139: Elektrospojka PE D90:26 | E139: 26 | M139: Elektrospojka PE D90:26
C140: Oblouk PE D90/30°:1 | E140: 1 | M140: Oblouk PE D90/30°:1
C141: Oblouk PE D90/11°:2 | E141: 2 | M141: Oblouk PE D90/11°:2
A142: 23 | B142: 891241111R00 | C142: Montáž vodovodních šoupátek ve výkopu DN 80 včetně nerezových spoj. prvků a obandážování spoje | D142: kus | E142: 3 | G142: =E142*F142 -> 0 | H142: 0.00022 | I142: =E142*H142 -> 0.00066 | J142: 0 | K142: =E142*J142 -> 0 | O142: 2 | AA142: 1 | AB142: 1 | AC142: 1 | AZ142: 1 | BA142: =IF(AZ142=1,G142,0) -> 0 | BB142: =IF(AZ142=2,G142,0) -> 0 | BC142: =IF(AZ142=3,G142,0) -> 0 | BD142: =IF(AZ142=4,G142,0) -> 0 | BE142: =IF(AZ142=5,G142,0) -> 0 | CA142: 1 | CB142: 1
C143: Položka je určena pro montáž vodovodních šoupátek v otevřeném výkopu nebo v šachtách s osazením zemní soupravy (bez poklopů). V položce jsou zakalkulovány i náklady na vytvoření otvorů ve stropech šachet pro prostup zemních souprav šoupátek. | L143: Položka je určena pro montáž vodovodních šoupátek v otevřeném výkopu nebo v šachtách s osazením zemní soupravy (bez poklopů). V položce jsou zakalkulovány i náklady na vytvoření otvorů ve stropech šachet pro prostup zemních souprav šoupátek. | O143: 3
C144: Součástí položky je i dodávka nerezových spojovacích prvků (šrouby, podložky, matky) a kompletního obandážování spojů. | L144: Součástí položky je i dodávka nerezových spojovacích prvků (šrouby, podložky, matky) a kompletního obandážování spojů. | O144: 3
C145: Vodovodní řady "S1 a S2" PE D 90x8,2 mm: | E145: 0 | M145: Vodovodní řady "S1 a S2" PE D 90x8,2 mm:
C146: Šoupě DN80:3 | E146: 3 | M146: Šoupě DN80:3
A147: 24 | B147: 891247111R00 | C147: Montáž hydrantů podzemních DN 80 včetně nerezových spoj. prvků a obandážování spoje | D147: kus | E147: 2 | G147: =E147*F147 -> 0 | H147: 0.00011 | I147: =E147*H147 -> 0.00022 | J147: 0 | K147: =E147*J147 -> 0 | O147: 2 | AA147: 1 | AB147: 1 | AC147: 1 | AZ147: 1 | BA147: =IF(AZ147=1,G147,0) -> 0 | BB147: =IF(AZ147=2,G147,0) -> 0 | BC147: =IF(AZ147=3,G147,0) -> 0 | BD147: =IF(AZ147=4,G147,0) -> 0 | BE147: =IF(AZ147=5,G147,0) -> 0 | CA147: 1 | CB147: 1
C148: Položka je určena pro montáž hydrantů podzemních (bez osazení poklopů) na potrubí. | L148: Položka je určena pro montáž hydrantů podzemních (bez osazení poklopů) na potrubí. | O148: 3
C149: Součástí položky je i dodávka nerezových spojovacích prvků (šrouby, podložky, matky) a kompletního obandážování spojů. | L149: Součástí položky je i dodávka nerezových spojovacích prvků (šrouby, podložky, matky) a kompletního obandážování spojů. | O149: 3
C150: Vodovodní řady "S1 a S2" PE D 90x8,2 mm: | E150: 0 | M150: Vodovodní řady "S1 a S2" PE D 90x8,2 mm:
C151: Hp DN80/1,5:2 | E151: 2 | M151: Hp DN80/1,5:2
A152: 25 | B152: 891249111R00 | C152: Montáž navrtávacích pasů DN 80 s ventilem | D152: kus | E152: 10 | G152: =E152*F152 -> 0 | H152: 0 | I152: =E152*H152 -> 0 | J152: 0 | K152: =E152*J152 -> 0 | O152: 2 | AA152: 1 | AB152: 1 | AC152: 1 | AZ152: 1 | BA152: =IF(AZ152=1,G152,0) -> 0 | BB152: =IF(AZ152=2,G152,0) -> 0 | BC152: =IF(AZ152=3,G152,0) -> 0 | BD152: =IF(AZ152=4,G152,0) -> 0 | BE152: =IF(AZ152=5,G152,0) -> 0 | CA152: 1 | CB152: 1
C153: Vodovodní řady "S1 a S2" PE D 90x8,2 mm: | E153: 0 | M153: Vodovodní řady "S1 a S2" PE D 90x8,2 mm:
C154: Pro VP - NP D90/32:10 | E154: 10 | M154: Pro VP - NP D90/32:10
A155: 26 | B155: 892241111R00 | C155: Tlaková zkouška vodovodního potrubí DN 80 včetně zajištění konců potrubí | D155: m | E155: 146 | G155: =E155*F155 -> 0 | H155: 0 | I155: =E155*H155 -> 0 | J155: 0 | K155: =E155*J155 -> 0 | O155: 2 | AA155: 1 | AB155: 1 | AC155: 1 | AZ155: 1 | BA155: =IF(AZ155=1,G155,0) -> 0 | BB155: =IF(AZ155=2,G155,0) -> 0 | BC155: =IF(AZ155=3,G155,0) -> 0 | BD155: =IF(AZ155=4,G155,0) -> 0 | BE155: =IF(AZ155=5,G155,0) -> 0 | CA155: 1 | CB155: 1
C156: V položce jsou započteny náklady na přísun, montáž, demontáž a odsun zkoušecího čerpadla, napuštění tlakovou vodou a dodání vody pro tlakovou zkoušku | L156: V položce jsou započteny náklady na přísun, montáž, demontáž a odsun zkoušecího čerpadla, napuštění tlakovou vodou a dodání vody pro tlakovou zkoušku | O156: 3
C157: Vodovodní řady "S1 a S2" PE D 90x8,2 mm: | E157: 0 | M157: Vodovodní řady "S1 a S2" PE D 90x8,2 mm:
C158: Řad "S1":111,00 | E158: 111 | M158: Řad "S1":111,00
C159: Řad "S2":35,00 | E159: 35 | M159: Řad "S2":35,00
A160: 27 | B160: 892273111R00 | C160: Desinfekce vodovodního potrubí DN 125 | D160: m | E160: 146 | G160: =E160*F160 -> 0 | H160: 0 | I160: =E160*H160 -> 0 | J160: 0 | K160: =E160*J160 -> 0 | O160: 2 | AA160: 1 | AB160: 1 | AC160: 1 | AZ160: 1 | BA160: =IF(AZ160=1,G160,0) -> 0 | BB160: =IF(AZ160=2,G160,0) -> 0 | BC160: =IF(AZ160=3,G160,0) -> 0 | BD160: =IF(AZ160=4,G160,0) -> 0 | BE160: =IF(AZ160=5,G160,0) -> 0 | CA160: 1 | CB160: 1
C161: V položce jsou zakalkulovány náklady na napuštění a vypuštění vody, dodání vody a desinfekčního prostředku a na bakteriologický rozbor vody. | L161: V položce jsou zakalkulovány náklady na napuštění a vypuštění vody, dodání vody a desinfekčního prostředku a na bakteriologický rozbor vody. | O161: 3
C162: Vodovodní řady "S1 a S2" PE D 90x8,2 mm: | E162: 0 | M162: Vodovodní řady "S1 a S2" PE D 90x8,2 mm:
C163: Řad "S1":111,00 | E163: 111 | M163: Řad "S1":111,00
C164: Řad "S2":35,00 | E164: 35 | M164: Řad "S2":35,00
A165: 28 | B165: 899401111R00 | C165: Osazení poklopů litinových ventilových | D165: kus | E165: 3 | G165: =E165*F165 -> 0 | H165: 0.06383 | I165: =E165*H165 -> 0.19149 | J165: 0 | K165: =E165*J165 -> 0 | O165: 2 | AA165: 1 | AB165: 1 | AC165: 1 | AZ165: 1 | BA165: =IF(AZ165=1,G165,0) -> 0 | BB165: =IF(AZ165=2,G165,0) -> 0 | BC165: =IF(AZ165=3,G165,0) -> 0 | BD165: =IF(AZ165=4,G165,0) -> 0 | BE165: =IF(AZ165=5,G165,0) -> 0 | CA165: 1 | CB165: 1
C166: Vodovodní řady "S1 a S2" PE D 90x8,2 mm: | E166: 0 | M166: Vodovodní řady "S1 a S2" PE D 90x8,2 mm:
C167: Pro VP:3 | E167: 3 | M167: Pro VP:3
A168: 29 | B168: 899401112R00 | C168: Osazení poklopů litinových šoupátkových | D168: kus | E168: 1 | G168: =E168*F168 -> 0 | H168: 0.12303 | I168: =E168*H168 -> 0.12303 | J168: 0 | K168: =E168*J168 -> 0 | O168: 2 | AA168: 1 | AB168: 1 | AC168: 1 | AZ168: 1 | BA168: =IF(AZ168=1,G168,0) -> 0 | BB168: =IF(AZ168=2,G168,0) -> 0 | BC168: =IF(AZ168=3,G168,0) -> 0 | BD168: =IF(AZ168=4,G168,0) -> 0 | BE168: =IF(AZ168=5,G168,0) -> 0 | CA168: 1 | CB168: 1
C169: Vodovodní řady "S1 a S2" PE D 90x8,2 mm: | E169: 0 | M169: Vodovodní řady "S1 a S2" PE D 90x8,2 mm:
C170: Pro Šoupě DN80:1 | E170: 1 | M170: Pro Šoupě DN80:1
A171: 30 | B171: 899401113R00 | C171: Osazení poklopů litinových hydrantových | D171: kus | E171: 1 | G171: =E171*F171 -> 0 | H171: 0.32906 | I171: =E171*H171 -> 0.32906 | J171: 0 | K171: =E171*J171 -> 0 | O171: 2 | AA171: 1 | AB171: 1 | AC171: 1 | AZ171: 1 | BA171: =IF(AZ171=1,G171,0) -> 0 | BB171: =IF(AZ171=2,G171,0) -> 0 | BC171: =IF(AZ171=3,G171,0) -> 0 | BD171: =IF(AZ171=4,G171,0) -> 0 | BE171: =IF(AZ171=5,G171,0) -> 0 | CA171: 1 | CB171: 1
C172: Vodovodní řady "S1 a S2" PE D 90x8,2 mm: | E172: 0 | M172: Vodovodní řady "S1 a S2" PE D 90x8,2 mm:
C173: Pro Hp DN80/1,5:1 | E173: 1 | M173: Pro Hp DN80/1,5:1
A174: 31 | B174: 899721112R00 | C174: Fólie výstražná z PVC bílá, šířka 30 cm | D174: m | E174: 146 | G174: =E174*F174 -> 0 | H174: 0 | I174: =E174*H174 -> 0 | J174: 0 | K174: =E174*J174 -> 0 | O174: 2 | AA174: 1 | AB174: 1 | AC174: 1 | AZ174: 1 | BA174: =IF(AZ174=1,G174,0) -> 0 | BB174: =IF(AZ174=2,G174,0) -> 0 | BC174: =IF(AZ174=3,G174,0) -> 0 | BD174: =IF(AZ174=4,G174,0) -> 0 | BE174: =IF(AZ174=5,G174,0) -> 0 | CA174: 1 | CB174: 1
C175: Vodovodní řady "S1 a S2" PE D 90x8,2 mm: | E175: 0 | M175: Vodovodní řady "S1 a S2" PE D 90x8,2 mm:
C176: Řad "S1":111,00 | E176: 111 | M176: Řad "S1":111,00
C177: Řad "S2":35,00 | E177: 35 | M177: Řad "S2":35,00
A178: 32 | B178: 899731114R00 | C178: Vodič signalizační CYY 6 mm2 | D178: m | E178: 202 | G178: =E178*F178 -> 0 | H178: 8e-05 | I178: =E178*H178 -> 0.01616 | J178: 0 | K178: =E178*J178 -> 0 | O178: 2 | AA178: 1 | AB178: 1 | AC178: 1 | AZ178: 1 | BA178: =IF(AZ178=1,G178,0) -> 0 | BB178: =IF(AZ178=2,G178,0) -> 0 | BC178: =IF(AZ178=3,G178,0) -> 0 | BD178: =IF(AZ178=4,G178,0) -> 0 | BE178: =IF(AZ178=5,G178,0) -> 0 | CA178: 1 | CB178: 1
C179: Součástí položky je zajištění proměření vodiče a výchozí zevize. | L179: Součástí položky je zajištění proměření vodiče a výchozí zevize. | O179: 3
C180: Vodovodní řady "S1 a S2" PE D 90x8,2 mm: | E180: 0 | M180: Vodovodní řady "S1 a S2" PE D 90x8,2 mm:
C181: Řad "S1":111,00 | E181: 111 | M181: Řad "S1":111,00
C182: Řad "S2":35,00 | E182: 35 | M182: Řad "S2":35,00
C183: Vyvedení: | E183: 0 | M183: Vyvedení:
C184: Pro Šoupě DN80:2,00*2*3 | E184: 12 | M184: Pro Šoupě DN80:2,00*2*3
C185: Pro Hp DN80/1,5:2,00*1*2 | E185: 4 | M185: Pro Hp DN80/1,5:2,00*1*2
C186: Pro VP:2,00*2*10 | E186: 40 | M186: Pro VP:2,00*2*10
A187: 33 | B187: 28613070.DAV.R | C187: T-kus odbočkový navrtávací DAV (KIT) D90/32 | D187: kus | E187: 10 | G187: =E187*F187 -> 0 | H187: 0 | I187: =E187*H187 -> 0 | K187: =E187*J187 -> 0 | O187: 2 | AA187: 3 | AB187: 1 | AC187: 28613070.DAV.R | AZ187: 1 | BA187: =IF(AZ187=1,G187,0) -> 0 | BB187: =IF(AZ187=2,G187,0) -> 0 | BC187: =IF(AZ187=3,G187,0) -> 0 | BD187: =IF(AZ187=4,G187,0) -> 0 | BE187: =IF(AZ187=5,G187,0) -> 0 | CA187: 3 | CB187: 1
C188: Vodovodní řady "S1 a S2" PE D 90x8,2 mm: | E188: 0 | M188: Vodovodní řady "S1 a S2" PE D 90x8,2 mm:
C189: Pro VP - NP D90/32:10 | E189: 10 | M189: Pro VP - NP D90/32:10
A190: 34 | B190: 28613090.EBS.R | C190: Zemní souprava EBS 1,1-1,8 pro DAV (KIT) | D190: kus | E190: 10 | G190: =E190*F190 -> 0 | H190: 0 | I190: =E190*H190 -> 0 | K190: =E190*J190 -> 0 | O190: 2 | AA190: 3 | AB190: 1 | AC190: 28613090.EBS.R | AZ190: 1 | BA190: =IF(AZ190=1,G190,0) -> 0 | BB190: =IF(AZ190=2,G190,0) -> 0 | BC190: =IF(AZ190=3,G190,0) -> 0 | BD190: =IF(AZ190=4,G190,0) -> 0 | BE190: =IF(AZ190=5,G190,0) -> 0 | CA190: 3 | CB190: 1
C191: Vodovodní řady "S1 a S2" PE D 90x8,2 mm: | E191: 0 | M191: Vodovodní řady "S1 a S2" PE D 90x8,2 mm:
C192: Pro VP - NP D90/32:10 | E192: 10 | M192: Pro VP - NP D90/32:10
A193: 35 | B193: 286134213.R | C193: Trubka tlaková PE 100 RC2 PE100 90x8,2 mm PN16 tyče L=12 m | D193: m | E193: 148.19 | G193: =E193*F193 -> 0 | H193: 0.00212 | I193: =E193*H193 -> 0.3141628 | K193: =E193*J193 -> 0 | O193: 2 | AA193: 3 | AB193: 1 | AC193: 286134213.R | AZ193: 1 | BA193: =IF(AZ193=1,G193,0) -> 0 | BB193: =IF(AZ193=2,G193,0) -> 0 | BC193: =IF(AZ193=3,G193,0) -> 0 | BD193: =IF(AZ193=4,G193,0) -> 0 | BE193: =IF(AZ193=5,G193,0) -> 0 | CA193: 3 | CB193: 1
C194: Vodovodní laková trubka PE 100 RC2 dle normy EN 12 201-2 | L194: Vodovodní PE tlaková trubka AQUALINE RC2 dle normy EN 12 201-2 | O194: 3
C195: (doprava pitné a užitkové vody) | L195: (doprava pitné a užitkové vody) | O195: 3
C196: Vodovodní řady "S1 a S2" PE D 90x8,2 mm: | E196: 0 | M196: Vodovodní řady "S1 a S2" PE D 90x8,2 mm:
C197: Řad "S1":111,00*1,015 | E197: 112.665 | M197: Řad "S1":111,00*1,015
C198: Řad "S2":35,00*1,015 | E198: 35.525 | M198: Řad "S2":35,00*1,015
A199: 36 | B199: 28653079.11.R | C199: Elektrospojka d 90 mm PE 100 SDR11 | D199: kus | E199: 26.39 | G199: =E199*F199 -> 0 | H199: 0.0013 | I199: =E199*H199 -> 0.034307 | K199: =E199*J199 -> 0 | O199: 2 | AA199: 3 | AB199: 1 | AC199: 28653079.11.R | AZ199: 1 | BA199: =IF(AZ199=1,G199,0) -> 0 | BB199: =IF(AZ199=2,G199,0) -> 0 | BC199: =IF(AZ199=3,G199,0) -> 0 | BD199: =IF(AZ199=4,G199,0) -> 0 | BE199: =IF(AZ199=5,G199,0) -> 0 | CA199: 3 | CB199: 1
C200: Vodovodní řady "S1 a S2" PE D 90x8,2 mm: | E200: 0 | M200: Vodovodní řady "S1 a S2" PE D 90x8,2 mm:
C201: Elektrospojka PE D90:26*1,015 | E201: 26.39 | M201: Elektrospojka PE D90:26*1,015
A202: 37 | B202: 28653438.A.R | C202: Oblouk 30° PE d 90 mm PE100 SDR11 | D202: kus | E202: 1.015 | G202: =E202*F202 -> 0 | H202: 0.00105 | I202: =E202*H202 -> 0.00106575 | K202: =E202*J202 -> 0 | O202: 2 | AA202: 3 | AB202: 1 | AC202: 28653438.A.R | AZ202: 1 | BA202: =IF(AZ202=1,G202,0) -> 0 | BB202: =IF(AZ202=2,G202,0) -> 0 | BC202: =IF(AZ202=3,G202,0) -> 0 | BD202: =IF(AZ202=4,G202,0) -> 0 | BE202: =IF(AZ202=5,G202,0) -> 0 | CA202: 3 | CB202: 1
... 140 more rows

Sheet 301 3542301.2 KL
A1: POLOŽKOVÝ ROZPOČET
A2: Rozpočet | C2: 3542/301.2 | D2: Vodovodní napojovací body | F2: JKSO | G2: 827.13
A4: Objekt | F4: SKP
A5: 301 | C5: Oprava vodovodní řadů S1 a S2 ul. Smetanova | F5: Měrná jednotka | G5: m
A6: Stavba | F6: Počet jednotek | G6: 0
A7: 3542 | C7: Semily - Obnova VH infrastruktury a komunikací | F7: Náklady na m.j. | G7: =IF(G6=0,,ROUND((F30+F32)/G6,1)) -> 0
A8: Projektant | F8: Typ rozpočtu
A9: Zpracovatel projektu
A10: Objednatel | C10: Vodohospodářské sdružení Turnov
A11: Dodavatel | C11: . | F11: Zakázkové číslo
A12: Rozpočtoval | F12: Počet listů
A13: ROZPOČTOVÉ NÁKLADY
A14: Základní rozpočtové náklady
B15: HSV celkem | C15: ='301 3542301.2 Rek'!E13 -> 0
A16: Z | B16: PSV celkem | C16: ='301 3542301.2 Rek'!F13 -> 0
A17: R | B17: M práce celkem | C17: ='301 3542301.2 Rek'!H13 -> 0
A18: N | B18: M dodávky celkem | C18: ='301 3542301.2 Rek'!G13 -> 0
A19: ZRN celkem | C19: =SUM(C15:C18) -> 0
A21: HZS | C21: ='301 3542301.2 Rek'!I13 -> 0
A22: ZRN+HZS | C22: =C19+C21 -> 0
A23: ZRN+ost.náklady+HZS | C23: =C22+G23 -> 0
A24: Vypracoval | D24: Za zhotovitele | F24: Za objednatele
A25: Jméno : | D25: Jméno : | F25: Jméno :
A26: Datum : | D26: Datum : | F26: Datum :
A28: Podpis : | D28: Podpis: | F28: Podpis:
A30: Základ pro DPH | C30: 21 | D30: % | F30: =C23-F32 -> 0
A31: DPH | C31: =C30 -> 21 | D31: % | F31: =ROUND(PRODUCT(F30,C31/100),0) -> 0
A32: Základ pro DPH | C32: 0 | D32: % | F32: 0
A33: DPH | C33: =C32 -> 0 | D33: % | F33: =ROUND(PRODUCT(F32,C33/100),0) -> 0
A34: CENA ZA OBJEKT CELKEM | F34: =ROUND(SUM(F30:F33),0) -> 0
A36: Poznámka :

Sheet 301 3542301.2 Rek
A1: Stavba : | C1: 3542 Semily - Obnova VH infrastruktury a komunikací | G1: Rozpočet : | H1: 3542/301.2
A2: Objekt : | C2: 301 Oprava vodovodní řadů S1 a S2 ul. Smetanova | G2: Vodovodní napojovací body
A4: REKAPITULACE STAVEBNÍCH DÍLŮ
B6: Stavební díl | E6: HSV | F6: PSV | G6: Dodávka | H6: Montáž | I6: HZS
A7: ='301 3542301.2 Pol'!B7 -> 1 | B7: ='301 3542301.2 Pol'!C7 -> Zemní práce | E7: ='301 3542301.2 Pol'!BA100 -> 0 | F7: ='301 3542301.2 Pol'!BB100 -> 0 | G7: ='301 3542301.2 Pol'!BC100 -> 0 | H7: ='301 3542301.2 Pol'!BD100 -> 0 | I7: ='301 3542301.2 Pol'!BE100 -> 0
A8: ='301 3542301.2 Pol'!B101 -> 21 | B8: ='301 3542301.2 Pol'!C101 -> Úprava podloží a základ.spáry | E8: ='301 3542301.2 Pol'!BA105 -> 0 | F8: ='301 3542301.2 Pol'!BB105 -> 0 | G8: ='301 3542301.2 Pol'!BC105 -> 0 | H8: ='301 3542301.2 Pol'!BD105 -> 0 | I8: ='301 3542301.2 Pol'!BE105 -> 0
A9: ='301 3542301.2 Pol'!B106 -> 45 | B9: ='301 3542301.2 Pol'!C106 -> Podkladní a vedlejší konstrukce | E9: ='301 3542301.2 Pol'!BA110 -> 0 | F9: ='301 3542301.2 Pol'!BB110 -> 0 | G9: ='301 3542301.2 Pol'!BC110 -> 0 | H9: ='301 3542301.2 Pol'!BD110 -> 0 | I9: ='301 3542301.2 Pol'!BE110 -> 0
A10: ='301 3542301.2 Pol'!B111 -> 5 | B10: ='301 3542301.2 Pol'!C111 -> Komunikace | E10: ='301 3542301.2 Pol'!BA120 -> 0 | F10: ='301 3542301.2 Pol'!BB120 -> 0 | G10: ='301 3542301.2 Pol'!BC120 -> 0 | H10: ='301 3542301.2 Pol'!BD120 -> 0 | I10: ='301 3542301.2 Pol'!BE120 -> 0
A11: ='301 3542301.2 Pol'!B121 -> 8 | B11: ='301 3542301.2 Pol'!C121 -> Trubní vedení | E11: ='301 3542301.2 Pol'!BA187 -> 0 | F11: ='301 3542301.2 Pol'!BB187 -> 0 | G11: ='301 3542301.2 Pol'!BC187 -> 0 | H11: ='301 3542301.2 Pol'!BD187 -> 0 | I11: ='301 3542301.2 Pol'!BE187 -> 0
A12: ='301 3542301.2 Pol'!B188 -> 99 | B12: ='301 3542301.2 Pol'!C188 -> Staveništní přesun hmot | E12: ='301 3542301.2 Pol'!BA191 -> 0 | F12: ='301 3542301.2 Pol'!BB191 -> 0 | G12: ='301 3542301.2 Pol'!BC191 -> 0 | H12: ='301 3542301.2 Pol'!BD191 -> 0 | I12: ='301 3542301.2 Pol'!BE191 -> 0
B13: CELKEM OBJEKT | E13: =SUM(E7:E12) -> 0 | F13: =SUM(F7:F12) -> 0 | G13: =SUM(G7:G12) -> 0 | H13: =SUM(H7:H12) -> 0 | I13: =SUM(I7:I12) -> 0

Sheet 301 3542301.2 Pol
A1: Položkový rozpočet
A3: Stavba : | C3: 3542 Semily - Obnova VH infrastruktury a komunikací | E3: Rozpočet: | F3: ='301 3542301.2 Rek'!H1 -> 3542/301.2
A4: Objekt : | C4: 301 Oprava vodovodní řadů S1 a S2 ul. Smetanova | E4: ='301 3542301.2 Rek'!G2 -> Vodovodní napojovací body
A6: P.č. | B6: Číslo položky | C6: Název položky | D6: MJ | E6: množství | F6: cena / MJ | G6: celkem (Kč) | H6: Jednotková hmotnost | I6: Celková hmotnost | J6: Jednotková dem.hmot. | K6: Celková dem.hmot.
A7: Díl: | B7: 1 | C7: Zemní práce | O7: 1
A8: 1 | B8: 121100002RAA | C8: Sejmutí ornice a uložení na deponii zpětný přesun, rozprostření v tl. 200 mm, osetí | D8: m3 | E8: 19.6 | G8: =E8*F8 -> 0 | H8: 0 | I8: =E8*H8 -> 0 | J8: 0 | K8: =E8*J8 -> 0 | O8: 2 | AA8: 1 | AB8: 1 | AC8: 1 | AZ8: 1 | BA8: =IF(AZ8=1,G8,0) -> 0 | BB8: =IF(AZ8=2,G8,0) -> 0 | BC8: =IF(AZ8=3,G8,0) -> 0 | BD8: =IF(AZ8=4,G8,0) -> 0 | BE8: =IF(AZ8=5,G8,0) -> 0 | CA8: 1 | CB8: 1
C9: Vodovodní přípojky z PE D 32x3,0 mm: | E9: 0 | M9: Vodovodní přípojky z PE D 32x3,0 mm:
C10: Pracodní prostor šířky 2,0 m: | E10: 0 | M10: Pracodní prostor šířky 2,0 m:
C11: VP (10 kusů):49,00*2,00*0,20 | E11: 19.6 | M11: VP (10 kusů):49,00*2,00*0,20
A12: 2 | B12: 130001101RRX | C12: Příplatek za ztížené hloubení v blízkosti vedení | D12: m3 | E12: 21.74 | G12: =E12*F12 -> 0 | H12: 0 | I12: =E12*H12 -> 0 | J12: 0 | K12: =E12*J12 -> 0 | O12: 2 | AA12: 1 | AB12: 1 | AC12: 1 | AZ12: 1 | BA12: =IF(AZ12=1,G12,0) -> 0 | BB12: =IF(AZ12=2,G12,0) -> 0 | BC12: =IF(AZ12=3,G12,0) -> 0 | BD12: =IF(AZ12=4,G12,0) -> 0 | BE12: =IF(AZ12=5,G12,0) -> 0 | CA12: 1 | CB12: 1
C13: Včetně případných nutných dokopávek a ručního výkopu podél sousedících inženýrských sítí. | L13: Včetně případných nutných dokopávek a ručního výkopu podél sousedících inženýrských sítí. | O13: 3
C14: Součástí položky je i dočasné zajištění stávajících inženýrských sítí v prostoru výkopů (potrubí, kabely a pod.) | L14: Součástí položky je i dočasné zajištění stávajících inženýrských sítí v prostoru výkopů (potrubí, kabely a pod.) | O14: 3
C15: Vodovodní přípojky z PE D 32x3,0 mm: | E15: 0 | M15: Vodovodní přípojky z PE D 32x3,0 mm:
C16: Průměrná hloubka výkopů 1,60 m: | E16: 0 | M16: Průměrná hloubka výkopů 1,60 m:
C17: Výkopy: | E17: 0 | M17: Výkopy:
C18: V hornině tř. 3 - 4 - 25%:86,9600*0,25 | E18: 21.74 | M18: V hornině tř. 3 - 4 - 25%:86,9600*0,25
A19: 3 | B19: 132201210R00 | C19: Hloubení rýh š.do 200 cm hor.3 do 50 m3,STROJNĚ | D19: m3 | E19: 43.48 | G19: =E19*F19 -> 0 | H19: 0 | I19: =E19*H19 -> 0 | J19: 0 | K19: =E19*J19 -> 0 | O19: 2 | AA19: 1 | AB19: 1 | AC19: 1 | AZ19: 1 | BA19: =IF(AZ19=1,G19,0) -> 0 | BB19: =IF(AZ19=2,G19,0) -> 0 | BC19: =IF(AZ19=3,G19,0) -> 0 | BD19: =IF(AZ19=4,G19,0) -> 0 | BE19: =IF(AZ19=5,G19,0) -> 0 | CA19: 1 | CB19: 1
C20: Položka obsahuje hloubení rýh traktorbagrem, naložení výkopku na dopravní prostředek pro svislé, nebo vodorovné přemístění, popř. přemístění výkopku do 3 m (po povrchu území), případné zajištění rypadel polštáři, udržování pracoviště a ochranu výkopiště proti stékání srážkové vody z okolního terénu i s jejím odvodněním, nebo odvedením, přesekání a odstranění kořenů ve výkopišti, odstranění napadávek, urovnání dna výkopu. | L20: Položka obsahuje hloubení rýh traktorbagrem, naložení výkopku na dopravní prostředek pro svislé, nebo vodorovné přemístění, popř. přemístění výkopku do 3 m (po povrchu území), případné zajištění rypadel polštáři, udržování pracoviště a ochranu výkopiště proti stékání srážkové vody z okolního terénu i s jejím odvodněním, nebo odvedením, přesekání a odstranění kořenů ve výkopišti, odstranění napadávek, urovnání dna výkopu. | O20: 3
C21: Vodovodní přípojky z PE D 32x3,0 mm: | E21: 0 | M21: Vodovodní přípojky z PE D 32x3,0 mm:
C22: Průměrná hloubka výkopů 1,60 m: | E22: 0 | M22: Průměrná hloubka výkopů 1,60 m:
C23: Výkopy: | E23: 0 | M23: Výkopy:
C24: Začátek provozního součtu | E24: 0 | M24: Začátek provozního součtu
C25: VP (10 kusů):90,00*0,70*1,60 | E25: 100.8 | M25: VP (10 kusů):90,00*0,70*1,60
C26: Výkopy pro VŠ:1,50*1,50*2,00*1 | E26: 4.5 | M26: Výkopy pro VŠ:1,50*1,50*2,00*1
C27: Odpočet objemu konstrukce komunikací a chodníků:-41,00*0,70*0,40 | E27: -11.48 | M27: Odpočet objemu konstrukce komunikací a chodníků:-41,00*0,70*0,40
C28: Odpočet objemu ornice:-(90,00-41,00)*0,70*0,20 | E28: -6.86 | M28: Odpočet objemu ornice:-(90,00-41,00)*0,70*0,20
C29: Konec provozního součtu | E29: 86.96 | M29: Konec provozního součtu
C30: V hornině tř. 3 - 50%:86,9600*0,5 | E30: 43.48 | M30: V hornině tř. 3 - 50%:86,9600*0,5
A31: 4 | B31: 132201219R00 | C31: Přípl.za lepivost,hloubení rýh 200cm,hor.3,STROJNĚ | D31: m3 | E31: 21.74 | G31: =E31*F31 -> 0 | H31: 0 | I31: =E31*H31 -> 0 | J31: 0 | K31: =E31*J31 -> 0 | O31: 2 | AA31: 1 | AB31: 1 | AC31: 1 | AZ31: 1 | BA31: =IF(AZ31=1,G31,0) -> 0 | BB31: =IF(AZ31=2,G31,0) -> 0 | BC31: =IF(AZ31=3,G31,0) -> 0 | BD31: =IF(AZ31=4,G31,0) -> 0 | BE31: =IF(AZ31=5,G31,0) -> 0 | CA31: 1 | CB31: 1
C32: Vodovodní přípojky z PE D 32x3,0 mm: | E32: 0 | M32: Vodovodní přípojky z PE D 32x3,0 mm:
C33: Průměrná hloubka výkopů 1,60 m: | E33: 0 | M33: Průměrná hloubka výkopů 1,60 m:
C34: Výkopy: | E34: 0 | M34: Výkopy:
C35: V hornině tř. 3 - 50%:86,9600*0,5*0,5 | E35: 21.74 | M35: V hornině tř. 3 - 50%:86,9600*0,5*0,5
A36: 5 | B36: 132301210R00 | C36: Hloubení rýh š.do 200 cm hor.4 do 50 m3, STROJNĚ | D36: m3 | E36: 43.48 | G36: =E36*F36 -> 0 | H36: 0 | I36: =E36*H36 -> 0 | J36: 0 | K36: =E36*J36 -> 0 | O36: 2 | AA36: 1 | AB36: 1 | AC36: 1 | AZ36: 1 | BA36: =IF(AZ36=1,G36,0) -> 0 | BB36: =IF(AZ36=2,G36,0) -> 0 | BC36: =IF(AZ36=3,G36,0) -> 0 | BD36: =IF(AZ36=4,G36,0) -> 0 | BE36: =IF(AZ36=5,G36,0) -> 0 | CA36: 1 | CB36: 1
C37: Položka obsahuje hloubení rýh traktorbagrem, naložení výkopku na dopravní prostředek pro svislé, nebo vodorovné přemístění, popř. přemístění výkopku do 3 m (po povrchu území), případné zajištění rypadel polštáři, udržování pracoviště a ochranu výkopiště proti stékání srážkové vody z okolního terénu i s jejím odvodněním, nebo odvedením, přesekání a odstranění kořenů ve výkopišti, odstranění napadávek, urovnání dna výkopu. | L37: Položka obsahuje hloubení rýh traktorbagrem, naložení výkopku na dopravní prostředek pro svislé, nebo vodorovné přemístění, popř. přemístění výkopku do 3 m (po povrchu území), případné zajištění rypadel polštáři, udržování pracoviště a ochranu výkopiště proti stékání srážkové vody z okolního terénu i s jejím odvodněním, nebo odvedením, přesekání a odstranění kořenů ve výkopišti, odstranění napadávek, urovnání dna výkopu. | O37: 3
C38: Vodovodní přípojky z PE D 32x3,0 mm: | E38: 0 | M38: Vodovodní přípojky z PE D 32x3,0 mm:
C39: Průměrná hloubka výkopů 1,60 m: | E39: 0 | M39: Průměrná hloubka výkopů 1,60 m:
C40: Výkopy: | E40: 0 | M40: Výkopy:
C41: V hornině tř. 4 - 50%:86,9600*0,5 | E41: 43.48 | M41: V hornině tř. 4 - 50%:86,9600*0,5
A42: 6 | B42: 132301219R00 | C42: Přípl.za lepivost,hloubení rýh 200cm,hor.4,STROJNĚ | D42: m3 | E42: 21.74 | G42: =E42*F42 -> 0 | H42: 0 | I42: =E42*H42 -> 0 | J42: 0 | K42: =E42*J42 -> 0 | O42: 2 | AA42: 1 | AB42: 1 | AC42: 1 | AZ42: 1 | BA42: =IF(AZ42=1,G42,0) -> 0 | BB42: =IF(AZ42=2,G42,0) -> 0 | BC42: =IF(AZ42=3,G42,0) -> 0 | BD42: =IF(AZ42=4,G42,0) -> 0 | BE42: =IF(AZ42=5,G42,0) -> 0 | CA42: 1 | CB42: 1
C43: Vodovodní přípojky z PE D 32x3,0 mm: | E43: 0 | M43: Vodovodní přípojky z PE D 32x3,0 mm:
C44: Průměrná hloubka výkopů 1,60 m: | E44: 0 | M44: Průměrná hloubka výkopů 1,60 m:
C45: Výkopy: | E45: 0 | M45: Výkopy:
C46: V hornině tř. 4 - 50%:86,9600*0,5*0,5 | E46: 21.74 | M46: V hornině tř. 4 - 50%:86,9600*0,5*0,5
A47: 7 | B47: 132901219RRX | C47: Přípl.za provedení podchodu pod základem oplocení Ručně do objemu 0,75 m3 | D47: kus | E47: 4 | G47: =E47*F47 -> 0 | H47: 0 | I47: =E47*H47 -> 0 | J47: 0 | K47: =E47*J47 -> 0 | O47: 2 | AA47: 1 | AB47: 1 | AC47: 1 | AZ47: 1 | BA47: =IF(AZ47=1,G47,0) -> 0 | BB47: =IF(AZ47=2,G47,0) -> 0 | BC47: =IF(AZ47=3,G47,0) -> 0 | BD47: =IF(AZ47=4,G47,0) -> 0 | BE47: =IF(AZ47=5,G47,0) -> 0 | CA47: 1 | CB47: 1
C48: Vodovodní přípojky z PE D 32x3,0 mm: | E48: 0 | M48: Vodovodní přípojky z PE D 32x3,0 mm:
C49: VP (10 kusů) - Podchod pod základy oplocení:4 | E49: 4 | M49: VP (10 kusů) - Podchod pod základy oplocení:4
A50: 8 | B50: 151101101R00 | C50: Pažení a rozepření stěn rýh - příložné - hl.do 2 m | D50: m2 | E50: 288 | G50: =E50*F50 -> 0 | H50: 0.00099 | I50: =E50*H50 -> 0.28512 | J50: 0 | K50: =E50*J50 -> 0 | O50: 2 | AA50: 1 | AB50: 1 | AC50: 1 | AZ50: 1 | BA50: =IF(AZ50=1,G50,0) -> 0 | BB50: =IF(AZ50=2,G50,0) -> 0 | BC50: =IF(AZ50=3,G50,0) -> 0 | BD50: =IF(AZ50=4,G50,0) -> 0 | BE50: =IF(AZ50=5,G50,0) -> 0 | CA50: 1 | CB50: 1
C51: Vodovodní přípojky z PE D 32x3,0 mm: | E51: 0 | M51: Vodovodní přípojky z PE D 32x3,0 mm:
C52: Průměrná hloubka výkopů 1,60 m: | E52: 0 | M52: Průměrná hloubka výkopů 1,60 m:
C53: Výkopy: | E53: 0 | M53: Výkopy:
C54: VP (10 kusů):90,00*1,60*2 | E54: 288 | M54: VP (10 kusů):90,00*1,60*2
A55: 9 | B55: 151101111R00 | C55: Odstranění pažení stěn rýh - příložné - hl. do 2 m | D55: m2 | E55: 288 | G55: =E55*F55 -> 0 | H55: 0 | I55: =E55*H55 -> 0 | J55: 0 | K55: =E55*J55 -> 0 | O55: 2 | AA55: 1 | AB55: 1 | AC55: 1 | AZ55: 1 | BA55: =IF(AZ55=1,G55,0) -> 0 | BB55: =IF(AZ55=2,G55,0) -> 0 | BC55: =IF(AZ55=3,G55,0) -> 0 | BD55: =IF(AZ55=4,G55,0) -> 0 | BE55: =IF(AZ55=5,G55,0) -> 0 | CA55: 1 | CB55: 1
C56: Vodovodní přípojky z PE D 32x3,0 mm: | E56: 0 | M56: Vodovodní přípojky z PE D 32x3,0 mm:
C57: Průměrná hloubka výkopů 1,60 m: | E57: 0 | M57: Průměrná hloubka výkopů 1,60 m:
C58: Výkopy: | E58: 0 | M58: Výkopy:
C59: VP (10 kusů):90,00*1,60*2 | E59: 288 | M59: VP (10 kusů):90,00*1,60*2
A60: 10 | B60: 162701105RSZ | C60: Vodorovné přemístění výkopku z hor.1-7 na skládku zhotovitele | D60: m3 | E60: 52.5226 | G60: =E60*F60 -> 0 | H60: 0 | I60: =E60*H60 -> 0 | J60: 0 | K60: =E60*J60 -> 0 | O60: 2 | AA60: 1 | AB60: 1 | AC60: 1 | AZ60: 1 | BA60: =IF(AZ60=1,G60,0) -> 0 | BB60: =IF(AZ60=2,G60,0) -> 0 | BC60: =IF(AZ60=3,G60,0) -> 0 | BD60: =IF(AZ60=4,G60,0) -> 0 | BE60: =IF(AZ60=5,G60,0) -> 0 | CA60: 1 | CB60: 1
C61: Vodovodní přípojky z PE D 32x3,0 mm: | E61: 0 | M61: Vodovodní přípojky z PE D 32x3,0 mm:
C62: Průměrná hloubka výkopů 1,60 m: | E62: 0 | M62: Průměrná hloubka výkopů 1,60 m:
C63: Výkopy:86,9600 | E63: 86.96 | M63: Výkopy:86,9600
C64: Odpočet objemu zásypů zeminoi:-34,4374 | E64: -34.4374 | M64: Odpočet objemu zásypů zeminoi:-34,4374
A65: 11 | B65: 174101101R00 | C65: Zásyp jam, rýh, šachet se zhutněním | D65: m3 | E65: 55.044 | G65: =E65*F65 -> 0 | H65: 0 | I65: =E65*H65 -> 0 | J65: 0 | K65: =E65*J65 -> 0 | O65: 2 | AA65: 1 | AB65: 1 | AC65: 1 | AZ65: 1 | BA65: =IF(AZ65=1,G65,0) -> 0 | BB65: =IF(AZ65=2,G65,0) -> 0 | BC65: =IF(AZ65=3,G65,0) -> 0 | BD65: =IF(AZ65=4,G65,0) -> 0 | BE65: =IF(AZ65=5,G65,0) -> 0 | CA65: 1 | CB65: 1
C66: Položka obsahuje strojní přemístění materiálu pro zásyp ze vzdálenosti do 10 m od okraje zásypu. | L66: Položka obsahuje strojní přemístění materiálu pro zásyp ze vzdálenosti do 10 m od okraje zásypu. | O66: 3
O67: 3
C68: Vodovodní přípojky z PE D 32x3,0 mm: | E68: 0 | M68: Vodovodní přípojky z PE D 32x3,0 mm:
C69: Zásypy ŠD fr. 0-63 mm:20,6066 | E69: 20.6066 | M69: Zásypy ŠD fr. 0-63 mm:20,6066
C70: Začátek provozního součtu | E70: 0 | M70: Začátek provozního součtu
C71: Výkopy: | E71: 0 | M71: Výkopy:
C72: VP (10 kusů):41,00*0,70*1,60 | E72: 45.92 | M72: VP (10 kusů):41,00*0,70*1,60
C73: Odpočet objemu konstrukce komunikací a chodníků:-41,00*0,70*0,40 | E73: -11.48 | M73: Odpočet objemu konstrukce komunikací a chodníků:-41,00*0,70*0,40
C74: Odpočet objemu lože, potrubí a obsypů:-41,00*0,70*(0,15+0,032+0,30) | E74: -13.8334 | M74: Odpočet objemu lože, potrubí a obsypů:-41,00*0,70*(0,15+0,032+0,30)
C75: Konec provozního součtu | E75: 20.6066 | M75: Konec provozního součtu
C76: Zásypy zeminou:34,4374 | E76: 34.4374 | M76: Zásypy zeminou:34,4374
C77: Začátek provozního součtu | E77: 0 | M77: Začátek provozního součtu
C78: Výkopy: | E78: 0 | M78: Výkopy:
C79: VP (10 kusů):49,00*0,70*1,60 | E79: 54.88 | M79: VP (10 kusů):49,00*0,70*1,60
C80: VŠ:1,50*1,50*2,00*1 | E80: 4.5 | M80: VŠ:1,50*1,50*2,00*1
C81: Odpočez objemu ornice:-49,00*0,70*0,20 | E81: -6.86 | M81: Odpočez objemu ornice:-49,00*0,70*0,20
C82: Odpočet objemu lože, potrubí a obsypů:-49,00*0,70*(0,15+0,032+0,30) | E82: -16.5326 | M82: Odpočet objemu lože, potrubí a obsypů:-49,00*0,70*(0,15+0,032+0,30)
C83: Odpočet objemu VŠ:-1,5500 | E83: -1.55 | M83: Odpočet objemu VŠ:-1,5500
C84: 0 | E84: 0 | M84: 0
C85: Konec provozního součtu | E85: 34.4374 | M85: Konec provozního součtu
A86: 12 | B86: 175101101R00 | C86: Obsyp potrubí bez prohození sypaniny | D86: m3 | E86: 20.8436 | G86: =E86*F86 -> 0 | H86: 0 | I86: =E86*H86 -> 0 | J86: 0 | K86: =E86*J86 -> 0 | O86: 2 | AA86: 1 | AB86: 1 | AC86: 1 | AZ86: 1 | BA86: =IF(AZ86=1,G86,0) -> 0 | BB86: =IF(AZ86=2,G86,0) -> 0 | BC86: =IF(AZ86=3,G86,0) -> 0 | BD86: =IF(AZ86=4,G86,0) -> 0 | BE86: =IF(AZ86=5,G86,0) -> 0 | CA86: 1 | CB86: 1
C87: Vodovodní přípojky z PE D 32x3,0 mm: | E87: 0 | M87: Vodovodní přípojky z PE D 32x3,0 mm:
C88: VP (10 kusů):90,00*(0,70*(0,032+0,30)-0,016^2*Pi) | E88: 20.8436 | M88: VP (10 kusů):90,00*(0,70*(0,032+0,30)-0,016^2*Pi)
A89: 13 | B89: 199000002R00 | C89: Poplatek za skládku horniny 1- 7 č. dle katal. odpadů 17 05 04 | D89: m3 | E89: 52.5226 | G89: =E89*F89 -> 0 | H89: 0 | I89: =E89*H89 -> 0 | J89: 0 | K89: =E89*J89 -> 0 | O89: 2 | AA89: 1 | AB89: 1 | AC89: 1 | AZ89: 1 | BA89: =IF(AZ89=1,G89,0) -> 0 | BB89: =IF(AZ89=2,G89,0) -> 0 | BC89: =IF(AZ89=3,G89,0) -> 0 | BD89: =IF(AZ89=4,G89,0) -> 0 | BE89: =IF(AZ89=5,G89,0) -> 0 | CA89: 1 | CB89: 1
C90: Vodovodní přípojky z PE D 32x3,0 mm: | E90: 0 | M90: Vodovodní přípojky z PE D 32x3,0 mm:
C91: Průměrná hloubka výkopů 1,60 m: | E91: 0 | M91: Průměrná hloubka výkopů 1,60 m:
C92: Výkopy:86,9600 | E92: 86.96 | M92: Výkopy:86,9600
C93: Odpočet objemu zásypů zeminoi:-34,4374 | E93: -34.4374 | M93: Odpočet objemu zásypů zeminoi:-34,4374
A94: 14 | B94: 58337308.R | C94: Štěrkopísek frakce 0-2 tř.B | D94: t | E94: 41.5357 | G94: =E94*F94 -> 0 | H94: 1 | I94: =E94*H94 -> 41.5357 | K94: =E94*J94 -> 0 | O94: 2 | AA94: 3 | AB94: 1 | AC94: 58337308.R | AZ94: 1 | BA94: =IF(AZ94=1,G94,0) -> 0 | BB94: =IF(AZ94=2,G94,0) -> 0 | BC94: =IF(AZ94=3,G94,0) -> 0 | BD94: =IF(AZ94=4,G94,0) -> 0 | BE94: =IF(AZ94=5,G94,0) -> 0 | CA94: 3 | CB94: 1
C95: Vodovodní přípojky z PE D 32x3,0 mm: | E95: 0 | M95: Vodovodní přípojky z PE D 32x3,0 mm:
C96: VP (10 kusů):90,00*(0,70*(0,032+0,30)-0,016^2*Pi)*1,973*1,01 | E96: 41.5357 | M96: VP (10 kusů):90,00*(0,70*(0,032+0,30)-0,016^2*Pi)*1,973*1,01
A97: 15 | B97: 58344197R | C97: Štěrkodrtě frakce 0-63 A | D97: t | E97: 38.9821 | G97: =E97*F97 -> 0 | H97: 1 | I97: =E97*H97 -> 38.9821 | K97: =E97*J97 -> 0 | O97: 2 | AA97: 3 | AB97: 1 | AC97: 58344197R | AZ97: 1 | BA97: =IF(AZ97=1,G97,0) -> 0 | BB97: =IF(AZ97=2,G97,0) -> 0 | BC97: =IF(AZ97=3,G97,0) -> 0 | BD97: =IF(AZ97=4,G97,0) -> 0 | BE97: =IF(AZ97=5,G97,0) -> 0 | CA97: 3 | CB97: 1
C98: Vodovodní přípojky z PE D 32x3,0 mm: | E98: 0 | M98: Vodovodní přípojky z PE D 32x3,0 mm:
C99: Zásypy ŠD fr. 0-63 mm:20,6066*1,873*1,01 | E99: 38.9821 | M99: Zásypy ŠD fr. 0-63 mm:20,6066*1,873*1,01
B100: Celkem za | C100: 1 Zemní práce | G100: =SUM(G7:G99) -> 0 | I100: =SUM(I7:I99) -> 80.80292 | K100: =SUM(K7:K99) -> 0 | O100: 4 | BA100: =SUM(BA7:BA99) -> 0 | BB100: =SUM(BB7:BB99) -> 0 | BC100: =SUM(BC7:BC99) -> 0 | BD100: =SUM(BD7:BD99) -> 0 | BE100: =SUM(BE7:BE99) -> 0
A101: Díl: | B101: 21 | C101: Úprava podloží a základ.spáry | O101: 1
A102: 16 | B102: 215901101RT5 | C102: Zhutnění podloží do 92% PS vibrační deskou | D102: m2 | E102: 63 | G102: =E102*F102 -> 0 | H102: 0 | I102: =E102*H102 -> 0 | J102: 0 | K102: =E102*J102 -> 0 | O102: 2 | AA102: 1 | AB102: 1 | AC102: 1 | AZ102: 1 | BA102: =IF(AZ102=1,G102,0) -> 0 | BB102: =IF(AZ102=2,G102,0) -> 0 | BC102: =IF(AZ102=3,G102,0) -> 0 | BD102: =IF(AZ102=4,G102,0) -> 0 | BE102: =IF(AZ102=5,G102,0) -> 0 | CA102: 1 | CB102: 1
C103: Vodovodní přípojky z PE D 32x3,0 mm: | E103: 0 | M103: Vodovodní přípojky z PE D 32x3,0 mm:
C104: VP (10 kusů):90,00*0,70 | E104: 63 | M104: VP (10 kusů):90,00*0,70
B105: Celkem za | C105: 21 Úprava podloží a základ.spáry | G105: =SUM(G101:G104) -> 0 | I105: =SUM(I101:I104) -> 0 | K105: =SUM(K101:K104) -> 0 | O105: 4 | BA105: =SUM(BA101:BA104) -> 0 | BB105: =SUM(BB101:BB104) -> 0 | BC105: =SUM(BC101:BC104) -> 0 | BD105: =SUM(BD101:BD104) -> 0 | BE105: =SUM(BE101:BE104) -> 0
A106: Díl: | B106: 45 | C106: Podkladní a vedlejší konstrukce | O106: 1
A107: 17 | B107: 451572111R00 | C107: Lože pod potrubí z kameniva těženého 0 - 4 mm | D107: m3 | E107: 9.45 | G107: =E107*F107 -> 0 | H107: 0.43051 | I107: =E107*H107 -> 4.0683195 | J107: 0 | K107: =E107*J107 -> 0 | O107: 2 | AA107: 1 | AB107: 1 | AC107: 1 | AZ107: 1 | BA107: =IF(AZ107=1,G107,0) -> 0 | BB107: =IF(AZ107=2,G107,0) -> 0 | BC107: =IF(AZ107=3,G107,0) -> 0 | BD107: =IF(AZ107=4,G107,0) -> 0 | BE107: =IF(AZ107=5,G107,0) -> 0 | CA107: 1 | CB107: 1
C108: Vodovodní přípojky z PE D 32x3,0 mm: | E108: 0 | M108: Vodovodní přípojky z PE D 32x3,0 mm:
C109: VP (10 kusů):90,00*0,70*0,15 | E109: 9.45 | M109: VP (10 kusů):90,00*0,70*0,15
B110: Celkem za | C110: 45 Podkladní a vedlejší konstrukce | G110: =SUM(G106:G109) -> 0 | I110: =SUM(I106:I109) -> 4.0683195 | K110: =SUM(K106:K109) -> 0 | O110: 4 | BA110: =SUM(BA106:BA109) -> 0 | BB110: =SUM(BB106:BB109) -> 0 | BC110: =SUM(BC106:BC109) -> 0 | BD110: =SUM(BD106:BD109) -> 0 | BE110: =SUM(BE106:BE109) -> 0
A111: Díl: | B111: 5 | C111: Komunikace | O111: 1
A112: 18 | B112: 572701119RRX | C112: Provizorní zásyp rýh kam. hrubě drceným nebo recyk s následným odstraněním a odvozem | D112: m3 | E112: 11.48 | G112: =E112*F112 -> 0 | H112: 1.4805 | I112: =E112*H112 -> 16.99614 | J112: 0 | K112: =E112*J112 -> 0 | O112: 2 | AA112: 1 | AB112: 1 | AC112: 1 | AZ112: 1 | BA112: =IF(AZ112=1,G112,0) -> 0 | BB112: =IF(AZ112=2,G112,0) -> 0 | BC112: =IF(AZ112=3,G112,0) -> 0 | BD112: =IF(AZ112=4,G112,0) -> 0 | BE112: =IF(AZ112=5,G112,0) -> 0 | CA112: 1 | CB112: 1
C113: Vodovodní přípojky z PE D 32x3,0 mm: | E113: 0 | M113: Vodovodní přípojky z PE D 32x3,0 mm:
C114: Provizorní zásypy konstrukce komunikací a chodníků:41,00*0,70*0,40 | E114: 11.48 | M114: Provizorní zásypy konstrukce komunikací a chodníků:41,00*0,70*0,40
A115: 19 | B115: 591050020RAX | C115: Komunikace z dlažby zámkové, podklad štěrkopísek dlažba přírodní tloušťka 8 cm | D115: m2 | E115: 20 | G115: =E115*F115 -> 0 | H115: 1.1893 | I115: =E115*H115 -> 23.786 | J115: 0 | K115: =E115*J115 -> 0 | O115: 2 | AA115: 1 | AB115: 1 | AC115: 1 | AZ115: 1 | BA115: =IF(AZ115=1,G115,0) -> 0 | BB115: =IF(AZ115=2,G115,0) -> 0 | BC115: =IF(AZ115=3,G115,0) -> 0 | BD115: =IF(AZ115=4,G115,0) -> 0 | BE115: =IF(AZ115=5,G115,0) -> 0 | CA115: 1 | CB115: 1
C116: Rozebrání části stávající plochy ZD včetně podkladní konstrukce a uvedení plochy do původního stavu za použití původní ZD. | L116: Rozebrání části stávající plochy ZD včetně podkladní konstrukce a uvedení plochy do původního stavu za použití původní ZD. | O116: 3
C117: Vodovodní přípojky z PE D 32x3,0 mm: | E117: 0 | M117: Vodovodní přípojky z PE D 32x3,0 mm:
C118: VP (1 kus) u čp. 681:8,00*2,00 | E118: 16 | M118: VP (1 kus) u čp. 681:8,00*2,00
C119: VP (1 kus) u čp. 716:2,00*2,00 | E119: 4 | M119: VP (1 kus) u čp. 716:2,00*2,00
B120: Celkem za | C120: 5 Komunikace | G120: =SUM(G111:G119) -> 0 | I120: =SUM(I111:I119) -> 40.78214 | K120: =SUM(K111:K119) -> 0 | O120: 4 | BA120: =SUM(BA111:BA119) -> 0 | BB120: =SUM(BB111:BB119) -> 0 | BC120: =SUM(BC111:BC119) -> 0 | BD120: =SUM(BD111:BD119) -> 0 | BE120: =SUM(BE111:BE119) -> 0
A121: Díl: | B121: 8 | C121: Trubní vedení | O121: 1
A122: 20 | B122: 230191035RRX | C122: Uložení chráničky ve výkopu PVC DN150 | D122: m | E122: 2 | G122: =E122*F122 -> 0 | H122: 0 | I122: =E122*H122 -> 0 | J122: 0 | K122: =E122*J122 -> 0 | O122: 2 | AA122: 1 | AB122: 9 | AC122: 9 | AZ122: 1 | BA122: =IF(AZ122=1,G122,0) -> 0 | BB122: =IF(AZ122=2,G122,0) -> 0 | BC122: =IF(AZ122=3,G122,0) -> 0 | BD122: =IF(AZ122=4,G122,0) -> 0 | BE122: =IF(AZ122=5,G122,0) -> 0 | CA122: 1 | CB122: 9
C123: Vodovodní přípojky z PE D 32x3,0 mm: | E123: 0 | M123: Vodovodní přípojky z PE D 32x3,0 mm:
C124: VP (1 kus) pro čp. 590:1,00 | E124: 1 | M124: VP (1 kus) pro čp. 590:1,00
C125: VP (1 kus) pro čp. 561:1,00 | E125: 1 | M125: VP (1 kus) pro čp. 561:1,00
A126: 21 | B126: 230193006R00 | C126: Nasunutí potrubní sekce do chráničky DN 200 | D126: m | E126: 2 | G126: =E126*F126 -> 0 | H126: 0.02712 | I126: =E126*H126 -> 0.05424 | J126: 0 | K126: =E126*J126 -> 0 | O126: 2 | AA126: 1 | AB126: 9 | AC126: 9 | AZ126: 1 | BA126: =IF(AZ126=1,G126,0) -> 0 | BB126: =IF(AZ126=2,G126,0) -> 0 | BC126: =IF(AZ126=3,G126,0) -> 0 | BD126: =IF(AZ126=4,G126,0) -> 0 | BE126: =IF(AZ126=5,G126,0) -> 0 | CA126: 1 | CB126: 9
C127: Vodovodní přípojky z PE D 32x3,0 mm: | E127: 0 | M127: Vodovodní přípojky z PE D 32x3,0 mm:
C128: VP (1 kus) pro čp. 590:1,00 | E128: 1 | M128: VP (1 kus) pro čp. 590:1,00
C129: VP (1 kus) pro čp. 561:1,00 | E129: 1 | M129: VP (1 kus) pro čp. 561:1,00
A130: 22 | B130: 871161121R00 | C130: Montáž trubek polyetylenových ve výkopu d 32 mm | D130: m | E130: 90 | G130: =E130*F130 -> 0 | H130: 0 | I130: =E130*H130 -> 0 | J130: 0 | K130: =E130*J130 -> 0 | O130: 2 | AA130: 1 | AB130: 1 | AC130: 1 | AZ130: 1 | BA130: =IF(AZ130=1,G130,0) -> 0 | BB130: =IF(AZ130=2,G130,0) -> 0 | BC130: =IF(AZ130=3,G130,0) -> 0 | BD130: =IF(AZ130=4,G130,0) -> 0 | BE130: =IF(AZ130=5,G130,0) -> 0 | CA130: 1 | CB130: 1
C131: V položce je uvažováno použití svitku. | L131: V položce je uvažováno použití svitku. | O131: 3
C132: Vodovodní přípojky z PE D 32x3,0 mm: | E132: 0 | M132: Vodovodní přípojky z PE D 32x3,0 mm:
C133: VP (10 kusů):90,00 | E133: 90 | M133: VP (10 kusů):90,00
A134: 23 | B134: 877162121R00 | C134: Přirážka za 1 spoj elektrotvarovky d 32 mm | D134: kus | E134: 10 | G134: =E134*F134 -> 0 | H134: 0 | I134: =E134*H134 -> 0 | J134: 0 | K134: =E134*J134 -> 0 | O134: 2 | AA134: 1 | AB134: 1 | AC134: 1 | AZ134: 1 | BA134: =IF(AZ134=1,G134,0) -> 0 | BB134: =IF(AZ134=2,G134,0) -> 0 | BC134: =IF(AZ134=3,G134,0) -> 0 | BD134: =IF(AZ134=4,G134,0) -> 0 | BE134: =IF(AZ134=5,G134,0) -> 0 | CA134: 1 | CB134: 1
C135: Vodovodní přípojky z PE D 32x3,0 mm: | E135: 0 | M135: Vodovodní přípojky z PE D 32x3,0 mm:
C136: VP (10 kusů): | E136: 0 | M136: VP (10 kusů):
C137: Elektrospojka PE D32:10 | E137: 10 | M137: Elektrospojka PE D32:10
A138: 24 | B138: 891183439RRX | C138: Přepojení potrubí PE na přípojkách D 32 včetně dodávky přepojovací tvarovky | D138: kus | E138: 10 | G138: =E138*F138 -> 0 | H138: 0.00146 | I138: =E138*H138 -> 0.0146 | J138: 0 | K138: =E138*J138 -> 0 | O138: 2 | AA138: 1 | AB138: 1 | AC138: 1 | AZ138: 1 | BA138: =IF(AZ138=1,G138,0) -> 0 | BB138: =IF(AZ138=2,G138,0) -> 0 | BC138: =IF(AZ138=3,G138,0) -> 0 | BD138: =IF(AZ138=4,G138,0) -> 0 | BE138: =IF(AZ138=5,G138,0) -> 0 | CA138: 1 | CB138: 1
C139: Položka obsahuje přerušení stávajícího potrubí, montáž a dodávku příslušné tvarovky pro propojení stávajícího potrubí (PE, ocel a pod.) s novým potrubím (PE D 32x3,0 mm) přípojky D 32 | L139: Položka obsahuje přerušení stávajícího potrubí, montáž a dodávku příslušné tvarovky pro propojení stávajícího potrubí (PE, ocel a pod.) s novým potrubím (PE D 32x3,0 mm) přípojky D 32 | O139: 3
C140: Vodovodní přípojky z PE D 32x3,0 mm: | E140: 0 | M140: Vodovodní přípojky z PE D 32x3,0 mm:
C141: VP (10 kusů) - Přepojení na stávající potrubí:10 | E141: 10 | M141: VP (10 kusů) - Přepojení na stávající potrubí:10
A142: 25 | B142: 892233111R00 | C142: Desinfekce vodovodního potrubí DN 70 | D142: m | E142: 90 | G142: =E142*F142 -> 0 | H142: 0 | I142: =E142*H142 -> 0 | J142: 0 | K142: =E142*J142 -> 0 | O142: 2 | AA142: 1 | AB142: 1 | AC142: 1 | AZ142: 1 | BA142: =IF(AZ142=1,G142,0) -> 0 | BB142: =IF(AZ142=2,G142,0) -> 0 | BC142: =IF(AZ142=3,G142,0) -> 0 | BD142: =IF(AZ142=4,G142,0) -> 0 | BE142: =IF(AZ142=5,G142,0) -> 0 | CA142: 1 | CB142: 1
C143: V položce jsou zakalkulovány náklady na napuštění a vypuštění vody, dodání vody a desinfekčního prostředku a na bakteriologický rozbor vody. | L143: V položce jsou zakalkulovány náklady na napuštění a vypuštění vody, dodání vody a desinfekčního prostředku a na bakteriologický rozbor vody. | O143: 3
C144: Vodovodní přípojky z PE D 32x3,0 mm: | E144: 0 | M144: Vodovodní přípojky z PE D 32x3,0 mm:
C145: VP (10 kusů):90,00 | E145: 90 | M145: VP (10 kusů):90,00
A146: 26 | B146: 892241111R00 | C146: Tlaková zkouška vodovodního potrubí DN 80 včetně zajištění konců potrubí | D146: m | E146: 90 | G146: =E146*F146 -> 0 | H146: 0 | I146: =E146*H146 -> 0 | J146: 0 | K146: =E146*J146 -> 0 | O146: 2 | AA146: 1 | AB146: 1 | AC146: 1 | AZ146: 1 | BA146: =IF(AZ146=1,G146,0) -> 0 | BB146: =IF(AZ146=2,G146,0) -> 0 | BC146: =IF(AZ146=3,G146,0) -> 0 | BD146: =IF(AZ146=4,G146,0) -> 0 | BE146: =IF(AZ146=5,G146,0) -> 0 | CA146: 1 | CB146: 1
C147: V položce jsou započteny náklady na přísun, montáž, demontáž a odsun zkoušecího čerpadla, napuštění tlakovou vodou a dodání vody pro tlakovou zkoušku | L147: V položce jsou započteny náklady na přísun, montáž, demontáž a odsun zkoušecího čerpadla, napuštění tlakovou vodou a dodání vody pro tlakovou zkoušku | O147: 3
C148: Vodovodní přípojky z PE D 32x3,0 mm: | E148: 0 | M148: Vodovodní přípojky z PE D 32x3,0 mm:
C149: VP (10 kusů):90,00 | E149: 90 | M149: VP (10 kusů):90,00
A150: 27 | B150: 893151111RT3 | C150: Šachta vodoměrná plastová samonosné kruhová s dodávkou šachty D1000x1500 mm z polypropylenu | D150: kus | E150: 1 | G150: =E150*F150 -> 0 | H150: 0.11066 | I150: =E150*H150 -> 0.11066 | J150: 0 | K150: =E150*J150 -> 0 | O150: 2 | AA150: 1 | AB150: 1 | AC150: 1 | AZ150: 1 | BA150: =IF(AZ150=1,G150,0) -> 0 | BB150: =IF(AZ150=2,G150,0) -> 0 | BC150: =IF(AZ150=3,G150,0) -> 0 | BD150: =IF(AZ150=4,G150,0) -> 0 | BE150: =IF(AZ150=5,G150,0) -> 0 | CA150: 1 | CB150: 1
C151: Včetně zřízení podkladního betonu v tl. 15 cm vyztuženého sítí 8/100/100. | L151: Včetně zřízení podkladního betonu v tl. 15 cm vyztuženého sítí 8/100/100. | O151: 3
C152: Vodovodní přípojky z PE D 32x3,0 mm: | E152: 0 | M152: Vodovodní přípojky z PE D 32x3,0 mm:
C153: VP (1 kus) pro čp. 590:1 | E153: 1 | M153: VP (1 kus) pro čp. 590:1
A154: 28 | B154: 893151200RRX | C154: Montáž vodoměrné sestavy pro PE D 32x3,0 mm včetně dodávky VS dle standartů provozovatele | D154: kus | E154: 1 | G154: =E154*F154 -> 0 | H154: 0.50215 | I154: =E154*H154 -> 0.50215 | J154: 0 | K154: =E154*J154 -> 0 | O154: 2 | AA154: 1 | AB154: 1 | AC154: 1 | AZ154: 1 | BA154: =IF(AZ154=1,G154,0) -> 0 | BB154: =IF(AZ154=2,G154,0) -> 0 | BC154: =IF(AZ154=3,G154,0) -> 0 | BD154: =IF(AZ154=4,G154,0) -> 0 | BE154: =IF(AZ154=5,G154,0) -> 0 | CA154: 1 | CB154: 1
C155: Provedení sestavy VS dle projektové dokumentace a standartů investora a provozovatele do jedné vodoměrné šachty | L155: Provedení sestavy VS dle projektové dokumentace a standartů investora a provozovatele do jedné vodoměrné šachty | O155: 3
C156: Součástí VS je i osazení vodoměru přemístěného ze stávajícího objemtu a propojení přípojky v objektu. | L156: Součástí VS je i osazení vodoměru přemístěného ze stávajícího objemtu a propojení přípojky v objektu. | O156: 3
C157: Vodovodní přípojky z PE D 32x3,0 mm: | E157: 0 | M157: Vodovodní přípojky z PE D 32x3,0 mm:
C158: VP (1 kus) pro čp. 590:1 | E158: 1 | M158: VP (1 kus) pro čp. 590:1
A159: 29 | B159: 899721112R00 | C159: Fólie výstražná z PVC bílá, šířka 30 cm | D159: m | E159: 90 | G159: =E159*F159 -> 0 | H159: 0 | I159: =E159*H159 -> 0 | J159: 0 | K159: =E159*J159 -> 0 | O159: 2 | AA159: 1 | AB159: 1 | AC159: 1 | AZ159: 1 | BA159: =IF(AZ159=1,G159,0) -> 0 | BB159: =IF(AZ159=2,G159,0) -> 0 | BC159: =IF(AZ159=3,G159,0) -> 0 | BD159: =IF(AZ159=4,G159,0) -> 0 | BE159: =IF(AZ159=5,G159,0) -> 0 | CA159: 1 | CB159: 1
C160: Vodovodní přípojky z PE D 32x3,0 mm: | E160: 0 | M160: Vodovodní přípojky z PE D 32x3,0 mm:
C161: VP (10 kusů):90,00 | E161: 90 | M161: VP (10 kusů):90,00
A162: 30 | B162: 899731114R00 | C162: Vodič signalizační CYY 6 mm2 | D162: m | E162: 180 | G162: =E162*F162 -> 0 | H162: 8e-05 | I162: =E162*H162 -> 0.0144 | J162: 0 | K162: =E162*J162 -> 0 | O162: 2 | AA162: 1 | AB162: 1 | AC162: 1 | AZ162: 1 | BA162: =IF(AZ162=1,G162,0) -> 0 | BB162: =IF(AZ162=2,G162,0) -> 0 | BC162: =IF(AZ162=3,G162,0) -> 0 | BD162: =IF(AZ162=4,G162,0) -> 0 | BE162: =IF(AZ162=5,G162,0) -> 0 | CA162: 1 | CB162: 1
C163: Součástí položky je zajištění proměření vodiče a výchozí zevize. | L163: Součástí položky je zajištění proměření vodiče a výchozí zevize. | O163: 3
C164: Vodovodní přípojky z PE D 32x3,0 mm: | E164: 0 | M164: Vodovodní přípojky z PE D 32x3,0 mm:
C165: VP (10 kusů):90,00*2 | E165: 180 | M165: VP (10 kusů):90,00*2
A166: 31 | B166: 286111904.R | C166: Trubka kanalizační PVC QUANTUM SN 12 DN 160 | D166: m | E166: 2.06 | G166: =E166*F166 -> 0 | H166: 0.0051 | I166: =E166*H166 -> 0.010506 | K166: =E166*J166 -> 0 | O166: 2 | AA166: 3 | AB166: 1 | AC166: 286111904.R | AZ166: 1 | BA166: =IF(AZ166=1,G166,0) -> 0 | BB166: =IF(AZ166=2,G166,0) -> 0 | BC166: =IF(AZ166=3,G166,0) -> 0 | BD166: =IF(AZ166=4,G166,0) -> 0 | BE166: =IF(AZ166=5,G166,0) -> 0 | CA166: 3 | CB166: 1
C167: Jedná se o plnostěnné kanalizační trubky DN 150 – DN 400, SN 12 kN/m2 , zvenčí i zevnitř hladké. Jsou opatřeny hrdlem, v němž je vložen vysoce elastický jazýčkový kroužek. konce trubek (dříků) jsou opatřeny zkosením pod úhlem 15°. Způsob použití trubek je „U“ dle normy ČSN EN 1401-1, tj. mimo budovy. Spolehlivá funkce těsnění je jištěna výztužným kroužkem z elastomeru. Je tak zamezeno vypad-nutí nebo vytlačení kroužku při manipulaci a montáži. Tento systém zaručuje při správné montáži | L167: Jedná se o plnostěnné kanalizační trubky DN 150 – DN 400, SN 12 kN/m2 , zvenčí i zevnitř hladké. Jsou opatřeny hrdlem, v němž je vložen vysoce elastický jazýčkový kroužek. konce trubek (dříků) jsou opatřeny zkosením pod úhlem 15°. Způsob použití trubek je „U“ dle normy ČSN EN 1401-1, tj. mimo budovy. Spolehlivá funkce těsnění je jištěna výztužným kroužkem z elastomeru. Je tak zamezeno vypad-nutí nebo vytlačení kroužku při manipulaci a montáži. Tento systém zaručuje při správné montáži | O167: 3
C168: dokonalou těsnost do výšky vodního sloupce 5 metrů. | L168: dokonalou těsnost do výšky vodního sloupce 5 metrů. | O168: 3
O169: 3
C170: Teplota při pokládce: min. -10 °C, max. 50 °C | L170: Teplota při pokládce: min. -10 °C, max. 50 °C | O170: 3
C171: Max. teplota média: trvale do 40 °C, krátkodobě do 60 °C | L171: Max. teplota média: trvale do 40 °C, krátkodobě do 60 °C | O171: 3
C172: Orientační výška krytí: min. 0,5 m, max. 10 m | L172: Orientační výška krytí: min. 0,5 m, max. 10 m | O172: 3
C173: Max. rychlost média: 12 m/s | L173: Max. rychlost média: 12 m/s | O173: 3
C174: Vodovodní přípojky z PE D 32x3,0 mm: | E174: 0 | M174: Vodovodní přípojky z PE D 32x3,0 mm:
C175: VP (1 kus) pro čp. 590:1,00*1,03 | E175: 1.03 | M175: VP (1 kus) pro čp. 590:1,00*1,03
C176: VP (1 kus) pro čp. 561:1,00*1,03 | E176: 1.03 | M176: VP (1 kus) pro čp. 561:1,00*1,03
A177: 32 | B177: 286134204.R | C177: Trubka tlaková PE 100 RC2 PE100 32x3,0 mm PN16 | D177: m | E177: 91.35 | G177: =E177*F177 -> 0 | H177: 0.001 | I177: =E177*H177 -> 0.09135 | K177: =E177*J177 -> 0 | O177: 2 | AA177: 3 | AB177: 1 | AC177: 286134204.R | AZ177: 1 | BA177: =IF(AZ177=1,G177,0) -> 0 | BB177: =IF(AZ177=2,G177,0) -> 0 | BC177: =IF(AZ177=3,G177,0) -> 0 | BD177: =IF(AZ177=4,G177,0) -> 0 | BE177: =IF(AZ177=5,G177,0) -> 0 | CA177: 3 | CB177: 1
C178: Vodovodní tlaková trubka PE 100 RC2 dle normy EN 12 201-2 | L178: Vodovodní PE tlaková trubka AQUALINE RC2 dle normy EN 12 201-2 | O178: 3
C179: (doprava pitné a užitkové vody) | L179: (doprava pitné a užitkové vody) | O179: 3
C180: Návin 100 m | L180: Návin 100 m | O180: 3
C181: Vodovodní přípojky z PE D 32x3,0 mm: | E181: 0 | M181: Vodovodní přípojky z PE D 32x3,0 mm:
C182: VP (10 kusů):90,00*1,015 | E182: 91.35 | M182: VP (10 kusů):90,00*1,015
A183: 33 | B183: 28653075.05.R | C183: Elektrospojka d 32 mm PE 100 SDR11 | D183: kus | E183: 10.15 | G183: =E183*F183 -> 0 | H183: 0.0013 | I183: =E183*H183 -> 0.013195 | K183: =E183*J183 -> 0 | O183: 2 | AA183: 3 | AB183: 1 | AC183: 28653075.05.R | AZ183: 1 | BA183: =IF(AZ183=1,G183,0) -> 0 | BB183: =IF(AZ183=2,G183,0) -> 0 | BC183: =IF(AZ183=3,G183,0) -> 0 | BD183: =IF(AZ183=4,G183,0) -> 0 | BE183: =IF(AZ183=5,G183,0) -> 0 | CA183: 3 | CB183: 1
C184: Vodovodní přípojky z PE D 32x3,0 mm: | E184: 0 | M184: Vodovodní přípojky z PE D 32x3,0 mm:
C185: VP (10 kusů): | E185: 0 | M185: VP (10 kusů):
C186: Elektrospojka PE D32:10*1,015 | E186: 10.15 | M186: Elektrospojka PE D32:10*1,015
B187: Celkem za | C187: 8 Trubní vedení | G187: =SUM(G121:G186) -> 0 | I187: =SUM(I121:I186) -> 0.811101 | K187: =SUM(K121:K186) -> 0 | O187: 4 | BA187: =SUM(BA121:BA186) -> 0 | BB187: =SUM(BB121:BB186) -> 0 | BC187: =SUM(BC121:BC186) -> 0 | BD187: =SUM(BD121:BD186) -> 0 | BE187: =SUM(BE121:BE186) -> 0
A188: Díl: | B188: 99 | C188: Staveništní přesun hmot | O188: 1
A189: 34 | B189: 998276101RXX | C189: Přesun hmot, trubní vedení plastová, otevř. výkop pro celý rozsah objektu | D189: t | E189: 126.4644805 | G189: =E189*F189 -> 0 | H189: 0 | I189: =E189*H189 -> 0 | K189: =E189*J189 -> 0 | O189: 2 | AA189: 7 | AB189: 1 | AC189: 2 | AZ189: 1 | BA189: =IF(AZ189=1,G189,0) -> 0 | BB189: =IF(AZ189=2,G189,0) -> 0 | BC189: =IF(AZ189=3,G189,0) -> 0 | BD189: =IF(AZ189=4,G189,0) -> 0 | BE189: =IF(AZ189=5,G189,0) -> 0 | CA189: 7 | CB189: 1
C190: Staveništní doprava pro celý rozsah objektu - doprava zmeziskládek vybudovaného zařízení staveniště zhotovitele na jednotlivé části staveniště. | L190: Staveništní doprava pro celý rozsah objektu - doprava zmeziskládek vybudovaného zařízení staveniště zhotovitele na jednotlivé části staveniště. | O190: 3
B191: Celkem za | C191: 99 Staveništní přesun hmot | G191: =SUM(G188:G190) -> 0 | I191: =SUM(I188:I190) -> 0 | K191: =SUM(K188:K190) -> 0 | O191: 4 | BA191: =SUM(BA188:BA190) -> 0 | BB191: =SUM(BB188:BB190) -> 0 | BC191: =SUM(BC188:BC190) -> 0 | BD191: =SUM(BD188:BD190) -> 0 | BE191: =SUM(BE188:BE190) -> 0

Sheet 302 3542302.1 KL
A1: POLOŽKOVÝ ROZPOČET
A2: Rozpočet | C2: 3542/302.1 | D2: Oprava gravitační stoky S | F2: JKSO
A4: Objekt | F4: SKP
A5: 302 | C5: Oprava gravitační stoky S ul. Smetanova | F5: Měrná jednotka
A6: Stavba | F6: Počet jednotek | G6: 0
A7: 3542 | C7: Semily - Obnova VH infrastruktury a komunikací | F7: Náklady na m.j. | G7: =IF(G6=0,,ROUND((F30+F32)/G6,1)) -> 0
A8: Projektant | F8: Typ rozpočtu
A9: Zpracovatel projektu
A10: Objednatel | C10: Vodohospodářské sdružení Turnov
A11: Dodavatel | C11: . | F11: Zakázkové číslo
A12: Rozpočtoval | F12: Počet listů
A13: ROZPOČTOVÉ NÁKLADY
A14: Základní rozpočtové náklady
B15: HSV celkem | C15: ='302 3542302.1 Rek'!E14 -> 0
A16: Z | B16: PSV celkem | C16: ='302 3542302.1 Rek'!F14 -> 0
A17: R | B17: M práce celkem | C17: ='302 3542302.1 Rek'!H14 -> 0
A18: N | B18: M dodávky celkem | C18: ='302 3542302.1 Rek'!G14 -> 0
A19: ZRN celkem | C19: =SUM(C15:C18) -> 0
A21: HZS | C21: ='302 3542302.1 Rek'!I14 -> 0
A22: ZRN+HZS | C22: =C19+C21 -> 0
A23: ZRN+ost.náklady+HZS | C23: =C22+G23 -> 0
A24: Vypracoval | D24: Za zhotovitele | F24: Za objednatele
A25: Jméno : | D25: Jméno : | F25: Jméno :
A26: Datum : | D26: Datum : | F26: Datum :
A28: Podpis : | D28: Podpis: | F28: Podpis:
A30: Základ pro DPH | C30: 21 | D30: % | F30: =C23-F32 -> 0
A31: DPH | C31: =C30 -> 21 | D31: % | F31: =ROUND(PRODUCT(F30,C31/100),0) -> 0
A32: Základ pro DPH | C32: 0 | D32: % | F32: 0
A33: DPH | C33: =C32 -> 0 | D33: % | F33: =ROUND(PRODUCT(F32,C33/100),0) -> 0
A34: CENA ZA OBJEKT CELKEM | F34: =ROUND(SUM(F30:F33),0) -> 0
A36: Poznámka :

Sheet 302 3542302.1 Rek
A1: Stavba : | C1: 3542 Semily - Obnova VH infrastruktury a komunikací | G1: Rozpočet : | H1: 3542/302.1
A2: Objekt : | C2: 302 Oprava gravitační stoky S ul. Smetanova | G2: Oprava gravitační stoky S
A4: REKAPITULACE STAVEBNÍCH DÍLŮ
B6: Stavební díl | E6: HSV | F6: PSV | G6: Dodávka | H6: Montáž | I6: HZS
A7: ='302 3542302.1 Pol'!B7 -> 1 | B7: ='302 3542302.1 Pol'!C7 -> Zemní práce | E7: ='302 3542302.1 Pol'!BA124 -> 0 | F7: ='302 3542302.1 Pol'!BB124 -> 0 | G7: ='302 3542302.1 Pol'!BC124 -> 0 | H7: ='302 3542302.1 Pol'!BD124 -> 0 | I7: ='302 3542302.1 Pol'!BE124 -> 0
A8: ='302 3542302.1 Pol'!B125 -> 21 | B8: ='302 3542302.1 Pol'!C125 -> Úprava podloží a základ.spáry | E8: ='302 3542302.1 Pol'!BA133 -> 0 | F8: ='302 3542302.1 Pol'!BB133 -> 0 | G8: ='302 3542302.1 Pol'!BC133 -> 0 | H8: ='302 3542302.1 Pol'!BD133 -> 0 | I8: ='302 3542302.1 Pol'!BE133 -> 0
A9: ='302 3542302.1 Pol'!B134 -> 45 | B9: ='302 3542302.1 Pol'!C134 -> Podkladní a vedlejší konstrukce | E9: ='302 3542302.1 Pol'!BA161 -> 0 | F9: ='302 3542302.1 Pol'!BB161 -> 0 | G9: ='302 3542302.1 Pol'!BC161 -> 0 | H9: ='302 3542302.1 Pol'!BD161 -> 0 | I9: ='302 3542302.1 Pol'!BE161 -> 0
A10: ='302 3542302.1 Pol'!B162 -> 5 | B10: ='302 3542302.1 Pol'!C162 -> Komunikace | E10: ='302 3542302.1 Pol'!BA170 -> 0 | F10: ='302 3542302.1 Pol'!BB170 -> 0 | G10: ='302 3542302.1 Pol'!BC170 -> 0 | H10: ='302 3542302.1 Pol'!BD170 -> 0 | I10: ='302 3542302.1 Pol'!BE170 -> 0
A11: ='302 3542302.1 Pol'!B171 -> 8 | B11: ='302 3542302.1 Pol'!C171 -> Trubní vedení | E11: ='302 3542302.1 Pol'!BA268 -> 0 | F11: ='302 3542302.1 Pol'!BB268 -> 0 | G11: ='302 3542302.1 Pol'!BC268 -> 0 | H11: ='302 3542302.1 Pol'!BD268 -> 0 | I11: ='302 3542302.1 Pol'!BE268 -> 0
A12: ='302 3542302.1 Pol'!B269 -> 93 | B12: ='302 3542302.1 Pol'!C269 -> Dokončovací práce inženýrských staveb | E12: ='302 3542302.1 Pol'!BA287 -> 0 | F12: ='302 3542302.1 Pol'!BB287 -> 0 | G12: ='302 3542302.1 Pol'!BC287 -> 0 | H12: ='302 3542302.1 Pol'!BD287 -> 0 | I12: ='302 3542302.1 Pol'!BE287 -> 0
A13: ='302 3542302.1 Pol'!B288 -> 99 | B13: ='302 3542302.1 Pol'!C288 -> Staveništní přesun hmot | E13: ='302 3542302.1 Pol'!BA291 -> 0 | F13: ='302 3542302.1 Pol'!BB291 -> 0 | G13: ='302 3542302.1 Pol'!BC291 -> 0 | H13: ='302 3542302.1 Pol'!BD291 -> 0 | I13: ='302 3542302.1 Pol'!BE291 -> 0
B14: CELKEM OBJEKT | E14: =SUM(E7:E13) -> 0 | F14: =SUM(F7:F13) -> 0 | G14: =SUM(G7:G13) -> 0 | H14: =SUM(H7:H13) -> 0 | I14: =SUM(I7:I13) -> 0

Sheet 302 3542302.1 Pol
A1: Položkový rozpočet
A3: Stavba : | C3: 3542 Semily - Obnova VH infrastruktury a komunikací | E3: Rozpočet: | F3: ='302 3542302.1 Rek'!H1 -> 3542/302.1
A4: Objekt : | C4: 302 Oprava gravitační stoky S ul. Smetanova | E4: ='302 3542302.1 Rek'!G2 -> Oprava gravitační stoky S
A6: P.č. | B6: Číslo položky | C6: Název položky | D6: MJ | E6: množství | F6: cena / MJ | G6: celkem (Kč) | H6: Jednotková hmotnost | I6: Celková hmotnost | J6: Jednotková dem.hmot. | K6: Celková dem.hmot.
A7: Díl: | B7: 1 | C7: Zemní práce | O7: 1
A8: 1 | B8: 114211103R00 | C8: Odstranění betonových trub do DN 300 mm, ve výkopu | D8: m | E8: 29 | G8: =E8*F8 -> 0 | H8: 0 | I8: =E8*H8 -> 0 | J8: -0.1015 | K8: =E8*J8 -> -2.9435 | O8: 2 | AA8: 1 | AB8: 0 | AC8: 0 | AZ8: 1 | BA8: =IF(AZ8=1,G8,0) -> 0 | BB8: =IF(AZ8=2,G8,0) -> 0 | BC8: =IF(AZ8=3,G8,0) -> 0 | BD8: =IF(AZ8=4,G8,0) -> 0 | BE8: =IF(AZ8=5,G8,0) -> 0 | CA8: 1 | CB8: 0
C9: Položka obsahuje odstranění materiálu obklopujícího potrubí v míře nutné pro vyzvednutí, rozpojení trub, uchopení a vyzvednutí trub z výkopu a uložení na dopravní prostředek nebo přemístění do 5 m od výkopu. | L9: Položka obsahuje odstranění materiálu obklopujícího potrubí v míře nutné pro vyzvednutí, rozpojení trub, uchopení a vyzvednutí trub z výkopu a uložení na dopravní prostředek nebo přemístění do 5 m od výkopu. | O9: 3
C10: Stoka "S" PVC DN400: | E10: 0 | M10: Stoka "S" PVC DN400:
C11: Původního potrubí BT DN300:29,00 | E11: 29 | M11: Původního potrubí BT DN300:29,00
A12: 2 | B12: 114211105R00 | C12: Odstranění betonových trub do DN 500 mm, ve výkopu | D12: m | E12: 92 | G12: =E12*F12 -> 0 | H12: 0 | I12: =E12*H12 -> 0 | J12: -0.408 | K12: =E12*J12 -> -37.536 | O12: 2 | AA12: 1 | AB12: 0 | AC12: 0 | AZ12: 1 | BA12: =IF(AZ12=1,G12,0) -> 0 | BB12: =IF(AZ12=2,G12,0) -> 0 | BC12: =IF(AZ12=3,G12,0) -> 0 | BD12: =IF(AZ12=4,G12,0) -> 0 | BE12: =IF(AZ12=5,G12,0) -> 0 | CA12: 1 | CB12: 0
C13: Položka obsahuje odstranění materiálu obklopujícího potrubí v míře nutné pro vyzvednutí, rozpojení trub, uchopení a vyzvednutí trub z výkopu a uložení na dopravní prostředek nebo přemístění do 5 m od výkopu. | L13: Položka obsahuje odstranění materiálu obklopujícího potrubí v míře nutné pro vyzvednutí, rozpojení trub, uchopení a vyzvednutí trub z výkopu a uložení na dopravní prostředek nebo přemístění do 5 m od výkopu. | O13: 3
C14: Stoka "S" PVC DN400: | E14: 0 | M14: Stoka "S" PVC DN400:
C15: Výkopy: | E15: 0 | M15: Výkopy:
C16: Původního potrubí BT DN400:92,00 | E16: 92 | M16: Původního potrubí BT DN400:92,00
A17: 3 | B17: 115101201RRX | C17: Přečerpávání nebo převedení splašků a dešť. vod | D17: h | E17: 250 | G17: =E17*F17 -> 0 | H17: 0 | I17: =E17*H17 -> 0 | J17: 0 | K17: =E17*J17 -> 0 | O17: 2 | AA17: 1 | AB17: 1 | AC17: 1 | AZ17: 1 | BA17: =IF(AZ17=1,G17,0) -> 0 | BB17: =IF(AZ17=2,G17,0) -> 0 | BC17: =IF(AZ17=3,G17,0) -> 0 | BD17: =IF(AZ17=4,G17,0) -> 0 | BE17: =IF(AZ17=5,G17,0) -> 0 | CA17: 1 | CB17: 1
C18: Převedení a čerpání splašků nebo dešťových vod dle zvolené technologie zhotovitele stavby. | L18: Převedení a čerpání splašků nebo dešťových vod dle zvolené technologie zhotovitele stavby. | O18: 3
C19: (Množství bude určeno na stavbě dle skutečnosti) | L19: (Množství bude určeno na stavbě dle skutečnosti) | O19: 3
C20: Stoka "S" PVC DN400:250,00 | E20: 250 | M20: Stoka "S" PVC DN400:250,00
A21: 4 | B21: 130001101RRX | C21: Příplatek za ztížené hloubení v blízkosti vedení | D21: m3 | E21: 69.6176 | G21: =E21*F21 -> 0 | H21: 0 | I21: =E21*H21 -> 0 | J21: 0 | K21: =E21*J21 -> 0 | O21: 2 | AA21: 1 | AB21: 1 | AC21: 1 | AZ21: 1 | BA21: =IF(AZ21=1,G21,0) -> 0 | BB21: =IF(AZ21=2,G21,0) -> 0 | BC21: =IF(AZ21=3,G21,0) -> 0 | BD21: =IF(AZ21=4,G21,0) -> 0 | BE21: =IF(AZ21=5,G21,0) -> 0 | CA21: 1 | CB21: 1
C22: Včetně případných nutných dokopávek a ručního výkopu podél sousedících inženýrských sítí. | L22: Včetně případných nutných dokopávek a ručního výkopu podél sousedících inženýrských sítí. | O22: 3
C23: Součástí položky je i dočasné zajištění stávajících inženýrských sítí v prostoru výkopů (potrubí, kabely a pod.) | L23: Součástí položky je i dočasné zajištění stávajících inženýrských sítí v prostoru výkopů (potrubí, kabely a pod.) | O23: 3
C24: Stoka "S" PVC DN400: | E24: 0 | M24: Stoka "S" PVC DN400:
C25: Výkopy: | E25: 0 | M25: Výkopy:
C26: V hornině tř. 3 - 4 - 16%:435,1100*0,16 | E26: 69.6176 | M26: V hornině tř. 3 - 4 - 16%:435,1100*0,16
A27: 5 | B27: 130901123RT3 | C27: Bourání konstrukcí ze železobetonu ve vykopávkách bagrem s kladivem | D27: m3 | E27: 7.5928 | G27: =E27*F27 -> 0 | H27: 0 | I27: =E27*H27 -> 0 | J27: -2.5 | K27: =E27*J27 -> -18.982 | O27: 2 | AA27: 1 | AB27: 1 | AC27: 1 | AZ27: 1 | BA27: =IF(AZ27=1,G27,0) -> 0 | BB27: =IF(AZ27=2,G27,0) -> 0 | BC27: =IF(AZ27=3,G27,0) -> 0 | BD27: =IF(AZ27=4,G27,0) -> 0 | BE27: =IF(AZ27=5,G27,0) -> 0 | CA27: 1 | CB27: 1
C28: Položka obsahuje odstranění materiálu obklopujícího betonové konstrukce v míře nutné pro vyzvednutí (potřebné zemní práce), rozpojení konstrukcí, uchopení a vyzvednutí konstrukce z výkopu a uložení na dopravní prostředek. | L28: Položka obsahuje odstranění materiálu obklopujícího betonové konstrukce v míře nutné pro vyzvednutí (potřebné zemní práce), rozpojení konstrukcí, uchopení a vyzvednutí konstrukce z výkopu a uložení na dopravní prostředek. | O28: 3
C29: Stoka "S" PVC DN400: | E29: 0 | M29: Stoka "S" PVC DN400:
C30: Výkopy: | E30: 0 | M30: Výkopy:
C31: Stávající bourané RŠ:7,5928 | E31: 7.5928 | M31: Stávající bourané RŠ:7,5928
A32: 6 | B32: 132201212R00 | C32: Hloubení rýh š.do 200 cm hor.3 do 1000m3,STROJNĚ | D32: m3 | E32: 217.555 | G32: =E32*F32 -> 0 | H32: 0 | I32: =E32*H32 -> 0 | J32: 0 | K32: =E32*J32 -> 0 | O32: 2 | AA32: 1 | AB32: 1 | AC32: 1 | AZ32: 1 | BA32: =IF(AZ32=1,G32,0) -> 0 | BB32: =IF(AZ32=2,G32,0) -> 0 | BC32: =IF(AZ32=3,G32,0) -> 0 | BD32: =IF(AZ32=4,G32,0) -> 0 | BE32: =IF(AZ32=5,G32,0) -> 0 | CA32: 1 | CB32: 1
C33: Položka obsahuje hloubení rýh traktorbagrem, naložení výkopku na dopravní prostředek pro svislé, nebo vodorovné přemístění, popř. přemístění výkopku do 3 m (po povrchu území), případné zajištění rypadel polštáři, udržování pracoviště a ochranu výkopiště proti stékání srážkové vody z okolního terénu i s jejím odvodněním, nebo odvedením, přesekání a odstranění kořenů ve výkopišti, odstranění napadávek, urovnání dna výkopu. | L33: Položka obsahuje hloubení rýh traktorbagrem, naložení výkopku na dopravní prostředek pro svislé, nebo vodorovné přemístění, popř. přemístění výkopku do 3 m (po povrchu území), případné zajištění rypadel polštáři, udržování pracoviště a ochranu výkopiště proti stékání srážkové vody z okolního terénu i s jejím odvodněním, nebo odvedením, přesekání a odstranění kořenů ve výkopišti, odstranění napadávek, urovnání dna výkopu. | O33: 3
C34: Stoka "S" PVC DN400: | E34: 0 | M34: Stoka "S" PVC DN400:
C35: Výkopy: | E35: 0 | M35: Výkopy:
C36: Začátek provozního součtu | E36: 0 | M36: Začátek provozního součtu
C37: Od stávající RŠ0 st.:16,00*1,50*(2,82+4,19)/2 | E37: 84.12 | M37: Od stávající RŠ0 st.:16,00*1,50*(2,82+4,19)/2
C38: (96,40-16,00)*1,50*(4,19+2,15)/2 | E38: 382.302 | M38: (96,40-16,00)*1,50*(4,19+2,15)/2
C39: (126,00-96,40)*1,30*(2,15+1,30)/2 | E39: 66.378 | M39: (126,00-96,40)*1,30*(2,15+1,30)/2
C40: Prohloubení pro RŠ:2,00*2,00*0,20*3+1,60*1,60*0,20*1 | E40: 2.912 | M40: Prohloubení pro RŠ:2,00*2,00*0,20*3+1,60*1,60*0,20*1
C41: Rozšíření pro RŠ:2,00*(2,00-1,50)*(4,19+3,69+2,90) | E41: 10.78 | M41: Rozšíření pro RŠ:2,00*(2,00-1,50)*(4,19+3,69+2,90)
C42: 1,60*(1,60-1,50)*2,15 | E42: 0.344 | M42: 1,60*(1,60-1,50)*2,15
C43: Odpočet objeku konstrukce komunikace:-(96,40*1,50+(126,00-96,40)*1,30+(2,0-1,50)*3+1,60*(1,60-1,50)*1)*0,40 | E43: -73.896 | M43: Odpočet objeku konstrukce komunikace:-(96,40*1,50+(126,00-96,40)*1,30+(2,0-1,50)*3+1,60*(1,60-1,50)*1)*0,40
C44: Odpočet objemu původního potrubí BT DN300:-29,00*0,20^2*Pi | E44: -3.6442 | M44: Odpočet objemu původního potrubí BT DN300:-29,00*0,20^2*Pi
C45: Odpočet objemu původního potrubí BT DN400:-92,00*0,26^2*Pi | E45: -19.5382 | M45: Odpočet objemu původního potrubí BT DN400:-92,00*0,26^2*Pi
C46: Odpočet objemu stávajících bouraných RŠ:-14,6476 | E46: -14.6476 | M46: Odpočet objemu stávajících bouraných RŠ:-14,6476
C47: Konec provozního součtu | E47: 435.11 | M47: Konec provozního součtu
C48: V hornině tř. 3 - 50%:435,1100*0,5 | E48: 217.555 | M48: V hornině tř. 3 - 50%:435,1100*0,5
A49: 7 | B49: 132201219R00 | C49: Přípl.za lepivost,hloubení rýh 200cm,hor.3,STROJNĚ | D49: m3 | E49: 108.7775 | G49: =E49*F49 -> 0 | H49: 0 | I49: =E49*H49 -> 0 | J49: 0 | K49: =E49*J49 -> 0 | O49: 2 | AA49: 1 | AB49: 1 | AC49: 1 | AZ49: 1 | BA49: =IF(AZ49=1,G49,0) -> 0 | BB49: =IF(AZ49=2,G49,0) -> 0 | BC49: =IF(AZ49=3,G49,0) -> 0 | BD49: =IF(AZ49=4,G49,0) -> 0 | BE49: =IF(AZ49=5,G49,0) -> 0 | CA49: 1 | CB49: 1
C50: Stoka "S" PVC DN400: | E50: 0 | M50: Stoka "S" PVC DN400:
C51: Výkopy: | E51: 0 | M51: Výkopy:
C52: V hornině tř. 3 - 50%:435,1100*0,5*0,5 | E52: 108.7775 | M52: V hornině tř. 3 - 50%:435,1100*0,5*0,5
A53: 8 | B53: 132301212R00 | C53: Hloubení rýh š.do 200 cm hor.4 do 1000 m3, STROJNĚ | D53: m3 | E53: 217.555 | G53: =E53*F53 -> 0 | H53: 0 | I53: =E53*H53 -> 0 | J53: 0 | K53: =E53*J53 -> 0 | O53: 2 | AA53: 1 | AB53: 1 | AC53: 1 | AZ53: 1 | BA53: =IF(AZ53=1,G53,0) -> 0 | BB53: =IF(AZ53=2,G53,0) -> 0 | BC53: =IF(AZ53=3,G53,0) -> 0 | BD53: =IF(AZ53=4,G53,0) -> 0 | BE53: =IF(AZ53=5,G53,0) -> 0 | CA53: 1 | CB53: 1
C54: Položka obsahuje hloubení rýh traktorbagrem, naložení výkopku na dopravní prostředek pro svislé, nebo vodorovné přemístění, popř. přemístění výkopku do 3 m (po povrchu území), případné zajištění rypadel polštáři, udržování pracoviště a ochranu výkopiště proti stékání srážkové vody z okolního terénu i s jejím odvodněním, nebo odvedením, přesekání a odstranění kořenů ve výkopišti, odstranění napadávek, urovnání dna výkopu. | L54: Položka obsahuje hloubení rýh traktorbagrem, naložení výkopku na dopravní prostředek pro svislé, nebo vodorovné přemístění, popř. přemístění výkopku do 3 m (po povrchu území), případné zajištění rypadel polštáři, udržování pracoviště a ochranu výkopiště proti stékání srážkové vody z okolního terénu i s jejím odvodněním, nebo odvedením, přesekání a odstranění kořenů ve výkopišti, odstranění napadávek, urovnání dna výkopu. | O54: 3
C55: Stoka "S" PVC DN400: | E55: 0 | M55: Stoka "S" PVC DN400:
C56: Výkopy: | E56: 0 | M56: Výkopy:
C57: V hornině tř. 4 - 50%:435,1100*0,5 | E57: 217.555 | M57: V hornině tř. 4 - 50%:435,1100*0,5
A58: 9 | B58: 132301219R00 | C58: Přípl.za lepivost,hloubení rýh 200cm,hor.4,STROJNĚ | D58: m3 | E58: 108.7775 | G58: =E58*F58 -> 0 | H58: 0 | I58: =E58*H58 -> 0 | J58: 0 | K58: =E58*J58 -> 0 | O58: 2 | AA58: 1 | AB58: 1 | AC58: 1 | AZ58: 1 | BA58: =IF(AZ58=1,G58,0) -> 0 | BB58: =IF(AZ58=2,G58,0) -> 0 | BC58: =IF(AZ58=3,G58,0) -> 0 | BD58: =IF(AZ58=4,G58,0) -> 0 | BE58: =IF(AZ58=5,G58,0) -> 0 | CA58: 1 | CB58: 1
C59: Stoka "S" PVC DN400: | E59: 0 | M59: Stoka "S" PVC DN400:
C60: Výkopy: | E60: 0 | M60: Výkopy:
C61: V hornině tř. 4 - 50%:435,1100*0,5*0,5 | E61: 108.7775 | M61: V hornině tř. 4 - 50%:435,1100*0,5*0,5
A62: 10 | B62: 151101101R00 | C62: Pažení a rozepření stěn rýh - příložné - hl.do 2 m | D62: m2 | E62: 102.12 | G62: =E62*F62 -> 0 | H62: 0.00099 | I62: =E62*H62 -> 0.1010988 | J62: 0 | K62: =E62*J62 -> 0 | O62: 2 | AA62: 1 | AB62: 1 | AC62: 1 | AZ62: 1 | BA62: =IF(AZ62=1,G62,0) -> 0 | BB62: =IF(AZ62=2,G62,0) -> 0 | BC62: =IF(AZ62=3,G62,0) -> 0 | BD62: =IF(AZ62=4,G62,0) -> 0 | BE62: =IF(AZ62=5,G62,0) -> 0 | CA62: 1 | CB62: 1
C63: Stoka "S" PVC DN400: | E63: 0 | M63: Stoka "S" PVC DN400:
C64: Výkopy: | E64: 0 | M64: Výkopy:
C65: (126,00-96,40)*(2,15+1,30)/2*2 | E65: 102.12 | M65: (126,00-96,40)*(2,15+1,30)/2*2
A66: 11 | B66: 151101102R00 | C66: Pažení a rozepření stěn rýh - příložné - hl.do 4 m | D66: m2 | E66: 621.896 | G66: =E66*F66 -> 0 | H66: 0.00086 | I66: =E66*H66 -> 0.53483056 | J66: 0 | K66: =E66*J66 -> 0 | O66: 2 | AA66: 1 | AB66: 1 | AC66: 1 | AZ66: 1 | BA66: =IF(AZ66=1,G66,0) -> 0 | BB66: =IF(AZ66=2,G66,0) -> 0 | BC66: =IF(AZ66=3,G66,0) -> 0 | BD66: =IF(AZ66=4,G66,0) -> 0 | BE66: =IF(AZ66=5,G66,0) -> 0 | CA66: 1 | CB66: 1
C67: Stoka "S" PVC DN400: | E67: 0 | M67: Stoka "S" PVC DN400:
C68: Výkopy: | E68: 0 | M68: Výkopy:
C69: Od stávající RŠ0 st.:16,00*(2,82+4,19)/2*2 | E69: 112.16 | M69: Od stávající RŠ0 st.:16,00*(2,82+4,19)/2*2
C70: (96,40-16,00)*(4,19+2,15)/2*2 | E70: 509.736 | M70: (96,40-16,00)*(4,19+2,15)/2*2
A71: 12 | B71: 151101111R00 | C71: Odstranění pažení stěn rýh - příložné - hl. do 2 m | D71: m2 | E71: 102.12 | G71: =E71*F71 -> 0 | H71: 0 | I71: =E71*H71 -> 0 | J71: 0 | K71: =E71*J71 -> 0 | O71: 2 | AA71: 1 | AB71: 1 | AC71: 1 | AZ71: 1 | BA71: =IF(AZ71=1,G71,0) -> 0 | BB71: =IF(AZ71=2,G71,0) -> 0 | BC71: =IF(AZ71=3,G71,0) -> 0 | BD71: =IF(AZ71=4,G71,0) -> 0 | BE71: =IF(AZ71=5,G71,0) -> 0 | CA71: 1 | CB71: 1
C72: Stoka "S" PVC DN400: | E72: 0 | M72: Stoka "S" PVC DN400:
C73: Výkopy: | E73: 0 | M73: Výkopy:
C74: (126,00-96,40)*(2,15+1,30)/2*2 | E74: 102.12 | M74: (126,00-96,40)*(2,15+1,30)/2*2
A75: 13 | B75: 151101112R00 | C75: Odstranění pažení stěn rýh - příložné - hl. do 4 m | D75: m2 | E75: 621.896 | G75: =E75*F75 -> 0 | H75: 0 | I75: =E75*H75 -> 0 | J75: 0 | K75: =E75*J75 -> 0 | O75: 2 | AA75: 1 | AB75: 1 | AC75: 1 | AZ75: 1 | BA75: =IF(AZ75=1,G75,0) -> 0 | BB75: =IF(AZ75=2,G75,0) -> 0 | BC75: =IF(AZ75=3,G75,0) -> 0 | BD75: =IF(AZ75=4,G75,0) -> 0 | BE75: =IF(AZ75=5,G75,0) -> 0 | CA75: 1 | CB75: 1
C76: Stoka "S" PVC DN400: | E76: 0 | M76: Stoka "S" PVC DN400:
C77: Výkopy: | E77: 0 | M77: Výkopy:
C78: Od stávající RŠ0 st.:16,00*(2,82+4,19)/2*2 | E78: 112.16 | M78: Od stávající RŠ0 st.:16,00*(2,82+4,19)/2*2
C79: (96,40-16,00)*(4,19+2,15)/2*2 | E79: 509.736 | M79: (96,40-16,00)*(4,19+2,15)/2*2
A80: 14 | B80: 162701105RSZ | C80: Vodorovné přemístění výkopku z hor.1-7 na skládku zhotovitele | D80: m3 | E80: 435.11 | G80: =E80*F80 -> 0 | H80: 0 | I80: =E80*H80 -> 0 | J80: 0 | K80: =E80*J80 -> 0 | O80: 2 | AA80: 1 | AB80: 1 | AC80: 1 | AZ80: 1 | BA80: =IF(AZ80=1,G80,0) -> 0 | BB80: =IF(AZ80=2,G80,0) -> 0 | BC80: =IF(AZ80=3,G80,0) -> 0 | BD80: =IF(AZ80=4,G80,0) -> 0 | BE80: =IF(AZ80=5,G80,0) -> 0 | CA80: 1 | CB80: 1
C81: Stoka "S" PVC DN400: | E81: 0 | M81: Stoka "S" PVC DN400:
C82: Výkopy: | E82: 0 | M82: Výkopy:
C83: V hornině tř. 3 - 4:435,1100 | E83: 435.11 | M83: V hornině tř. 3 - 4:435,1100
A84: 15 | B84: 174101101R00 | C84: Zásyp jam, rýh, šachet se zhutněním | D84: m3 | E84: 301.2216 | G84: =E84*F84 -> 0 | H84: 0 | I84: =E84*H84 -> 0 | J84: 0 | K84: =E84*J84 -> 0 | O84: 2 | AA84: 1 | AB84: 1 | AC84: 1 | AZ84: 1 | BA84: =IF(AZ84=1,G84,0) -> 0 | BB84: =IF(AZ84=2,G84,0) -> 0 | BC84: =IF(AZ84=3,G84,0) -> 0 | BD84: =IF(AZ84=4,G84,0) -> 0 | BE84: =IF(AZ84=5,G84,0) -> 0 | CA84: 1 | CB84: 1
C85: Položka obsahuje strojní přemístění materiálu pro zásyp ze vzdálenosti do 10 m od okraje zásypu. | L85: Položka obsahuje strojní přemístění materiálu pro zásyp ze vzdálenosti do 10 m od okraje zásypu. | O85: 3
O86: 3
C87: Stoka "S" PVC DN400: | E87: 0 | M87: Stoka "S" PVC DN400:
C88: Zásypy ŠD fr. 0-63 mm:301,2216 | E88: 301.2216 | M88: Zásypy ŠD fr. 0-63 mm:301,2216
C89: Začátek provozního součtu | E89: 0 | M89: Začátek provozního součtu
C90: Výkopy: | E90: 0 | M90: Výkopy:
C91: Od stávající RŠ0 st.:16,00*1,50*(2,82+4,19)/2 | E91: 84.12 | M91: Od stávající RŠ0 st.:16,00*1,50*(2,82+4,19)/2
C92: (96,40-16,00)*1,50*(4,19+2,15)/2 | E92: 382.302 | M92: (96,40-16,00)*1,50*(4,19+2,15)/2
C93: (126,00-96,40)*1,30*(2,15+1,30)/2 | E93: 66.378 | M93: (126,00-96,40)*1,30*(2,15+1,30)/2
C94: Prohloubení pro RŠ:2,00*2,00*0,20*3+1,60*1,60*0,20*1 | E94: 2.912 | M94: Prohloubení pro RŠ:2,00*2,00*0,20*3+1,60*1,60*0,20*1
C95: Rozšíření pro RŠ:2,00*(2,00-1,50)*(4,19+3,69+2,90) | E95: 10.78 | M95: Rozšíření pro RŠ:2,00*(2,00-1,50)*(4,19+3,69+2,90)
C96: 1,60*(1,60-1,50)*2,15 | E96: 0.344 | M96: 1,60*(1,60-1,50)*2,15
C97: Odpočet objeku konstrukce komunikace:-(96,40*1,50+(126,00-96,40)*1,30+(2,0-1,50)*3+1,60*(1,60-1,50)*1)*0,40 | E97: -73.896 | M97: Odpočet objeku konstrukce komunikace:-(96,40*1,50+(126,00-96,40)*1,30+(2,0-1,50)*3+1,60*(1,60-1,50)*1)*0,40
C98: Odpočet lože, potrubí a obsypů: | E98: 0 | M98: Odpočet lože, potrubí a obsypů:
C99: Od stávající RŠ0 st.:-96,40*1,50*(0,15+0,40+0,30) | E99: -122.91 | M99: Od stávající RŠ0 st.:-96,40*1,50*(0,15+0,40+0,30)
C100: -(126,00-96,40)*1,30*(0,15+0,40+0,30) | E100: -32.708 | M100: -(126,00-96,40)*1,30*(0,15+0,40+0,30)
C101: Odpočet objemu RŠ:-0,65^2*Pi*(4,19+3,69+2,90+2,15+0,20*4-0,40*4) | E101: -16.1004 | M101: Odpočet objemu RŠ:-0,65^2*Pi*(4,19+3,69+2,90+2,15+0,20*4-0,40*4)
C102: 0 | E102: 0 | M102: 0
C103: Konec provozního součtu | E103: 301.2216 | M103: Konec provozního součtu
A104: 16 | B104: 175101101R00 | C104: Obsyp potrubí bez prohození sypaniny | D104: m3 | E104: 112.3224 | G104: =E104*F104 -> 0 | H104: 0 | I104: =E104*H104 -> 0 | J104: 0 | K104: =E104*J104 -> 0 | O104: 2 | AA104: 1 | AB104: 1 | AC104: 1 | AZ104: 1 | BA104: =IF(AZ104=1,G104,0) -> 0 | BB104: =IF(AZ104=2,G104,0) -> 0 | BC104: =IF(AZ104=3,G104,0) -> 0 | BD104: =IF(AZ104=4,G104,0) -> 0 | BE104: =IF(AZ104=5,G104,0) -> 0 | CA104: 1 | CB104: 1
C105: Stoka "S" PVC DN400: | E105: 0 | M105: Stoka "S" PVC DN400:
C106: Výkopy: | E106: 0 | M106: Výkopy:
C107: Od stávající RŠ0 st.:96,40*(1,50*(0,40+0,30)-0,20^2*Pi) | E107: 89.106 | M107: Od stávající RŠ0 st.:96,40*(1,50*(0,40+0,30)-0,20^2*Pi)
C108: (126,00-96,40)*(1,30*(0,40+0,30)-0,20^2*Pi) | E108: 23.2164 | M108: (126,00-96,40)*(1,30*(0,40+0,30)-0,20^2*Pi)
A109: 17 | B109: 199000002R00 | C109: Poplatek za skládku horniny 1- 7 č. dle katal. odpadů 17 05 04 | D109: m3 | E109: 435.11 | G109: =E109*F109 -> 0 | H109: 0 | I109: =E109*H109 -> 0 | J109: 0 | K109: =E109*J109 -> 0 | O109: 2 | AA109: 1 | AB109: 1 | AC109: 1 | AZ109: 1 | BA109: =IF(AZ109=1,G109,0) -> 0 | BB109: =IF(AZ109=2,G109,0) -> 0 | BC109: =IF(AZ109=3,G109,0) -> 0 | BD109: =IF(AZ109=4,G109,0) -> 0 | BE109: =IF(AZ109=5,G109,0) -> 0 | CA109: 1 | CB109: 1
C110: Stoka "S" PVC DN400: | E110: 0 | M110: Stoka "S" PVC DN400:
C111: Výkopy: | E111: 0 | M111: Výkopy:
C112: V hornině tř. 3 - 4:435,1100 | E112: 435.11 | M112: V hornině tř. 3 - 4:435,1100
A113: 18 | B113: 979082212RRX | C113: Vodorovná doprava suti po suchu na skládku zhotovitele | D113: t | E113: 51.9615 | G113: =E113*F113 -> 0 | H113: 0 | I113: =E113*H113 -> 0 | J113: 0 | K113: =E113*J113 -> 0 | O113: 2 | AA113: 1 | AB113: 1 | AC113: 1 | AZ113: 1 | BA113: =IF(AZ113=1,G113,0) -> 0 | BB113: =IF(AZ113=2,G113,0) -> 0 | BC113: =IF(AZ113=3,G113,0) -> 0 | BD113: =IF(AZ113=4,G113,0) -> 0 | BE113: =IF(AZ113=5,G113,0) -> 0 | CA113: 1 | CB113: 1
C114: Doprava suti na skládku zhotovitele nebo na předávací místo k recyklaci materiálu. | L114: Doprava suti na skládku zhotovitele nebo na předávací místo k recyklaci materiálu. | O114: 3
A115: 19 | B115: 979990103RRX | C115: Poplatek za skládku stavební suti nebo recyklaci beton, skupina odpadu 170101 | D115: t | E115: 51.9615 | G115: =E115*F115 -> 0 | H115: 0 | I115: =E115*H115 -> 0 | J115: 0 | K115: =E115*J115 -> 0 | O115: 2 | AA115: 1 | AB115: 0 | AC115: 0 | AZ115: 1 | BA115: =IF(AZ115=1,G115,0) -> 0 | BB115: =IF(AZ115=2,G115,0) -> 0 | BC115: =IF(AZ115=3,G115,0) -> 0 | BD115: =IF(AZ115=4,G115,0) -> 0 | BE115: =IF(AZ115=5,G115,0) -> 0 | CA115: 1 | CB115: 0
A116: 20 | B116: 58337308.R | C116: Štěrkopísek frakce 0-2 tř.B | D116: t | E116: 223.8282 | G116: =E116*F116 -> 0 | H116: 1 | I116: =E116*H116 -> 223.8282 | K116: =E116*J116 -> 0 | O116: 2 | AA116: 3 | AB116: 1 | AC116: 58337308.R | AZ116: 1 | BA116: =IF(AZ116=1,G116,0) -> 0 | BB116: =IF(AZ116=2,G116,0) -> 0 | BC116: =IF(AZ116=3,G116,0) -> 0 | BD116: =IF(AZ116=4,G116,0) -> 0 | BE116: =IF(AZ116=5,G116,0) -> 0 | CA116: 3 | CB116: 1
C117: Stoka "S" PVC DN400: | E117: 0 | M117: Stoka "S" PVC DN400:
C118: Výkopy: | E118: 0 | M118: Výkopy:
C119: Od stávající RŠ0 st.:96,40*(1,50*(0,40+0,30)-0,20^2*Pi)*1,973*1,01 | E119: 177.5642 | M119: Od stávající RŠ0 st.:96,40*(1,50*(0,40+0,30)-0,20^2*Pi)*1,973*1,01
C120: (126,00-96,40)*(1,30*(0,40+0,30)-0,20^2*Pi)*1,973*1,01 | E120: 46.2639 | M120: (126,00-96,40)*(1,30*(0,40+0,30)-0,20^2*Pi)*1,973*1,01
A121: 21 | B121: 58344197R | C121: Štěrkodrtě frakce 0-63 A | D121: t | E121: 569.8299 | G121: =E121*F121 -> 0 | H121: 1 | I121: =E121*H121 -> 569.8299 | K121: =E121*J121 -> 0 | O121: 2 | AA121: 3 | AB121: 1 | AC121: 58344197R | AZ121: 1 | BA121: =IF(AZ121=1,G121,0) -> 0 | BB121: =IF(AZ121=2,G121,0) -> 0 | BC121: =IF(AZ121=3,G121,0) -> 0 | BD121: =IF(AZ121=4,G121,0) -> 0 | BE121: =IF(AZ121=5,G121,0) -> 0 | CA121: 3 | CB121: 1
C122: Stoka "S" PVC DN400: | E122: 0 | M122: Stoka "S" PVC DN400:
C123: Zásypy ŠD fr. 0-63 mm:301,2216*1,873*1,01 | E123: 569.8299 | M123: Zásypy ŠD fr. 0-63 mm:301,2216*1,873*1,01
B124: Celkem za | C124: 1 Zemní práce | G124: =SUM(G7:G123) -> 0 | I124: =SUM(I7:I123) -> 794.2940294 | K124: =SUM(K7:K123) -> -59.4615 | O124: 4 | BA124: =SUM(BA7:BA123) -> 0 | BB124: =SUM(BB7:BB123) -> 0 | BC124: =SUM(BC7:BC123) -> 0 | BD124: =SUM(BD7:BD123) -> 0 | BE124: =SUM(BE7:BE123) -> 0
A125: Díl: | B125: 21 | C125: Úprava podloží a základ.spáry | O125: 1
A126: 22 | B126: 215901101RT5 | C126: Zhutnění podloží do 92% PS vibrační deskou | D126: m2 | E126: 186.24 | G126: =E126*F126 -> 0 | H126: 0 | I126: =E126*H126 -> 0 | J126: 0 | K126: =E126*J126 -> 0 | O126: 2 | AA126: 1 | AB126: 1 | AC126: 1 | AZ126: 1 | BA126: =IF(AZ126=1,G126,0) -> 0 | BB126: =IF(AZ126=2,G126,0) -> 0 | BC126: =IF(AZ126=3,G126,0) -> 0 | BD126: =IF(AZ126=4,G126,0) -> 0 | BE126: =IF(AZ126=5,G126,0) -> 0 | CA126: 1 | CB126: 1
C127: Stoka "S" PVC DN400: | E127: 0 | M127: Stoka "S" PVC DN400:
C128: Výkopy: | E128: 0 | M128: Výkopy:
C129: Od stávající RŠ0 st.:96,40*1,50 | E129: 144.6 | M129: Od stávající RŠ0 st.:96,40*1,50
C130: (126,00-96,40)*1,30 | E130: 38.48 | M130: (126,00-96,40)*1,30
C131: Rozšíření pro RŠ:2,00*(2,00-1,50)*3 | E131: 3 | M131: Rozšíření pro RŠ:2,00*(2,00-1,50)*3
C132: 1,60*(1,60-1,50)*1 | E132: 0.16 | M132: 1,60*(1,60-1,50)*1
B133: Celkem za | C133: 21 Úprava podloží a základ.spáry | G133: =SUM(G125:G132) -> 0 | I133: =SUM(I125:I132) -> 0 | K133: =SUM(K125:K132) -> 0 | O133: 4 | BA133: =SUM(BA125:BA132) -> 0 | BB133: =SUM(BB125:BB132) -> 0 | BC133: =SUM(BC125:BC132) -> 0 | BD133: =SUM(BD125:BD132) -> 0 | BE133: =SUM(BE125:BE132) -> 0
A134: Díl: | B134: 45 | C134: Podkladní a vedlejší konstrukce | O134: 1
A135: 23 | B135: 451572111R00 | C135: Lože pod potrubí z kameniva těženého 0 - 4 mm | D135: m3 | E135: 27.462 | G135: =E135*F135 -> 0 | H135: 0.43051 | I135: =E135*H135 -> 11.82266562 | J135: 0 | K135: =E135*J135 -> 0 | O135: 2 | AA135: 1 | AB135: 1 | AC135: 1 | AZ135: 1 | BA135: =IF(AZ135=1,G135,0) -> 0 | BB135: =IF(AZ135=2,G135,0) -> 0 | BC135: =IF(AZ135=3,G135,0) -> 0 | BD135: =IF(AZ135=4,G135,0) -> 0 | BE135: =IF(AZ135=5,G135,0) -> 0 | CA135: 1 | CB135: 1
C136: Stoka "S" PVC DN400: | E136: 0 | M136: Stoka "S" PVC DN400:
C137: Výkopy: | E137: 0 | M137: Výkopy:
C138: Od stávající RŠ0 st.:96,40*1,50*0,15 | E138: 21.69 | M138: Od stávající RŠ0 st.:96,40*1,50*0,15
C139: (126,00-96,40)*1,30*0,15 | E139: 5.772 | M139: (126,00-96,40)*1,30*0,15
A140: 24 | B140: 452112111R00 | C140: Osazení beton. prstenců pod poklopy,výšky do100 mm | D140: kus | E140: 5 | G140: =E140*F140 -> 0 | H140: 0.0066 | I140: =E140*H140 -> 0.033 | J140: 0 | K140: =E140*J140 -> 0 | O140: 2 | AA140: 1 | AB140: 1 | AC140: 1 | AZ140: 1 | BA140: =IF(AZ140=1,G140,0) -> 0 | BB140: =IF(AZ140=2,G140,0) -> 0 | BC140: =IF(AZ140=3,G140,0) -> 0 | BD140: =IF(AZ140=4,G140,0) -> 0 | BE140: =IF(AZ140=5,G140,0) -> 0 | CA140: 1 | CB140: 1
C141: Volba položky se řídí výškou prstence nebo rámu. V položkách nejsou zakalkulovány náklady na dodávku betonových výrobků; | L141: Volba položky se řídí výškou prstence nebo rámu. V položkách nejsou zakalkulovány náklady na dodávku betonových výrobků; | O141: 3
C142: Stoka "S" PVC DN400: | E142: 0 | M142: Stoka "S" PVC DN400:
C143: VP 40:1 | E143: 1 | M143: VP 40:1
C144: VP 60:2 | E144: 2 | M144: VP 60:2
C145: VP 100:2 | E145: 2 | M145: VP 100:2
A146: 25 | B146: 452112121R00 | C146: Osazení beton. prstenců pod poklopy,výšky do200 mm | D146: kus | E146: 1 | G146: =E146*F146 -> 0 | H146: 0.0066 | I146: =E146*H146 -> 0.0066 | J146: 0 | K146: =E146*J146 -> 0 | O146: 2 | AA146: 1 | AB146: 1 | AC146: 1 | AZ146: 1 | BA146: =IF(AZ146=1,G146,0) -> 0 | BB146: =IF(AZ146=2,G146,0) -> 0 | BC146: =IF(AZ146=3,G146,0) -> 0 | BD146: =IF(AZ146=4,G146,0) -> 0 | BE146: =IF(AZ146=5,G146,0) -> 0 | CA146: 1 | CB146: 1
C147: Stoka "S" PVC DN400: | E147: 0 | M147: Stoka "S" PVC DN400:
C148: VP 120:1 | E148: 1 | M148: VP 120:1
A149: 26 | B149: 59224346.A.R | C149: Prstenec vyrovn šachetní TBW-Q.1 63/4 | D149: kus | E149: 2.02 | G149: =E149*F149 -> 0 | H149: 0.028 | I149: =E149*H149 -> 0.05656 | K149: =E149*J149 -> 0 | O149: 2 | AA149: 3 | AB149: 1 | AC149: 59224346.A.R | AZ149: 1 | BA149: =IF(AZ149=1,G149,0) -> 0 | BB149: =IF(AZ149=2,G149,0) -> 0 | BC149: =IF(AZ149=3,G149,0) -> 0 | BD149: =IF(AZ149=4,G149,0) -> 0 | BE149: =IF(AZ149=5,G149,0) -> 0 | CA149: 3 | CB149: 1
C150: Stoka "S" PVC DN400: | E150: 0 | M150: Stoka "S" PVC DN400:
C151: VP 60:2*1,01 | E151: 2.02 | M151: VP 60:2*1,01
A152: 27 | B152: 59224347.A.R | C152: Prstenec vyrovn šachetní TBW-Q.1 63/6 | D152: kus | E152: 2.02 | G152: =E152*F152 -> 0 | H152: 0.04 | I152: =E152*H152 -> 0.0808 | K152: =E152*J152 -> 0 | O152: 2 | AA152: 3 | AB152: 1 | AC152: 59224347.A.R | AZ152: 1 | BA152: =IF(AZ152=1,G152,0) -> 0 | BB152: =IF(AZ152=2,G152,0) -> 0 | BC152: =IF(AZ152=3,G152,0) -> 0 | BD152: =IF(AZ152=4,G152,0) -> 0 | BE152: =IF(AZ152=5,G152,0) -> 0 | CA152: 3 | CB152: 1
C153: Stoka "S" PVC DN400: | E153: 0 | M153: Stoka "S" PVC DN400:
C154: VP 60:2*1,01 | E154: 2.02 | M154: VP 60:2*1,01
A155: 28 | B155: 59224349.A.R | C155: Prstenec vyrovn šachetní TBW-Q.1 63/10 | D155: kus | E155: 2.02 | G155: =E155*F155 -> 0 | H155: 0.068 | I155: =E155*H155 -> 0.13736 | K155: =E155*J155 -> 0 | O155: 2 | AA155: 3 | AB155: 1 | AC155: 59224349.A.R | AZ155: 1 | BA155: =IF(AZ155=1,G155,0) -> 0 | BB155: =IF(AZ155=2,G155,0) -> 0 | BC155: =IF(AZ155=3,G155,0) -> 0 | BD155: =IF(AZ155=4,G155,0) -> 0 | BE155: =IF(AZ155=5,G155,0) -> 0 | CA155: 3 | CB155: 1
C156: Stoka "S" PVC DN400: | E156: 0 | M156: Stoka "S" PVC DN400:
C157: VP 100:2*1,01 | E157: 2.02 | M157: VP 100:2*1,01
A158: 29 | B158: 59224350.A.R | C158: Prstenec vyrovn šachetní TBW-Q.1 63/12 | D158: kus | E158: 1.01 | G158: =E158*F158 -> 0 | H158: 0.081 | I158: =E158*H158 -> 0.08181 | K158: =E158*J158 -> 0 | O158: 2 | AA158: 3 | AB158: 1 | AC158: 59224350.A.R | AZ158: 1 | BA158: =IF(AZ158=1,G158,0) -> 0 | BB158: =IF(AZ158=2,G158,0) -> 0 | BC158: =IF(AZ158=3,G158,0) -> 0 | BD158: =IF(AZ158=4,G158,0) -> 0 | BE158: =IF(AZ158=5,G158,0) -> 0 | CA158: 3 | CB158: 1
C159: Stoka "S" PVC DN400: | E159: 0 | M159: Stoka "S" PVC DN400:
C160: VP 120:1*1,01 | E160: 1.01 | M160: VP 120:1*1,01
B161: Celkem za | C161: 45 Podkladní a vedlejší konstrukce | G161: =SUM(G134:G160) -> 0 | I161: =SUM(I134:I160) -> 12.21879562 | K161: =SUM(K134:K160) -> 0 | O161: 4 | BA161: =SUM(BA134:BA160) -> 0 | BB161: =SUM(BB134:BB160) -> 0 | BC161: =SUM(BC134:BC160) -> 0 | BD161: =SUM(BD134:BD160) -> 0 | BE161: =SUM(BE134:BE160) -> 0
A162: Díl: | B162: 5 | C162: Komunikace | O162: 1
A163: 30 | B163: 572701119RRX | C163: Provizorní zásyp rýh kam. hrubě drceným nebo recyk s následným odstraněním a odvozem | D163: m3 | E163: 74.496 | G163: =E163*F163 -> 0 | H163: 1.4805 | I163: =E163*H163 -> 110.291328 | J163: 0 | K163: =E163*J163 -> 0 | O163: 2 | AA163: 1 | AB163: 1 | AC163: 1 | AZ163: 1 | BA163: =IF(AZ163=1,G163,0) -> 0 | BB163: =IF(AZ163=2,G163,0) -> 0 | BC163: =IF(AZ163=3,G163,0) -> 0 | BD163: =IF(AZ163=4,G163,0) -> 0 | BE163: =IF(AZ163=5,G163,0) -> 0 | CA163: 1 | CB163: 1
C164: Stoka "S" PVC DN400: | E164: 0 | M164: Stoka "S" PVC DN400:
C165: Výkopy: | E165: 0 | M165: Výkopy:
C166: Od stávající RŠ0 st.:96,40*1,50*0,40 | E166: 57.84 | M166: Od stávající RŠ0 st.:96,40*1,50*0,40
C167: (126,00-96,40)*1,30*0,40 | E167: 15.392 | M167: (126,00-96,40)*1,30*0,40
C168: Rozšíření pro RŠ:2,00*(2,00-1,50)*3*0,40 | E168: 1.2 | M168: Rozšíření pro RŠ:2,00*(2,00-1,50)*3*0,40
C169: 1,60*(1,60-1,50)*1*0,40 | E169: 0.064 | M169: 1,60*(1,60-1,50)*1*0,40
B170: Celkem za | C170: 5 Komunikace | G170: =SUM(G162:G169) -> 0 | I170: =SUM(I162:I169) -> 110.291328 | K170: =SUM(K162:K169) -> 0 | O170: 4 | BA170: =SUM(BA162:BA169) -> 0 | BB170: =SUM(BB162:BB169) -> 0 | BC170: =SUM(BC162:BC169) -> 0 | BD170: =SUM(BD162:BD169) -> 0 | BE170: =SUM(BE162:BE169) -> 0
A171: Díl: | B171: 8 | C171: Trubní vedení | O171: 1
A172: 31 | B172: 871393121R00 | C172: Montáž trub z plastu, gumový kroužek, DN 400 | D172: m | E172: 126 | G172: =E172*F172 -> 0 | H172: 1e-05 | I172: =E172*H172 -> 0.00126 | J172: 0 | K172: =E172*J172 -> 0 | O172: 2 | AA172: 1 | AB172: 1 | AC172: 1 | AZ172: 1 | BA172: =IF(AZ172=1,G172,0) -> 0 | BB172: =IF(AZ172=2,G172,0) -> 0 | BC172: =IF(AZ172=3,G172,0) -> 0 | BD172: =IF(AZ172=4,G172,0) -> 0 | BE172: =IF(AZ172=5,G172,0) -> 0 | CA172: 1 | CB172: 1
C173: Stoka "S" PVC DN400:126,00 | E173: 126 | M173: Stoka "S" PVC DN400:126,00
A174: 32 | B174: 877393121R00 | C174: Montáž tvarovek odboč. plast. gum. kroužek DN 400 | D174: kus | E174: 7 | G174: =E174*F174 -> 0 | H174: 8e-05 | I174: =E174*H174 -> 0.00056 | J174: 0 | K174: =E174*J174 -> 0 | O174: 2 | AA174: 1 | AB174: 1 | AC174: 1 | AZ174: 1 | BA174: =IF(AZ174=1,G174,0) -> 0 | BB174: =IF(AZ174=2,G174,0) -> 0 | BC174: =IF(AZ174=3,G174,0) -> 0 | BD174: =IF(AZ174=4,G174,0) -> 0 | BE174: =IF(AZ174=5,G174,0) -> 0 | CA174: 1 | CB174: 1
C175: Stoka "S" PVC DN400: | E175: 0 | M175: Stoka "S" PVC DN400:
C176: Odbočky pro KP: | E176: 0 | M176: Odbočky pro KP:
C177: DN400/150:5 | E177: 5 | M177: DN400/150:5
C178: Odbočky pro UV: | E178: 0 | M178: Odbočky pro UV:
C179: DN400/200:2 | E179: 2 | M179: DN400/200:2
A180: 33 | B180: 891183438RRX | C180: Propojení potrubí PVC DN300 na stávající RŠ včetně dodávky propojovací tvarovky | D180: kus | E180: 1 | G180: =E180*F180 -> 0 | H180: 0.168 | I180: =E180*H180 -> 0.168 | J180: 0 | K180: =E180*J180 -> 0 | O180: 2 | AA180: 1 | AB180: 1 | AC180: 1 | AZ180: 1 | BA180: =IF(AZ180=1,G180,0) -> 0 | BB180: =IF(AZ180=2,G180,0) -> 0 | BC180: =IF(AZ180=3,G180,0) -> 0 | BD180: =IF(AZ180=4,G180,0) -> 0 | BE180: =IF(AZ180=5,G180,0) -> 0 | CA180: 1 | CB180: 1
C181: Položka obsahuje úpravu stávajícího otvoru stávající RŠ včetně potřebné případné úpravy, montáž a dodávku redukční tvarovky DN300/400 pro napropojení nového potrubí DN400. | L181: Položka obsahuje úpravu stávajícího otvoru stávající RŠ včetně potřebné případné úpravy, montáž a dodávku redukční tvarovky DN300/400 pro napropojení nového potrubí DN400. | O181: 3
C182: Stoka "S" PVC DN400: | E182: 0 | M182: Stoka "S" PVC DN400:
C183: Napojení potrubí DN400 přes redukci DN300/400 na stávající RŠ5 st.:1 | E183: 1 | M183: Napojení potrubí DN400 přes redukci DN300/400 na stávající RŠ5 st.:1
A184: 34 | B184: 891183449RRX | C184: Propojení potrubí PVC DN400 na stávající RŠ včetně dodávky propojovací tvarovky | D184: kus | E184: 1 | G184: =E184*F184 -> 0 | H184: 0.168 | I184: =E184*H184 -> 0.168 | J184: 0 | K184: =E184*J184 -> 0 | O184: 2 | AA184: 1 | AB184: 1 | AC184: 1 | AZ184: 1 | BA184: =IF(AZ184=1,G184,0) -> 0 | BB184: =IF(AZ184=2,G184,0) -> 0 | BC184: =IF(AZ184=3,G184,0) -> 0 | BD184: =IF(AZ184=4,G184,0) -> 0 | BE184: =IF(AZ184=5,G184,0) -> 0 | CA184: 1 | CB184: 1
C185: Položka obsahuje vyříznutí otvoru do dna stávající RŠ včetně potřebné úpravy stávající kynety ve dně šachty, montáž a dodávku příslušné tvarovky pro napropojení nového potrubí se stávající RŠ DN1000. | L185: Položka obsahuje vyříznutí otvoru do dna stávající RŠ včetně potřebné úpravy stávající kynety ve dně šachty, montáž a dodávku příslušné tvarovky pro napropojení nového potrubí se stávající RŠ DN1000. | O185: 3
C186: Stoka "S" PVC DN400: | E186: 0 | M186: Stoka "S" PVC DN400:
C187: Napojení potrubí DN400 na stávající RŠ:1 | E187: 1 | M187: Napojení potrubí DN400 na stávající RŠ:1
A188: 35 | B188: 892601154R00 | C188: Čištění kanalizační stoky do DN 500, nad 100 m | D188: m | E188: 252 | G188: =E188*F188 -> 0 | H188: 0 | I188: =E188*H188 -> 0 | J188: 0 | K188: =E188*J188 -> 0 | O188: 2 | AA188: 1 | AB188: 1 | AC188: 1 | AZ188: 1 | BA188: =IF(AZ188=1,G188,0) -> 0 | BB188: =IF(AZ188=2,G188,0) -> 0 | BC188: =IF(AZ188=3,G188,0) -> 0 | BD188: =IF(AZ188=4,G188,0) -> 0 | BE188: =IF(AZ188=5,G188,0) -> 0 | CA188: 1 | CB188: 1
C189: V položce je zakalkulováno: | L189: V položce je zakalkulováno: | O189: 3
C190: a) otevření a uzavření revizních šachet a čisticích kusů | L190: a) otevření a uzavření revizních šachet a čisticích kusů | O190: 3
C191: b) natažení vysokotlakých hadic k místu odkud se bude kanalizace čistit | L191: b) natažení vysokotlakých hadic k místu odkud se bude kanalizace čistit | O191: 3
C192: c) vyčištění potrubí tlakovou vodou nebo motorovým pérem. | L192: c) vyčištění potrubí tlakovou vodou nebo motorovým pérem. | O192: 3
C193: Stoka "S" PVC DN400:126,00*2 | E193: 252 | M193: Stoka "S" PVC DN400:126,00
A194: 36 | B194: 892855114R00 | C194: Kontrola kanalizace TV kamerou do 200 m | D194: m | E194: 252 | G194: =E194*F194 -> 0 | H194: 0 | I194: =E194*H194 -> 0 | J194: 0 | K194: =E194*J194 -> 0 | O194: 2 | AA194: 1 | AB194: 1 | AC194: 1 | AZ194: 1 | BA194: =IF(AZ194=1,G194,0) -> 0 | BB194: =IF(AZ194=2,G194,0) -> 0 | BC194: =IF(AZ194=3,G194,0) -> 0 | BD194: =IF(AZ194=4,G194,0) -> 0 | BE194: =IF(AZ194=5,G194,0) -> 0 | CA194: 1 | CB194: 1
C195: Stoka "S" PVC DN400:126,00*2 | E195: 252 | M195: Stoka "S" PVC DN400:126,00
A196: 37 | B196: 894421111RT1 | C196: Osazení betonových dílců šachet skruže rovné, na kroužek, do 0,5 t | D196: kus | E196: 2 | G196: =E196*F196 -> 0 | H196: 0 | I196: =E196*H196 -> 0 | J196: 0 | K196: =E196*J196 -> 0 | O196: 2 | AA196: 1 | AB196: 1 | AC196: 1 | AZ196: 1 | BA196: =IF(AZ196=1,G196,0) -> 0 | BB196: =IF(AZ196=2,G196,0) -> 0 | BC196: =IF(AZ196=3,G196,0) -> 0 | BD196: =IF(AZ196=4,G196,0) -> 0 | BE196: =IF(AZ196=5,G196,0) -> 0 | CA196: 1 | CB196: 1
C197: Položka je určena pro osazení betonových dílců šachet dle DIN 4034, skruže rovné na kroužek, hmotnost do 0,5 t. | L197: Položka je určena pro osazení betonových dílců šachet dle DIN 4034, skruže rovné na kroužek, hmotnost do 0,5 t. | O197: 3
C198: V položce nejsou zakalkulovány náklady na dodání betonových dílců; dílce se oceňují ve specifikaci. | L198: V položce nejsou zakalkulovány náklady na dodání betonových dílců; dílce se oceňují ve specifikaci. | O198: 3
C199: Stoka "S" PVC DN400: | E199: 0 | M199: Stoka "S" PVC DN400:
C200: Skruž H250:1 | E200: 1 | M200: Skruž H250:1
C201: Skruž H500:1 | E201: 1 | M201: Skruž H500:1
A202: 38 | B202: 894421112RT1 | C202: Osazení betonových dílců šachet skruže rovné, na kroužek, do 1,4 t | D202: kus | E202: 6 | G202: =E202*F202 -> 0 | H202: 0 | I202: =E202*H202 -> 0 | J202: 0 | K202: =E202*J202 -> 0 | O202: 2 | AA202: 1 | AB202: 1 | AC202: 1 | AZ202: 1 | BA202: =IF(AZ202=1,G202,0) -> 0 | BB202: =IF(AZ202=2,G202,0) -> 0 | BC202: =IF(AZ202=3,G202,0) -> 0 | BD202: =IF(AZ202=4,G202,0) -> 0 | BE202: =IF(AZ202=5,G202,0) -> 0 | CA202: 1 | CB202: 1
... 89 more rows

Sheet 302 3542302.2 KL
A1: POLOŽKOVÝ ROZPOČET
A2: Rozpočet | C2: 3542/302.2 | D2: Odstavení stávající kanalizační stoky | F2: JKSO
A4: Objekt | F4: SKP
A5: 302 | C5: Oprava gravitační stoky S ul. Smetanova | F5: Měrná jednotka
A6: Stavba | F6: Počet jednotek | G6: 0
A7: 3542 | C7: Semily - Obnova VH infrastruktury a komunikací | F7: Náklady na m.j. | G7: =IF(G6=0,,ROUND((F30+F32)/G6,1)) -> 0
A8: Projektant | F8: Typ rozpočtu
A9: Zpracovatel projektu
A10: Objednatel | C10: Vodohospodářské sdružení Turnov
A11: Dodavatel | C11: . | F11: Zakázkové číslo
A12: Rozpočtoval | F12: Počet listů
A13: ROZPOČTOVÉ NÁKLADY
A14: Základní rozpočtové náklady
B15: HSV celkem | C15: ='302 3542302.2 Rek'!E12 -> 0
A16: Z | B16: PSV celkem | C16: ='302 3542302.2 Rek'!F12 -> 0
A17: R | B17: M práce celkem | C17: ='302 3542302.2 Rek'!H12 -> 0
A18: N | B18: M dodávky celkem | C18: ='302 3542302.2 Rek'!G12 -> 0
A19: ZRN celkem | C19: =SUM(C15:C18) -> 0
A21: HZS | C21: ='302 3542302.2 Rek'!I12 -> 0
A22: ZRN+HZS | C22: =C19+C21 -> 0
A23: ZRN+ost.náklady+HZS | C23: =C22+G23 -> 0
A24: Vypracoval | D24: Za zhotovitele | F24: Za objednatele
A25: Jméno : | D25: Jméno : | F25: Jméno :
A26: Datum : | D26: Datum : | F26: Datum :
A28: Podpis : | D28: Podpis: | F28: Podpis:
A30: Základ pro DPH | C30: 21 | D30: % | F30: =C23-F32 -> 0
A31: DPH | C31: =C30 -> 21 | D31: % | F31: =ROUND(PRODUCT(F30,C31/100),0) -> 0
A32: Základ pro DPH | C32: 0 | D32: % | F32: 0
A33: DPH | C33: =C32 -> 0 | D33: % | F33: =ROUND(PRODUCT(F32,C33/100),0) -> 0
A34: CENA ZA OBJEKT CELKEM | F34: =ROUND(SUM(F30:F33),0) -> 0
A36: Poznámka :

Sheet 302 3542302.2 Rek
A1: Stavba : | C1: 3542 Semily - Obnova VH infrastruktury a komunikací | G1: Rozpočet : | H1: 3542/302.2
A2: Objekt : | C2: 302 Oprava gravitační stoky S ul. Smetanova | G2: Odstavení stávající kanalizační stoky
A4: REKAPITULACE STAVEBNÍCH DÍLŮ
B6: Stavební díl | E6: HSV | F6: PSV | G6: Dodávka | H6: Montáž | I6: HZS
A7: ='302 3542302.2 Pol'!B7 -> 1 | B7: ='302 3542302.2 Pol'!C7 -> Zemní práce | E7: ='302 3542302.2 Pol'!BA23 -> 0 | F7: ='302 3542302.2 Pol'!BB23 -> 0 | G7: ='302 3542302.2 Pol'!BC23 -> 0 | H7: ='302 3542302.2 Pol'!BD23 -> 0 | I7: ='302 3542302.2 Pol'!BE23 -> 0
A8: ='302 3542302.2 Pol'!B24 -> 8 | B8: ='302 3542302.2 Pol'!C24 -> Trubní vedení | E8: ='302 3542302.2 Pol'!BA32 -> 0 | F8: ='302 3542302.2 Pol'!BB32 -> 0 | G8: ='302 3542302.2 Pol'!BC32 -> 0 | H8: ='302 3542302.2 Pol'!BD32 -> 0 | I8: ='302 3542302.2 Pol'!BE32 -> 0
A9: ='302 3542302.2 Pol'!B33 -> 93 | B9: ='302 3542302.2 Pol'!C33 -> Dokončovací práce inženýrských staveb | E9: ='302 3542302.2 Pol'!BA40 -> 0 | F9: ='302 3542302.2 Pol'!BB40 -> 0 | G9: ='302 3542302.2 Pol'!BC40 -> 0 | H9: ='302 3542302.2 Pol'!BD40 -> 0 | I9: ='302 3542302.2 Pol'!BE40 -> 0
A10: ='302 3542302.2 Pol'!B41 -> 97 | B10: ='302 3542302.2 Pol'!C41 -> Prorážení otvorů | E10: ='302 3542302.2 Pol'!BA44 -> 0 | F10: ='302 3542302.2 Pol'!BB44 -> 0 | G10: ='302 3542302.2 Pol'!BC44 -> 0 | H10: ='302 3542302.2 Pol'!BD44 -> 0 | I10: ='302 3542302.2 Pol'!BE44 -> 0
A11: ='302 3542302.2 Pol'!B45 -> 99 | B11: ='302 3542302.2 Pol'!C45 -> Staveništní přesun hmot | E11: ='302 3542302.2 Pol'!BA48 -> 0 | F11: ='302 3542302.2 Pol'!BB48 -> 0 | G11: ='302 3542302.2 Pol'!BC48 -> 0 | H11: ='302 3542302.2 Pol'!BD48 -> 0 | I11: ='302 3542302.2 Pol'!BE48 -> 0
B12: CELKEM OBJEKT | E12: =SUM(E7:E11) -> 0 | F12: =SUM(F7:F11) -> 0 | G12: =SUM(G7:G11) -> 0 | H12: =SUM(H7:H11) -> 0 | I12: =SUM(I7:I11) -> 0

Sheet 302 3542302.2 Pol
A1: Položkový rozpočet
A3: Stavba : | C3: 3542 Semily - Obnova VH infrastruktury a komunikací | E3: Rozpočet: | F3: ='302 3542302.2 Rek'!H1 -> 3542/302.2
A4: Objekt : | C4: 302 Oprava gravitační stoky S ul. Smetanova | E4: ='302 3542302.2 Rek'!G2 -> Odstavení stávající kanalizační stoky
A6: P.č. | B6: Číslo položky | C6: Název položky | D6: MJ | E6: množství | F6: cena / MJ | G6: celkem (Kč) | H6: Jednotková hmotnost | I6: Celková hmotnost | J6: Jednotková dem.hmot. | K6: Celková dem.hmot.
A7: Díl: | B7: 1 | C7: Zemní práce | O7: 1
A8: 1 | B8: 130901123RT3 | C8: Bourání konstrukcí ze železobetonu ve vykopávkách bagrem s kladivem | D8: m3 | E8: 1.1219 | G8: =E8*F8 -> 0 | H8: 0 | I8: =E8*H8 -> 0 | J8: -2.5 | K8: =E8*J8 -> -2.80475 | O8: 2 | AA8: 1 | AB8: 1 | AC8: 1 | AZ8: 1 | BA8: =IF(AZ8=1,G8,0) -> 0 | BB8: =IF(AZ8=2,G8,0) -> 0 | BC8: =IF(AZ8=3,G8,0) -> 0 | BD8: =IF(AZ8=4,G8,0) -> 0 | BE8: =IF(AZ8=5,G8,0) -> 0 | CA8: 1 | CB8: 1
C9: Položka obsahuje odstranění materiálu obklopujícího betonové konstrukce v míře nutné pro vyzvednutí (potřebné zemní práce), rozpojení konstrukcí, uchopení a vyzvednutí konstrukce z výkopu a uložení na dopravní prostředek. | L9: Položka obsahuje odstranění materiálu obklopujícího betonové konstrukce v míře nutné pro vyzvednutí (potřebné zemní práce), rozpojení konstrukcí, uchopení a vyzvednutí konstrukce z výkopu a uložení na dopravní prostředek. | O9: 3
C10: Stávající RŠ odbourání kónusu:1,24*Pi*0,60*0,12*4 | E10: 1.1219 | M10: Stávající RŠ odbourání kónusu:1,24*Pi*0,60*0,12*4
A11: 2 | B11: 162301101R00 | C11: Vodorovné přemístění výkopku z hor.1-4 do 500 m | D11: m3 | E11: 6.75 | G11: =E11*F11 -> 0 | H11: 0 | I11: =E11*H11 -> 0 | J11: 0 | K11: =E11*J11 -> 0 | O11: 2 | AA11: 1 | AB11: 1 | AC11: 1 | AZ11: 1 | BA11: =IF(AZ11=1,G11,0) -> 0 | BB11: =IF(AZ11=2,G11,0) -> 0 | BC11: =IF(AZ11=3,G11,0) -> 0 | BD11: =IF(AZ11=4,G11,0) -> 0 | BE11: =IF(AZ11=5,G11,0) -> 0 | CA11: 1 | CB11: 1
C12: Zemina pro zásypy: | E12: 0 | M12: Zemina pro zásypy:
C13: Prostor stávající RŠ po odbourání kónusu a poklopu:1,50*1,50*0,75*4 | E13: 6.75 | M13: Prostor stávající RŠ po odbourání kónusu a poklopu:1,50*1,50*0,75*4
A14: 3 | B14: 167101101R00 | C14: Nakládání výkopku z hor.1-4 v množství do 100 m3 | D14: m3 | E14: 6.75 | G14: =E14*F14 -> 0 | H14: 0 | I14: =E14*H14 -> 0 | J14: 0 | K14: =E14*J14 -> 0 | O14: 2 | AA14: 1 | AB14: 1 | AC14: 1 | AZ14: 1 | BA14: =IF(AZ14=1,G14,0) -> 0 | BB14: =IF(AZ14=2,G14,0) -> 0 | BC14: =IF(AZ14=3,G14,0) -> 0 | BD14: =IF(AZ14=4,G14,0) -> 0 | BE14: =IF(AZ14=5,G14,0) -> 0 | CA14: 1 | CB14: 1
C15: Zemina pro zásypy: | E15: 0 | M15: Zemina pro zásypy:
C16: Prostor stávající RŠ po odbourání kónusu a poklopu:1,50*1,50*0,75*4 | E16: 6.75 | M16: Prostor stávající RŠ po odbourání kónusu a poklopu:1,50*1,50*0,75*4
A17: 4 | B17: 174101101R00 | C17: Zásyp jam, rýh, šachet se zhutněním | D17: m3 | E17: 6.75 | G17: =E17*F17 -> 0 | H17: 0 | I17: =E17*H17 -> 0 | J17: 0 | K17: =E17*J17 -> 0 | O17: 2 | AA17: 1 | AB17: 1 | AC17: 1 | AZ17: 1 | BA17: =IF(AZ17=1,G17,0) -> 0 | BB17: =IF(AZ17=2,G17,0) -> 0 | BC17: =IF(AZ17=3,G17,0) -> 0 | BD17: =IF(AZ17=4,G17,0) -> 0 | BE17: =IF(AZ17=5,G17,0) -> 0 | CA17: 1 | CB17: 1
C18: včetně strojního přemístění materiálu pro zásyp ze vzdálenosti do 10 m od okraje zásypu | L18: včetně strojního přemístění materiálu pro zásyp ze vzdálenosti do 10 m od okraje zásypu | O18: 3
C19: Prostor stávající RŠ po odbourání kónusu a poklopu:1,50*1,50*0,75*4 | E19: 6.75 | M19: Prostor stávající RŠ po odbourání kónusu a poklopu:1,50*1,50*0,75*4
A20: 5 | B20: 979082212RRX | C20: Vodorovná doprava suti po suchu na skládku zhotovitele | D20: t | E20: 2.8048 | G20: =E20*F20 -> 0 | H20: 0 | I20: =E20*H20 -> 0 | J20: 0 | K20: =E20*J20 -> 0 | O20: 2 | AA20: 1 | AB20: 1 | AC20: 1 | AZ20: 1 | BA20: =IF(AZ20=1,G20,0) -> 0 | BB20: =IF(AZ20=2,G20,0) -> 0 | BC20: =IF(AZ20=3,G20,0) -> 0 | BD20: =IF(AZ20=4,G20,0) -> 0 | BE20: =IF(AZ20=5,G20,0) -> 0 | CA20: 1 | CB20: 1
C21: Doprava suti na skládku zhotovitele nebo na předávací místo k recyklaci materiálu. | L21: Doprava suti na skládku zhotovitele nebo na předávací místo k recyklaci materiálu. | O21: 3
A22: 6 | B22: 979990103RRX | C22: Poplatek za skládku stavební suti nebo recyklaci beton, skupina odpadu 170101 | D22: t | E22: 2.8048 | G22: =E22*F22 -> 0 | H22: 0 | I22: =E22*H22 -> 0 | J22: 0 | K22: =E22*J22 -> 0 | O22: 2 | AA22: 1 | AB22: 0 | AC22: 0 | AZ22: 1 | BA22: =IF(AZ22=1,G22,0) -> 0 | BB22: =IF(AZ22=2,G22,0) -> 0 | BC22: =IF(AZ22=3,G22,0) -> 0 | BD22: =IF(AZ22=4,G22,0) -> 0 | BE22: =IF(AZ22=5,G22,0) -> 0 | CA22: 1 | CB22: 0
B23: Celkem za | C23: 1 Zemní práce | G23: =SUM(G7:G22) -> 0 | I23: =SUM(I7:I22) -> 0 | K23: =SUM(K7:K22) -> -2.80475 | O23: 4 | BA23: =SUM(BA7:BA22) -> 0 | BB23: =SUM(BB7:BB22) -> 0 | BC23: =SUM(BC7:BC22) -> 0 | BD23: =SUM(BD7:BD22) -> 0 | BE23: =SUM(BE7:BE22) -> 0
A24: Díl: | B24: 8 | C24: Trubní vedení | O24: 1
A25: 7 | B25: 892601123R00 | C25: Čištění kanalizační stoky do DN 200, do 100 m | D25: m | E25: 100 | G25: =E25*F25 -> 0 | H25: 0 | I25: =E25*H25 -> 0 | J25: 0 | K25: =E25*J25 -> 0 | O25: 2 | AA25: 1 | AB25: 1 | AC25: 1 | AZ25: 1 | BA25: =IF(AZ25=1,G25,0) -> 0 | BB25: =IF(AZ25=2,G25,0) -> 0 | BC25: =IF(AZ25=3,G25,0) -> 0 | BD25: =IF(AZ25=4,G25,0) -> 0 | BE25: =IF(AZ25=5,G25,0) -> 0 | CA25: 1 | CB25: 1
C26: V položce je zakalkulováno: | L26: V položce je zakalkulováno: | O26: 3
C27: a) otevření a uzavření revizních šachet a čisticích kusů | L27: a) otevření a uzavření revizních šachet a čisticích kusů | O27: 3
C28: b) natažení vysokotlakých hadic k místu odkud se bude kanalizace čistit | L28: b) natažení vysokotlakých hadic k místu odkud se bude kanalizace čistit | O28: 3
C29: c) vyčištění potrubí tlakovou vodou nebo motorovým pérem. | L29: c) vyčištění potrubí tlakovou vodou nebo motorovým pérem. | O29: 3
C30: Stávající potrubí KT DN150:85,00 | E30: 85 | M30: Stávající potrubí KT DN150:85,00
C31: Stávající potrubí KT DN200:15,00 | E31: 15 | M31: Stávající potrubí KT DN200:15,00
B32: Celkem za | C32: 8 Trubní vedení | G32: =SUM(G24:G31) -> 0 | I32: =SUM(I24:I31) -> 0 | K32: =SUM(K24:K31) -> 0 | O32: 4 | BA32: =SUM(BA24:BA31) -> 0 | BB32: =SUM(BB24:BB31) -> 0 | BC32: =SUM(BC24:BC31) -> 0 | BD32: =SUM(BD24:BD31) -> 0 | BE32: =SUM(BE24:BE31) -> 0
A33: Díl: | B33: 93 | C33: Dokončovací práce inženýrských staveb | O33: 1
A34: 8 | B34: 936451111R00 | C34: Výplň dutin cementopopílkovou suspenzí | D34: m3 | E34: 3.2201 | G34: =E34*F34 -> 0 | H34: 1.8051 | I34: =E34*H34 -> 5.81260251 | J34: 0 | K34: =E34*J34 -> 0 | O34: 2 | AA34: 1 | AB34: 1 | AC34: 1 | AZ34: 1 | BA34: =IF(AZ34=1,G34,0) -> 0 | BB34: =IF(AZ34=2,G34,0) -> 0 | BC34: =IF(AZ34=3,G34,0) -> 0 | BD34: =IF(AZ34=4,G34,0) -> 0 | BE34: =IF(AZ34=5,G34,0) -> 0 | CA34: 1 | CB34: 1
C35: Stávající RŠ po odbourání poklopu a kónusu:0,50^2*Pi*(1,25+1,60+1,90+2,35-0,75*4) | E35: 3.2201 | M35: Stávající RŠ po odbourání poklopu a kónusu:0,50^2*Pi*(1,25+1,60+1,90+2,35-0,75*4)
A36: 9 | B36: 936452112R00 | C36: Výplň potrubí cementopopílkovou suspenzí DN 150 | D36: m | E36: 85 | G36: =E36*F36 -> 0 | H36: 0.03184 | I36: =E36*H36 -> 2.7064 | J36: 0 | K36: =E36*J36 -> 0 | O36: 2 | AA36: 1 | AB36: 1 | AC36: 1 | AZ36: 1 | BA36: =IF(AZ36=1,G36,0) -> 0 | BB36: =IF(AZ36=2,G36,0) -> 0 | BC36: =IF(AZ36=3,G36,0) -> 0 | BD36: =IF(AZ36=4,G36,0) -> 0 | BE36: =IF(AZ36=5,G36,0) -> 0 | CA36: 1 | CB36: 1
C37: Stávající potrubí KT DN150:85,00 | E37: 85 | M37: Stávající potrubí KT DN150:85,00
A38: 10 | B38: 936452113R00 | C38: Výplň potrubí cementopopílkovou suspenzí DN 200 | D38: m | E38: 15 | G38: =E38*F38 -> 0 | H38: 0.05661 | I38: =E38*H38 -> 0.84915 | J38: 0 | K38: =E38*J38 -> 0 | O38: 2 | AA38: 1 | AB38: 1 | AC38: 1 | AZ38: 1 | BA38: =IF(AZ38=1,G38,0) -> 0 | BB38: =IF(AZ38=2,G38,0) -> 0 | BC38: =IF(AZ38=3,G38,0) -> 0 | BD38: =IF(AZ38=4,G38,0) -> 0 | BE38: =IF(AZ38=5,G38,0) -> 0 | CA38: 1 | CB38: 1
C39: Stávající potrubí KT DN200:15,00 | E39: 15 | M39: Stávající potrubí KT DN200:15,00
B40: Celkem za | C40: 93 Dokončovací práce inženýrských staveb | G40: =SUM(G33:G39) -> 0 | I40: =SUM(I33:I39) -> 9.36815251 | K40: =SUM(K33:K39) -> 0 | O40: 4 | BA40: =SUM(BA33:BA39) -> 0 | BB40: =SUM(BB33:BB39) -> 0 | BC40: =SUM(BC33:BC39) -> 0 | BD40: =SUM(BD33:BD39) -> 0 | BE40: =SUM(BE33:BE39) -> 0
A41: Díl: | B41: 97 | C41: Prorážení otvorů | O41: 1
A42: 11 | B42: 976085311R00 | C42: Vybourání kanal.rámů a poklopů plochy do 0,6 m2 | D42: kus | E42: 4 | G42: =E42*F42 -> 0 | H42: 0 | I42: =E42*H42 -> 0 | J42: -0.045 | K42: =E42*J42 -> -0.18 | O42: 2 | AA42: 1 | AB42: 1 | AC42: 1 | AZ42: 1 | BA42: =IF(AZ42=1,G42,0) -> 0 | BB42: =IF(AZ42=2,G42,0) -> 0 | BC42: =IF(AZ42=3,G42,0) -> 0 | BD42: =IF(AZ42=4,G42,0) -> 0 | BE42: =IF(AZ42=5,G42,0) -> 0 | CA42: 1 | CB42: 1
C43: Stávající RŠ:4 | E43: 4 | M43: Stávající RŠ:4
B44: Celkem za | C44: 97 Prorážení otvorů | G44: =SUM(G41:G43) -> 0 | I44: =SUM(I41:I43) -> 0 | K44: =SUM(K41:K43) -> -0.18 | O44: 4 | BA44: =SUM(BA41:BA43) -> 0 | BB44: =SUM(BB41:BB43) -> 0 | BC44: =SUM(BC41:BC43) -> 0 | BD44: =SUM(BD41:BD43) -> 0 | BE44: =SUM(BE41:BE43) -> 0
A45: Díl: | B45: 99 | C45: Staveništní přesun hmot | O45: 1
A46: 12 | B46: 998274101RRX | C46: Přesun hmot, trubní vedení betonové, otevř. výkop pro celý rozsah objektu | D46: t | E46: 9.36815251 | G46: =E46*F46 -> 0 | H46: 0 | I46: =E46*H46 -> 0 | K46: =E46*J46 -> 0 | O46: 2 | AA46: 7 | AB46: 1 | AC46: 2 | AZ46: 1 | BA46: =IF(AZ46=1,G46,0) -> 0 | BB46: =IF(AZ46=2,G46,0) -> 0 | BC46: =IF(AZ46=3,G46,0) -> 0 | BD46: =IF(AZ46=4,G46,0) -> 0 | BE46: =IF(AZ46=5,G46,0) -> 0 | CA46: 7 | CB46: 1
C47: Staveništní doprava pro celý rozsah objektu - doprava zmeziskládek vybudovaného zařízení staveniště zhotovitele na jednotlivé části staveniště. | L47: Staveništní doprava pro celý rozsah objektu - doprava zmeziskládek vybudovaného zařízení staveniště zhotovitele na jednotlivé části staveniště. | O47: 3
B48: Celkem za | C48: 99 Staveništní přesun hmot | G48: =SUM(G45:G47) -> 0 | I48: =SUM(I45:I47) -> 0 | K48: =SUM(K45:K47) -> 0 | O48: 4 | BA48: =SUM(BA45:BA47) -> 0 | BB48: =SUM(BB45:BB47) -> 0 | BC48: =SUM(BC45:BC47) -> 0 | BD48: =SUM(BD45:BD47) -> 0 | BE48: =SUM(BE45:BE47) -> 0

Sheet 302 3542302.3 KL
A1: POLOŽKOVÝ ROZPOČET
A2: Rozpočet | C2: 3542/302.3 | D2: Kanalizační napojovací body | F2: JKSO
A4: Objekt | F4: SKP
A5: 302 | C5: Oprava gravitační stoky S ul. Smetanova | F5: Měrná jednotka
A6: Stavba | F6: Počet jednotek | G6: 0
A7: 3542 | C7: Semily - Obnova VH infrastruktury a komunikací | F7: Náklady na m.j. | G7: =IF(G6=0,,ROUND((F30+F32)/G6,1)) -> 0
A8: Projektant | F8: Typ rozpočtu
A9: Zpracovatel projektu
A10: Objednatel | C10: Vodohospodářské sdružení Turnov
A11: Dodavatel | C11: . | F11: Zakázkové číslo
A12: Rozpočtoval | F12: Počet listů
A13: ROZPOČTOVÉ NÁKLADY
A14: Základní rozpočtové náklady
B15: HSV celkem | C15: ='302 3542302.3 Rek'!E13 -> 0
A16: Z | B16: PSV celkem | C16: ='302 3542302.3 Rek'!F13 -> 0
A17: R | B17: M práce celkem | C17: ='302 3542302.3 Rek'!H13 -> 0
A18: N | B18: M dodávky celkem | C18: ='302 3542302.3 Rek'!G13 -> 0
A19: ZRN celkem | C19: =SUM(C15:C18) -> 0
A21: HZS | C21: ='302 3542302.3 Rek'!I13 -> 0
A22: ZRN+HZS | C22: =C19+C21 -> 0
A23: ZRN+ost.náklady+HZS | C23: =C22+G23 -> 0
A24: Vypracoval | D24: Za zhotovitele | F24: Za objednatele
A25: Jméno : | D25: Jméno : | F25: Jméno :
A26: Datum : | D26: Datum : | F26: Datum :
A28: Podpis : | D28: Podpis: | F28: Podpis:
A30: Základ pro DPH | C30: 21 | D30: % | F30: =C23-F32 -> 0
A31: DPH | C31: =C30 -> 21 | D31: % | F31: =ROUND(PRODUCT(F30,C31/100),0) -> 0
A32: Základ pro DPH | C32: 0 | D32: % | F32: 0
A33: DPH | C33: =C32 -> 0 | D33: % | F33: =ROUND(PRODUCT(F32,C33/100),0) -> 0
A34: CENA ZA OBJEKT CELKEM | F34: =ROUND(SUM(F30:F33),0) -> 0
A36: Poznámka :

Sheet 302 3542302.3 Rek
A1: Stavba : | C1: 3542 Semily - Obnova VH infrastruktury a komunikací | G1: Rozpočet : | H1: 3542/302.3
A2: Objekt : | C2: 302 Oprava gravitační stoky S ul. Smetanova | G2: Kanalizační napojovací body
A4: REKAPITULACE STAVEBNÍCH DÍLŮ
B6: Stavební díl | E6: HSV | F6: PSV | G6: Dodávka | H6: Montáž | I6: HZS
A7: ='302 3542302.3 Pol'!B7 -> 1 | B7: ='302 3542302.3 Pol'!C7 -> Zemní práce | E7: ='302 3542302.3 Pol'!BA170 -> 0 | F7: ='302 3542302.3 Pol'!BB170 -> 0 | G7: ='302 3542302.3 Pol'!BC170 -> 0 | H7: ='302 3542302.3 Pol'!BD170 -> 0 | I7: ='302 3542302.3 Pol'!BE170 -> 0
A8: ='302 3542302.3 Pol'!B171 -> 21 | B8: ='302 3542302.3 Pol'!C171 -> Úprava podloží a základ.spáry | E8: ='302 3542302.3 Pol'!BA180 -> 0 | F8: ='302 3542302.3 Pol'!BB180 -> 0 | G8: ='302 3542302.3 Pol'!BC180 -> 0 | H8: ='302 3542302.3 Pol'!BD180 -> 0 | I8: ='302 3542302.3 Pol'!BE180 -> 0
A9: ='302 3542302.3 Pol'!B181 -> 45 | B9: ='302 3542302.3 Pol'!C181 -> Podkladní a vedlejší konstrukce | E9: ='302 3542302.3 Pol'!BA190 -> 0 | F9: ='302 3542302.3 Pol'!BB190 -> 0 | G9: ='302 3542302.3 Pol'!BC190 -> 0 | H9: ='302 3542302.3 Pol'!BD190 -> 0 | I9: ='302 3542302.3 Pol'!BE190 -> 0
A10: ='302 3542302.3 Pol'!B191 -> 5 | B10: ='302 3542302.3 Pol'!C191 -> Komunikace | E10: ='302 3542302.3 Pol'!BA198 -> 0 | F10: ='302 3542302.3 Pol'!BB198 -> 0 | G10: ='302 3542302.3 Pol'!BC198 -> 0 | H10: ='302 3542302.3 Pol'!BD198 -> 0 | I10: ='302 3542302.3 Pol'!BE198 -> 0
A11: ='302 3542302.3 Pol'!B199 -> 8 | B11: ='302 3542302.3 Pol'!C199 -> Trubní vedení | E11: ='302 3542302.3 Pol'!BA312 -> 0 | F11: ='302 3542302.3 Pol'!BB312 -> 0 | G11: ='302 3542302.3 Pol'!BC312 -> 0 | H11: ='302 3542302.3 Pol'!BD312 -> 0 | I11: ='302 3542302.3 Pol'!BE312 -> 0
A12: ='302 3542302.3 Pol'!B313 -> 99 | B12: ='302 3542302.3 Pol'!C313 -> Staveništní přesun hmot | E12: ='302 3542302.3 Pol'!BA316 -> 0 | F12: ='302 3542302.3 Pol'!BB316 -> 0 | G12: ='302 3542302.3 Pol'!BC316 -> 0 | H12: ='302 3542302.3 Pol'!BD316 -> 0 | I12: ='302 3542302.3 Pol'!BE316 -> 0
B13: CELKEM OBJEKT | E13: =SUM(E7:E12) -> 0 | F13: =SUM(F7:F12) -> 0 | G13: =SUM(G7:G12) -> 0 | H13: =SUM(H7:H12) -> 0 | I13: =SUM(I7:I12) -> 0

Sheet 302 3542302.3 Pol
A1: Položkový rozpočet
A3: Stavba : | C3: 3542 Semily - Obnova VH infrastruktury a komunikací | E3: Rozpočet: | F3: ='302 3542302.3 Rek'!H1 -> 3542/302.3
A4: Objekt : | C4: 302 Oprava gravitační stoky S ul. Smetanova | E4: ='302 3542302.3 Rek'!G2 -> Kanalizační napojovací body
A6: P.č. | B6: Číslo položky | C6: Název položky | D6: MJ | E6: množství | F6: cena / MJ | G6: celkem (Kč) | H6: Jednotková hmotnost | I6: Celková hmotnost | J6: Jednotková dem.hmot. | K6: Celková dem.hmot.
A7: Díl: | B7: 1 | C7: Zemní práce | O7: 1
A8: 1 | B8: 121100002RAA | C8: Sejmutí ornice a uložení na deponii zpětný přesun, rozprostření v tl. 200 mm, osetí | D8: m3 | E8: 30 | G8: =E8*F8 -> 0 | H8: 0 | I8: =E8*H8 -> 0 | J8: 0 | K8: =E8*J8 -> 0 | O8: 2 | AA8: 1 | AB8: 1 | AC8: 1 | AZ8: 1 | BA8: =IF(AZ8=1,G8,0) -> 0 | BB8: =IF(AZ8=2,G8,0) -> 0 | BC8: =IF(AZ8=3,G8,0) -> 0 | BD8: =IF(AZ8=4,G8,0) -> 0 | BE8: =IF(AZ8=5,G8,0) -> 0 | CA8: 1 | CB8: 1
C9: Stoka "S" PVC DN400: | E9: 0 | M9: Stoka "S" PVC DN400:
C10: Pracodní prostor šířky 2,0 m: | E10: 0 | M10: Pracodní prostor šířky 2,0 m:
C11: Kanalizační tlaková přípojka PE D50x4,6 mm: | E11: 0 | M11: Kanalizační tlaková přípojka PE D50x4,6 mm:
C12: Objem ornice:47,00*2,00*0,20 | E12: 18.8 | M12: Objem ornice:47,00*2,00*0,20
C13: Kanalizační přípojky PVC DN150 (10 kusů): | E13: 0 | M13: Kanalizační přípojky PVC DN150 (10 kusů):
C14: Kanalizační přípojky PVC DN200 (1 kus): | E14: 0 | M14: Kanalizační přípojky PVC DN200 (1 kus):
C15: Objem ornice:28,00*2,00*0,20 | E15: 11.2 | M15: Objem ornice:28,00*2,00*0,20
A16: 2 | B16: 130001101RRX | C16: Příplatek za ztížené hloubení v blízkosti vedení | D16: m3 | E16: 78.4574 | G16: =E16*F16 -> 0 | H16: 0 | I16: =E16*H16 -> 0 | J16: 0 | K16: =E16*J16 -> 0 | O16: 2 | AA16: 1 | AB16: 1 | AC16: 1 | AZ16: 1 | BA16: =IF(AZ16=1,G16,0) -> 0 | BB16: =IF(AZ16=2,G16,0) -> 0 | BC16: =IF(AZ16=3,G16,0) -> 0 | BD16: =IF(AZ16=4,G16,0) -> 0 | BE16: =IF(AZ16=5,G16,0) -> 0 | CA16: 1 | CB16: 1
C17: Včetně případných nutných dokopávek a ručního výkopu podél sousedících inženýrských sítí. | L17: Včetně případných nutných dokopávek a ručního výkopu podél sousedících inženýrských sítí. | O17: 3
C18: Součástí položky je i dočasné zajištění stávajících inženýrských sítí v prostoru výkopů (potrubí, kabely a pod.) | L18: Součástí položky je i dočasné zajištění stávajících inženýrských sítí v prostoru výkopů (potrubí, kabely a pod.) | O18: 3
C19: Stoka "S" PVC DN400: | E19: 0 | M19: Stoka "S" PVC DN400:
C20: Výkopy: | E20: 0 | M20: Výkopy:
C21: v hornině tř. 3 - 4 -40%:196,1435*0,4 | E21: 78.4574 | M21: v hornině tř. 3 - 4 -40%:196,1435*0,4
A22: 3 | B22: 132201210R00 | C22: Hloubení rýh š.do 200 cm hor.3 do 50 m3,STROJNĚ | D22: m3 | E22: 98.0717 | G22: =E22*F22 -> 0 | H22: 0 | I22: =E22*H22 -> 0 | J22: 0 | K22: =E22*J22 -> 0 | O22: 2 | AA22: 1 | AB22: 1 | AC22: 1 | AZ22: 1 | BA22: =IF(AZ22=1,G22,0) -> 0 | BB22: =IF(AZ22=2,G22,0) -> 0 | BC22: =IF(AZ22=3,G22,0) -> 0 | BD22: =IF(AZ22=4,G22,0) -> 0 | BE22: =IF(AZ22=5,G22,0) -> 0 | CA22: 1 | CB22: 1
C23: Položka obsahuje hloubení rýh traktorbagrem, naložení výkopku na dopravní prostředek pro svislé, nebo vodorovné přemístění, popř. přemístění výkopku do 3 m (po povrchu území), případné zajištění rypadel polštáři, udržování pracoviště a ochranu výkopiště proti stékání srážkové vody z okolního terénu i s jejím odvodněním, nebo odvedením, přesekání a odstranění kořenů ve výkopišti, odstranění napadávek, urovnání dna výkopu. | L23: Položka obsahuje hloubení rýh traktorbagrem, naložení výkopku na dopravní prostředek pro svislé, nebo vodorovné přemístění, popř. přemístění výkopku do 3 m (po povrchu území), případné zajištění rypadel polštáři, udržování pracoviště a ochranu výkopiště proti stékání srážkové vody z okolního terénu i s jejím odvodněním, nebo odvedením, přesekání a odstranění kořenů ve výkopišti, odstranění napadávek, urovnání dna výkopu. | O23: 3
C24: Stoka "S" PVC DN400: | E24: 0 | M24: Stoka "S" PVC DN400:
C25: Výkopy: | E25: 0 | M25: Výkopy:
C26: Začátek provozního součtu | E26: 0 | M26: Začátek provozního součtu
C27: Kanalizační tlaková přípojka PE D50x4,6 mm: | E27: 0 | M27: Kanalizační tlaková přípojka PE D50x4,6 mm:
C28: KPT (1 kus) :47,00*0,70*1,50 | E28: 49.35 | M28: KPT (1 kus) :47,00*0,70*1,50
C29: Odpočet objemu ornice:-47,00*0,70*0,20 | E29: -6.58 | M29: Odpočet objemu ornice:-47,00*0,70*0,20
C30: Kanalizační přípojky PVC DN150 (10 kusů): | E30: 0 | M30: Kanalizační přípojky PVC DN150 (10 kusů):
C31: čp. 683:8,00*0,90*(2,10+1,85)/2 | E31: 14.22 | M31: čp. 683:8,00*0,90*(2,10+1,85)/2
C32: čp. 682:(9,00+3,00)*0,90*(2,15+1,75)/2 | E32: 21.06 | M32: čp. 682:(9,00+3,00)*0,90*(2,15+1,75)/2
C33: čp. 681:(7,50+2,50)*0,90*(2,90+2,05)/2 | E33: 22.275 | M33: čp. 681:(7,50+2,50)*0,90*(2,90+2,05)/2
C34: čp. 680:(10,50+5,50)*0,90*(3,69+2,50)/2 | E34: 44.568 | M34: čp. 680:(10,50+5,50)*0,90*(3,69+2,50)/2
C35: čp. 716:6,00*0,90*2,20 | E35: 11.88 | M35: čp. 716:6,00*0,90*2,20
C36: čp. 589:10,50*0,90*(2,42+2,16)/2 | E36: 21.6405 | M36: čp. 589:10,50*0,90*(2,42+2,16)/2
C37: čp. 696:8,00*0,90*(3,25+2,60)/2 | E37: 21.06 | M37: čp. 696:8,00*0,90*(3,25+2,60)/2
C38: Kanalizační přípojky PVC DN200 (1 kus): | E38: 0 | M38: Kanalizační přípojky PVC DN200 (1 kus):
C39: čp. 683:12,00*0,90*(2,10+1,85)/2 | E39: 21.33 | M39: čp. 683:12,00*0,90*(2,10+1,85)/2
C40: Odpočet objemu konstrukce komunikace a chodníků:-54,50*0,90*0,40 | E40: -19.62 | M40: Odpočet objemu konstrukce komunikace a chodníků:-54,50*0,90*0,40
C41: Odpočet objemu ornice:-28,00*0,90*0,20 | E41: -5.04 | M41: Odpočet objemu ornice:-28,00*0,90*0,20
C42: Konec provozního součtu | E42: 196.1435 | M42: Konec provozního součtu
C43: v hornině tř. 3 - 50%:196,1435*0,5 | E43: 98.0717 | M43: v hornině tř. 3 - 50%:196,1435*0,5
A44: 4 | B44: 132201219R00 | C44: Přípl.za lepivost,hloubení rýh 200cm,hor.3,STROJNĚ | D44: m3 | E44: 49.0359 | G44: =E44*F44 -> 0 | H44: 0 | I44: =E44*H44 -> 0 | J44: 0 | K44: =E44*J44 -> 0 | O44: 2 | AA44: 1 | AB44: 1 | AC44: 1 | AZ44: 1 | BA44: =IF(AZ44=1,G44,0) -> 0 | BB44: =IF(AZ44=2,G44,0) -> 0 | BC44: =IF(AZ44=3,G44,0) -> 0 | BD44: =IF(AZ44=4,G44,0) -> 0 | BE44: =IF(AZ44=5,G44,0) -> 0 | CA44: 1 | CB44: 1
C45: Stoka "S" PVC DN400: | E45: 0 | M45: Stoka "S" PVC DN400:
C46: Výkopy: | E46: 0 | M46: Výkopy:
C47: v hornině tř. 3 - 50%:196,1435*0,5*0,5 | E47: 49.0359 | M47: v hornině tř. 3 - 50%:196,1435*0,5*0,5
A48: 5 | B48: 132301210R00 | C48: Hloubení rýh š.do 200 cm hor.4 do 50 m3, STROJNĚ | D48: m3 | E48: 98.0717 | G48: =E48*F48 -> 0 | H48: 0 | I48: =E48*H48 -> 0 | J48: 0 | K48: =E48*J48 -> 0 | O48: 2 | AA48: 1 | AB48: 1 | AC48: 1 | AZ48: 1 | BA48: =IF(AZ48=1,G48,0) -> 0 | BB48: =IF(AZ48=2,G48,0) -> 0 | BC48: =IF(AZ48=3,G48,0) -> 0 | BD48: =IF(AZ48=4,G48,0) -> 0 | BE48: =IF(AZ48=5,G48,0) -> 0 | CA48: 1 | CB48: 1
C49: Položka obsahuje hloubení rýh traktorbagrem, naložení výkopku na dopravní prostředek pro svislé, nebo vodorovné přemístění, popř. přemístění výkopku do 3 m (po povrchu území), případné zajištění rypadel polštáři, udržování pracoviště a ochranu výkopiště proti stékání srážkové vody z okolního terénu i s jejím odvodněním, nebo odvedením, přesekání a odstranění kořenů ve výkopišti, odstranění napadávek, urovnání dna výkopu. | L49: Položka obsahuje hloubení rýh traktorbagrem, naložení výkopku na dopravní prostředek pro svislé, nebo vodorovné přemístění, popř. přemístění výkopku do 3 m (po povrchu území), případné zajištění rypadel polštáři, udržování pracoviště a ochranu výkopiště proti stékání srážkové vody z okolního terénu i s jejím odvodněním, nebo odvedením, přesekání a odstranění kořenů ve výkopišti, odstranění napadávek, urovnání dna výkopu. | O49: 3
C50: Stoka "S" PVC DN400: | E50: 0 | M50: Stoka "S" PVC DN400:
C51: Výkopy: | E51: 0 | M51: Výkopy:
C52: v hornině tř. 4 - 50%:196,1435*0,5 | E52: 98.0717 | M52: v hornině tř. 4 - 50%:196,1435*0,5
A53: 6 | B53: 132301219R00 | C53: Přípl.za lepivost,hloubení rýh 200cm,hor.4,STROJNĚ | D53: m3 | E53: 49.0359 | G53: =E53*F53 -> 0 | H53: 0 | I53: =E53*H53 -> 0 | J53: 0 | K53: =E53*J53 -> 0 | O53: 2 | AA53: 1 | AB53: 1 | AC53: 1 | AZ53: 1 | BA53: =IF(AZ53=1,G53,0) -> 0 | BB53: =IF(AZ53=2,G53,0) -> 0 | BC53: =IF(AZ53=3,G53,0) -> 0 | BD53: =IF(AZ53=4,G53,0) -> 0 | BE53: =IF(AZ53=5,G53,0) -> 0 | CA53: 1 | CB53: 1
C54: Stoka "S" PVC DN400: | E54: 0 | M54: Stoka "S" PVC DN400:
C55: Výkopy: | E55: 0 | M55: Výkopy:
C56: v hornině tř. 4 - 50%:196,1435*0,5*0,5 | E56: 49.0359 | M56: v hornině tř. 4 - 50%:196,1435*0,5*0,5
A57: 7 | B57: 132901220RRX | C57: Přípl.za provedení podchodu pod základem oplocení Ručně do objemu 1,00 m3 | D57: kus | E57: 7 | G57: =E57*F57 -> 0 | H57: 0 | I57: =E57*H57 -> 0 | J57: 0 | K57: =E57*J57 -> 0 | O57: 2 | AA57: 1 | AB57: 1 | AC57: 1 | AZ57: 1 | BA57: =IF(AZ57=1,G57,0) -> 0 | BB57: =IF(AZ57=2,G57,0) -> 0 | BC57: =IF(AZ57=3,G57,0) -> 0 | BD57: =IF(AZ57=4,G57,0) -> 0 | BE57: =IF(AZ57=5,G57,0) -> 0 | CA57: 1 | CB57: 1
C58: Stoka "S" PVC DN400: | E58: 0 | M58: Stoka "S" PVC DN400:
C59: Výkopy: | E59: 0 | M59: Výkopy:
C60: Kanalizační přípojky PVC DN150 (10 kusů): | E60: 0 | M60: Kanalizační přípojky PVC DN150 (10 kusů):
C61: čp. 683:1 | E61: 1 | M61: čp. 683:1
C62: čp. 682:1 | E62: 1 | M62: čp. 682:1
C63: čp. 681:1 | E63: 1 | M63: čp. 681:1
C64: čp. 680:2 | E64: 2 | M64: čp. 680:2
C65: čp. 696:1 | E65: 1 | M65: čp. 696:1
C66: Kanalizační přípojky PVC DN200 (1 kus): | E66: 0 | M66: Kanalizační přípojky PVC DN200 (1 kus):
C67: čp. 683:1 | E67: 1 | M67: čp. 683:1
A68: 8 | B68: 151101101R00 | C68: Pažení a rozepření stěn rýh - příložné - hl.do 2 m | D68: m2 | E68: 152.2 | G68: =E68*F68 -> 0 | H68: 0.00099 | I68: =E68*H68 -> 0.150678 | J68: 0 | K68: =E68*J68 -> 0 | O68: 2 | AA68: 1 | AB68: 1 | AC68: 1 | AZ68: 1 | BA68: =IF(AZ68=1,G68,0) -> 0 | BB68: =IF(AZ68=2,G68,0) -> 0 | BC68: =IF(AZ68=3,G68,0) -> 0 | BD68: =IF(AZ68=4,G68,0) -> 0 | BE68: =IF(AZ68=5,G68,0) -> 0 | CA68: 1 | CB68: 1
C69: Stoka "S" PVC DN400: | E69: 0 | M69: Stoka "S" PVC DN400:
C70: Výkopy: | E70: 0 | M70: Výkopy:
C71: Kanalizační přípojky PVC DN150 (10 kusů): | E71: 0 | M71: Kanalizační přípojky PVC DN150 (10 kusů):
C72: čp. 683:8,00*(2,10+1,85)/2*2 | E72: 31.6 | M72: čp. 683:8,00*(2,10+1,85)/2*2
C73: čp. 682:(9,00+3,00)*(2,15+1,75)/2*2 | E73: 46.8 | M73: čp. 682:(9,00+3,00)*(2,15+1,75)/2*2
C74: čp. 716:6,00*2,20*2 | E74: 26.4 | M74: čp. 716:6,00*2,20*2
C75: Kanalizační přípojky PVC DN200 (1 kus): | E75: 0 | M75: Kanalizační přípojky PVC DN200 (1 kus):
C76: čp. 683:12,00*(2,10+1,85)/2*2 | E76: 47.4 | M76: čp. 683:12,00*(2,10+1,85)/2*2
A77: 9 | B77: 151101102R00 | C77: Pažení a rozepření stěn rýh - příložné - hl.do 4 m | D77: m2 | E77: 243.43 | G77: =E77*F77 -> 0 | H77: 0.00086 | I77: =E77*H77 -> 0.2093498 | J77: 0 | K77: =E77*J77 -> 0 | O77: 2 | AA77: 1 | AB77: 1 | AC77: 1 | AZ77: 1 | BA77: =IF(AZ77=1,G77,0) -> 0 | BB77: =IF(AZ77=2,G77,0) -> 0 | BC77: =IF(AZ77=3,G77,0) -> 0 | BD77: =IF(AZ77=4,G77,0) -> 0 | BE77: =IF(AZ77=5,G77,0) -> 0 | CA77: 1 | CB77: 1
C78: Stoka "S" PVC DN400: | E78: 0 | M78: Stoka "S" PVC DN400:
C79: Výkopy: | E79: 0 | M79: Výkopy:
C80: Kanalizační přípojky PVC DN150 (10 kusů): | E80: 0 | M80: Kanalizační přípojky PVC DN150 (10 kusů):
C81: čp. 681:(7,50+2,50)*(2,90+2,05)/2*2 | E81: 49.5 | M81: čp. 681:(7,50+2,50)*(2,90+2,05)/2*2
C82: čp. 680:(10,50+5,50)*(3,69+2,50)/2*2 | E82: 99.04 | M82: čp. 680:(10,50+5,50)*(3,69+2,50)/2*2
C83: čp. 589:10,50*(2,42+2,16)/2*2 | E83: 48.09 | M83: čp. 589:10,50*(2,42+2,16)/2*2
C84: čp. 696:8,00*(3,25+2,60)/2*2 | E84: 46.8 | M84: čp. 696:8,00*(3,25+2,60)/2*2
A85: 10 | B85: 151101111R00 | C85: Odstranění pažení stěn rýh - příložné - hl. do 2 m | D85: m2 | E85: 152.2 | G85: =E85*F85 -> 0 | H85: 0 | I85: =E85*H85 -> 0 | J85: 0 | K85: =E85*J85 -> 0 | O85: 2 | AA85: 1 | AB85: 1 | AC85: 1 | AZ85: 1 | BA85: =IF(AZ85=1,G85,0) -> 0 | BB85: =IF(AZ85=2,G85,0) -> 0 | BC85: =IF(AZ85=3,G85,0) -> 0 | BD85: =IF(AZ85=4,G85,0) -> 0 | BE85: =IF(AZ85=5,G85,0) -> 0 | CA85: 1 | CB85: 1
C86: Stoka "S" PVC DN400: | E86: 0 | M86: Stoka "S" PVC DN400:
C87: Výkopy: | E87: 0 | M87: Výkopy:
C88: Kanalizační přípojky PVC DN150 (10 kusů): | E88: 0 | M88: Kanalizační přípojky PVC DN150 (10 kusů):
C89: čp. 683:8,00*(2,10+1,85)/2*2 | E89: 31.6 | M89: čp. 683:8,00*(2,10+1,85)/2*2
C90: čp. 682:(9,00+3,00)*(2,15+1,75)/2*2 | E90: 46.8 | M90: čp. 682:(9,00+3,00)*(2,15+1,75)/2*2
C91: čp. 716:6,00*2,20*2 | E91: 26.4 | M91: čp. 716:6,00*2,20*2
C92: Kanalizační přípojky PVC DN200 (1 kus): | E92: 0 | M92: Kanalizační přípojky PVC DN200 (1 kus):
C93: čp. 683:12,00*(2,10+1,85)/2*2 | E93: 47.4 | M93: čp. 683:12,00*(2,10+1,85)/2*2
A94: 11 | B94: 151101112R00 | C94: Odstranění pažení stěn rýh - příložné - hl. do 4 m | D94: m2 | E94: 243.43 | G94: =E94*F94 -> 0 | H94: 0 | I94: =E94*H94 -> 0 | J94: 0 | K94: =E94*J94 -> 0 | O94: 2 | AA94: 1 | AB94: 1 | AC94: 1 | AZ94: 1 | BA94: =IF(AZ94=1,G94,0) -> 0 | BB94: =IF(AZ94=2,G94,0) -> 0 | BC94: =IF(AZ94=3,G94,0) -> 0 | BD94: =IF(AZ94=4,G94,0) -> 0 | BE94: =IF(AZ94=5,G94,0) -> 0 | CA94: 1 | CB94: 1
C95: Stoka "S" PVC DN400: | E95: 0 | M95: Stoka "S" PVC DN400:
C96: Výkopy: | E96: 0 | M96: Výkopy:
C97: Kanalizační přípojky PVC DN150 (10 kusů): | E97: 0 | M97: Kanalizační přípojky PVC DN150 (10 kusů):
C98: čp. 681:(7,50+2,50)*(2,90+2,05)/2*2 | E98: 49.5 | M98: čp. 681:(7,50+2,50)*(2,90+2,05)/2*2
C99: čp. 680:(10,50+5,50)*(3,69+2,50)/2*2 | E99: 99.04 | M99: čp. 680:(10,50+5,50)*(3,69+2,50)/2*2
C100: čp. 589:10,50*(2,42+2,16)/2*2 | E100: 48.09 | M100: čp. 589:10,50*(2,42+2,16)/2*2
C101: čp. 696:8,00*(3,25+2,60)/2*2 | E101: 46.8 | M101: čp. 696:8,00*(3,25+2,60)/2*2
A102: 12 | B102: 162701105RSZ | C102: Vodorovné přemístění výkopku z hor.1-7 na skládku zhotovitele | D102: m3 | E102: 135.0333 | G102: =E102*F102 -> 0 | H102: 0 | I102: =E102*H102 -> 0 | J102: 0 | K102: =E102*J102 -> 0 | O102: 2 | AA102: 1 | AB102: 1 | AC102: 1 | AZ102: 1 | BA102: =IF(AZ102=1,G102,0) -> 0 | BB102: =IF(AZ102=2,G102,0) -> 0 | BC102: =IF(AZ102=3,G102,0) -> 0 | BD102: =IF(AZ102=4,G102,0) -> 0 | BE102: =IF(AZ102=5,G102,0) -> 0 | CA102: 1 | CB102: 1
C103: Stoka "S" PVC DN400: | E103: 0 | M103: Stoka "S" PVC DN400:
C104: Výkopy:196,1435 | E104: 196.1435 | M104: Výkopy:196,1435
C105: Odpočet objemu zásypů zeminou:-61,1102 | E105: -61.1102 | M105: Odpočet objemu zásypů zeminou:-61,1102
A106: 13 | B106: 174101101R00 | C106: Zásyp jam, rýh, šachet se zhutněním | D106: m3 | E106: 134.8734 | G106: =E106*F106 -> 0 | H106: 0 | I106: =E106*H106 -> 0 | J106: 0 | K106: =E106*J106 -> 0 | O106: 2 | AA106: 1 | AB106: 1 | AC106: 1 | AZ106: 1 | BA106: =IF(AZ106=1,G106,0) -> 0 | BB106: =IF(AZ106=2,G106,0) -> 0 | BC106: =IF(AZ106=3,G106,0) -> 0 | BD106: =IF(AZ106=4,G106,0) -> 0 | BE106: =IF(AZ106=5,G106,0) -> 0 | CA106: 1 | CB106: 1
C107: Položka obsahuje strojní přemístění materiálu pro zásyp ze vzdálenosti do 10 m od okraje zásypu. | L107: Položka obsahuje strojní přemístění materiálu pro zásyp ze vzdálenosti do 10 m od okraje zásypu. | O107: 3
O108: 3
C109: Stoka "S" PVC DN400: | E109: 0 | M109: Stoka "S" PVC DN400:
C110: Zásypy ŠD fr. 0-63 mm:67,7632 | E110: 67.7632 | M110: Zásypy ŠD fr. 0-63 mm:67,7632
C111: Začátek provozního součtu | E111: 0 | M111: Začátek provozního součtu
C112: Výkopy: | E112: 0 | M112: Výkopy:
C113: Kanalizační přípojky PVC DN150 (10 kusů): | E113: 0 | M113: Kanalizační přípojky PVC DN150 (10 kusů):
C114: čp. 683:7,00*0,90*(2,10+1,85)/2 | E114: 12.4425 | M114: čp. 683:7,00*0,90*(2,10+1,85)/2
C115: čp. 682:(5,00+3,00)*0,90*(2,15+1,75)/2 | E115: 14.04 | M115: čp. 682:(5,00+3,00)*0,90*(2,15+1,75)/2
C116: čp. 681:(4,00+2,50)*0,90*(2,90+2,05)/2 | E116: 14.4787 | M116: čp. 681:(4,00+2,50)*0,90*(2,90+2,05)/2
C117: čp. 680:(4,00+5,50)*0,90*(3,69+2,50)/2 | E117: 26.4622 | M117: čp. 680:(4,00+5,50)*0,90*(3,69+2,50)/2
C118: čp. 716:6,00*0,90*2,20 | E118: 11.88 | M118: čp. 716:6,00*0,90*2,20
C119: čp. 589:6,00*0,90*(2,42+2,16)/2 | E119: 12.366 | M119: čp. 589:6,00*0,90*(2,42+2,16)/2
C120: čp. 696:5,50*0,90*(3,25+2,60)/2 | E120: 14.4787 | M120: čp. 696:5,50*0,90*(3,25+2,60)/2
C121: Kanalizační přípojky PVC DN200 (1 kus): | E121: 0 | M121: Kanalizační přípojky PVC DN200 (1 kus):
C122: čp. 683:6,00*0,90*(2,10+1,85)/2 | E122: 10.665 | M122: čp. 683:6,00*0,90*(2,10+1,85)/2
C123: Odpočet objemu konstrukce komunikace a chodníků:-54,50*0,90*0,40 | E123: -19.62 | M123: Odpočet objemu konstrukce komunikace a chodníků:-54,50*0,90*0,40
C124: Odpočet lože, potrubí a obsypů:-48,00*0,90*(0,15+0,15+0,30) | E124: -25.92 | M124: Odpočet lože, potrubí a obsypů:-48,00*0,90*(0,15+0,15+0,30)
C125: -6,00*0,90*(0,15+0,20+0,30) | E125: -3.51 | M125: -6,00*0,90*(0,15+0,20+0,30)
C126: Konec provozního součtu | E126: 67.7631 | M126: Konec provozního součtu
C127: Zásypy zeminou:67,1102 | E127: 67.1102 | M127: Zásypy zeminou:67,1102
C128: Začátek provozního součtu | E128: 0 | M128: Začátek provozního součtu
C129: Výkopy: | E129: 0 | M129: Výkopy:
C130: Kanalizační tlaková přípojka PE D50x4,6 mm: | E130: 0 | M130: Kanalizační tlaková přípojka PE D50x4,6 mm:
C131: KPT (1 kus) :47,00*0,70*1,50 | E131: 49.35 | M131: KPT (1 kus) :47,00*0,70*1,50
C132: Odpočet objemu ornice:-47,00*0,70*0,20 | E132: -6.58 | M132: Odpočet objemu ornice:-47,00*0,70*0,20
C133: Odpočet lože, potrubí a obsypů:-47,00*0,70*(0,15+0,05+0,30) | E133: -16.45 | M133: Odpočet lože, potrubí a obsypů:-47,00*0,70*(0,15+0,05+0,30)
C134: Kanalizační přípojky PVC DN150 (10 kusů): | E134: 0 | M134: Kanalizační přípojky PVC DN150 (10 kusů):
C135: čp. 683:1,00*0,90*(2,10+1,85)/2 | E135: 1.7775 | M135: čp. 683:1,00*0,90*(2,10+1,85)/2
C136: čp. 682:4,00*0,90*(2,15+1,75)/2 | E136: 7.02 | M136: čp. 682:4,00*0,90*(2,15+1,75)/2
C137: čp. 681:3,50*0,90*(2,90+2,05)/2 | E137: 7.7962 | M137: čp. 681:3,50*0,90*(2,90+2,05)/2
C138: čp. 680:6,50*0,90*(3,69+2,50)/2 | E138: 18.1058 | M138: čp. 680:6,50*0,90*(3,69+2,50)/2
C139: čp. 589:4,50*0,90*(2,42+2,16)/2 | E139: 9.2745 | M139: čp. 589:4,50*0,90*(2,42+2,16)/2
C140: čp. 696:2,50*0,90*(3,25+2,60)/2 | E140: 6.5812 | M140: čp. 696:2,50*0,90*(3,25+2,60)/2
C141: Kanalizační přípojky PVC DN200 (1 kus): | E141: 0 | M141: Kanalizační přípojky PVC DN200 (1 kus):
C142: čp. 683:6,00*0,90*(2,10+1,85)/2 | E142: 10.665 | M142: čp. 683:6,00*0,90*(2,10+1,85)/2
C143: Odpočet objemu ornice:-28,00*0,90*0,20 | E143: -5.04 | M143: Odpočet objemu ornice:-28,00*0,90*0,20
C144: Odpočet lože, potrubí a obsypů:-22,00*0,90*(0,15+0,15+0,30) | E144: -11.88 | M144: Odpočet lože, potrubí a obsypů:-22,00*0,90*(0,15+0,15+0,30)
C145: -6,00*0,90*(0,15+0,20+0,30) | E145: -3.51 | M145: -6,00*0,90*(0,15+0,20+0,30)
C146: Konec provozního součtu | E146: 67.1102 | M146: Konec provozního součtu
A147: 14 | B147: 175101101R00 | C147: Obsyp potrubí bez prohození sypaniny | D147: m3 | E147: 43.7524 | G147: =E147*F147 -> 0 | H147: 0 | I147: =E147*H147 -> 0 | J147: 0 | K147: =E147*J147 -> 0 | O147: 2 | AA147: 1 | AB147: 1 | AC147: 1 | AZ147: 1 | BA147: =IF(AZ147=1,G147,0) -> 0 | BB147: =IF(AZ147=2,G147,0) -> 0 | BC147: =IF(AZ147=3,G147,0) -> 0 | BD147: =IF(AZ147=4,G147,0) -> 0 | BE147: =IF(AZ147=5,G147,0) -> 0 | CA147: 1 | CB147: 1
C148: Stoka "S" PVC DN400: | E148: 0 | M148: Stoka "S" PVC DN400:
C149: Kanalizační přípojky PVC DN150: | E149: 0 | M149: Kanalizační přípojky PVC DN150:
C150: KP (10 kusů):70,50*(0,90*(0,15+0,30)-0,075^2*Pi) | E150: 27.3067 | M150: KP (10 kusů):70,50*(0,90*(0,15+0,30)-0,075^2*Pi)
C151: Kanalizační přípojky PVC DN200: | E151: 0 | M151: Kanalizační přípojky PVC DN200:
C152: KP (1 kus):12,00*(0,90*(0,20+0,30)-0,10^2*Pi) | E152: 5.023 | M152: KP (1 kus):12,00*(0,90*(0,20+0,30)-0,10^2*Pi)
C153: Kanalizační tlaková přípojka PE D50x4,6 mm: | E153: 0 | M153: Kanalizační tlaková přípojka PE D50x4,6 mm:
C154: KPT (1 kus) :47,00*(0,70*(0,05+0,30)-0,025^2*Pi) | E154: 11.4227 | M154: KPT (1 kus) :47,00*(0,70*(0,05+0,30)-0,025^2*Pi)
A155: 15 | B155: 199000002R00 | C155: Poplatek za skládku horniny 1- 7 č. dle katal. odpadů 17 05 04 | D155: m3 | E155: 135.0333 | G155: =E155*F155 -> 0 | H155: 0 | I155: =E155*H155 -> 0 | J155: 0 | K155: =E155*J155 -> 0 | O155: 2 | AA155: 1 | AB155: 1 | AC155: 1 | AZ155: 1 | BA155: =IF(AZ155=1,G155,0) -> 0 | BB155: =IF(AZ155=2,G155,0) -> 0 | BC155: =IF(AZ155=3,G155,0) -> 0 | BD155: =IF(AZ155=4,G155,0) -> 0 | BE155: =IF(AZ155=5,G155,0) -> 0 | CA155: 1 | CB155: 1
C156: Stoka "S" PVC DN400: | E156: 0 | M156: Stoka "S" PVC DN400:
C157: Výkopy:196,1435 | E157: 196.1435 | M157: Výkopy:196,1435
C158: Odpočet objemu zásypů zeminou:-61,1102 | E158: -61.1102 | M158: Odpočet objemu zásypů zeminou:-61,1102
A159: 16 | B159: 58337308.R | C159: Štěrkopísek frakce 0-2 tř.B | D159: t | E159: 87.1867 | G159: =E159*F159 -> 0 | H159: 1 | I159: =E159*H159 -> 87.1867 | K159: =E159*J159 -> 0 | O159: 2 | AA159: 3 | AB159: 1 | AC159: 58337308.R | AZ159: 1 | BA159: =IF(AZ159=1,G159,0) -> 0 | BB159: =IF(AZ159=2,G159,0) -> 0 | BC159: =IF(AZ159=3,G159,0) -> 0 | BD159: =IF(AZ159=4,G159,0) -> 0 | BE159: =IF(AZ159=5,G159,0) -> 0 | CA159: 3 | CB159: 1
C160: Stoka "S" PVC DN400: | E160: 0 | M160: Stoka "S" PVC DN400:
C161: Kanalizační přípojky PVC DN150: | E161: 0 | M161: Kanalizační přípojky PVC DN150:
C162: KP (10 kusů):70,50*(0,90*(0,15+0,30)-0,075^2*Pi)*1,973*1,01 | E162: 54.4148 | M162: KP (10 kusů):70,50*(0,90*(0,15+0,30)-0,075^2*Pi)*1,973*1,01
C163: Kanalizační přípojky PVC DN200: | E163: 0 | M163: Kanalizační přípojky PVC DN200:
C164: KP (1 kus):12,00*(0,90*(0,20+0,30)-0,10^2*Pi)*1,973*1,01 | E164: 10.0095 | M164: KP (1 kus):12,00*(0,90*(0,20+0,30)-0,10^2*Pi)*1,973*1,01
C165: Kanalizační tlaková přípojka PE D50x4,6 mm: | E165: 0 | M165: Kanalizační tlaková přípojka PE D50x4,6 mm:
C166: KPT (1 kus) :47,00*(0,70*(0,05+0,30)-0,025^2*Pi)*1,973*1,01 | E166: 22.7624 | M166: KPT (1 kus) :47,00*(0,70*(0,05+0,30)-0,025^2*Pi)*1,973*1,01
A167: 17 | B167: 58344197R | C167: Štěrkodrtě frakce 0-63 A | D167: t | E167: 128.1897 | G167: =E167*F167 -> 0 | H167: 1 | I167: =E167*H167 -> 128.1897 | K167: =E167*J167 -> 0 | O167: 2 | AA167: 3 | AB167: 1 | AC167: 58344197R | AZ167: 1 | BA167: =IF(AZ167=1,G167,0) -> 0 | BB167: =IF(AZ167=2,G167,0) -> 0 | BC167: =IF(AZ167=3,G167,0) -> 0 | BD167: =IF(AZ167=4,G167,0) -> 0 | BE167: =IF(AZ167=5,G167,0) -> 0 | CA167: 3 | CB167: 1
C168: Stoka "S" PVC DN400: | E168: 0 | M168: Stoka "S" PVC DN400:
C169: Zásypy ŠD fr. 0-63 mm:67,7632*1,873*1,01 | E169: 128.1897 | M169: Zásypy ŠD fr. 0-63 mm:67,7632*1,873*1,01
B170: Celkem za | C170: 1 Zemní práce | G170: =SUM(G7:G169) -> 0 | I170: =SUM(I7:I169) -> 215.7364278 | K170: =SUM(K7:K169) -> 0 | O170: 4 | BA170: =SUM(BA7:BA169) -> 0 | BB170: =SUM(BB7:BB169) -> 0 | BC170: =SUM(BC7:BC169) -> 0 | BD170: =SUM(BD7:BD169) -> 0 | BE170: =SUM(BE7:BE169) -> 0
A171: Díl: | B171: 21 | C171: Úprava podloží a základ.spáry | O171: 1
A172: 18 | B172: 215901101RT5 | C172: Zhutnění podloží do 92% PS vibrační deskou | D172: m2 | E172: 107.15 | G172: =E172*F172 -> 0 | H172: 0 | I172: =E172*H172 -> 0 | J172: 0 | K172: =E172*J172 -> 0 | O172: 2 | AA172: 1 | AB172: 1 | AC172: 1 | AZ172: 1 | BA172: =IF(AZ172=1,G172,0) -> 0 | BB172: =IF(AZ172=2,G172,0) -> 0 | BC172: =IF(AZ172=3,G172,0) -> 0 | BD172: =IF(AZ172=4,G172,0) -> 0 | BE172: =IF(AZ172=5,G172,0) -> 0 | CA172: 1 | CB172: 1
C173: Stoka "S" PVC DN400: | E173: 0 | M173: Stoka "S" PVC DN400:
C174: Kanalizační přípojky PVC DN150: | E174: 0 | M174: Kanalizační přípojky PVC DN150:
C175: KP (10 kusů):70,50*0,90 | E175: 63.45 | M175: KP (10 kusů):70,50*0,90
C176: Kanalizační přípojky PVC DN200: | E176: 0 | M176: Kanalizační přípojky PVC DN200:
C177: KP (1 kus):12,00*0,90 | E177: 10.8 | M177: KP (1 kus):12,00*0,90
C178: Kanalizační tlaková přípojka PE D50x4,6 mm: | E178: 0 | M178: Kanalizační tlaková přípojka PE D50x4,6 mm:
C179: KPT (1 kus) :47,00*0,70 | E179: 32.9 | M179: KPT (1 kus) :47,00*0,70
B180: Celkem za | C180: 21 Úprava podloží a základ.spáry | G180: =SUM(G171:G179) -> 0 | I180: =SUM(I171:I179) -> 0 | K180: =SUM(K171:K179) -> 0 | O180: 4 | BA180: =SUM(BA171:BA179) -> 0 | BB180: =SUM(BB171:BB179) -> 0 | BC180: =SUM(BC171:BC179) -> 0 | BD180: =SUM(BD171:BD179) -> 0 | BE180: =SUM(BE171:BE179) -> 0
A181: Díl: | B181: 45 | C181: Podkladní a vedlejší konstrukce | O181: 1
A182: 19 | B182: 451572111R00 | C182: Lože pod potrubí z kameniva těženého 0 - 4 mm | D182: m3 | E182: 16.0725 | G182: =E182*F182 -> 0 | H182: 0.43051 | I182: =E182*H182 -> 6.919371975 | J182: 0 | K182: =E182*J182 -> 0 | O182: 2 | AA182: 1 | AB182: 1 | AC182: 1 | AZ182: 1 | BA182: =IF(AZ182=1,G182,0) -> 0 | BB182: =IF(AZ182=2,G182,0) -> 0 | BC182: =IF(AZ182=3,G182,0) -> 0 | BD182: =IF(AZ182=4,G182,0) -> 0 | BE182: =IF(AZ182=5,G182,0) -> 0 | CA182: 1 | CB182: 1
C183: Stoka "S" PVC DN400: | E183: 0 | M183: Stoka "S" PVC DN400:
C184: Kanalizační přípojky PVC DN150: | E184: 0 | M184: Kanalizační přípojky PVC DN150:
C185: KP (10 kusů):70,50*0,90*0,15 | E185: 9.5175 | M185: KP (10 kusů):70,50*0,90*0,15
C186: Kanalizační přípojky PVC DN200: | E186: 0 | M186: Kanalizační přípojky PVC DN200:
C187: KP (1 kus):12,00*0,90*0,15 | E187: 1.62 | M187: KP (1 kus):12,00*0,90*0,15
C188: Kanalizační tlaková přípojka PE D50x4,6 mm: | E188: 0 | M188: Kanalizační tlaková přípojka PE D50x4,6 mm:
C189: KPT (1 kus) :47,00*0,70*0,15 | E189: 4.935 | M189: KPT (1 kus) :47,00*0,70*0,15
B190: Celkem za | C190: 45 Podkladní a vedlejší konstrukce | G190: =SUM(G181:G189) -> 0 | I190: =SUM(I181:I189) -> 6.919371975 | K190: =SUM(K181:K189) -> 0 | O190: 4 | BA190: =SUM(BA181:BA189) -> 0 | BB190: =SUM(BB181:BB189) -> 0 | BC190: =SUM(BC181:BC189) -> 0 | BD190: =SUM(BD181:BD189) -> 0 | BE190: =SUM(BE181:BE189) -> 0
A191: Díl: | B191: 5 | C191: Komunikace | O191: 1
A192: 20 | B192: 572701119RRX | C192: Provizorní zásyp rýh kam. hrubě drceným nebo recyk s následným odstraněním a odvozem | D192: m3 | E192: 19.62 | G192: =E192*F192 -> 0 | H192: 1.4805 | I192: =E192*H192 -> 29.04741 | J192: 0 | K192: =E192*J192 -> 0 | O192: 2 | AA192: 1 | AB192: 1 | AC192: 1 | AZ192: 1 | BA192: =IF(AZ192=1,G192,0) -> 0 | BB192: =IF(AZ192=2,G192,0) -> 0 | BC192: =IF(AZ192=3,G192,0) -> 0 | BD192: =IF(AZ192=4,G192,0) -> 0 | BE192: =IF(AZ192=5,G192,0) -> 0 | CA192: 1 | CB192: 1
C193: Stoka "S" PVC DN400: | E193: 0 | M193: Stoka "S" PVC DN400:
C194: Kanalizační přípojky PVC DN150: | E194: 0 | M194: Kanalizační přípojky PVC DN150:
C195: KP (10 kusů):48,50*0,90*0,40 | E195: 17.46 | M195: KP (10 kusů):48,50*0,90*0,40
C196: Kanalizační přípojky PVC DN200: | E196: 0 | M196: Kanalizační přípojky PVC DN200:
C197: KP (1 kus):6,00*0,90*0,40 | E197: 2.16 | M197: KP (1 kus):6,00*0,90*0,40
B198: Celkem za | C198: 5 Komunikace | G198: =SUM(G191:G197) -> 0 | I198: =SUM(I191:I197) -> 29.04741 | K198: =SUM(K191:K197) -> 0 | O198: 4 | BA198: =SUM(BA191:BA197) -> 0 | BB198: =SUM(BB191:BB197) -> 0 | BC198: =SUM(BC191:BC197) -> 0 | BD198: =SUM(BD191:BD197) -> 0 | BE198: =SUM(BE191:BE197) -> 0
A199: Díl: | B199: 8 | C199: Trubní vedení | O199: 1
A200: 21 | B200: 871181121R00 | C200: Montáž trubek polyetylenových ve výkopu d 50 mm | D200: m | E200: 47 | G200: =E200*F200 -> 0 | H200: 0 | I200: =E200*H200 -> 0 | J200: 0 | K200: =E200*J200 -> 0 | O200: 2 | AA200: 1 | AB200: 1 | AC200: 1 | AZ200: 1 | BA200: =IF(AZ200=1,G200,0) -> 0 | BB200: =IF(AZ200=2,G200,0) -> 0 | BC200: =IF(AZ200=3,G200,0) -> 0 | BD200: =IF(AZ200=4,G200,0) -> 0 | BE200: =IF(AZ200=5,G200,0) -> 0 | CA200: 1 | CB200: 1
C201: Stoka "S" PVC DN400: | E201: 0 | M201: Stoka "S" PVC DN400:
C202: Kanalizační tlaková přípojka PE D50x4,6 mm: | E202: 0 | M202: Kanalizační tlaková přípojka PE D50x4,6 mm:
... 114 more rows

Sheet 303 3542303.1 KL
A1: POLOŽKOVÝ ROZPOČET
A2: Rozpočet | C2: 3542/303.1 | D2: Oprava vodovodního řadu D | F2: JKSO | G2: 827.13
A4: Objekt | F4: SKP
A5: 303 | C5: Oprava vodovodního řadu D ul. Dvořákova | F5: Měrná jednotka | G5: m
A6: Stavba | F6: Počet jednotek | G6: 0
A7: 3542 | C7: Semily - Obnova VH infrastruktury a komunikací | F7: Náklady na m.j. | G7: =IF(G6=0,,ROUND((F30+F32)/G6,1)) -> 0
A8: Projektant | F8: Typ rozpočtu
A9: Zpracovatel projektu
A10: Objednatel | C10: Vodohospodářské sdružení Turnov
A11: Dodavatel | C11: . | F11: Zakázkové číslo
A12: Rozpočtoval | F12: Počet listů
A13: ROZPOČTOVÉ NÁKLADY
A14: Základní rozpočtové náklady
B15: HSV celkem | C15: ='303 3542303.1 Rek'!E15 -> 0
A16: Z | B16: PSV celkem | C16: ='303 3542303.1 Rek'!F15 -> 0
A17: R | B17: M práce celkem | C17: ='303 3542303.1 Rek'!H15 -> 0
A18: N | B18: M dodávky celkem | C18: ='303 3542303.1 Rek'!G15 -> 0
A19: ZRN celkem | C19: =SUM(C15:C18) -> 0
A21: HZS | C21: ='303 3542303.1 Rek'!I15 -> 0
A22: ZRN+HZS | C22: =C19+C21 -> 0
A23: ZRN+ost.náklady+HZS | C23: =C22+G23 -> 0
A24: Vypracoval | D24: Za zhotovitele | F24: Za objednatele
A25: Jméno : | D25: Jméno : | F25: Jméno :
A26: Datum : | D26: Datum : | F26: Datum :
A28: Podpis : | D28: Podpis: | F28: Podpis:
A30: Základ pro DPH | C30: 21 | D30: % | F30: =C23-F32 -> 0
A31: DPH | C31: =C30 -> 21 | D31: % | F31: =ROUND(PRODUCT(F30,C31/100),0) -> 0
A32: Základ pro DPH | C32: 0 | D32: % | F32: 0
A33: DPH | C33: =C32 -> 0 | D33: % | F33: =ROUND(PRODUCT(F32,C33/100),0) -> 0
A34: CENA ZA OBJEKT CELKEM | F34: =ROUND(SUM(F30:F33),0) -> 0
A36: Poznámka :

Sheet 303 3542303.1 Rek
A1: Stavba : | C1: 3542 Semily - Obnova VH infrastruktury a komunikací | G1: Rozpočet : | H1: 3542/303.1
A2: Objekt : | C2: 303 Oprava vodovodního řadu D ul. Dvořákova | G2: Oprava vodovodního řadu D
A4: REKAPITULACE STAVEBNÍCH DÍLŮ
B6: Stavební díl | E6: HSV | F6: PSV | G6: Dodávka | H6: Montáž | I6: HZS
A7: ='303 3542303.1 Pol'!B7 -> 1 | B7: ='303 3542303.1 Pol'!C7 -> Zemní práce | E7: ='303 3542303.1 Pol'!BA77 -> 0 | F7: ='303 3542303.1 Pol'!BB77 -> 0 | G7: ='303 3542303.1 Pol'!BC77 -> 0 | H7: ='303 3542303.1 Pol'!BD77 -> 0 | I7: ='303 3542303.1 Pol'!BE77 -> 0
A8: ='303 3542303.1 Pol'!B78 -> 21 | B8: ='303 3542303.1 Pol'!C78 -> Úprava podloží a základ.spáry | E8: ='303 3542303.1 Pol'!BA83 -> 0 | F8: ='303 3542303.1 Pol'!BB83 -> 0 | G8: ='303 3542303.1 Pol'!BC83 -> 0 | H8: ='303 3542303.1 Pol'!BD83 -> 0 | I8: ='303 3542303.1 Pol'!BE83 -> 0
A9: ='303 3542303.1 Pol'!B84 -> 45 | B9: ='303 3542303.1 Pol'!C84 -> Podkladní a vedlejší konstrukce | E9: ='303 3542303.1 Pol'!BA89 -> 0 | F9: ='303 3542303.1 Pol'!BB89 -> 0 | G9: ='303 3542303.1 Pol'!BC89 -> 0 | H9: ='303 3542303.1 Pol'!BD89 -> 0 | I9: ='303 3542303.1 Pol'!BE89 -> 0
A10: ='303 3542303.1 Pol'!B90 -> 5 | B10: ='303 3542303.1 Pol'!C90 -> Komunikace | E10: ='303 3542303.1 Pol'!BA95 -> 0 | F10: ='303 3542303.1 Pol'!BB95 -> 0 | G10: ='303 3542303.1 Pol'!BC95 -> 0 | H10: ='303 3542303.1 Pol'!BD95 -> 0 | I10: ='303 3542303.1 Pol'!BE95 -> 0
A11: ='303 3542303.1 Pol'!B96 -> 8 | B11: ='303 3542303.1 Pol'!C96 -> Trubní vedení | E11: ='303 3542303.1 Pol'!BA213 -> 0 | F11: ='303 3542303.1 Pol'!BB213 -> 0 | G11: ='303 3542303.1 Pol'!BC213 -> 0 | H11: ='303 3542303.1 Pol'!BD213 -> 0 | I11: ='303 3542303.1 Pol'!BE213 -> 0
A12: ='303 3542303.1 Pol'!B214 -> 89 | B12: ='303 3542303.1 Pol'!C214 -> Ostatní konstrukce na trubním vedení | E12: ='303 3542303.1 Pol'!BA241 -> 0 | F12: ='303 3542303.1 Pol'!BB241 -> 0 | G12: ='303 3542303.1 Pol'!BC241 -> 0 | H12: ='303 3542303.1 Pol'!BD241 -> 0 | I12: ='303 3542303.1 Pol'!BE241 -> 0
A13: ='303 3542303.1 Pol'!B242 -> 93 | B13: ='303 3542303.1 Pol'!C242 -> Dokončovací práce inženýrských staveb | E13: ='303 3542303.1 Pol'!BA273 -> 0 | F13: ='303 3542303.1 Pol'!BB273 -> 0 | G13: ='303 3542303.1 Pol'!BC273 -> 0 | H13: ='303 3542303.1 Pol'!BD273 -> 0 | I13: ='303 3542303.1 Pol'!BE273 -> 0
A14: ='303 3542303.1 Pol'!B274 -> 99 | B14: ='303 3542303.1 Pol'!C274 -> Staveništní přesun hmot | E14: ='303 3542303.1 Pol'!BA277 -> 0 | F14: ='303 3542303.1 Pol'!BB277 -> 0 | G14: ='303 3542303.1 Pol'!BC277 -> 0 | H14: ='303 3542303.1 Pol'!BD277 -> 0 | I14: ='303 3542303.1 Pol'!BE277 -> 0
B15: CELKEM OBJEKT | E15: =SUM(E7:E14) -> 0 | F15: =SUM(F7:F14) -> 0 | G15: =SUM(G7:G14) -> 0 | H15: =SUM(H7:H14) -> 0 | I15: =SUM(I7:I14) -> 0

Sheet 303 3542303.1 Pol
A1: Položkový rozpočet
A3: Stavba : | C3: 3542 Semily - Obnova VH infrastruktury a komunikací | E3: Rozpočet: | F3: ='303 3542303.1 Rek'!H1 -> 3542/303.1
A4: Objekt : | C4: 303 Oprava vodovodního řadu D ul. Dvořákova | E4: ='303 3542303.1 Rek'!G2 -> Oprava vodovodního řadu D
A6: P.č. | B6: Číslo položky | C6: Název položky | D6: MJ | E6: množství | F6: cena / MJ | G6: celkem (Kč) | H6: Jednotková hmotnost | I6: Celková hmotnost | J6: Jednotková dem.hmot. | K6: Celková dem.hmot.
A7: Díl: | B7: 1 | C7: Zemní práce | O7: 1
A8: 1 | B8: 130001101RRX | C8: Příplatek za ztížené hloubení v blízkosti vedení | D8: m3 | E8: 35.6224 | G8: =E8*F8 -> 0 | H8: 0 | I8: =E8*H8 -> 0 | J8: 0 | K8: =E8*J8 -> 0 | O8: 2 | AA8: 1 | AB8: 1 | AC8: 1 | AZ8: 1 | BA8: =IF(AZ8=1,G8,0) -> 0 | BB8: =IF(AZ8=2,G8,0) -> 0 | BC8: =IF(AZ8=3,G8,0) -> 0 | BD8: =IF(AZ8=4,G8,0) -> 0 | BE8: =IF(AZ8=5,G8,0) -> 0 | CA8: 1 | CB8: 1
C9: Včetně případných nutných dokopávek a ručního výkopu podél sousedících inženýrských sítí. | L9: Včetně případných nutných dokopávek a ručního výkopu podél sousedících inženýrských sítí. | O9: 3
C10: Součástí položky je i dočasné zajištění stávajících inženýrských sítí v prostoru výkopů (potrubí, kabely a pod.) | L10: Součástí položky je i dočasné zajištění stávajících inženýrských sítí v prostoru výkopů (potrubí, kabely a pod.) | O10: 3
C11: Vodovodní řad "D" PE D 90x8,2 mm: | E11: 0 | M11: Vodovodní řad "D" PE D 90x8,2 mm:
C12: Výkopy : | E12: 0 | M12: Výkopy :
C13: V hornině tř. 3 - 4 - 32%:111,3200*0,32 | E13: 35.6224 | M13: V hornině tř. 3 - 4 - 32%:111,3200*0,32
A14: 2 | B14: 132201212R00 | C14: Hloubení rýh š.do 200 cm hor.3 do 1000m3,STROJNĚ | D14: m3 | E14: 55.66 | G14: =E14*F14 -> 0 | H14: 0 | I14: =E14*H14 -> 0 | J14: 0 | K14: =E14*J14 -> 0 | O14: 2 | AA14: 1 | AB14: 1 | AC14: 1 | AZ14: 1 | BA14: =IF(AZ14=1,G14,0) -> 0 | BB14: =IF(AZ14=2,G14,0) -> 0 | BC14: =IF(AZ14=3,G14,0) -> 0 | BD14: =IF(AZ14=4,G14,0) -> 0 | BE14: =IF(AZ14=5,G14,0) -> 0 | CA14: 1 | CB14: 1
C15: Položka obsahuje hloubení rýh traktorbagrem, naložení výkopku na dopravní prostředek pro svislé, nebo vodorovné přemístění, popř. přemístění výkopku do 3 m (po povrchu území), případné zajištění rypadel polštáři, udržování pracoviště a ochranu výkopiště proti stékání srážkové vody z okolního terénu i s jejím odvodněním, nebo odvedením, přesekání a odstranění kořenů ve výkopišti, odstranění napadávek, urovnání dna výkopu. | L15: Položka obsahuje hloubení rýh traktorbagrem, naložení výkopku na dopravní prostředek pro svislé, nebo vodorovné přemístění, popř. přemístění výkopku do 3 m (po povrchu území), případné zajištění rypadel polštáři, udržování pracoviště a ochranu výkopiště proti stékání srážkové vody z okolního terénu i s jejím odvodněním, nebo odvedením, přesekání a odstranění kořenů ve výkopišti, odstranění napadávek, urovnání dna výkopu. | O15: 3
C16: Vodovodní řad "D" PE D 90x8,2 mm: | E16: 0 | M16: Vodovodní řad "D" PE D 90x8,2 mm:
C17: Výkopy : | E17: 0 | M17: Výkopy :
C18: Začátek provozního součtu | E18: 0 | M18: Začátek provozního součtu
C19: Průměrná hloubka výkopů od nivelety stávající komunikace 1,61 m: | E19: 0 | M19: Průměrná hloubka výkopů od nivelety stávající komunikace 1,61 m:
C20: Řad "D":115,00*0,80*1,61 | E20: 148.12 | M20: Řad "D":115,00*0,80*1,61
C21: Odpočet objemu konstrukce komunikace a chodníků: | E21: 0 | M21: Odpočet objemu konstrukce komunikace a chodníků:
C22: Řad "D":-115,00*0,80*0,40 | E22: -36.8 | M22: Řad "D":-115,00*0,80*0,40
C23: Konec provozního součtu | E23: 111.32 | M23: Konec provozního součtu
C24: V hornině tř. 3 - 50%:111,3200*0,5 | E24: 55.66 | M24: V hornině tř. 3 - 50%:111,3200*0,5
A25: 3 | B25: 132201219R00 | C25: Přípl.za lepivost,hloubení rýh 200cm,hor.3,STROJNĚ | D25: m3 | E25: 27.83 | G25: =E25*F25 -> 0 | H25: 0 | I25: =E25*H25 -> 0 | J25: 0 | K25: =E25*J25 -> 0 | O25: 2 | AA25: 1 | AB25: 1 | AC25: 1 | AZ25: 1 | BA25: =IF(AZ25=1,G25,0) -> 0 | BB25: =IF(AZ25=2,G25,0) -> 0 | BC25: =IF(AZ25=3,G25,0) -> 0 | BD25: =IF(AZ25=4,G25,0) -> 0 | BE25: =IF(AZ25=5,G25,0) -> 0 | CA25: 1 | CB25: 1
C26: Vodovodní řad "D" PE D 90x8,2 mm: | E26: 0 | M26: Vodovodní řad "D" PE D 90x8,2 mm:
C27: Výkopy : | E27: 0 | M27: Výkopy :
C28: V hornině tř. 3 - 50%:111,3200*0,5*0,5 | E28: 27.83 | M28: V hornině tř. 3 - 50%:111,3200*0,5*0,5
A29: 4 | B29: 132301212R00 | C29: Hloubení rýh š.do 200 cm hor.4 do 1000 m3, STROJNĚ | D29: m3 | E29: 55.66 | G29: =E29*F29 -> 0 | H29: 0 | I29: =E29*H29 -> 0 | J29: 0 | K29: =E29*J29 -> 0 | O29: 2 | AA29: 1 | AB29: 1 | AC29: 1 | AZ29: 1 | BA29: =IF(AZ29=1,G29,0) -> 0 | BB29: =IF(AZ29=2,G29,0) -> 0 | BC29: =IF(AZ29=3,G29,0) -> 0 | BD29: =IF(AZ29=4,G29,0) -> 0 | BE29: =IF(AZ29=5,G29,0) -> 0 | CA29: 1 | CB29: 1
C30: Položka obsahuje hloubení rýh traktorbagrem, naložení výkopku na dopravní prostředek pro svislé, nebo vodorovné přemístění, popř. přemístění výkopku do 3 m (po povrchu území), případné zajištění rypadel polštáři, udržování pracoviště a ochranu výkopiště proti stékání srážkové vody z okolního terénu i s jejím odvodněním, nebo odvedením, přesekání a odstranění kořenů ve výkopišti, odstranění napadávek, urovnání dna výkopu. | L30: Položka obsahuje hloubení rýh traktorbagrem, naložení výkopku na dopravní prostředek pro svislé, nebo vodorovné přemístění, popř. přemístění výkopku do 3 m (po povrchu území), případné zajištění rypadel polštáři, udržování pracoviště a ochranu výkopiště proti stékání srážkové vody z okolního terénu i s jejím odvodněním, nebo odvedením, přesekání a odstranění kořenů ve výkopišti, odstranění napadávek, urovnání dna výkopu. | O30: 3
C31: Vodovodní řad "D" PE D 90x8,2 mm: | E31: 0 | M31: Vodovodní řad "D" PE D 90x8,2 mm:
C32: Výkopy : | E32: 0 | M32: Výkopy :
C33: V hornině tř. 4 - 50%:111,3200*0,5 | E33: 55.66 | M33: V hornině tř. 4 - 50%:111,3200*0,5
A34: 5 | B34: 132301219R00 | C34: Přípl.za lepivost,hloubení rýh 200cm,hor.4,STROJNĚ | D34: m3 | E34: 27.83 | G34: =E34*F34 -> 0 | H34: 0 | I34: =E34*H34 -> 0 | J34: 0 | K34: =E34*J34 -> 0 | O34: 2 | AA34: 1 | AB34: 1 | AC34: 1 | AZ34: 1 | BA34: =IF(AZ34=1,G34,0) -> 0 | BB34: =IF(AZ34=2,G34,0) -> 0 | BC34: =IF(AZ34=3,G34,0) -> 0 | BD34: =IF(AZ34=4,G34,0) -> 0 | BE34: =IF(AZ34=5,G34,0) -> 0 | CA34: 1 | CB34: 1
C35: Vodovodní řad "D" PE D 90x8,2 mm: | E35: 0 | M35: Vodovodní řad "D" PE D 90x8,2 mm:
C36: Výkopy : | E36: 0 | M36: Výkopy :
C37: V hornině tř. 4 - 50%:111,3200*0,5*0,5 | E37: 27.83 | M37: V hornině tř. 4 - 50%:111,3200*0,5*0,5
A38: 6 | B38: 151101101R00 | C38: Pažení a rozepření stěn rýh - příložné - hl.do 2 m | D38: m2 | E38: 370.3 | G38: =E38*F38 -> 0 | H38: 0.00099 | I38: =E38*H38 -> 0.366597 | J38: 0 | K38: =E38*J38 -> 0 | O38: 2 | AA38: 1 | AB38: 1 | AC38: 1 | AZ38: 1 | BA38: =IF(AZ38=1,G38,0) -> 0 | BB38: =IF(AZ38=2,G38,0) -> 0 | BC38: =IF(AZ38=3,G38,0) -> 0 | BD38: =IF(AZ38=4,G38,0) -> 0 | BE38: =IF(AZ38=5,G38,0) -> 0 | CA38: 1 | CB38: 1
C39: Vodovodní řad "D" PE D 90x8,2 mm: | E39: 0 | M39: Vodovodní řad "D" PE D 90x8,2 mm:
C40: Výkopy : | E40: 0 | M40: Výkopy :
C41: Průměrná hloubka výkopů od nivelety stávající komunikace 1,61 m: | E41: 0 | M41: Průměrná hloubka výkopů od nivelety stávající komunikace 1,61 m:
C42: Řad "D":115,00*1,61*2 | E42: 370.3 | M42: Řad "D":115,00*1,61*2
A43: 7 | B43: 151101111R00 | C43: Odstranění pažení stěn rýh - příložné - hl. do 2 m | D43: m2 | E43: 370.3 | G43: =E43*F43 -> 0 | H43: 0 | I43: =E43*H43 -> 0 | J43: 0 | K43: =E43*J43 -> 0 | O43: 2 | AA43: 1 | AB43: 1 | AC43: 1 | AZ43: 1 | BA43: =IF(AZ43=1,G43,0) -> 0 | BB43: =IF(AZ43=2,G43,0) -> 0 | BC43: =IF(AZ43=3,G43,0) -> 0 | BD43: =IF(AZ43=4,G43,0) -> 0 | BE43: =IF(AZ43=5,G43,0) -> 0 | CA43: 1 | CB43: 1
C44: Vodovodní řad "D" PE D 90x8,2 mm: | E44: 0 | M44: Vodovodní řad "D" PE D 90x8,2 mm:
C45: Výkopy : | E45: 0 | M45: Výkopy :
C46: Průměrná hloubka výkopů od nivelety stávající komunikace 1,61 m: | E46: 0 | M46: Průměrná hloubka výkopů od nivelety stávající komunikace 1,61 m:
C47: Řad "D":115,00*1,61*2 | E47: 370.3 | M47: Řad "D":115,00*1,61*2
A48: 8 | B48: 162701105RSZ | C48: Vodorovné přemístění výkopku z hor.1-7 na skládku zhotovitele | D48: m3 | E48: 111.32 | G48: =E48*F48 -> 0 | H48: 0 | I48: =E48*H48 -> 0 | J48: 0 | K48: =E48*J48 -> 0 | O48: 2 | AA48: 1 | AB48: 1 | AC48: 1 | AZ48: 1 | BA48: =IF(AZ48=1,G48,0) -> 0 | BB48: =IF(AZ48=2,G48,0) -> 0 | BC48: =IF(AZ48=3,G48,0) -> 0 | BD48: =IF(AZ48=4,G48,0) -> 0 | BE48: =IF(AZ48=5,G48,0) -> 0 | CA48: 1 | CB48: 1
C49: Vodovodní řad "D" PE D 90x8,2 mm: | E49: 0 | M49: Vodovodní řad "D" PE D 90x8,2 mm:
C50: Výkopy : | E50: 0 | M50: Výkopy :
C51: V hornině tř. 3 - 4:111,3200 | E51: 111.32 | M51: V hornině tř. 3 - 4:111,3200
A52: 9 | B52: 174101101R00 | C52: Zásyp jam, rýh, šachet se zhutněním | D52: m3 | E52: 61.64 | G52: =E52*F52 -> 0 | H52: 0 | I52: =E52*H52 -> 0 | J52: 0 | K52: =E52*J52 -> 0 | O52: 2 | AA52: 1 | AB52: 1 | AC52: 1 | AZ52: 1 | BA52: =IF(AZ52=1,G52,0) -> 0 | BB52: =IF(AZ52=2,G52,0) -> 0 | BC52: =IF(AZ52=3,G52,0) -> 0 | BD52: =IF(AZ52=4,G52,0) -> 0 | BE52: =IF(AZ52=5,G52,0) -> 0 | CA52: 1 | CB52: 1
C53: Položka obsahuje strojní přemístění materiálu pro zásyp ze vzdálenosti do 10 m od okraje zásypu. | L53: Položka obsahuje strojní přemístění materiálu pro zásyp ze vzdálenosti do 10 m od okraje zásypu. | O53: 3
O54: 3
C55: Vodovodní řad "D" PE D 90x8,2 mm: | E55: 0 | M55: Vodovodní řad "D" PE D 90x8,2 mm:
C56: Zásyp ŠD fr. 0-63 mm:61,6400 | E56: 61.64 | M56: Zásyp ŠD fr. 0-63 mm:61,6400
C57: Začátek provozního součtu | E57: 0 | M57: Začátek provozního součtu
C58: Výkopy:111,3200 | E58: 111.32 | M58: Výkopy:111,3200
C59: Odpočet lože, potrubí a obsypů: | E59: 0 | M59: Odpočet lože, potrubí a obsypů:
C60: Řad "D":-115,00*0,80*(0,15+0,09+0,30) | E60: -49.68 | M60: Řad "D":-115,00*0,80*(0,15+0,09+0,30)
C61: 0 | E61: 0 | M61: 0
C62: Konec provozního součtu | E62: 61.64 | M62: Konec provozního součtu
A63: 10 | B63: 175101101R00 | C63: Obsyp potrubí bez prohození sypaniny | D63: m3 | E63: 35.1484 | G63: =E63*F63 -> 0 | H63: 0 | I63: =E63*H63 -> 0 | J63: 0 | K63: =E63*J63 -> 0 | O63: 2 | AA63: 1 | AB63: 1 | AC63: 1 | AZ63: 1 | BA63: =IF(AZ63=1,G63,0) -> 0 | BB63: =IF(AZ63=2,G63,0) -> 0 | BC63: =IF(AZ63=3,G63,0) -> 0 | BD63: =IF(AZ63=4,G63,0) -> 0 | BE63: =IF(AZ63=5,G63,0) -> 0 | CA63: 1 | CB63: 1
C64: Vodovodní řad "D" PE D 90x8,2 mm: | E64: 0 | M64: Vodovodní řad "D" PE D 90x8,2 mm:
C65: Řad "D":115,00*(0,80*(0,09+0,30)-0,045^2*Pi) | E65: 35.1484 | M65: Řad "D":115,00*(0,80*(0,09+0,30)-0,045^2*Pi)
A66: 11 | B66: 199000002R00 | C66: Poplatek za skládku horniny 1- 7 č. dle katal. odpadů 17 05 04 | D66: m3 | E66: 111.32 | G66: =E66*F66 -> 0 | H66: 0 | I66: =E66*H66 -> 0 | J66: 0 | K66: =E66*J66 -> 0 | O66: 2 | AA66: 1 | AB66: 1 | AC66: 1 | AZ66: 1 | BA66: =IF(AZ66=1,G66,0) -> 0 | BB66: =IF(AZ66=2,G66,0) -> 0 | BC66: =IF(AZ66=3,G66,0) -> 0 | BD66: =IF(AZ66=4,G66,0) -> 0 | BE66: =IF(AZ66=5,G66,0) -> 0 | CA66: 1 | CB66: 1
C67: Vodovodní řad "D" PE D 90x8,2 mm: | E67: 0 | M67: Vodovodní řad "D" PE D 90x8,2 mm:
C68: Výkopy : | E68: 0 | M68: Výkopy :
C69: V hornině tř. 3 - 4:111,3200 | E69: 111.32 | M69: V hornině tř. 3 - 4:111,3200
A70: 12 | B70: 58337308.R | C70: Štěrkopísek frakce 0-2 tř.B | D70: t | E70: 88.922 | G70: =E70*F70 -> 0 | H70: 1 | I70: =E70*H70 -> 88.922 | K70: =E70*J70 -> 0 | O70: 2 | AA70: 3 | AB70: 1 | AC70: 58337308.R | AZ70: 1 | BA70: =IF(AZ70=1,G70,0) -> 0 | BB70: =IF(AZ70=2,G70,0) -> 0 | BC70: =IF(AZ70=3,G70,0) -> 0 | BD70: =IF(AZ70=4,G70,0) -> 0 | BE70: =IF(AZ70=5,G70,0) -> 0 | CA70: 3 | CB70: 1
C71: Vodovodní řady "S1 a S2" PE D 90x8,2 mm: | E71: 0 | M71: Vodovodní řady "S1 a S2" PE D 90x8,2 mm:
C72: Řad "S1":111,00*(0,80*(0,09+0,30)-0,045^2*Pi)*1,973*1,01 | E72: 67.6051 | M72: Řad "S1":111,00*(0,80*(0,09+0,30)-0,045^2*Pi)*1,973*1,01
C73: Řad "S2":35,00*(0,80*(0,09+0,30)-0,045^2*Pi)*1,973*1,01 | E73: 21.3169 | M73: Řad "S2":35,00*(0,80*(0,09+0,30)-0,045^2*Pi)*1,973*1,01
A74: 13 | B74: 58344197R | C74: Štěrkodrtě frakce 0-63 A | D74: t | E74: 116.6062 | G74: =E74*F74 -> 0 | H74: 1 | I74: =E74*H74 -> 116.6062 | K74: =E74*J74 -> 0 | O74: 2 | AA74: 3 | AB74: 1 | AC74: 58344197R | AZ74: 1 | BA74: =IF(AZ74=1,G74,0) -> 0 | BB74: =IF(AZ74=2,G74,0) -> 0 | BC74: =IF(AZ74=3,G74,0) -> 0 | BD74: =IF(AZ74=4,G74,0) -> 0 | BE74: =IF(AZ74=5,G74,0) -> 0 | CA74: 3 | CB74: 1
C75: Vodovodní řad "D" PE D 90x8,2 mm: | E75: 0 | M75: Vodovodní řad "D" PE D 90x8,2 mm:
C76: Zásyp ŠD fr. 0-63 mm:61,6400*1,873*1,01 | E76: 116.6062 | M76: Zásyp ŠD fr. 0-63 mm:61,6400*1,873*1,01
B77: Celkem za | C77: 1 Zemní práce | G77: =SUM(G7:G76) -> 0 | I77: =SUM(I7:I76) -> 205.894797 | K77: =SUM(K7:K76) -> 0 | O77: 4 | BA77: =SUM(BA7:BA76) -> 0 | BB77: =SUM(BB7:BB76) -> 0 | BC77: =SUM(BC7:BC76) -> 0 | BD77: =SUM(BD7:BD76) -> 0 | BE77: =SUM(BE7:BE76) -> 0
A78: Díl: | B78: 21 | C78: Úprava podloží a základ.spáry | O78: 1
A79: 14 | B79: 215901101RT5 | C79: Zhutnění podloží do 92% PS vibrační deskou | D79: m2 | E79: 92 | G79: =E79*F79 -> 0 | H79: 0 | I79: =E79*H79 -> 0 | J79: 0 | K79: =E79*J79 -> 0 | O79: 2 | AA79: 1 | AB79: 1 | AC79: 1 | AZ79: 1 | BA79: =IF(AZ79=1,G79,0) -> 0 | BB79: =IF(AZ79=2,G79,0) -> 0 | BC79: =IF(AZ79=3,G79,0) -> 0 | BD79: =IF(AZ79=4,G79,0) -> 0 | BE79: =IF(AZ79=5,G79,0) -> 0 | CA79: 1 | CB79: 1
C80: Vodovodní řad "D" PE D 90x8,2 mm: | E80: 0 | M80: Vodovodní řad "D" PE D 90x8,2 mm:
C81: Výkopy : | E81: 0 | M81: Výkopy :
C82: Řad "D":115,00*0,80 | E82: 92 | M82: Řad "D":115,00*0,80
B83: Celkem za | C83: 21 Úprava podloží a základ.spáry | G83: =SUM(G78:G82) -> 0 | I83: =SUM(I78:I82) -> 0 | K83: =SUM(K78:K82) -> 0 | O83: 4 | BA83: =SUM(BA78:BA82) -> 0 | BB83: =SUM(BB78:BB82) -> 0 | BC83: =SUM(BC78:BC82) -> 0 | BD83: =SUM(BD78:BD82) -> 0 | BE83: =SUM(BE78:BE82) -> 0
A84: Díl: | B84: 45 | C84: Podkladní a vedlejší konstrukce | O84: 1
A85: 15 | B85: 451572111R00 | C85: Lože pod potrubí z kameniva těženého 0 - 4 mm | D85: m3 | E85: 13.8 | G85: =E85*F85 -> 0 | H85: 0.43051 | I85: =E85*H85 -> 5.941038 | J85: 0 | K85: =E85*J85 -> 0 | O85: 2 | AA85: 1 | AB85: 1 | AC85: 1 | AZ85: 1 | BA85: =IF(AZ85=1,G85,0) -> 0 | BB85: =IF(AZ85=2,G85,0) -> 0 | BC85: =IF(AZ85=3,G85,0) -> 0 | BD85: =IF(AZ85=4,G85,0) -> 0 | BE85: =IF(AZ85=5,G85,0) -> 0 | CA85: 1 | CB85: 1
C86: Vodovodní řad "D" PE D 90x8,2 mm: | E86: 0 | M86: Vodovodní řad "D" PE D 90x8,2 mm:
C87: Řad "D":115,00*0,80*0,15 | E87: 13.8 | M87: Řad "D":115,00*0,80*0,15
A88: 16 | B88: 452313141R00 | C88: Bloky pro potrubí z betonu C 16/20 vč. bednění | D88: m3 | E88: 0.036 | G88: =E88*F88 -> 0 | H88: 2.5 | I88: =E88*H88 -> 0.09 | J88: 0 | K88: =E88*J88 -> 0 | O88: 2 | AA88: 1 | AB88: 1 | AC88: 1 | AZ88: 1 | BA88: =IF(AZ88=1,G88,0) -> 0 | BB88: =IF(AZ88=2,G88,0) -> 0 | BC88: =IF(AZ88=3,G88,0) -> 0 | BD88: =IF(AZ88=4,G88,0) -> 0 | BE88: =IF(AZ88=5,G88,0) -> 0 | CA88: 1 | CB88: 1
B89: Celkem za | C89: 45 Podkladní a vedlejší konstrukce | G89: =SUM(G84:G88) -> 0 | I89: =SUM(I84:I88) -> 6.031038 | K89: =SUM(K84:K88) -> 0 | O89: 4 | BA89: =SUM(BA84:BA88) -> 0 | BB89: =SUM(BB84:BB88) -> 0 | BC89: =SUM(BC84:BC88) -> 0 | BD89: =SUM(BD84:BD88) -> 0 | BE89: =SUM(BE84:BE88) -> 0
A90: Díl: | B90: 5 | C90: Komunikace | O90: 1
A91: 17 | B91: 572701119RRX | C91: Provizorní zásyp rýh kam. hrubě drceným nebo recyk s následným odstraněním a odvozem | D91: m3 | E91: 36.8 | G91: =E91*F91 -> 0 | H91: 1.4805 | I91: =E91*H91 -> 54.4824 | J91: 0 | K91: =E91*J91 -> 0 | O91: 2 | AA91: 1 | AB91: 1 | AC91: 1 | AZ91: 1 | BA91: =IF(AZ91=1,G91,0) -> 0 | BB91: =IF(AZ91=2,G91,0) -> 0 | BC91: =IF(AZ91=3,G91,0) -> 0 | BD91: =IF(AZ91=4,G91,0) -> 0 | BE91: =IF(AZ91=5,G91,0) -> 0 | CA91: 1 | CB91: 1
C92: Vodovodní řad "D" PE D 90x8,2 mm: | E92: 0 | M92: Vodovodní řad "D" PE D 90x8,2 mm:
C93: Provizorní zásypy stávající konstrukce komunikace a chodníků: | E93: 0 | M93: Provizorní zásypy stávající konstrukce komunikace a chodníků:
C94: Řad "D":115,00*0,80*0,40 | E94: 36.8 | M94: Řad "D":115,00*0,80*0,40
B95: Celkem za | C95: 5 Komunikace | G95: =SUM(G90:G94) -> 0 | I95: =SUM(I90:I94) -> 54.4824 | K95: =SUM(K90:K94) -> 0 | O95: 4 | BA95: =SUM(BA90:BA94) -> 0 | BB95: =SUM(BB90:BB94) -> 0 | BC95: =SUM(BC90:BC94) -> 0 | BD95: =SUM(BD90:BD94) -> 0 | BE95: =SUM(BE90:BE94) -> 0
A96: Díl: | B96: 8 | C96: Trubní vedení | O96: 1
A97: 18 | B97: 850245121R00 | C97: Výřez nebo výsek na potrubí DN 80 | D97: kus | E97: 3 | G97: =E97*F97 -> 0 | H97: 0 | I97: =E97*H97 -> 0 | J97: 0 | K97: =E97*J97 -> 0 | O97: 2 | AA97: 1 | AB97: 1 | AC97: 1 | AZ97: 1 | BA97: =IF(AZ97=1,G97,0) -> 0 | BB97: =IF(AZ97=2,G97,0) -> 0 | BC97: =IF(AZ97=3,G97,0) -> 0 | BD97: =IF(AZ97=4,G97,0) -> 0 | BE97: =IF(AZ97=5,G97,0) -> 0 | CA97: 1 | CB97: 1
C98: Položky výřezu nebo výseku na potrubí z trub litinových tlakových jsou určeny pro dva řezy nebo seky prováděné na potrubí dodatečně. V položkách jsou zakalkulovány náklady na | L98: Položky výřezu nebo výseku na potrubí z trub litinových tlakových jsou určeny pro dva řezy nebo seky prováděné na potrubí dodatečně. V položkách jsou zakalkulovány náklady na | O98: 3
C99: - ohlášení uzavírání vody | L99: - ohlášení uzavírání vody | O99: 3
C100: - uzavření a otevření šoupat | L100: - uzavření a otevření šoupat | O100: 3
C101: - vypuštění a napuštění vody | L101: - vypuštění a napuštění vody | O101: 3
C102: - odvzdušnění potrubí | L102: - odvzdušnění potrubí | O102: 3
C103: - strojní nebo ruční výřez potrubí | L103: - strojní nebo ruční výřez potrubí | O103: 3
C104: - nutné úpravy výkopu v prostoru provádění | L104: - nutné úpravy výkopu v prostoru provádění | O104: 3
C105: - demonzáž stávajícich tvarovek a armatur | L105: - demonzáž stávajícich tvarovek a armatur | O105: 3
C106: - montáž tvarovky | L106: - montáž tvarovky | O106: 3
C107: Vodovodní řad "D" PE D 90x8,2 mm: | E107: 0 | M107: Vodovodní řad "D" PE D 90x8,2 mm:
C108: Přerušení stáv. potrubí DN80:3 | E108: 3 | M108: Přerušení stáv. potrubí DN80:3
A109: 19 | B109: 857242121R00 | C109: Montáž tvarovek litin. jednoos.přír. výkop DN 80 včetně nerezových spoj. prvků a obandážování spoje | D109: kus | E109: 3 | G109: =E109*F109 -> 0 | H109: 0.00022 | I109: =E109*H109 -> 0.00066 | J109: 0 | K109: =E109*J109 -> 0 | O109: 2 | AA109: 1 | AB109: 1 | AC109: 1 | AZ109: 1 | BA109: =IF(AZ109=1,G109,0) -> 0 | BB109: =IF(AZ109=2,G109,0) -> 0 | BC109: =IF(AZ109=3,G109,0) -> 0 | BD109: =IF(AZ109=4,G109,0) -> 0 | BE109: =IF(AZ109=5,G109,0) -> 0 | CA109: 1 | CB109: 1
C110: Položka je určena pro montáž litinových tvarovek na potrubí litinovém tlakovém přírubovém jednoosých v otevřeném výkopu, v otevřeném kanálu nebo v šachtě. | L110: Položka je určena pro montáž litinových tvarovek na potrubí litinovém tlakovém přírubovém jednoosých v otevřeném výkopu, v otevřeném kanálu nebo v šachtě. | O110: 3
C111: Součástí položky je i dodávka nerezových spojovacích prvků (šrouby, podložky, matky) a kompletního obandážování spojů. | L111: Součástí položky je i dodávka nerezových spojovacích prvků (šrouby, podložky, matky) a kompletního obandážování spojů. | O111: 3
C112: Vodovodní řad "D" PE D 90x8,2 mm: | E112: 0 | M112: Vodovodní řad "D" PE D 90x8,2 mm:
C113: Synoflex spojka DN80:1 | E113: 1 | M113: Synoflex spojka DN80:1
C114: LN + TP D90/DN80:1 | E114: 1 | M114: LN + TP D90/DN80:1
C115: PPL DN80:1 | E115: 1 | M115: PPL DN80:1
A116: 20 | B116: 871241121R00 | C116: Montáž potrubí polyetylenového ve výkopu d 90 mm | D116: m | E116: 115 | G116: =E116*F116 -> 0 | H116: 0 | I116: =E116*H116 -> 0 | J116: 0 | K116: =E116*J116 -> 0 | O116: 2 | AA116: 1 | AB116: 1 | AC116: 1 | AZ116: 1 | BA116: =IF(AZ116=1,G116,0) -> 0 | BB116: =IF(AZ116=2,G116,0) -> 0 | BC116: =IF(AZ116=3,G116,0) -> 0 | BD116: =IF(AZ116=4,G116,0) -> 0 | BE116: =IF(AZ116=5,G116,0) -> 0 | CA116: 1 | CB116: 1
C117: V položce je uvažováno s jedním spojem na 6 m potrubí. | L117: V položce je uvažováno s jedním spojem na 6 m potrubí. | O117: 3
C118: Vodovodní řad "D" PE D 90x8,2 mm: | E118: 0 | M118: Vodovodní řad "D" PE D 90x8,2 mm:
C119: Řad "D":115,00 | E119: 115 | M119: Řad "D":115,00
A120: 21 | B120: 877242121R00 | C120: Přirážka za 1 spoj elektrotvarovky d 90 mm | D120: kus | E120: 13 | G120: =E120*F120 -> 0 | H120: 0 | I120: =E120*H120 -> 0 | J120: 0 | K120: =E120*J120 -> 0 | O120: 2 | AA120: 1 | AB120: 1 | AC120: 1 | AZ120: 1 | BA120: =IF(AZ120=1,G120,0) -> 0 | BB120: =IF(AZ120=2,G120,0) -> 0 | BC120: =IF(AZ120=3,G120,0) -> 0 | BD120: =IF(AZ120=4,G120,0) -> 0 | BE120: =IF(AZ120=5,G120,0) -> 0 | CA120: 1 | CB120: 1
C121: Vodovodní řad "D" PE D 90x8,2 mm: | E121: 0 | M121: Vodovodní řad "D" PE D 90x8,2 mm:
C122: Elektrospojka PE D90:12 | E122: 12 | M122: Elektrospojka PE D90:12
C123: Oblouk PE D90/22°:1 | E123: 1 | M123: Oblouk PE D90/22°:1
A124: 22 | B124: 891241111R00 | C124: Montáž vodovodních šoupátek ve výkopu DN 80 včetně nerezových spoj. prvků a obandážování spoje | D124: kus | E124: 1 | G124: =E124*F124 -> 0 | H124: 0.00022 | I124: =E124*H124 -> 0.00022 | J124: 0 | K124: =E124*J124 -> 0 | O124: 2 | AA124: 1 | AB124: 1 | AC124: 1 | AZ124: 1 | BA124: =IF(AZ124=1,G124,0) -> 0 | BB124: =IF(AZ124=2,G124,0) -> 0 | BC124: =IF(AZ124=3,G124,0) -> 0 | BD124: =IF(AZ124=4,G124,0) -> 0 | BE124: =IF(AZ124=5,G124,0) -> 0 | CA124: 1 | CB124: 1
C125: Položka je určena pro montáž vodovodních šoupátek v otevřeném výkopu nebo v šachtách s osazením zemní soupravy (bez poklopů). V položce jsou zakalkulovány i náklady na vytvoření otvorů ve stropech šachet pro prostup zemních souprav šoupátek. | L125: Položka je určena pro montáž vodovodních šoupátek v otevřeném výkopu nebo v šachtách s osazením zemní soupravy (bez poklopů). V položce jsou zakalkulovány i náklady na vytvoření otvorů ve stropech šachet pro prostup zemních souprav šoupátek. | O125: 3
C126: Součástí položky je i dodávka nerezových spojovacích prvků (šrouby, podložky, matky) a kompletního obandážování spojů. | L126: Součástí položky je i dodávka nerezových spojovacích prvků (šrouby, podložky, matky) a kompletního obandážování spojů. | O126: 3
C127: Vodovodní řad "D" PE D 90x8,2 mm: | E127: 0 | M127: Vodovodní řad "D" PE D 90x8,2 mm:
C128: Šoupě DN80:1 | E128: 1 | M128: Šoupě DN80:1
A129: 23 | B129: 891243321R00 | C129: Montáž ventilů odvzdušňovacích přírub. DN 80 včetně nerezových spoj. prvků a obandážování spoje | D129: kus | E129: 1 | G129: =E129*F129 -> 0 | H129: 0.00079 | I129: =E129*H129 -> 0.00079 | J129: 0 | K129: =E129*J129 -> 0 | O129: 2 | AA129: 1 | AB129: 1 | AC129: 1 | AZ129: 1 | BA129: =IF(AZ129=1,G129,0) -> 0 | BB129: =IF(AZ129=2,G129,0) -> 0 | BC129: =IF(AZ129=3,G129,0) -> 0 | BD129: =IF(AZ129=4,G129,0) -> 0 | BE129: =IF(AZ129=5,G129,0) -> 0 | CA129: 1 | CB129: 1
C130: Položka je určena pro montáž ventilů odvzdušňovacích nebo zavzdušňovacích mechanických a plovákových přírubových na venkovních řadech. | L130: Položka je určena pro montáž ventilů odvzdušňovacích nebo zavzdušňovacích mechanických a plovákových přírubových na venkovních řadech. | O130: 3
C131: Součástí položky je i dodávka nerezových spojovacích prvků (šrouby, podložky, matky) a kompletního obandážování spojů. | L131: Součástí položky je i dodávka nerezových spojovacích prvků (šrouby, podložky, matky) a kompletního obandážování spojů. | O131: 3
C132: Vodovodní řad "D" PE D 90x8,2 mm: | E132: 0 | M132: Vodovodní řad "D" PE D 90x8,2 mm:
C133: VZD DN80:1 | E133: 1 | M133: VZD DN80:1
A134: 24 | B134: 891249111R00 | C134: Montáž navrtávacích pasů DN 80 s ventilem | D134: kus | E134: 4 | G134: =E134*F134 -> 0 | H134: 0 | I134: =E134*H134 -> 0 | J134: 0 | K134: =E134*J134 -> 0 | O134: 2 | AA134: 1 | AB134: 1 | AC134: 1 | AZ134: 1 | BA134: =IF(AZ134=1,G134,0) -> 0 | BB134: =IF(AZ134=2,G134,0) -> 0 | BC134: =IF(AZ134=3,G134,0) -> 0 | BD134: =IF(AZ134=4,G134,0) -> 0 | BE134: =IF(AZ134=5,G134,0) -> 0 | CA134: 1 | CB134: 1
C135: Vodovodní řad "D" PE D 90x8,2 mm: | E135: 0 | M135: Vodovodní řad "D" PE D 90x8,2 mm:
C136: Pro VP - NP D90/32:4 | E136: 4 | M136: Pro VP - NP D90/32:4
A137: 25 | B137: 892241111R00 | C137: Tlaková zkouška vodovodního potrubí DN 80 včetně zajištění konců potrubí | D137: m | E137: 115 | G137: =E137*F137 -> 0 | H137: 0 | I137: =E137*H137 -> 0 | J137: 0 | K137: =E137*J137 -> 0 | O137: 2 | AA137: 1 | AB137: 1 | AC137: 1 | AZ137: 1 | BA137: =IF(AZ137=1,G137,0) -> 0 | BB137: =IF(AZ137=2,G137,0) -> 0 | BC137: =IF(AZ137=3,G137,0) -> 0 | BD137: =IF(AZ137=4,G137,0) -> 0 | BE137: =IF(AZ137=5,G137,0) -> 0 | CA137: 1 | CB137: 1
C138: V položce jsou započteny náklady na přísun, montáž, demontáž a odsun zkoušecího čerpadla, napuštění tlakovou vodou a dodání vody pro tlakovou zkoušku | L138: V položce jsou započteny náklady na přísun, montáž, demontáž a odsun zkoušecího čerpadla, napuštění tlakovou vodou a dodání vody pro tlakovou zkoušku | O138: 3
C139: Vodovodní řad "D" PE D 90x8,2 mm: | E139: 0 | M139: Vodovodní řad "D" PE D 90x8,2 mm:
C140: Řad "D":115,00 | E140: 115 | M140: Řad "D":115,00
A141: 26 | B141: 892273111R00 | C141: Desinfekce vodovodního potrubí DN 125 | D141: m | E141: 115 | G141: =E141*F141 -> 0 | H141: 0 | I141: =E141*H141 -> 0 | J141: 0 | K141: =E141*J141 -> 0 | O141: 2 | AA141: 1 | AB141: 1 | AC141: 1 | AZ141: 1 | BA141: =IF(AZ141=1,G141,0) -> 0 | BB141: =IF(AZ141=2,G141,0) -> 0 | BC141: =IF(AZ141=3,G141,0) -> 0 | BD141: =IF(AZ141=4,G141,0) -> 0 | BE141: =IF(AZ141=5,G141,0) -> 0 | CA141: 1 | CB141: 1
C142: V položce jsou zakalkulovány náklady na napuštění a vypuštění vody, dodání vody a desinfekčního prostředku a na bakteriologický rozbor vody. | L142: V položce jsou zakalkulovány náklady na napuštění a vypuštění vody, dodání vody a desinfekčního prostředku a na bakteriologický rozbor vody. | O142: 3
C143: Vodovodní řad "D" PE D 90x8,2 mm: | E143: 0 | M143: Vodovodní řad "D" PE D 90x8,2 mm:
C144: Řad "D":115,00 | E144: 115 | M144: Řad "D":115,00
A145: 27 | B145: 899401113R00 | C145: Osazení poklopů litinových hydrantových | D145: kus | E145: 1 | G145: =E145*F145 -> 0 | H145: 0.32906 | I145: =E145*H145 -> 0.32906 | J145: 0 | K145: =E145*J145 -> 0 | O145: 2 | AA145: 1 | AB145: 1 | AC145: 1 | AZ145: 1 | BA145: =IF(AZ145=1,G145,0) -> 0 | BB145: =IF(AZ145=2,G145,0) -> 0 | BC145: =IF(AZ145=3,G145,0) -> 0 | BD145: =IF(AZ145=4,G145,0) -> 0 | BE145: =IF(AZ145=5,G145,0) -> 0 | CA145: 1 | CB145: 1
C146: Vodovodní řad "D" PE D 90x8,2 mm: | E146: 0 | M146: Vodovodní řad "D" PE D 90x8,2 mm:
C147: Pro VZD DN80:1 | E147: 1 | M147: Pro VZD DN80:1
A148: 28 | B148: 899721112R00 | C148: Fólie výstražná z PVC bílá, šířka 30 cm | D148: m | E148: 115 | G148: =E148*F148 -> 0 | H148: 0 | I148: =E148*H148 -> 0 | J148: 0 | K148: =E148*J148 -> 0 | O148: 2 | AA148: 1 | AB148: 1 | AC148: 1 | AZ148: 1 | BA148: =IF(AZ148=1,G148,0) -> 0 | BB148: =IF(AZ148=2,G148,0) -> 0 | BC148: =IF(AZ148=3,G148,0) -> 0 | BD148: =IF(AZ148=4,G148,0) -> 0 | BE148: =IF(AZ148=5,G148,0) -> 0 | CA148: 1 | CB148: 1
C149: Vodovodní řad "D" PE D 90x8,2 mm: | E149: 0 | M149: Vodovodní řad "D" PE D 90x8,2 mm:
C150: Řad "D":115,00 | E150: 115 | M150: Řad "D":115,00
A151: 29 | B151: 899731114R00 | C151: Vodič signalizační CYY 6 mm2 | D151: m | E151: 137 | G151: =E151*F151 -> 0 | H151: 8e-05 | I151: =E151*H151 -> 0.01096 | J151: 0 | K151: =E151*J151 -> 0 | O151: 2 | AA151: 1 | AB151: 1 | AC151: 1 | AZ151: 1 | BA151: =IF(AZ151=1,G151,0) -> 0 | BB151: =IF(AZ151=2,G151,0) -> 0 | BC151: =IF(AZ151=3,G151,0) -> 0 | BD151: =IF(AZ151=4,G151,0) -> 0 | BE151: =IF(AZ151=5,G151,0) -> 0 | CA151: 1 | CB151: 1
C152: Součástí položky je zajištění proměření vodiče a výchozí zevize. | L152: Součástí položky je zajištění proměření vodiče a výchozí zevize. | O152: 3
C153: Vodovodní řad "D" PE D 90x8,2 mm: | E153: 0 | M153: Vodovodní řad "D" PE D 90x8,2 mm:
C154: Řad "D":115,00 | E154: 115 | M154: Řad "D":115,00
C155: Vyvedení: | E155: 0 | M155: Vyvedení:
C156: Pro Šoupě DN80:2,00*2*1 | E156: 4 | M156: Pro Šoupě DN80:2,00*2*1
C157: Pro VZD DN80:2,00*1*1 | E157: 2 | M157: Pro VZD DN80:2,00*1*1
C158: Pro VP:2,00*2*4 | E158: 16 | M158: Pro VP:2,00*2*4
A159: 30 | B159: 28613070.DAV.R | C159: T-kus odbočkový navrtávací DAV (KIT) D90/32 | D159: kus | E159: 4 | G159: =E159*F159 -> 0 | H159: 0 | I159: =E159*H159 -> 0 | K159: =E159*J159 -> 0 | O159: 2 | AA159: 3 | AB159: 1 | AC159: 28613070.DAV.R | AZ159: 1 | BA159: =IF(AZ159=1,G159,0) -> 0 | BB159: =IF(AZ159=2,G159,0) -> 0 | BC159: =IF(AZ159=3,G159,0) -> 0 | BD159: =IF(AZ159=4,G159,0) -> 0 | BE159: =IF(AZ159=5,G159,0) -> 0 | CA159: 3 | CB159: 1
C160: Vodovodní řad "D" PE D 90x8,2 mm: | E160: 0 | M160: Vodovodní řad "D" PE D 90x8,2 mm:
C161: Pro VP - NP D90/32:4 | E161: 4 | M161: Pro VP - NP D90/32:4
A162: 31 | B162: 28613090.EBS.R | C162: Zemní souprava EBS 1,1-1,8 pro DAV (KIT) | D162: kus | E162: 4 | G162: =E162*F162 -> 0 | H162: 0 | I162: =E162*H162 -> 0 | K162: =E162*J162 -> 0 | O162: 2 | AA162: 3 | AB162: 1 | AC162: 28613090.EBS.R | AZ162: 1 | BA162: =IF(AZ162=1,G162,0) -> 0 | BB162: =IF(AZ162=2,G162,0) -> 0 | BC162: =IF(AZ162=3,G162,0) -> 0 | BD162: =IF(AZ162=4,G162,0) -> 0 | BE162: =IF(AZ162=5,G162,0) -> 0 | CA162: 3 | CB162: 1
C163: Vodovodní řad "D" PE D 90x8,2 mm: | E163: 0 | M163: Vodovodní řad "D" PE D 90x8,2 mm:
C164: Pro VP - NP D90/32:4 | E164: 4 | M164: Pro VP - NP D90/32:4
A165: 32 | B165: 286134213.R | C165: Trubka tlaková PE 100 RC2 PE100 90x8,2 mm PN16 tyče L=12 m | D165: m | E165: 116.725 | G165: =E165*F165 -> 0 | H165: 0.00212 | I165: =E165*H165 -> 0.247457 | K165: =E165*J165 -> 0 | O165: 2 | AA165: 3 | AB165: 1 | AC165: 286134213.R | AZ165: 1 | BA165: =IF(AZ165=1,G165,0) -> 0 | BB165: =IF(AZ165=2,G165,0) -> 0 | BC165: =IF(AZ165=3,G165,0) -> 0 | BD165: =IF(AZ165=4,G165,0) -> 0 | BE165: =IF(AZ165=5,G165,0) -> 0 | CA165: 3 | CB165: 1
C166: Vodovodní tlaková trubka PE 100 RC2 dle normy EN 12 201-2 | L166: Vodovodní PE tlaková trubka AQUALINE RC2 dle normy EN 12 201-2 | O166: 3
C167: (doprava pitné a užitkové vody) | L167: (doprava pitné a užitkové vody) | O167: 3
C168: Vodovodní řad "D" PE D 90x8,2 mm: | E168: 0 | M168: Vodovodní řad "D" PE D 90x8,2 mm:
C169: Řad "D":115,00*1,015 | E169: 116.725 | M169: Řad "D":115,00*1,015
A170: 33 | B170: 28653079.11.R | C170: Elektrospojka d 90 mm PE 100 SDR11 | D170: kus | E170: 12.18 | G170: =E170*F170 -> 0 | H170: 0.0013 | I170: =E170*H170 -> 0.015834 | K170: =E170*J170 -> 0 | O170: 2 | AA170: 3 | AB170: 1 | AC170: 28653079.11.R | AZ170: 1 | BA170: =IF(AZ170=1,G170,0) -> 0 | BB170: =IF(AZ170=2,G170,0) -> 0 | BC170: =IF(AZ170=3,G170,0) -> 0 | BD170: =IF(AZ170=4,G170,0) -> 0 | BE170: =IF(AZ170=5,G170,0) -> 0 | CA170: 3 | CB170: 1
C171: Vodovodní řad "D" PE D 90x8,2 mm: | E171: 0 | M171: Vodovodní řad "D" PE D 90x8,2 mm:
C172: Elektrospojka PE D90:12*1,015 | E172: 12.18 | M172: Elektrospojka PE D90:12*1,015
A173: 34 | B173: 28653439.A.R | C173: Oblouk 22° PE d 90 mm PE100 SDR11 | D173: kus | E173: 1.015 | G173: =E173*F173 -> 0 | H173: 0.00105 | I173: =E173*H173 -> 0.00106575 | K173: =E173*J173 -> 0 | O173: 2 | AA173: 3 | AB173: 1 | AC173: 28653439.A.R | AZ173: 1 | BA173: =IF(AZ173=1,G173,0) -> 0 | BB173: =IF(AZ173=2,G173,0) -> 0 | BC173: =IF(AZ173=3,G173,0) -> 0 | BD173: =IF(AZ173=4,G173,0) -> 0 | BE173: =IF(AZ173=5,G173,0) -> 0 | CA173: 3 | CB173: 1
C174: Vodovodní řad "D" PE D 90x8,2 mm: | E174: 0 | M174: Vodovodní řad "D" PE D 90x8,2 mm:
C175: Oblouk PE D90/22°:1*1,015 | E175: 1.015 | M175: Oblouk PE D90/22°:1*1,015
A176: 35 | B176: 28653765.R | C176: LN + TP D90/DN80 PE100 SDR11 | D176: kus | E176: 1 | G176: =E176*F176 -> 0 | H176: 0.00035 | I176: =E176*H176 -> 0.00035 | K176: =E176*J176 -> 0 | O176: 2 | AA176: 3 | AB176: 1 | AC176: 28653765.R | AZ176: 1 | BA176: =IF(AZ176=1,G176,0) -> 0 | BB176: =IF(AZ176=2,G176,0) -> 0 | BC176: =IF(AZ176=3,G176,0) -> 0 | BD176: =IF(AZ176=4,G176,0) -> 0 | BE176: =IF(AZ176=5,G176,0) -> 0 | CA176: 3 | CB176: 1
C177: Vodovodní řad "D" PE D 90x8,2 mm: | E177: 0 | M177: Vodovodní řad "D" PE D 90x8,2 mm:
C178: LN + TP D90/DN80:1 | E178: 1 | M178: LN + TP D90/DN80:1
A179: 36 | B179: 42201790 | C179: Poklop odvz.a propl. hydrantů č.1790 | D179: kus | E179: 1 | G179: =E179*F179 -> 0 | H179: 0.0113 | I179: =E179*H179 -> 0.0113 | K179: =E179*J179 -> 0 | O179: 2 | AA179: 3 | AB179: 1 | AC179: 42201790 | AZ179: 1 | BA179: =IF(AZ179=1,G179,0) -> 0 | BB179: =IF(AZ179=2,G179,0) -> 0 | BC179: =IF(AZ179=3,G179,0) -> 0 | BD179: =IF(AZ179=4,G179,0) -> 0 | BE179: =IF(AZ179=5,G179,0) -> 0 | CA179: 3 | CB179: 1
O180: 3
C181: vhodné ruční kolo: č. 7800 | L181: vhodné ruční kolo: č. 7800 | O181: 3
O182: 3
C183: Vodovodní řad "D" PE D 90x8,2 mm: | E183: 0 | M183: Vodovodní řad "D" PE D 90x8,2 mm:
C184: Pro VZD DN80:1 | E184: 1 | M184: Pro VZD DN80:1
A185: 37 | B185: 42203482.R | C185: Podkladová deska č. 3482 | D185: kus | E185: 1 | G185: =E185*F185 -> 0 | H185: 0.0006 | I185: =E185*H185 -> 0.0006 | K185: =E185*J185 -> 0 | O185: 2 | AA185: 3 | AB185: 1 | AC185: 42203482.R | AZ185: 1 | BA185: =IF(AZ185=1,G185,0) -> 0 | BB185: =IF(AZ185=2,G185,0) -> 0 | BC185: =IF(AZ185=3,G185,0) -> 0 | BD185: =IF(AZ185=4,G185,0) -> 0 | BE185: =IF(AZ185=5,G185,0) -> 0 | CA185: 3 | CB185: 1
O186: 3
C187: Vodovodní řad "D" PE D 90x8,2 mm: | E187: 0 | M187: Vodovodní řad "D" PE D 90x8,2 mm:
C188: Pro VZD DN80:1 | E188: 1 | M188: Pro VZD DN80:1
A189: 38 | B189: 42209822.06.R | C189: Ventil odvzdušňovací 1555/80 PN 1-16 | D189: kus | E189: 1 | G189: =E189*F189 -> 0 | H189: 0.031 | I189: =E189*H189 -> 0.031 | K189: =E189*J189 -> 0 | O189: 2 | AA189: 3 | AB189: 1 | AC189: 42209822.06.R | AZ189: 1 | BA189: =IF(AZ189=1,G189,0) -> 0 | BB189: =IF(AZ189=2,G189,0) -> 0 | BC189: =IF(AZ189=3,G189,0) -> 0 | BD189: =IF(AZ189=4,G189,0) -> 0 | BE189: =IF(AZ189=5,G189,0) -> 0 | CA189: 3 | CB189: 1
C190: Vodovodní řad "D" PE D 90x8,2 mm: | E190: 0 | M190: Vodovodní řad "D" PE D 90x8,2 mm:
C191: VZD DN80:1 | E191: 1 | M191: VZD DN80:1
A192: 39 | B192: 42209999.R | C192: Drenážní obal | D192: kus | E192: 1 | G192: =E192*F192 -> 0 | H192: 0.0048 | I192: =E192*H192 -> 0.0048 | K192: =E192*J192 -> 0 | O192: 2 | AA192: 3 | AB192: 1 | AC192: 42209999.R | AZ192: 1 | BA192: =IF(AZ192=1,G192,0) -> 0 | BB192: =IF(AZ192=2,G192,0) -> 0 | BC192: =IF(AZ192=3,G192,0) -> 0 | BD192: =IF(AZ192=4,G192,0) -> 0 | BE192: =IF(AZ192=5,G192,0) -> 0 | CA192: 3 | CB192: 1
C193: Vodovodní řad "D" PE D 90x8,2 mm: | E193: 0 | M193: Vodovodní řad "D" PE D 90x8,2 mm:
C194: Pro VZD DN80:1 | E194: 1 | M194: Pro VZD DN80:1
A195: 40 | B195: 42228310.R | C195: Šoupátko 4000E3 DN 80 přírubové, voda PN16 | D195: kus | E195: 1 | G195: =E195*F195 -> 0 | H195: 0.0165 | I195: =E195*H195 -> 0.0165 | K195: =E195*J195 -> 0 | O195: 2 | AA195: 3 | AB195: 1 | AC195: 42228310.R | AZ195: 1 | BA195: =IF(AZ195=1,G195,0) -> 0 | BB195: =IF(AZ195=2,G195,0) -> 0 | BC195: =IF(AZ195=3,G195,0) -> 0 | BD195: =IF(AZ195=4,G195,0) -> 0 | BE195: =IF(AZ195=5,G195,0) -> 0 | CA195: 3 | CB195: 1
C196: Šoupátko přírubové krkové - měkcetěsnící klínové šoupátko s hladkým a volným průtokovým kanálem | L196: Šoupátko přírubové krkové - měkcetěsnící klínové šoupátko s hladkým a volným průtokovým kanálem | O196: 3
C197: č. 4000E3 | L197: č. 4000E3 | O197: 3
C198: PN 16 | L198: PN 16 | O198: 3
C199: DN 80 | L199: DN 80 | O199: 3
C200: těleso a víko: tvárná litina GGG 400 - DIN 1693 | L200: těleso a víko: tvárná litina GGG 400 - DIN 1693 | O200: 3
C201: medium: pitná voda, neagresivní odpadní voda | L201: medium: pitná voda, neagresivní odpadní voda | O201: 3
C202: Vodovodní řad "D" PE D 90x8,2 mm: | E202: 0 | M202: Vodovodní řad "D" PE D 90x8,2 mm:
... 75 more rows

Sheet 303 3542303.2 KL
A1: POLOŽKOVÝ ROZPOČET
A2: Rozpočet | C2: 3542/303.2 | D2: Vodovodní napojovací body | F2: JKSO | G2: 827.13
A4: Objekt | F4: SKP
A5: 303 | C5: Oprava vodovodního řadu D ul. Dvořákova | F5: Měrná jednotka | G5: m
A6: Stavba | F6: Počet jednotek | G6: 0
A7: 3542 | C7: Semily - Obnova VH infrastruktury a komunikací | F7: Náklady na m.j. | G7: =IF(G6=0,,ROUND((F30+F32)/G6,1)) -> 0
A8: Projektant | F8: Typ rozpočtu
A9: Zpracovatel projektu
A10: Objednatel | C10: Vodohospodářské sdružení Turnov
A11: Dodavatel | C11: . | F11: Zakázkové číslo
A12: Rozpočtoval | F12: Počet listů
A13: ROZPOČTOVÉ NÁKLADY
A14: Základní rozpočtové náklady
B15: HSV celkem | C15: ='303 3542303.2 Rek'!E13 -> 0
A16: Z | B16: PSV celkem | C16: ='303 3542303.2 Rek'!F13 -> 0
A17: R | B17: M práce celkem | C17: ='303 3542303.2 Rek'!H13 -> 0
A18: N | B18: M dodávky celkem | C18: ='303 3542303.2 Rek'!G13 -> 0
A19: ZRN celkem | C19: =SUM(C15:C18) -> 0
A21: HZS | C21: ='303 3542303.2 Rek'!I13 -> 0
A22: ZRN+HZS | C22: =C19+C21 -> 0
A23: ZRN+ost.náklady+HZS | C23: =C22+G23 -> 0
A24: Vypracoval | D24: Za zhotovitele | F24: Za objednatele
A25: Jméno : | D25: Jméno : | F25: Jméno :
A26: Datum : | D26: Datum : | F26: Datum :
A28: Podpis : | D28: Podpis: | F28: Podpis:
A30: Základ pro DPH | C30: 21 | D30: % | F30: =C23-F32 -> 0
A31: DPH | C31: =C30 -> 21 | D31: % | F31: =ROUND(PRODUCT(F30,C31/100),0) -> 0
A32: Základ pro DPH | C32: 0 | D32: % | F32: 0
A33: DPH | C33: =C32 -> 0 | D33: % | F33: =ROUND(PRODUCT(F32,C33/100),0) -> 0
A34: CENA ZA OBJEKT CELKEM | F34: =ROUND(SUM(F30:F33),0) -> 0
A36: Poznámka :

Sheet 303 3542303.2 Rek
A1: Stavba : | C1: 3542 Semily - Obnova VH infrastruktury a komunikací | G1: Rozpočet : | H1: 3542/303.2
A2: Objekt : | C2: 303 Oprava vodovodního řadu D ul. Dvořákova | G2: Vodovodní napojovací body
A4: REKAPITULACE STAVEBNÍCH DÍLŮ
B6: Stavební díl | E6: HSV | F6: PSV | G6: Dodávka | H6: Montáž | I6: HZS
A7: ='303 3542303.2 Pol'!B7 -> 1 | B7: ='303 3542303.2 Pol'!C7 -> Zemní práce | E7: ='303 3542303.2 Pol'!BA97 -> 0 | F7: ='303 3542303.2 Pol'!BB97 -> 0 | G7: ='303 3542303.2 Pol'!BC97 -> 0 | H7: ='303 3542303.2 Pol'!BD97 -> 0 | I7: ='303 3542303.2 Pol'!BE97 -> 0
A8: ='303 3542303.2 Pol'!B98 -> 21 | B8: ='303 3542303.2 Pol'!C98 -> Úprava podloží a základ.spáry | E8: ='303 3542303.2 Pol'!BA102 -> 0 | F8: ='303 3542303.2 Pol'!BB102 -> 0 | G8: ='303 3542303.2 Pol'!BC102 -> 0 | H8: ='303 3542303.2 Pol'!BD102 -> 0 | I8: ='303 3542303.2 Pol'!BE102 -> 0
A9: ='303 3542303.2 Pol'!B103 -> 45 | B9: ='303 3542303.2 Pol'!C103 -> Podkladní a vedlejší konstrukce | E9: ='303 3542303.2 Pol'!BA107 -> 0 | F9: ='303 3542303.2 Pol'!BB107 -> 0 | G9: ='303 3542303.2 Pol'!BC107 -> 0 | H9: ='303 3542303.2 Pol'!BD107 -> 0 | I9: ='303 3542303.2 Pol'!BE107 -> 0
A10: ='303 3542303.2 Pol'!B108 -> 5 | B10: ='303 3542303.2 Pol'!C108 -> Komunikace | E10: ='303 3542303.2 Pol'!BA116 -> 0 | F10: ='303 3542303.2 Pol'!BB116 -> 0 | G10: ='303 3542303.2 Pol'!BC116 -> 0 | H10: ='303 3542303.2 Pol'!BD116 -> 0 | I10: ='303 3542303.2 Pol'!BE116 -> 0
A11: ='303 3542303.2 Pol'!B117 -> 8 | B11: ='303 3542303.2 Pol'!C117 -> Trubní vedení | E11: ='303 3542303.2 Pol'!BA155 -> 0 | F11: ='303 3542303.2 Pol'!BB155 -> 0 | G11: ='303 3542303.2 Pol'!BC155 -> 0 | H11: ='303 3542303.2 Pol'!BD155 -> 0 | I11: ='303 3542303.2 Pol'!BE155 -> 0
A12: ='303 3542303.2 Pol'!B156 -> 99 | B12: ='303 3542303.2 Pol'!C156 -> Staveništní přesun hmot | E12: ='303 3542303.2 Pol'!BA159 -> 0 | F12: ='303 3542303.2 Pol'!BB159 -> 0 | G12: ='303 3542303.2 Pol'!BC159 -> 0 | H12: ='303 3542303.2 Pol'!BD159 -> 0 | I12: ='303 3542303.2 Pol'!BE159 -> 0
B13: CELKEM OBJEKT | E13: =SUM(E7:E12) -> 0 | F13: =SUM(F7:F12) -> 0 | G13: =SUM(G7:G12) -> 0 | H13: =SUM(H7:H12) -> 0 | I13: =SUM(I7:I12) -> 0

Sheet 303 3542303.2 Pol
A1: Položkový rozpočet
A3: Stavba : | C3: 3542 Semily - Obnova VH infrastruktury a komunikací | E3: Rozpočet: | F3: ='303 3542303.2 Rek'!H1 -> 3542/303.2
A4: Objekt : | C4: 303 Oprava vodovodního řadu D ul. Dvořákova | E4: ='303 3542303.2 Rek'!G2 -> Vodovodní napojovací body
A6: P.č. | B6: Číslo položky | C6: Název položky | D6: MJ | E6: množství | F6: cena / MJ | G6: celkem (Kč) | H6: Jednotková hmotnost | I6: Celková hmotnost | J6: Jednotková dem.hmot. | K6: Celková dem.hmot.
A7: Díl: | B7: 1 | C7: Zemní práce | O7: 1
A8: 1 | B8: 121100002RAA | C8: Sejmutí ornice a uložení na deponii zpětný přesun, rozprostření v tl. 200 mm, osetí | D8: m3 | E8: 6.6 | G8: =E8*F8 -> 0 | H8: 0 | I8: =E8*H8 -> 0 | J8: 0 | K8: =E8*J8 -> 0 | O8: 2 | AA8: 1 | AB8: 1 | AC8: 1 | AZ8: 1 | BA8: =IF(AZ8=1,G8,0) -> 0 | BB8: =IF(AZ8=2,G8,0) -> 0 | BC8: =IF(AZ8=3,G8,0) -> 0 | BD8: =IF(AZ8=4,G8,0) -> 0 | BE8: =IF(AZ8=5,G8,0) -> 0 | CA8: 1 | CB8: 1
C9: Vodovodní přípojky z PE D 32x3,0 mm: | E9: 0 | M9: Vodovodní přípojky z PE D 32x3,0 mm:
C10: Pracodní prostor šířky 2,0 m: | E10: 0 | M10: Pracodní prostor šířky 2,0 m:
C11: VP (4 kusy):16,50*2,00*0,20 | E11: 6.6 | M11: VP (4 kusy):16,50*2,00*0,20
A12: 2 | B12: 130001101RRX | C12: Příplatek za ztížené hloubení v blízkosti vedení | D12: m3 | E12: 8.5575 | G12: =E12*F12 -> 0 | H12: 0 | I12: =E12*H12 -> 0 | J12: 0 | K12: =E12*J12 -> 0 | O12: 2 | AA12: 1 | AB12: 1 | AC12: 1 | AZ12: 1 | BA12: =IF(AZ12=1,G12,0) -> 0 | BB12: =IF(AZ12=2,G12,0) -> 0 | BC12: =IF(AZ12=3,G12,0) -> 0 | BD12: =IF(AZ12=4,G12,0) -> 0 | BE12: =IF(AZ12=5,G12,0) -> 0 | CA12: 1 | CB12: 1
C13: Včetně případných nutných dokopávek a ručního výkopu podél sousedících inženýrských sítí. | L13: Včetně případných nutných dokopávek a ručního výkopu podél sousedících inženýrských sítí. | O13: 3
C14: Součástí položky je i dočasné zajištění stávajících inženýrských sítí v prostoru výkopů (potrubí, kabely a pod.) | L14: Součástí položky je i dočasné zajištění stávajících inženýrských sítí v prostoru výkopů (potrubí, kabely a pod.) | O14: 3
C15: Vodovodní přípojky z PE D 32x3,0 mm: | E15: 0 | M15: Vodovodní přípojky z PE D 32x3,0 mm:
C16: Průměrná hloubka výkopů 1,60 m: | E16: 0 | M16: Průměrná hloubka výkopů 1,60 m:
C17: Výkopy: | E17: 0 | M17: Výkopy:
C18: V hornině tř. 3 - 4 - 28%:34,2300*0,25 | E18: 8.5575 | M18: V hornině tř. 3 - 4 - 28%:34,2300*0,25
A19: 3 | B19: 132201210R00 | C19: Hloubení rýh š.do 200 cm hor.3 do 50 m3,STROJNĚ | D19: m3 | E19: 17.115 | G19: =E19*F19 -> 0 | H19: 0 | I19: =E19*H19 -> 0 | J19: 0 | K19: =E19*J19 -> 0 | O19: 2 | AA19: 1 | AB19: 1 | AC19: 1 | AZ19: 1 | BA19: =IF(AZ19=1,G19,0) -> 0 | BB19: =IF(AZ19=2,G19,0) -> 0 | BC19: =IF(AZ19=3,G19,0) -> 0 | BD19: =IF(AZ19=4,G19,0) -> 0 | BE19: =IF(AZ19=5,G19,0) -> 0 | CA19: 1 | CB19: 1
C20: Položka obsahuje hloubení rýh traktorbagrem, naložení výkopku na dopravní prostředek pro svislé, nebo vodorovné přemístění, popř. přemístění výkopku do 3 m (po povrchu území), případné zajištění rypadel polštáři, udržování pracoviště a ochranu výkopiště proti stékání srážkové vody z okolního terénu i s jejím odvodněním, nebo odvedením, přesekání a odstranění kořenů ve výkopišti, odstranění napadávek, urovnání dna výkopu. | L20: Položka obsahuje hloubení rýh traktorbagrem, naložení výkopku na dopravní prostředek pro svislé, nebo vodorovné přemístění, popř. přemístění výkopku do 3 m (po povrchu území), případné zajištění rypadel polštáři, udržování pracoviště a ochranu výkopiště proti stékání srážkové vody z okolního terénu i s jejím odvodněním, nebo odvedením, přesekání a odstranění kořenů ve výkopišti, odstranění napadávek, urovnání dna výkopu. | O20: 3
C21: Vodovodní přípojky z PE D 32x3,0 mm: | E21: 0 | M21: Vodovodní přípojky z PE D 32x3,0 mm:
C22: Průměrná hloubka výkopů 1,60 m: | E22: 0 | M22: Průměrná hloubka výkopů 1,60 m:
C23: Výkopy: | E23: 0 | M23: Výkopy:
C24: Začátek provozního součtu | E24: 0 | M24: Začátek provozního součtu
C25: VP (4 kusy):38,00*0,70*1,60 | E25: 42.56 | M25: VP (4 kusy):38,00*0,70*1,60
C26: Odpočet objemu konstrukce komunikací a chodníků:-21,50*0,70*0,40 | E26: -6.02 | M26: Odpočet objemu konstrukce komunikací a chodníků:-21,50*0,70*0,40
C27: Odpočet objemu ornice:-(38,00-21,50)*0,70*0,20 | E27: -2.31 | M27: Odpočet objemu ornice:-(38,00-21,50)*0,70*0,20
C28: Konec provozního součtu | E28: 34.23 | M28: Konec provozního součtu
C29: V hornině tř. 3 - 50%:34,2300*0,5 | E29: 17.115 | M29: V hornině tř. 3 - 50%:34,2300*0,5
A30: 4 | B30: 132201219R00 | C30: Přípl.za lepivost,hloubení rýh 200cm,hor.3,STROJNĚ | D30: m3 | E30: 8.5575 | G30: =E30*F30 -> 0 | H30: 0 | I30: =E30*H30 -> 0 | J30: 0 | K30: =E30*J30 -> 0 | O30: 2 | AA30: 1 | AB30: 1 | AC30: 1 | AZ30: 1 | BA30: =IF(AZ30=1,G30,0) -> 0 | BB30: =IF(AZ30=2,G30,0) -> 0 | BC30: =IF(AZ30=3,G30,0) -> 0 | BD30: =IF(AZ30=4,G30,0) -> 0 | BE30: =IF(AZ30=5,G30,0) -> 0 | CA30: 1 | CB30: 1
C31: Vodovodní přípojky z PE D 32x3,0 mm: | E31: 0 | M31: Vodovodní přípojky z PE D 32x3,0 mm:
C32: Průměrná hloubka výkopů 1,60 m: | E32: 0 | M32: Průměrná hloubka výkopů 1,60 m:
C33: Výkopy: | E33: 0 | M33: Výkopy:
C34: V hornině tř. 3 - 50%:34,2300*0,5*0,5 | E34: 8.5575 | M34: V hornině tř. 3 - 50%:34,2300*0,5*0,5
